Workbook

Sheet Accueil
B1: ComptaOMS avec Index 12/2011 (ne fonctionne pas avec des versions Excel antérieures 2007). Nécessite de configurer Excel pour accepter les macros pour en sacvoir plus cliquez ici
P7: Version | Q7: A propos
P8: ='A-Propos'!B3 -> 2018.12.03
B10: Vous rencontrez une erreur technique ? Prenez contact avec l'OMS au plus tôt, pour qu'une solution vous soit proposée.
N12: Etat d'équilibre des Contributions Volontaires
F13: Nom association et date exercice
F17: Plan Comptable utilisé | N17: Etat des Contributions Volontaires
F21: Saisir tous les enregistrements
N22: Tableau des codes analytiques et
N23: Sélection d'extraction (tableau)
F24: Retrouver facilement un CPC
N27: Etat automatique pour reporter les A-Nouveaux
N28: Respectez les consignes de sauvegarde !
F29: Etat d'équilibre des CPC
N32: Feuille libre pour noter des mentions de vos
F33: Etat des écritures "filtrables" | N33: écritures de régularisation (fin d'exercice)
F36: Récapitulatif des Soldes hiérarchisés | N36: Pour connaitre le solde d'un CPC à une date donnée
F37: Utile pour renseigner des états autres | N37: Très utile pour contrôler vos comptes bancaires
F41: Récapitulatif des Charges pour OMS
N42: Des tableaux pour indiquer vos immobilisations
N43: amorties 100% dans le même exercice
F44: Récapitulatif des Produits pour OMS
N46: Tableau d'amortissement linéaire
N47: pour tout type d'immobilisations
F48: VERS ONGLET PREVISIONNEL | I48: Clic ICI
N50: Grand Livre sous format TCD
N51: Tableau croisé dynamique
F52: BILAN(+) pour OMS
F55: Suivi automatique des chèques | N55: Reprend la liste de tous les CPC personnels
F56: Permet Etat des régularisations | N56: dont le libellé se termine par "!" [onglet Plan]
O95: s
C139: L'examen de ce fichier montre que la détermination du résultat et sa comptabilisation ont été
C140: réalisés, vous ne devez plus, par principe, modifier ce fichier.
C141: Vous pouvez consulter et éditer des états, ou faire de la comptabilité analytique
B145: Date du jour | D145: Fin exercice
B146: =TODAY() -> 2018-12-03 | D146: =Fin_Exercice -> 2019-08-31

Sheet PLAN
A1: =COUNTBLANK($A$8:$A$245) -> 0 | B1: Tous les nouveaux comptes doivent être insérés en colonne B | H1: =COUNT(H8:H261) -> 163
B2: le niveau [colonne C] est indiqué et formaté automatiquement | H2: =MODE(H8:H432) -> 
B3: =IF(A1=0,"-","ATTENTION UNE LIGNE EST INCOMPLETE voir colonne A") -> - | C3: =COUNTIF(C8:C260,"=6") -> 163 | D3: =IF(C3<>H1,"Attention Ajout CPC imparfait","-") -> - | E3: =LEN(B8) -> 2 | H3: 6 | I3: 5 | J3: 4 | K3: 3 | L3: 2 | N3: =INDEX(H5:L5,0,R8) -> 10000
B4: ä | D4: Vérif de doublons de CPC niveau 6 ci-dessous | H4: Incrément | I4: Incrément | J4: Incrément | K4: Incrément | L4: Incrément
D5: =IF(ISNA($H$2)," OK pas de doublon","***Attention DOUBLON dans colonnes B et H ***") -> OK pas de doublon | E5: Solde des CPC niveau 6 | H5: 1 | I5: 10 | J5: 100 | K5: 1000 | L5: 10000 | M5: Niveaux 2 à 5 | P5: Bornes détermination | U5: Tous pour onglet Recap
A6: Mouvt | B6: CPC de saisie | C6: Niveau 2 à 6 | D6: LIBELLÉS Les libellés des CPC personnels doivent se terminer par "!" | E6: Débit | F6: Crédit | G6: Solde | H6: CPC Niveau 6 | I6: CPC Niveau 5 | J6: CPC Niveau 4 | K6: CPC Niveau 3 | L6: CPC Niveau 2 | M6: Débit | N6: Crédit | O6: Solde | P6: Borne origine | Q6: Borne butte | R6: idx | S6: MVT Tout | T6: TOUT CPC | U6: Débit | V6: Crédit | W6: CPC(!)
A7: =IF(COUNTIF(E7:F7,">0"),TRUE,FALSE) -> FALSE | D7: CLASSE 1- Compte de Capitaux | E7: =IF(AND($H7<>0,$C7=6),SUMIF(TABLERECUP,$H7,COL_DEBIT),0) -> 0 | F7: =IF(AND($H7<>0,$C7=6),SUMIF(TABLERECUP,$H7,COL_CREDIT),0) -> 0 | G7: =IF(C7=6,F7-E7,0) -> 0 | H7: =IF($C7=H$3,$B7,"") ->  | I7: =IF($C7=I$3,$B7*$I$5,"") ->  | J7: =IF($C7=J$3,$B7*$J$5,"") ->  | K7: =IF($C7=K$3,$B7*$K$5,"") ->  | L7: =IF($C7=L$3,$B7*$L$5,"") ->  | M7: =SUMPRODUCT(((COL_CPC>=$P7)*(COL_CPC<$Q7))*COL_DEBIT) ->  | N7: =SUMPRODUCT(((COL_CPC>=$P7)*(COL_CPC<$Q7))*COL_CREDIT) ->  | O7: =+N7-M7 ->  | P7: =IF($R7>1,INDEX($I7:$L7,0,$R7-1),"") ->  | Q7: =IF($R7>1,P7+INDEX($H$5:$L$5,0,R7),"") ->  | R7: =7-C7 -> 7 | S7: =OR((COUNTIF(E7:F7,">0")),COUNTIF(M7:N7,">0")) -> FALSE | T7: =S7*SUM(H7:L7) -> 0 | U7: =+M7+E7 ->  | W7: libellé "!"
A8: =IF(COUNTIF(E8:F8,">0"),TRUE,FALSE) -> FALSE | B8: 10 | C8: =LEN(TEXT(B8,0)) -> 2 | D8: 10 Fonds Associatif et Réserves | E8: 0 | F8: 0 | G8: =IF(C8=6,F8-E8,0) -> 0 | H8: =IF($C8=H$3,$B8,"") ->  | I8: =IF($C8=I$3,$B8*$I$5,"") ->  | J8: =IF($C8=J$3,$B8*$J$5,"") ->  | K8: =IF($C8=K$3,$B8*$K$5,"") ->  | L8: =IF($C8=L$3,$B8*$L$5,"") -> 100000 | M8: 0 | N8: 22727.16 | O8: =+N8-M8 -> 22727.16 | P8: =IF($R8>1,INDEX($I8:$L8,0,$R8-1),"") -> 100000 | Q8: =IF($R8>1,P8+INDEX($H$5:$L$5,0,R8),"") -> 110000 | R8: =7-C8 -> 5 | S8: =OR((COUNTIF($E8:$F8,">0")),COUNTIF($M8:$N8,">0")) -> TRUE | T8: =S8*SUM(H8:L8) -> 100000 | U8: 0 | V8: 22727.16 | W8: =(RIGHT(D8)="!") -> FALSE
A9: =IF(COUNTIF(E9:F9,">0"),TRUE,FALSE) -> FALSE | B9: 102 | C9: 3 | D9: 102 Fonds Associatif et Réserves | E9: 0 | F9: 0 | G9: =IF(C9=6,F9-E9,0) -> 0 | H9: =IF($C9=H$3,$B9,"") ->  | K9: =IF($C9=K$3,$B9*$K$5,"") -> 102000 | M9: 0 | N9: 22727.16 | O9: =+N9-M9 -> 22727.16 | P9: 102000 | Q9: =IF($R9>1,P9+INDEX($H$5:$L$5,0,R9),"") -> 103000 | R9: =7-C9 -> 4 | S9: =OR((COUNTIF($E9:$F9,">0")),COUNTIF($M9:$N9,">0")) -> TRUE | T9: =S9*SUM(H9:L9) -> 102000 | U9: 0 | V9: 22727.16 | W9: =(RIGHT(D9)="!") -> FALSE
A10: =IF(COUNTIF($E10:$F10,">0"),TRUE,FALSE) -> TRUE | B10: 102100 | C10: 6 | D10: 1021 Valeur du patrimoine intégré | E10: 0 | F10: =IF(AND($H10<>0,$C10=6),SUMIF(TABLERECUP,$H10,COL_CREDIT),0) -> 22727.16 | G10: 22727.16 | H10: =IF($C10=H$3,$B10,"") -> 102100 | K10: =IF($C10=K$3,$B10*$K$5,"") ->  | M10: 0 | N10: 0 | O10: =+N10-M10 -> 0 | Q10: =IF($R10>1,P10+INDEX($H$5:$L$5,0,R10),"") ->  | R10: 1 | S10: =OR((COUNTIF(E10:F10,">0")),COUNTIF(M10:N10,">0")) -> TRUE | T10: =S10*SUM(H10:L10) -> 102100 | U10: =+M10+E10 -> 0 | V10: =+N10+F10 -> 22727.16 | W10: FALSE
A11: =IF(COUNTIF(E11:F11,">0"),TRUE,FALSE) -> FALSE | B11: 102500 | C11: 6 | D11: 1025 Legs et donations avec contrepartie d’actif | E11: 0 | F11: 0 | G11: 0 | H11: 102500 | M11: 0 | N11: 0 | O11: 0 | R11: 1 | S11: =OR((COUNTIF(E11:F11,">0")),COUNTIF(M11:N11,">0")) -> FALSE | T11: 0 | U11: 0 | V11: 0 | W11: FALSE
A12: FALSE | B12: 105000 | C12: 6 | D12: 105 Ecart de réévaluation | E12: 0 | F12: 0 | G12: 0 | H12: 105000 | M12: 0 | N12: 0 | O12: 0 | R12: 1 | S12: FALSE | T12: 0 | U12: 0 | V12: 0 | W12: FALSE
A13: FALSE | B13: 106 | C13: 3 | D13: 106 Réserves- | E13: 0 | F13: 0 | G13: 0 | K13: 106000 | M13: 0 | N13: 0 | O13: 0 | P13: 106000 | Q13: 107000 | R13: 4 | S13: FALSE | T13: 0 | U13: 0 | V13: 0 | W13: FALSE
A14: =IF(COUNTIF(E14:F14,">0"),TRUE,FALSE) -> FALSE | B14: 106100 | C14: =LEN(TEXT(B14,0)) -> 6 | D14: 1061 Réserves | E14: 0 | F14: 0 | G14: =IF(C14=6,F14-E14,0) -> 0 | H14: 106100 | M14: 0 | N14: 0 | O14: =+N14-M14 -> 0 | Q14: =IF($R14>1,P14+INDEX($H$5:$L$5,0,R14),"") ->  | R14: =7-C14 -> 1 | S14: =OR((COUNTIF(E14:F14,">0")),COUNTIF(M14:N14,">0")) -> FALSE | T14: =S14*SUM(H14:L14) -> 0 | U14: =+M14+E14 -> 0 | V14: =+N14+F14 -> 0 | W14: FALSE
A15: =IF(COUNTIF(E15:F15,">0"),TRUE,FALSE) -> FALSE | B15: 106300 | C15: =LEN(TEXT(B15,0)) -> 6 | D15: 1063 Réserves statutaires | E15: 0 | F15: 0 | G15: =IF(C15=6,F15-E15,0) -> 0 | H15: 106300 | M15: 0 | N15: 0 | O15: =+N15-M15 -> 0 | Q15: =IF($R15>1,P15+INDEX($H$5:$L$5,0,R15),"") ->  | R15: =7-C15 -> 1 | S15: =OR((COUNTIF(E15:F15,">0")),COUNTIF(M15:N15,">0")) -> FALSE | T15: =S15*SUM(H15:L15) -> 0 | U15: =+M15+E15 -> 0 | V15: =+N15+F15 -> 0 | W15: =(RIGHT(D15)="!") -> FALSE
A16: FALSE | B16: 106800 | C16: 6 | D16: 1068 Projets Associatifs | E16: 0 | F16: 0 | G16: 0 | H16: 106800 | M16: 0 | N16: 0 | O16: 0 | R16: 1 | S16: FALSE | T16: 0 | U16: 0 | V16: 0 | W16: FALSE
A17: FALSE | B17: 11 | C17: 2 | D17: 11 Report à nouveau | E17: 0 | F17: 0 | G17: 0 | L17: 110000 | M17: 1236.24 | N17: 12401.33 | O17: 11165.09 | P17: 110000 | Q17: 120000 | R17: 5 | S17: TRUE | T17: 110000 | U17: 1236.24 | V17: 12401.33 | W17: FALSE
A18: TRUE | B18: 110000 | C18: 6 | D18: 110 Report à nouveau (solde créditeur) | E18: 0 | F18: 12401.33 | G18: 12401.33 | H18: 110000 | M18: 0 | N18: 0 | O18: =+N18-M18 -> 0 | Q18: =IF($R18>1,P18+INDEX($H$5:$L$5,0,R18),"") ->  | R18: 1 | S18: =OR((COUNTIF(E18:F18,">0")),COUNTIF(M18:N18,">0")) -> TRUE | T18: =S18*SUM(H18:L18) -> 110000 | U18: =+M18+E18 -> 0 | V18: =+N18+F18 -> 12401.33 | W18: FALSE
A19: TRUE | B19: 119000 | C19: 6 | D19: 119 Report à nouveau (solde débiteur) | E19: 1236.24 | F19: 0 | G19: -1236.24 | H19: 119000 | M19: 0 | N19: 0 | O19: 0 | R19: 1 | S19: TRUE | T19: 119000 | U19: 1236.24 | V19: 0 | W19: FALSE
A20: FALSE | B20: 12 | C20: 2 | D20: 12 Résultat de l'exercice | E20: 0 | F20: 0 | G20: 0 | L20: 120000 | M20: 3464.36 | N20: 3464.36 | O20: 0 | P20: 120000 | Q20: 130000 | R20: 5 | S20: TRUE | T20: 120000 | U20: 3464.36 | V20: 3464.36 | W20: FALSE
A21: TRUE | B21: 120000 | C21: 6 | D21: 120 Résultat exercice (excédent) | E21: 3464.36 | F21: 3464.36 | G21: 0 | H21: 120000 | M21: 0 | N21: 0 | O21: =+N21-M21 -> 0 | Q21: =IF($R21>1,P21+INDEX($H$5:$L$5,0,R21),"") ->  | R21: 1 | S21: =OR((COUNTIF(E21:F21,">0")),COUNTIF(M21:N21,">0")) -> TRUE | T21: =S21*SUM(H21:L21) -> 120000 | U21: =+M21+E21 -> 3464.36 | V21: =+N21+F21 -> 3464.36 | W21: FALSE
A22: FALSE | B22: 129000 | C22: 6 | D22: 129 Résultat exercice (déficit) | E22: 0 | F22: 0 | G22: 0 | H22: 129000 | M22: 0 | N22: 0 | O22: 0 | R22: 1 | S22: FALSE | T22: 0 | U22: 0 | V22: 0 | W22: FALSE
A23: FALSE | B23: 15 | C23: 2 | D23: 15 Provisions pour risques | E23: 0 | F23: 0 | G23: 0 | L23: 150000 | M23: 0 | N23: 0 | O23: 0 | P23: 150000 | Q23: 160000 | R23: 5 | S23: FALSE | T23: 0 | U23: 0 | V23: 0 | W23: FALSE
A24: FALSE | B24: 150000 | C24: 6 | D24: 150.Provisions pour risques | E24: 0 | F24: 0 | G24: 0 | H24: 150000 | M24: 0 | N24: 0 | O24: 0 | R24: 1 | S24: FALSE | T24: 0 | U24: =+M24+E24 -> 0 | V24: =+N24+F24 -> 0 | W24: FALSE
A25: FALSE | B25: 16 | C25: 2 | D25: 16 Emprunts et dettes assimilées | E25: 0 | F25: 0 | G25: 0 | L25: 160000 | M25: 0 | N25: 0 | O25: 0 | P25: 160000 | Q25: 170000 | R25: 5 | S25: FALSE | T25: 0 | U25: 0 | V25: 0 | W25: FALSE
A26: FALSE | B26: 160000 | C26: 6 | D26: 160.Emprunts et dettes assimilés | E26: 0 | F26: 0 | G26: 0 | H26: 160000 | M26: 0 | N26: 0 | O26: 0 | R26: 1 | S26: FALSE | T26: 0 | U26: 0 | V26: 0 | W26: FALSE
A27: FALSE | B27: 19 | C27: 2 | D27: 19 Fonds dédiés | E27: 0 | F27: 0 | G27: 0 | L27: 190000 | M27: 0 | N27: 0 | O27: 0 | P27: 190000 | Q27: 200000 | R27: 5 | S27: FALSE | T27: 0 | U27: 0 | V27: 0 | W27: FALSE
A28: FALSE | B28: 190000 | C28: 6 | D28: 190 Fonds dédiés | E28: 0 | F28: 0 | G28: 0 | H28: 190000 | M28: 0 | N28: 0 | O28: 0 | R28: 1 | S28: FALSE | T28: 0 | U28: 0 | V28: 0 | W28: FALSE
A29: FALSE | D29: CLASSE 2 - Comptes d'Immobilisations | E29: 0 | F29: 0 | G29: 0 | R29: 7 | S29: FALSE | T29: 0 | W29: FALSE
A30: FALSE | B30: 20 | C30: 2 | D30: 20 Immobilisations incorporelles | E30: 0 | F30: 0 | G30: 0 | L30: 200000 | M30: 0 | N30: 0 | O30: 0 | P30: 200000 | Q30: 210000 | R30: 5 | S30: FALSE | T30: 0 | U30: 0 | V30: 0 | W30: FALSE
A31: FALSE | B31: 200000 | C31: 6 | D31: 200 Immobilisations incorporelles | E31: 0 | F31: 0 | G31: 0 | H31: 200000 | M31: 0 | N31: 0 | O31: 0 | R31: 1 | S31: FALSE | T31: 0 | U31: 0 | V31: 0 | W31: FALSE
A32: FALSE | B32: 21 | C32: 2 | D32: 21 Immobilisations corporelles | E32: 0 | F32: 0 | G32: 0 | L32: 210000 | M32: 0 | N32: 0 | O32: 0 | P32: 210000 | Q32: 220000 | R32: 5 | S32: FALSE | T32: 0 | U32: 0 | V32: 0 | W32: FALSE
A33: FALSE | B33: 218 | C33: 3 | D33: 218 Autres immobilisations corporelles | E33: 0 | F33: 0 | G33: 0 | K33: 218000 | M33: 0 | N33: 0 | O33: 0 | P33: 218000 | Q33: 219000 | R33: 4 | S33: FALSE | T33: 0 | U33: 0 | V33: 0 | W33: FALSE
A34: FALSE | B34: 218100 | C34: 6 | D34: 2181 Installation, agencements, aménagement | E34: 0 | F34: 0 | G34: 0 | H34: 218100 | M34: 0 | N34: 0 | O34: 0 | P34: =IF($R34>1,INDEX($I34:$L34,0,$R34-1),"") ->  | R34: 1 | S34: FALSE | T34: 0 | U34: 0 | V34: 0 | W34: FALSE
A35: FALSE | B35: 218200 | C35: 6 | D35: 2182 Matériel de transports | E35: 0 | F35: 0 | G35: 0 | H35: 218200 | M35: 0 | N35: 0 | O35: 0 | R35: 1 | S35: FALSE | T35: 0 | U35: 0 | V35: 0 | W35: FALSE
A36: FALSE | B36: 218300 | C36: 6 | D36: 2183 Matériel de bureau et informatique | E36: 0 | F36: 0 | G36: 0 | H36: 218300 | M36: 0 | N36: 0 | O36: 0 | R36: 1 | S36: FALSE | T36: 0 | U36: 0 | V36: 0 | W36: FALSE
A37: FALSE | B37: 218400 | C37: 6 | D37: 2184 Mobilier | E37: 0 | F37: 0 | G37: 0 | H37: 218400 | M37: 0 | N37: 0 | O37: 0 | R37: 1 | S37: FALSE | T37: 0 | U37: 0 | V37: 0 | W37: FALSE
A38: FALSE | B38: 27 | C38: 2 | D38: 27 Autres immob. financières | E38: 0 | F38: 0 | G38: 0 | L38: 270000 | M38: 0 | N38: 0 | O38: 0 | P38: 270000 | Q38: 280000 | R38: 5 | S38: FALSE | T38: 0 | U38: 0 | V38: 0 | W38: FALSE
A39: FALSE | B39: 275000 | C39: 6 | D39: 275 Dépôts & cautionnements versés | E39: 0 | F39: 0 | G39: 0 | H39: 275000 | M39: 0 | N39: 0 | O39: 0 | R39: 1 | S39: FALSE | T39: 0 | U39: 0 | V39: 0 | W39: FALSE
A40: FALSE | B40: 28 | C40: 2 | D40: 28 Amortissements des immobilisations | E40: 0 | F40: 0 | G40: 0 | L40: 280000 | M40: 0 | N40: 0 | O40: 0 | P40: 280000 | Q40: 290000 | R40: 5 | S40: FALSE | T40: 0 | U40: 0 | V40: 0 | W40: FALSE
A41: FALSE | B41: 281 | C41: 3 | D41: 281 Amortissements des immob.corporelles | E41: 0 | F41: 0 | G41: 0 | K41: 281000 | M41: 0 | N41: 0 | O41: 0 | P41: 281000 | Q41: 282000 | R41: 4 | S41: FALSE | T41: 0 | U41: 0 | V41: 0 | W41: FALSE
A42: FALSE | B42: 281810 | C42: 6 | D42: 28181 Amortissement. installations générales | E42: 0 | F42: 0 | G42: 0 | H42: 281810 | M42: =SUMPRODUCT(((COL_CPC>=$P42)*(COL_CPC<$Q42))*COL_DEBIT) -> 0 | N42: =SUMPRODUCT(((COL_CPC>=$P42)*(COL_CPC<$Q42))*COL_CREDIT) -> 0 | O42: 0 | R42: 1 | S42: FALSE | T42: 0 | U42: 0 | V42: 0 | W42: FALSE
A43: FALSE | B43: 281820 | C43: 6 | D43: 28182 Amortissement. matériel de transport | E43: 0 | F43: 0 | G43: 0 | H43: 281820 | M43: 0 | N43: 0 | O43: 0 | R43: 1 | S43: FALSE | T43: 0 | U43: 0 | V43: 0 | W43: FALSE
A44: FALSE | B44: 281830 | C44: 6 | D44: 28183 Amortis. matériel de bureau, informatique | E44: 0 | F44: 0 | G44: 0 | H44: =IF($C44=H$3,$B44,"") -> 281830 | M44: 0 | N44: 0 | O44: 0 | R44: 1 | S44: FALSE | T44: 0 | U44: 0 | V44: 0 | W44: FALSE
A45: FALSE | B45: 281840 | C45: 6 | D45: 28184 Amortissement. mobilier | E45: 0 | F45: 0 | G45: 0 | H45: 281840 | M45: 0 | N45: 0 | O45: 0 | R45: 1 | S45: FALSE | T45: 0 | U45: 0 | V45: 0 | W45: FALSE
A46: FALSE | D46: CLASSE 3 - Compte de stocks et en-cours | E46: 0 | F46: 0 | G46: 0 | R46: 7 | S46: FALSE | T46: 0 | W46: FALSE
A47: FALSE | B47: 37 | C47: 2 | D47: 37 Stock de marchandises | E47: 0 | F47: 0 | G47: 0 | L47: 370000 | M47: 0 | N47: 0 | O47: 0 | P47: 370000 | Q47: 380000 | R47: 5 | S47: FALSE | T47: 0 | U47: 0 | V47: 0 | W47: FALSE
A48: FALSE | B48: 370000 | C48: 6 | D48: 370 Stock de marchandises | E48: 0 | F48: 0 | G48: 0 | H48: 370000 | M48: 0 | N48: 0 | O48: 0 | R48: 1 | S48: FALSE | T48: 0 | U48: 0 | V48: 0 | W48: FALSE
A49: FALSE | D49: CLASSE 4 - Compte de tiers | E49: 0 | F49: 0 | G49: 0 | R49: 7 | S49: FALSE | T49: 0 | W49: FALSE
A50: FALSE | B50: 40 | C50: 2 | D50: 40 Fournisseurs. | E50: 0 | F50: 0 | G50: 0 | L50: 400000 | M50: 0 | N50: 0 | O50: 0 | P50: 400000 | Q50: 410000 | R50: 5 | S50: FALSE | T50: 0 | U50: 0 | V50: 0 | W50: FALSE
A51: FALSE | B51: 401000 | C51: 6 | D51: 401 Fournisseurs | E51: 0 | F51: 0 | G51: 0 | H51: 401000 | M51: 0 | N51: 0 | O51: 0 | R51: 1 | S51: FALSE | T51: 0 | U51: 0 | V51: 0 | W51: FALSE
A52: FALSE | B52: 408000 | C52: 6 | D52: 408 Fournisseurs - Fact non parvenues | E52: 0 | F52: 0 | G52: 0 | H52: 408000 | M52: 0 | N52: 0 | O52: 0 | R52: 1 | S52: FALSE | T52: 0 | U52: 0 | V52: 0 | W52: FALSE
A53: FALSE | B53: 409000 | C53: 6 | D53: 409 Fournisseurs débiteurs | E53: 0 | F53: 0 | G53: 0 | H53: 409000 | M53: 0 | N53: 0 | O53: =+N53-M53 -> 0 | Q53: =IF($R53>1,P53+INDEX($H$5:$L$5,0,R53),"") ->  | R53: 1 | S53: =OR((COUNTIF(E53:F53,">0")),COUNTIF(M53:N53,">0")) -> FALSE | T53: =S53*SUM(H53:L53) -> 0 | U53: =+M53+E53 -> 0 | V53: =+N53+F53 -> 0 | W53: FALSE
A54: FALSE | B54: 41 | C54: 2 | D54: 41 Clients - Adhérents | E54: 0 | F54: 0 | G54: 0 | L54: 410000 | M54: 0 | N54: 0 | O54: 0 | P54: 410000 | Q54: 420000 | R54: 5 | S54: FALSE | T54: 0 | U54: 0 | V54: 0 | W54: FALSE
A55: FALSE | B55: 411000 | C55: 6 | D55: 411 Dues | E55: 0 | F55: 0 | G55: 0 | H55: 411000 | M55: 0 | N55: 0 | O55: 0 | R55: 1 | S55: FALSE | T55: 0 | U55: 0 | V55: 0 | W55: FALSE
A56: FALSE | B56: 418000 | C56: 6 | D56: 418 A établir | E56: 0 | F56: 0 | G56: 0 | H56: 418000 | M56: 0 | N56: 0 | O56: 0 | R56: 1 | S56: FALSE | T56: 0 | U56: 0 | V56: 0 | W56: FALSE
A57: FALSE | B57: 42 | C57: 2 | D57: 42 Personnel et comptes rattachés | E57: 0 | F57: 0 | G57: 0 | L57: 420000 | M57: 0 | N57: 0 | O57: 0 | P57: 420000 | Q57: 430000 | R57: 5 | S57: FALSE | T57: 0 | U57: 0 | V57: 0 | W57: FALSE
A58: FALSE | B58: 421000 | C58: 6 | D58: 421 Rémunérations dues au personnel | E58: 0 | F58: 0 | G58: 0 | H58: 421000 | M58: 0 | N58: 0 | O58: 0 | R58: 1 | S58: FALSE | T58: 0 | U58: 0 | V58: 0 | W58: FALSE
A59: FALSE | B59: 425000 | C59: 6 | D59: 425 Personnel avances et acomptes | E59: 0 | F59: 0 | G59: 0 | H59: 425000 | M59: 0 | N59: 0 | O59: 0 | R59: 1 | S59: FALSE | T59: 0 | U59: 0 | V59: 0 | W59: FALSE
A60: FALSE | B60: 428000 | C60: 6 | D60: 428 Personnel - Charges à payer et produits à recevoir | E60: 0 | F60: 0 | G60: 0 | H60: 428000 | M60: 0 | N60: 0 | O60: 0 | R60: 1 | S60: FALSE | T60: 0 | U60: 0 | V60: 0 | W60: FALSE
A61: FALSE | B61: 43 | C61: 2 | D61: 43 Sécurité Sociale et autres Organismes sociaux | E61: 0 | F61: 0 | G61: 0 | L61: 430000 | M61: 0 | N61: 0 | O61: 0 | P61: 430000 | Q61: 440000 | R61: 5 | S61: FALSE | T61: 0 | U61: 0 | V61: 0 | W61: FALSE
A62: FALSE | B62: 431000 | C62: 6 | D62: 431 Sécurité Sociale | E62: 0 | F62: 0 | G62: 0 | H62: 431000 | M62: 0 | N62: 0 | O62: 0 | R62: 1 | S62: FALSE | T62: 0 | U62: 0 | V62: 0 | W62: FALSE
A63: =IF(COUNTIF(E63:F63,">0"),TRUE,FALSE) -> FALSE | B63: 437 | C63: =LEN(TEXT(B63,0)) -> 3 | D63: 437 Autres organismes sociaux | E63: 0 | F63: 0 | G63: =IF(C63=6,F63-E63,0) -> 0 | K63: 437000 | M63: 0 | N63: 0 | O63: =+N63-M63 -> 0 | P63: 437000 | Q63: =IF($R63>1,P63+INDEX($H$5:$L$5,0,R63),"") -> 438000 | R63: =7-C63 -> 4 | S63: =OR((COUNTIF(E63:F63,">0")),COUNTIF(M63:N63,">0")) -> FALSE | T63: =S63*SUM(H63:L63) -> 0 | U63: =+M63+E63 -> 0 | V63: 0 | W63: FALSE
A64: =IF(COUNTIF(E64:F64,">0"),TRUE,FALSE) -> FALSE | B64: 437200 | C64: =LEN(TEXT(B64,0)) -> 6 | D64: 4372 Mutuelles | E64: 0 | F64: 0 | G64: =IF(C64=6,F64-E64,0) -> 0 | H64: 437200 | M64: 0 | N64: 0 | O64: =+N64-M64 -> 0 | Q64: =IF($R64>1,P64+INDEX($H$5:$L$5,0,R64),"") ->  | R64: =7-C64 -> 1 | S64: =OR((COUNTIF(E64:F64,">0")),COUNTIF(M64:N64,">0")) -> FALSE | T64: =S64*SUM(H64:L64) -> 0 | U64: 0 | V64: 0 | W64: FALSE
A65: =IF(COUNTIF(E65:F65,">0"),TRUE,FALSE) -> FALSE | B65: 437300 | C65: =LEN(TEXT(B65,0)) -> 6 | D65: 4373 Caisse de Retraite et Prévoyance | E65: 0 | F65: 0 | G65: =IF(C65=6,F65-E65,0) -> 0 | H65: 437300 | M65: 0 | N65: 0 | O65: =+N65-M65 -> 0 | Q65: =IF($R65>1,P65+INDEX($H$5:$L$5,0,R65),"") ->  | R65: =7-C65 -> 1 | S65: =OR((COUNTIF(E65:F65,">0")),COUNTIF(M65:N65,">0")) -> FALSE | T65: =S65*SUM(H65:L65) -> 0 | U65: 0 | V65: 0 | W65: FALSE
A66: =IF(COUNTIF(E66:F66,">0"),TRUE,FALSE) -> FALSE | B66: 437400 | C66: =LEN(TEXT(B66,0)) -> 6 | D66: 4374 Caisse Allocations Chomage Assedic | E66: 0 | F66: 0 | G66: =IF(C66=6,F66-E66,0) -> 0 | H66: 437400 | M66: 0 | N66: 0 | O66: =+N66-M66 -> 0 | Q66: =IF($R66>1,P66+INDEX($H$5:$L$5,0,R66),"") ->  | R66: =7-C66 -> 1 | S66: =OR((COUNTIF(E66:F66,">0")),COUNTIF(M66:N66,">0")) -> FALSE | T66: =S66*SUM(H66:L66) -> 0 | U66: 0 | V66: 0 | W66: FALSE
A67: FALSE | B67: 437800 | C67: 6 | D67: 437 Autres organismes sociaux | E67: 0 | F67: 0 | G67: 0 | H67: 437800 | M67: 0 | N67: 0 | O67: 0 | R67: 1 | S67: FALSE | T67: 0 | U67: 0 | V67: 0 | W67: FALSE
A68: FALSE | B68: 438000 | C68: 6 | D68: 438 Organismes sociaux - Charges à payer et produits à recevoir | E68: 0 | F68: 0 | G68: 0 | H68: 438000 | M68: 0 | N68: 0 | O68: 0 | R68: 1 | S68: FALSE | T68: 0 | U68: 0 | V68: 0 | W68: FALSE
A69: FALSE | B69: 44 | C69: 2 | D69: 44 Etat et autres collectivités Publiques | E69: 0 | F69: 0 | G69: 0 | L69: 440000 | M69: 0 | N69: 0 | O69: 0 | P69: 440000 | Q69: 450000 | R69: 5 | S69: FALSE | T69: 0 | U69: 0 | V69: 0 | W69: FALSE
A70: FALSE | B70: 443000 | C70: 6 | D70: 443 Collectivités publiques | E70: 0 | F70: 0 | G70: 0 | H70: 443000 | M70: 0 | N70: 0 | O70: 0 | R70: 1 | S70: FALSE | T70: 0 | U70: 0 | V70: 0 | W70: FALSE
A71: FALSE | B71: 447000 | C71: 6 | D71: 447 Impôts et taxes à payer | E71: 0 | F71: 0 | G71: 0 | H71: 447000 | M71: 0 | N71: 0 | O71: 0 | R71: 1 | S71: FALSE | T71: 0 | U71: 0 | V71: 0 | W71: FALSE
A72: FALSE | B72: 46 | C72: 2 | D72: 46 Débiteurs et Créditeurs Divers | E72: 0 | F72: 0 | G72: 0 | L72: 460000 | M72: 0 | N72: 1021.95 | O72: 1021.95 | P72: 460000 | Q72: 470000 | R72: 5 | S72: TRUE | T72: 460000 | U72: 0 | V72: 1021.95 | W72: FALSE
A73: TRUE | B73: 460000 | C73: 6 | D73: 460 Débiteurs Divers | E73: 0 | F73: 1021.95 | G73: 1021.95 | H73: 460000 | M73: 0 | N73: 0 | O73: 0 | R73: 1 | S73: TRUE | T73: 460000 | U73: 0 | V73: 1021.95 | W73: =(RIGHT(D73)="!") -> FALSE
A74: FALSE | B74: 468700 | C74: 6 | D74: 4687 Produits à recevoir | E74: 0 | F74: 0 | G74: 0 | H74: 468700 | M74: 0 | N74: 0 | O74: 0 | R74: 1 | S74: FALSE | T74: 0 | U74: 0 | V74: 0 | W74: FALSE
A75: FALSE | B75: 48 | C75: 2 | D75: 48 Comptes de régularisation | E75: 0 | F75: 0 | G75: 0 | L75: 480000 | M75: 0 | N75: 3793 | O75: 3793 | P75: 480000 | Q75: 490000 | R75: 5 | S75: TRUE | T75: 480000 | U75: 0 | V75: 3793 | W75: FALSE
A76: FALSE | B76: 486000 | C76: 6 | D76: 486 Charges constatées d'avance | E76: 0 | F76: 0 | G76: 0 | H76: 486000 | M76: 0 | N76: 0 | O76: 0 | R76: 1 | S76: FALSE | T76: 0 | U76: 0 | V76: 0 | W76: FALSE
A77: TRUE | B77: 487000 | C77: =LEN(TEXT(B77,0)) -> 6 | D77: 487 Produits constatés d'avance | E77: 0 | F77: 3793 | G77: 3793 | H77: 487000 | M77: 0 | N77: 0 | O77: 0 | R77: 1 | S77: TRUE | T77: 487000 | U77: 0 | V77: 3793 | W77: FALSE
A78: FALSE | D78: CLASSE 5 - Comptes financiers | E78: 0 | F78: 0 | G78: =IF(C78=6,F78-E78,0) -> 0 | I78: =IF($C78=I$3,$B78*$I$5,"") ->  | J78: =IF($C78=J$3,$B78*$J$5,"") ->  | L78: =IF($C78=L$3,$B78*$L$5,"") ->  | R78: =7-C78 -> 7 | S78: FALSE | T78: 0 | W78: FALSE
A79: FALSE | B79: 50 | C79: 2 | D79: 50 Valeurs mobilières de placement | E79: =IF(AND($H79<>0,$C79=6),SUMIF(TABLERECUP,$H79,COL_DEBIT),0) -> 0 | F79: =IF(AND($H79<>0,$C79=6),SUMIF(TABLERECUP,$H79,COL_CREDIT),0) -> 0 | G79: 0 | K79: =IF($C79=K$3,$B79*$K$5,"") ->  | L79: 500000 | M79: =SUMPRODUCT(((COL_CPC>=$P79)*(COL_CPC<$Q79))*COL_DEBIT) -> 0 | N79: 0 | O79: 0 | P79: 500000 | Q79: 510000 | R79: 5 | S79: FALSE | T79: 0 | U79: 0 | V79: 0 | W79: FALSE
A80: =IF(COUNTIF(E80:F80,">0"),TRUE,FALSE) -> FALSE | B80: 500000 | C80: 6 | D80: 500 Actions, SICAV ... | E80: 0 | F80: 0 | G80: 0 | H80: 500000 | M80: 0 | N80: 0 | O80: =+N80-M80 -> 0 | P80: =IF($R80>1,INDEX($I80:$L80,0,$R80-1),"") ->  | Q80: =IF($R80>1,P80+INDEX($H$5:$L$5,0,R80),"") ->  | R80: 1 | S80: FALSE | T80: =S80*SUM(H80:L80) -> 0 | U80: 0 | V80: 0 | W80: FALSE
A81: FALSE | B81: 51 | C81: 2 | D81: 51 Banques, Ets financiers | E81: 0 | F81: 0 | G81: 0 | L81: 510000 | M81: 41207.2 | N81: 1437.56 | O81: -39769.64 | P81: 510000 | Q81: 520000 | R81: 5 | S81: =OR((COUNTIF(E81:F81,">0")),COUNTIF(M81:N81,">0")) -> TRUE | T81: 510000 | U81: 41207.2 | V81: 1437.56 | W81: FALSE
A82: TRUE | B82: 512100 | C82: 6 | D82: 5121 Compte Courant Banque Populaire ! | E82: 4548.86 | F82: 1437.56 | G82: -3111.3 | H82: 512100 | M82: 0 | N82: 0 | O82: 0 | R82: 1 | S82: TRUE | T82: 512100 | U82: 4548.86 | V82: 1437.56 | W82: TRUE
A83: TRUE | B83: 512200 | C83: 6 | D83: 5122Livret Association Banque Populaire ! | E83: 36658.34 | F83: 0 | G83: -36658.34 | H83: 512200 | M83: 0 | N83: 0 | O83: 0 | R83: 1 | S83: TRUE | T83: 512200 | U83: 36658.34 | V83: 0 | W83: TRUE
A84: FALSE | B84: 512300 | C84: 6 | D84: 5123 Compte Courant | E84: 0 | F84: 0 | G84: 0 | H84: 512300 | M84: 0 | N84: 0 | O84: 0 | R84: 1 | S84: FALSE | T84: 0 | U84: 0 | V84: 0 | W84: FALSE
A85: =IF(COUNTIF(E85:F85,">0"),TRUE,FALSE) -> FALSE | B85: 512400 | C85: 6 | D85: 5124 Livret | E85: 0 | F85: 0 | G85: =IF(C85=6,F85-E85,0) -> 0 | H85: 512400 | M85: 0 | N85: 0 | O85: 0 | Q85: =IF($R85>1,P85+INDEX($H$5:$L$5,0,R85),"") ->  | R85: =7-C85 -> 1 | S85: =OR((COUNTIF(E85:F85,">0")),COUNTIF(M85:N85,">0")) -> FALSE | T85: =S85*SUM(H85:L85) -> 0 | U85: =+M85+E85 -> 0 | V85: 0 | W85: FALSE
A86: =IF(COUNTIF(E86:F86,">0"),TRUE,FALSE) -> FALSE | B86: 512500 | C86: 6 | D86: 5125 Caisse d'Epargne | E86: 0 | F86: 0 | G86: =IF(C86=6,F86-E86,0) -> 0 | H86: 512500 | M86: 0 | N86: 0 | O86: 0 | Q86: =IF($R86>1,P86+INDEX($H$5:$L$5,0,R86),"") ->  | R86: =7-C86 -> 1 | S86: =OR((COUNTIF(E86:F86,">0")),COUNTIF(M86:N86,">0")) -> FALSE | T86: =S86*SUM(H86:L86) -> 0 | U86: 0 | V86: 0 | W86: FALSE
A87: =IF(COUNTIF(E87:F87,">0"),TRUE,FALSE) -> FALSE | B87: 512600 | C87: 6 | D87: 5126 Banques et autres organismes financiers | E87: 0 | F87: 0 | G87: =IF(C87=6,F87-E87,0) -> 0 | H87: 512600 | M87: 0 | N87: 0 | O87: 0 | Q87: =IF($R87>1,P87+INDEX($H$5:$L$5,0,R87),"") ->  | R87: =7-C87 -> 1 | S87: =OR((COUNTIF(E87:F87,">0")),COUNTIF(M87:N87,">0")) -> FALSE | T87: =S87*SUM(H87:L87) -> 0 | U87: 0 | V87: 0 | W87: FALSE
A88: FALSE | B88: 53 | C88: 2 | D88: 53 Caisse | E88: 0 | F88: 0 | G88: 0 | L88: 530000 | M88: 0 | N88: 0 | O88: =+N88-M88 -> 0 | P88: 530000 | Q88: 540000 | R88: 5 | S88: FALSE | T88: 0 | U88: 0 | V88: 0 | W88: FALSE
A89: FALSE | B89: 531000 | C89: 6 | D89: 531 Caisse du siège | E89: 0 | F89: 0 | G89: 0 | H89: 531000 | M89: 0 | N89: 0 | O89: 0 | R89: 1 | S89: FALSE | T89: 0 | U89: 0 | V89: 0 | W89: FALSE
A90: FALSE | B90: 532000 | C90: 6 | D90: 532 Caisse des lieux d'activités | E90: 0 | F90: 0 | G90: 0 | H90: 532000 | M90: 0 | N90: 0 | O90: 0 | R90: 1 | S90: FALSE | T90: 0 | U90: 0 | V90: 0 | W90: FALSE
A91: FALSE | B91: 58 | C91: 2 | D91: 58 Virements internes | E91: 0 | F91: 0 | G91: 0 | L91: 580000 | M91: 0 | N91: 0 | O91: 0 | P91: 580000 | Q91: 590000 | R91: 5 | S91: FALSE | T91: 0 | U91: 0 | V91: 0 | W91: FALSE
A92: FALSE | B92: 581000 | C92: 6 | D92: 581 Virements de fonds | E92: 0 | F92: 0 | G92: 0 | H92: 581000 | M92: 0 | N92: 0 | O92: 0 | R92: 1 | S92: FALSE | T92: 0 | U92: 0 | V92: 0 | W92: FALSE
A93: FALSE | D93: CLASSE 6 - Charges | E93: 0 | F93: 0 | G93: 0 | R93: 7 | S93: FALSE | T93: 0 | W93: FALSE
A94: FALSE | B94: 60 | C94: 2 | D94: 60 Achats | E94: 0 | F94: 0 | G94: 0 | L94: 600000 | M94: 0 | N94: 0 | O94: 0 | P94: 600000 | Q94: 610000 | R94: 5 | S94: FALSE | T94: 0 | U94: 0 | V94: 0 | W94: FALSE
A95: FALSE | B95: 603 | C95: 3 | D95: 603 Variation de stock | E95: 0 | F95: 0 | G95: 0 | K95: 603000 | M95: 0 | N95: 0 | O95: 0 | P95: 603000 | Q95: 604000 | R95: 4 | S95: FALSE | T95: 0 | U95: 0 | V95: 0 | W95: FALSE
A96: FALSE | B96: 603700 | C96: 6 | D96: 6037 Variation de stock de marchandises | E96: 0 | F96: 0 | G96: 0 | H96: 603700 | M96: 0 | N96: 0 | O96: 0 | R96: 1 | S96: FALSE | T96: 0 | U96: =+M96+E96 -> 0 | V96: =+N96+F96 -> 0 | W96: FALSE
A97: =IF(COUNTIF(E97:F97,">0"),TRUE,FALSE) -> FALSE | B97: 605 | C97: =LEN(TEXT(B97,0)) -> 3 | D97: Achat équipements pour activité | E97: 0 | F97: 0 | G97: =IF(C97=6,F97-E97,0) -> 0 | K97: 605000 | M97: 0 | N97: 0 | O97: =+N97-M97 -> 0 | P97: 605000 | Q97: =IF($R97>1,P97+INDEX($H$5:$L$5,0,R97),"") -> 606000 | R97: =7-C97 -> 4 | S97: =OR((COUNTIF(E97:F97,">0")),COUNTIF(M97:N97,">0")) -> FALSE | T97: =S97*SUM(H97:L97) -> 0 | U97: =+M97+E97 -> 0 | V97: =+N97+F97 -> 0 | W97: FALSE
A98: FALSE | B98: 605000 | C98: 6 | D98: 605 Achat d' équipements pour activité | E98: 0 | F98: 0 | G98: 0 | H98: 605000 | M98: 0 | N98: 0 | O98: 0 | R98: 1 | S98: FALSE | T98: 0 | U98: 0 | V98: 0 | W98: FALSE
A99: FALSE | B99: 606 | C99: 3 | D99: 606 Achat non stockés matières et fournitures | E99: 0 | F99: 0 | G99: 0 | K99: 606000 | M99: 0 | N99: 0 | O99: 0 | P99: 606000 | Q99: 607000 | R99: 4 | S99: FALSE | T99: 0 | U99: 0 | V99: 0 | W99: FALSE
A100: FALSE | B100: 606100 | C100: 6 | D100: 6061 eau, électricité | E100: 0 | F100: 0 | G100: 0 | H100: 606100 | M100: 0 | N100: 0 | O100: 0 | R100: 1 | S100: FALSE | T100: 0 | U100: 0 | V100: 0 | W100: FALSE
A101: FALSE | B101: 606200 | C101: 6 | D101: 6062 Achat de marchandises (alimentaires) | E101: 0 | F101: 0 | G101: 0 | H101: 606200 | M101: 0 | N101: 0 | O101: 0 | R101: 1 | S101: FALSE | T101: 0 | U101: 0 | V101: 0 | W101: FALSE
A102: FALSE | B102: 606300 | C102: 6 | D102: 6063 Produits d' entretien et petit équipement | E102: 0 | F102: 0 | G102: 0 | H102: 606300 | M102: 0 | N102: 0 | O102: 0 | R102: 1 | S102: FALSE | T102: 0 | U102: 0 | V102: 0 | W102: FALSE
A103: FALSE | B103: 606400 | C103: 6 | D103: 6064 Fournitures administratives | E103: 0 | F103: 0 | G103: 0 | H103: 606400 | M103: 0 | N103: 0 | O103: 0 | R103: 1 | S103: FALSE | T103: 0 | U103: 0 | V103: 0 | W103: FALSE
A104: FALSE | B104: 606800 | C104: 6 | D104: 6068 Autres fournitures non stockées | E104: 0 | F104: 0 | G104: 0 | H104: 606800 | M104: 0 | N104: 0 | O104: 0 | R104: 1 | S104: FALSE | T104: 0 | U104: 0 | V104: 0 | W104: FALSE
A105: =IF(COUNTIF(E105:F105,">0"),TRUE,FALSE) -> FALSE | B105: 607 | C105: =LEN(TEXT(B105,0)) -> 3 | D105: 607 Achats de marchandises pour revente | E105: 0 | F105: 0 | G105: =IF(C105=6,F105-E105,0) -> 0 | K105: 607000 | M105: 0 | N105: 0 | O105: =+N105-M105 -> 0 | P105: 607000 | Q105: =IF($R105>1,P105+INDEX($H$5:$L$5,0,R105),"") -> 608000 | R105: =7-C105 -> 4 | S105: =OR((COUNTIF(E105:F105,">0")),COUNTIF(M105:N105,">0")) -> FALSE | T105: =S105*SUM(H105:L105) -> 0 | U105: =+M105+E105 -> 0 | V105: =+N105+F105 -> 0 | W105: FALSE
A106: FALSE | B106: 607000 | C106: 6 | D106: 607 Achats de marchandises pour revente | E106: 0 | F106: 0 | G106: 0 | H106: 607000 | M106: 0 | N106: 0 | O106: 0 | R106: 1 | S106: FALSE | T106: 0 | U106: 0 | V106: 0 | W106: FALSE
A107: FALSE | B107: 61 | C107: 2 | D107: 61 Services extérieurs | E107: 0 | F107: 0 | G107: 0 | L107: 610000 | M107: 312 | N107: 0 | O107: -312 | P107: 610000 | Q107: 620000 | R107: 5 | S107: TRUE | T107: 610000 | U107: 312 | V107: 0 | W107: FALSE
A108: FALSE | B108: 611000 | C108: 6 | D108: 611 Sous-traitance générale | E108: 0 | F108: 0 | G108: 0 | H108: 611000 | M108: 0 | N108: 0 | O108: 0 | R108: 1 | S108: FALSE | T108: 0 | U108: 0 | V108: 0 | W108: FALSE
A109: FALSE | B109: 612000 | C109: 6 | D109: 612 Redevance de Crédit Bail | E109: 0 | F109: 0 | G109: 0 | H109: 612000 | M109: 0 | N109: 0 | O109: 0 | R109: 1 | S109: FALSE | T109: 0 | U109: 0 | V109: 0 | W109: FALSE
A110: =IF(COUNTIF(E110:F110,">0"),TRUE,FALSE) -> FALSE | B110: 613 | C110: =LEN(TEXT(B110,0)) -> 3 | D110: 613 Locations | E110: 0 | F110: 0 | G110: =IF(C110=6,F110-E110,0) -> 0 | K110: 613000 | M110: 0 | N110: 0 | O110: =+N110-M110 -> 0 | P110: 613000 | Q110: =IF($R110>1,P110+INDEX($H$5:$L$5,0,R110),"") -> 614000 | R110: =7-C110 -> 4 | S110: =OR((COUNTIF(E110:F110,">0")),COUNTIF(M110:N110,">0")) -> FALSE | T110: =S110*SUM(H110:L110) -> 0 | U110: =+M110+E110 -> 0 | V110: =+N110+F110 -> 0 | W110: FALSE
A111: FALSE | B111: 613000 | C111: 6 | D111: 613 Locations | E111: 0 | F111: 0 | G111: 0 | H111: 613000 | M111: 0 | N111: 0 | O111: 0 | R111: 1 | S111: FALSE | T111: 0 | U111: 0 | V111: 0 | W111: FALSE
A112: =IF(COUNTIF(E112:F112,">0"),TRUE,FALSE) -> FALSE | B112: 614 | C112: =LEN(TEXT(B112,0)) -> 3 | D112: 614 Charges locatives et de copropriétés | E112: 0 | F112: 0 | G112: =IF(C112=6,F112-E112,0) -> 0 | K112: 614000 | M112: 0 | N112: 0 | O112: =+N112-M112 -> 0 | P112: 614000 | Q112: =IF($R112>1,P112+INDEX($H$5:$L$5,0,R112),"") -> 615000 | R112: =7-C112 -> 4 | S112: =OR((COUNTIF(E112:F112,">0")),COUNTIF(M112:N112,">0")) -> FALSE | T112: =S112*SUM(H112:L112) -> 0 | U112: =+M112+E112 -> 0 | V112: =+N112+F112 -> 0 | W112: FALSE
A113: FALSE | B113: 614000 | C113: 6 | D113: 614 Charges locatives et de copropriétés | E113: 0 | F113: 0 | G113: 0 | H113: 614000 | M113: 0 | N113: 0 | O113: 0 | R113: 1 | S113: FALSE | T113: 0 | U113: 0 | V113: 0 | W113: FALSE
A114: FALSE | B114: 615 | C114: 3 | D114: 615 Travaux d'entretien et de réparation | E114: 0 | F114: 0 | G114: 0 | K114: 615000 | M114: 0 | N114: 0 | O114: 0 | P114: 615000 | Q114: 616000 | R114: 4 | S114: FALSE | T114: 0 | U114: 0 | V114: 0 | W114: FALSE
A115: FALSE | B115: 615600 | C115: 6 | D115: 6156 Maintenances | E115: 0 | F115: 0 | G115: 0 | H115: 615600 | M115: 0 | N115: 0 | O115: 0 | R115: 1 | S115: FALSE | T115: 0 | U115: 0 | V115: 0 | W115: FALSE
A116: =IF(COUNTIF(E116:F116,">0"),TRUE,FALSE) -> FALSE | B116: 616 | C116: =LEN(TEXT(B116,0)) -> 3 | D116: 616 Assurances | E116: 0 | F116: 0 | G116: =IF(C116=6,F116-E116,0) -> 0 | K116: 616000 | M116: 312 | N116: =SUMPRODUCT(((COL_CPC>=$P116)*(COL_CPC<$Q116))*COL_CREDIT) -> 0 | O116: =+N116-M116 -> -312 | P116: 616000 | Q116: =IF($R116>1,P116+INDEX($H$5:$L$5,0,R116),"") -> 617000 | R116: =7-C116 -> 4 | S116: =OR((COUNTIF(E116:F116,">0")),COUNTIF(M116:N116,">0")) -> TRUE | T116: =S116*SUM(H116:L116) -> 616000 | U116: =+M116+E116 -> 312 | V116: =+N116+F116 -> 0 | W116: FALSE
A117: TRUE | B117: 616000 | C117: 6 | D117: 616 Primes d'assurances | E117: 312 | F117: 0 | G117: -312 | H117: 616000 | M117: 0 | N117: 0 | O117: 0 | R117: 1 | S117: TRUE | T117: 616000 | U117: 312 | V117: 0 | W117: FALSE
A118: =IF(COUNTIF(E118:F118,">0"),TRUE,FALSE) -> FALSE | B118: 617 | C118: =LEN(TEXT(B118,0)) -> 3 | D118: 617 Etudes et recherches | E118: 0 | F118: 0 | G118: =IF(C118=6,F118-E118,0) -> 0 | K118: 617000 | M118: 0 | N118: 0 | O118: =+N118-M118 -> 0 | P118: 617000 | Q118: =IF($R118>1,P118+INDEX($H$5:$L$5,0,R118),"") -> 618000 | R118: =7-C118 -> 4 | S118: =OR((COUNTIF(E118:F118,">0")),COUNTIF(M118:N118,">0")) -> FALSE | T118: =S118*SUM(H118:L118) -> 0 | U118: =+M118+E118 -> 0 | V118: =+N118+F118 -> 0 | W118: FALSE
A119: FALSE | B119: 617000 | C119: 6 | D119: 617 Etudes et recherches | E119: 0 | F119: 0 | G119: 0 | H119: 617000 | M119: 0 | N119: 0 | O119: 0 | R119: 1 | S119: FALSE | T119: 0 | U119: 0 | V119: 0 | W119: FALSE
A120: =IF(COUNTIF(E120:F120,">0"),TRUE,FALSE) -> FALSE | B120: 618 | C120: =LEN(TEXT(B120,0)) -> 3 | D120: 618 Documentation, Formation | E120: 0 | F120: 0 | G120: =IF(C120=6,F120-E120,0) -> 0 | K120: 618000 | M120: 0 | N120: 0 | O120: =+N120-M120 -> 0 | P120: 618000 | Q120: =IF($R120>1,P120+INDEX($H$5:$L$5,0,R120),"") -> 619000 | R120: =7-C120 -> 4 | S120: =OR((COUNTIF(E120:F120,">0")),COUNTIF(M120:N120,">0")) -> FALSE | T120: =S120*SUM(H120:L120) -> 0 | U120: =+M120+E120 -> 0 | V120: =+N120+F120 -> 0 | W120: FALSE
A121: FALSE | B121: 618000 | C121: 6 | D121: 618 Documentation, Séminaire, Formation | E121: 0 | F121: 0 | G121: 0 | H121: 618000 | M121: 0 | N121: 0 | O121: 0 | R121: 1 | S121: FALSE | T121: 0 | U121: 0 | V121: 0 | W121: FALSE
A122: FALSE | B122: 62 | C122: 2 | D122: 62 Autres services extérieurs | E122: 0 | F122: 0 | G122: 0 | L122: 620000 | M122: 1125.56 | N122: 0 | O122: -1125.56 | P122: 620000 | Q122: 630000 | R122: 5 | S122: TRUE | T122: 620000 | U122: 1125.56 | V122: 0 | W122: FALSE
A123: FALSE | B123: 621000 | C123: 6 | D123: 621 Personnel extérieur à l'association | E123: 0 | F123: 0 | G123: 0 | H123: =IF($C123=H$3,$B123,"") -> 621000 | M123: 0 | N123: 0 | O123: 0 | R123: 1 | S123: FALSE | T123: 0 | U123: 0 | V123: 0 | W123: FALSE
A124: FALSE | B124: 622 | C124: 3 | D124: 622 Frais et rémunération d'intermédiaires | E124: 0 | F124: 0 | G124: 0 | K124: 622000 | M124: 0 | N124: 0 | O124: 0 | P124: 622000 | Q124: 623000 | R124: 4 | S124: FALSE | T124: 0 | U124: 0 | V124: 0 | W124: FALSE
A125: FALSE | B125: 622100 | C125: 6 | D125: 6221 Frais d’arbitrage | E125: 0 | F125: 0 | G125: 0 | H125: 622100 | M125: 0 | N125: 0 | O125: 0 | R125: 1 | S125: FALSE | T125: 0 | U125: 0 | V125: 0 | W125: FALSE
A126: FALSE | B126: 622200 | C126: 6 | D126: 6222 Frais de stage. | E126: 0 | F126: 0 | G126: 0 | H126: 622200 | M126: 0 | N126: 0 | O126: 0 | R126: 1 | S126: FALSE | T126: 0 | U126: 0 | V126: 0 | W126: FALSE
A127: FALSE | B127: 622600 | C127: 6 | D127: 6226 Honoraires | E127: 0 | F127: 0 | G127: 0 | H127: 622600 | M127: 0 | N127: 0 | O127: 0 | R127: 1 | S127: FALSE | T127: 0 | U127: 0 | V127: 0 | W127: FALSE
A128: FALSE | B128: 622700 | C128: 6 | D128: 6227 Frais d'actes et de contentieux | E128: 0 | F128: 0 | G128: 0 | H128: 622700 | M128: 0 | N128: 0 | O128: 0 | R128: 1 | S128: FALSE | T128: 0 | U128: 0 | V128: 0 | W128: FALSE
A129: FALSE | B129: 623 | C129: 3 | D129: 623 Relations extérieures, Manifestations | E129: 0 | F129: 0 | G129: 0 | K129: 623000 | M129: 0 | N129: 0 | O129: 0 | P129: 623000 | Q129: 624000 | R129: 4 | S129: FALSE | T129: 0 | U129: 0 | V129: 0 | W129: FALSE
A130: FALSE | B130: 623100 | C130: 6 | D130: 6231 Annonces et insertions | E130: 0 | F130: 0 | G130: 0 | H130: 623100 | M130: 0 | N130: 0 | O130: =+N130-M130 -> 0 | R130: 1 | S130: FALSE | T130: 0 | U130: 0 | V130: 0 | W130: FALSE
A131: FALSE | B131: 623300 | C131: 6 | D131: 6233 Manifestations Sportives et Festives | E131: 0 | F131: 0 | G131: 0 | H131: 623300 | M131: 0 | N131: 0 | O131: 0 | R131: 1 | S131: FALSE | T131: 0 | U131: 0 | V131: 0 | W131: FALSE
A132: FALSE | B132: 623400 | C132: 6 | D132: 6234 Cadeaux | E132: 0 | F132: 0 | G132: 0 | H132: 623400 | M132: 0 | N132: 0 | O132: 0 | R132: 1 | S132: FALSE | T132: 0 | U132: 0 | V132: 0 | W132: FALSE
A133: FALSE | B133: 623600 | C133: 6 | D133: 6236 Publications | E133: 0 | F133: 0 | G133: 0 | H133: 623600 | M133: 0 | N133: 0 | O133: 0 | R133: 1 | S133: FALSE | T133: 0 | U133: 0 | V133: 0 | W133: FALSE
A134: FALSE | B134: 623800 | C134: 6 | D134: 6238 Divers (pourboires, dons ...) | E134: 0 | F134: 0 | G134: 0 | H134: 623800 | M134: 0 | N134: 0 | O134: 0 | R134: 1 | S134: FALSE | T134: 0 | U134: 0 | V134: 0 | W134: FALSE
A135: =IF(COUNTIF(E135:F135,">0"),TRUE,FALSE) -> FALSE | B135: 624 | C135: =LEN(TEXT(B135,0)) -> 3 | D135: 624 Transports de biens | E135: 0 | F135: 0 | G135: =IF(C135=6,F135-E135,0) -> 0 | K135: 624000 | M135: 0 | N135: 0 | O135: =+N135-M135 -> 0 | P135: 624000 | Q135: =IF($R135>1,P135+INDEX($H$5:$L$5,0,R135),"") -> 625000 | R135: =7-C135 -> 4 | S135: =OR((COUNTIF(E135:F135,">0")),COUNTIF(M135:N135,">0")) -> FALSE | T135: =S135*SUM(H135:L135) -> 0 | U135: =+M135+E135 -> 0 | V135: =+N135+F135 -> 0 | W135: FALSE
A136: FALSE | B136: 624000 | C136: 6 | D136: 624 Transports de biens | E136: 0 | F136: 0 | G136: 0 | H136: 624000 | M136: 0 | N136: 0 | O136: 0 | R136: 1 | S136: FALSE | T136: 0 | U136: 0 | V136: 0 | W136: FALSE
A137: FALSE | B137: 625 | C137: 3 | D137: 625 Déplacements, missions et réceptions | E137: 0 | F137: 0 | G137: 0 | K137: 625000 | M137: 1125.56 | N137: 0 | O137: -1125.56 | P137: 625000 | Q137: 626000 | R137: 4 | S137: TRUE | T137: 625000 | U137: 1125.56 | V137: 0 | W137: =(RIGHT(D137)="!") -> FALSE
A138: TRUE | B138: 625100 | C138: 6 | D138: 6251 Déplacements compétitions | E138: 1125.56 | F138: 0 | G138: -1125.56 | H138: 625100 | M138: 0 | N138: 0 | O138: 0 | R138: 1 | S138: TRUE | T138: 625100 | U138: 1125.56 | V138: 0 | W138: FALSE
A139: FALSE | B139: 625600 | C139: 6 | D139: 6256 Frais de mission | E139: 0 | F139: 0 | G139: 0 | H139: 625600 | M139: 0 | N139: 0 | O139: 0 | R139: 1 | S139: FALSE | T139: 0 | U139: 0 | V139: 0 | W139: FALSE
A140: FALSE | B140: 625700 | C140: 6 | D140: 6257 Réceptions | E140: 0 | F140: 0 | G140: 0 | H140: 625700 | M140: 0 | N140: 0 | O140: 0 | R140: 1 | S140: FALSE | T140: 0 | U140: 0 | V140: 0 | W140: FALSE
A141: FALSE | B141: 626 | C141: 3 | D141: 626 Frais postaux et frais de télécoms. | E141: 0 | F141: 0 | G141: 0 | K141: 626000 | M141: 0 | N141: 0 | O141: 0 | P141: 626000 | Q141: 627000 | R141: 4 | S141: FALSE | T141: 0 | U141: 0 | V141: 0 | W141: FALSE
A142: FALSE | B142: 626100 | C142: 6 | D142: 6261 Liaisons informatiques | E142: 0 | F142: 0 | G142: 0 | H142: 626100 | M142: 0 | N142: 0 | O142: 0 | R142: 1 | S142: FALSE | T142: 0 | U142: 0 | V142: 0 | W142: FALSE
A143: FALSE | B143: 626300 | C143: 6 | D143: 6263 Affranchissement | E143: 0 | F143: 0 | G143: 0 | H143: 626300 | M143: 0 | N143: 0 | O143: 0 | R143: 1 | S143: FALSE | T143: 0 | U143: 0 | V143: 0 | W143: FALSE
A144: FALSE | B144: 626500 | C144: 6 | D144: 6265 Téléphone | E144: 0 | F144: 0 | G144: 0 | H144: 626500 | M144: 0 | N144: 0 | O144: 0 | R144: 1 | S144: FALSE | T144: 0 | U144: 0 | V144: 0 | W144: FALSE
A145: =IF(COUNTIF(E145:F145,">0"),TRUE,FALSE) -> FALSE | B145: 627 | C145: =LEN(TEXT(B145,0)) -> 3 | D145: 627 Services bancaires et assimilés | E145: 0 | F145: 0 | G145: =IF(C145=6,F145-E145,0) -> 0 | K145: 627000 | M145: 0 | N145: 0 | O145: =+N145-M145 -> 0 | P145: 627000 | Q145: =IF($R145>1,P145+INDEX($H$5:$L$5,0,R145),"") -> 628000 | R145: =7-C145 -> 4 | S145: =OR((COUNTIF(E145:F145,">0")),COUNTIF(M145:N145,">0")) -> FALSE | T145: =S145*SUM(H145:L145) -> 0 | U145: =+M145+E145 -> 0 | V145: =+N145+F145 -> 0 | W145: FALSE
A146: FALSE | B146: 627000 | C146: 6 | D146: 627 Services bancaires et assimilés | E146: 0 | F146: 0 | G146: 0 | H146: 627000 | M146: 0 | N146: 0 | O146: 0 | R146: 1 | S146: FALSE | T146: 0 | U146: 0 | V146: 0 | W146: FALSE
A147: =IF(COUNTIF(E147:F147,">0"),TRUE,FALSE) -> FALSE | B147: 628 | C147: =LEN(TEXT(B147,0)) -> 3 | D147: 628 Divers | E147: 0 | F147: 0 | G147: =IF(C147=6,F147-E147,0) -> 0 | K147: 628000 | M147: 0 | N147: 0 | O147: =+N147-M147 -> 0 | P147: 628000 | Q147: =IF($R147>1,P147+INDEX($H$5:$L$5,0,R147),"") -> 629000 | R147: =7-C147 -> 4 | S147: =OR((COUNTIF(E147:F147,">0")),COUNTIF(M147:N147,">0")) -> FALSE | T147: =S147*SUM(H147:L147) -> 0 | U147: =+M147+E147 -> 0 | V147: =+N147+F147 -> 0 | W147: FALSE
A148: FALSE | B148: 628000 | C148: 6 | D148: 628 Divers | E148: 0 | F148: 0 | G148: 0 | H148: 628000 | M148: 0 | N148: 0 | O148: 0 | R148: 1 | S148: FALSE | T148: 0 | U148: 0 | V148: 0 | W148: FALSE
A149: FALSE | B149: 63 | C149: 2 | D149: 63 Impôts, Taxes, versements assimilés | E149: 0 | F149: 0 | G149: 0 | L149: 630000 | M149: 0 | N149: 0 | O149: 0 | P149: 630000 | Q149: 640000 | R149: 5 | S149: FALSE | T149: 0 | U149: 0 | V149: 0 | W149: FALSE
A150: FALSE | B150: 631 | C150: 3 | D150: 631 Impôts, taxes, verst assimilés, rémunér. | E150: 0 | F150: 0 | G150: 0 | K150: 631000 | M150: 0 | N150: 0 | O150: 0 | P150: 631000 | Q150: 632000 | R150: 4 | S150: FALSE | T150: 0 | U150: 0 | V150: 0 | W150: FALSE
A151: FALSE | B151: 631100 | C151: =LEN(TEXT(B151,0)) -> 6 | D151: 6311 Taxes sur les salaires | E151: 0 | F151: 0 | G151: 0 | H151: 631100 | M151: 0 | N151: 0 | O151: 0 | R151: 1 | S151: FALSE | T151: 0 | U151: 0 | V151: 0 | W151: FALSE
A152: FALSE | B152: 631200 | C152: 6 | D152: 6312 Taxes d' apprentissage | E152: 0 | F152: 0 | G152: 0 | H152: 631200 | M152: 0 | N152: 0 | O152: =+N152-M152 -> 0 | R152: 1 | S152: FALSE | T152: 0 | U152: 0 | V152: 0 | W152: FALSE
A153: FALSE | B153: 631300 | C153: 6 | D153: 6313 Taxes à la Formation Professionnelle | E153: 0 | F153: 0 | G153: 0 | H153: 631300 | M153: 0 | N153: 0 | O153: 0 | R153: 1 | S153: FALSE | T153: 0 | U153: 0 | V153: 0 | W153: FALSE
A154: FALSE | B154: 635 | C154: 3 | D154: 635 Autres impôts | E154: 0 | F154: 0 | G154: =IF(C154=6,F154-E154,0) -> 0 | I154: =IF($C154=I$3,$B154*$I$5,"") ->  | J154: =IF($C154=J$3,$B154*$J$5,"") ->  | K154: 635000 | L154: =IF($C154=L$3,$B154*$L$5,"") ->  | M154: 0 | N154: 0 | O154: 0 | P154: 635000 | Q154: 636000 | R154: =7-C154 -> 4 | S154: FALSE | T154: 0 | U154: 0 | V154: 0 | W154: FALSE
A155: FALSE | B155: 635400 | C155: 6 | D155: 6354 Droits d'enregistrement & de timbres | E155: 0 | F155: 0 | G155: 0 | H155: 635400 | K155: =IF($C155=K$3,$B155*$K$5,"") ->  | M155: =SUMPRODUCT(((COL_CPC>=$P155)*(COL_CPC<$Q155))*COL_DEBIT) -> 0 | N155: 0 | O155: 0 | R155: 1 | S155: FALSE | T155: 0 | U155: 0 | V155: 0 | W155: FALSE
A156: FALSE | B156: 637 | C156: 3 | D156: 637 Taxes diverses | E156: =IF(AND($H156<>0,$C156=6),SUMIF(TABLERECUP,$H156,COL_DEBIT),0) -> 0 | F156: =IF(AND($H156<>0,$C156=6),SUMIF(TABLERECUP,$H156,COL_CREDIT),0) -> 0 | G156: 0 | K156: 637000 | M156: 0 | N156: 0 | O156: 0 | P156: 637000 | Q156: 638000 | R156: 4 | S156: FALSE | T156: 0 | U156: 0 | V156: 0 | W156: FALSE
A157: =IF(COUNTIF(E157:F157,">0"),TRUE,FALSE) -> FALSE | B157: 637800 | C157: 6 | D157: 6378 Redevance TV | E157: 0 | F157: 0 | G157: 0 | H157: 637800 | M157: 0 | N157: 0 | O157: 0 | P157: =IF($R157>1,INDEX($I157:$L157,0,$R157-1),"") ->  | Q157: =IF($R157>1,P157+INDEX($H$5:$L$5,0,R157),"") ->  | R157: 1 | S157: FALSE | T157: =S157*SUM(H157:L157) -> 0 | U157: 0 | V157: 0 | W157: FALSE
A158: FALSE | B158: 64 | C158: 2 | D158: 64 Charges de personnel | E158: 0 | F158: 0 | G158: 0 | L158: 640000 | M158: 0 | N158: 0 | O158: 0 | P158: 640000 | Q158: 650000 | R158: 5 | S158: =OR((COUNTIF(E158:F158,">0")),COUNTIF(M158:N158,">0")) -> FALSE | T158: 0 | U158: 0 | V158: 0 | W158: FALSE
A159: FALSE | B159: 641 | C159: 3 | D159: 641 Rémunérations du personnel | E159: 0 | F159: 0 | G159: 0 | K159: 641000 | M159: 0 | N159: 0 | O159: 0 | P159: 641000 | Q159: 642000 | R159: 4 | S159: FALSE | T159: 0 | U159: 0 | V159: 0 | W159: FALSE
A160: FALSE | B160: 641100 | C160: 6 | D160: 6411 Salaires et traitements | E160: 0 | F160: 0 | G160: 0 | H160: 641100 | M160: 0 | N160: 0 | O160: 0 | R160: 1 | S160: FALSE | T160: 0 | U160: 0 | V160: 0 | W160: FALSE
A161: FALSE | B161: 641200 | C161: 6 | D161: 6412 Congés payés | E161: 0 | F161: 0 | G161: 0 | H161: 641200 | M161: 0 | N161: 0 | O161: 0 | R161: 1 | S161: FALSE | T161: 0 | U161: 0 | V161: 0 | W161: FALSE
A162: FALSE | B162: 641300 | C162: 6 | D162: 6413 Primes et gratifications | E162: 0 | F162: 0 | G162: 0 | H162: 641300 | M162: 0 | N162: 0 | O162: 0 | R162: 1 | S162: FALSE | T162: 0 | U162: 0 | V162: 0 | W162: FALSE
A163: FALSE | B163: 641400 | C163: 6 | D163: 6414 Indemnités et avantages divers | E163: 0 | F163: 0 | G163: 0 | H163: 641400 | M163: 0 | N163: 0 | O163: 0 | R163: 1 | S163: FALSE | T163: 0 | U163: 0 | V163: 0 | W163: FALSE
A164: FALSE | B164: 641500 | C164: 6 | D164: 6415 Supplément familial | E164: 0 | F164: 0 | G164: 0 | H164: 641500 | M164: 0 | N164: 0 | O164: 0 | R164: 1 | S164: FALSE | T164: 0 | U164: 0 | V164: 0 | W164: FALSE
A165: FALSE | B165: 645 | C165: 3 | D165: 645 Charges de Sec. Sociale et prévoyance | E165: 0 | F165: 0 | G165: 0 | K165: 645000 | M165: 0 | N165: 0 | O165: 0 | P165: 645000 | Q165: 646000 | R165: 4 | S165: FALSE | T165: 0 | U165: 0 | V165: 0 | W165: FALSE
A166: FALSE | B166: 645100 | C166: 6 | D166: 6451 Cotisations URSSAF | E166: 0 | F166: 0 | G166: 0 | H166: 645100 | M166: 0 | N166: 0 | O166: 0 | R166: 1 | S166: FALSE | T166: 0 | U166: 0 | V166: 0 | W166: FALSE
A167: FALSE | B167: 645300 | C167: 6 | D167: 6453 Cotisations aux caisses de retraite | E167: 0 | F167: 0 | G167: 0 | H167: =IF($C167=H$3,$B167,"") -> 645300 | M167: 0 | N167: 0 | O167: 0 | R167: 1 | S167: FALSE | T167: 0 | U167: 0 | V167: 0 | W167: FALSE
A168: FALSE | B168: 645400 | C168: 6 | D168: 6454 Cotisations aux ASSEDIC | E168: 0 | F168: 0 | G168: 0 | H168: 645400 | M168: 0 | N168: 0 | O168: 0 | R168: 1 | S168: FALSE | T168: 0 | U168: 0 | V168: 0 | W168: FALSE
A169: FALSE | B169: 645800 | C169: 6 | D169: 6458 Cotisations aux autres organismes sociaux | E169: 0 | F169: 0 | G169: 0 | H169: 645800 | M169: 0 | N169: 0 | O169: 0 | R169: 1 | S169: FALSE | T169: 0 | U169: 0 | V169: 0 | W169: FALSE
A170: =IF(COUNTIF(E170:F170,">0"),TRUE,FALSE) -> FALSE | B170: 647 | C170: =LEN(TEXT(B170,0)) -> 3 | D170: 647 Autres charges sociales | E170: 0 | F170: 0 | G170: =IF(C170=6,F170-E170,0) -> 0 | K170: 647000 | M170: 0 | N170: 0 | O170: =+N170-M170 -> 0 | P170: 647000 | Q170: =IF($R170>1,P170+INDEX($H$5:$L$5,0,R170),"") -> 648000 | R170: =7-C170 -> 4 | S170: =OR((COUNTIF(E170:F170,">0")),COUNTIF(M170:N170,">0")) -> FALSE | T170: =S170*SUM(H170:L170) -> 0 | U170: =+M170+E170 -> 0 | V170: =+N170+F170 -> 0 | W170: FALSE
A171: FALSE | B171: 647000 | C171: 6 | D171: 647 Autres charges sociales | E171: 0 | F171: 0 | G171: 0 | H171: 647000 | M171: 0 | N171: 0 | O171: 0 | R171: 1 | S171: FALSE | T171: 0 | U171: =+M171+E171 -> 0 | V171: =+N171+F171 -> 0 | W171: FALSE
A172: =IF(COUNTIF(E172:F172,">0"),TRUE,FALSE) -> FALSE | B172: 648 | C172: =LEN(TEXT(B172,0)) -> 3 | D172: 648 Autres charges du personnel | E172: 0 | F172: 0 | G172: =IF(C172=6,F172-E172,0) -> 0 | K172: 648000 | M172: 0 | N172: 0 | O172: =+N172-M172 -> 0 | P172: 648000 | Q172: =IF($R172>1,P172+INDEX($H$5:$L$5,0,R172),"") -> 649000 | R172: =7-C172 -> 4 | S172: =OR((COUNTIF(E172:F172,">0")),COUNTIF(M172:N172,">0")) -> FALSE | T172: =S172*SUM(H172:L172) -> 0 | U172: =+M172+E172 -> 0 | V172: =+N172+F172 -> 0 | W172: FALSE
A173: FALSE | B173: 648000 | C173: 6 | D173: 648 Autres charges du personnel | E173: 0 | F173: 0 | G173: 0 | H173: 648000 | M173: 0 | N173: 0 | O173: 0 | R173: 1 | S173: FALSE | T173: 0 | U173: 0 | V173: 0 | W173: FALSE
A174: FALSE | B174: 65 | C174: 2 | D174: 65 Autres Charges de gestion courante | E174: 0 | F174: 0 | G174: 0 | L174: 650000 | M174: 0 | N174: 0 | O174: 0 | P174: 650000 | Q174: 660000 | R174: 5 | S174: FALSE | T174: 0 | U174: 0 | V174: 0 | W174: FALSE
A175: FALSE | B175: 651000 | C175: 6 | D175: 651 Redevances | E175: 0 | F175: 0 | G175: 0 | H175: 651000 | M175: 0 | N175: 0 | O175: 0 | R175: 1 | S175: FALSE | T175: 0 | U175: 0 | V175: 0 | W175: FALSE
A176: FALSE | B176: 658 | C176: 3 | D176: 658 Charges Diverses Gestion Courante | E176: 0 | F176: 0 | G176: 0 | K176: 658000 | M176: 0 | N176: 0 | O176: 0 | P176: 658000 | Q176: 659000 | R176: 4 | S176: FALSE | T176: 0 | U176: 0 | V176: 0 | W176: FALSE
A177: FALSE | B177: 658100 | C177: 6 | D177: 6581 Frais d’affiliations et cotisations | E177: 0 | F177: 0 | G177: 0 | H177: 658100 | M177: 0 | N177: 0 | O177: 0 | R177: 1 | S177: FALSE | T177: 0 | U177: 0 | V177: 0 | W177: FALSE
A178: FALSE | B178: 658200 | C178: 6 | D178: 6582 Engagement d'équipe ou compétiteur | E178: 0 | F178: 0 | G178: 0 | H178: 658200 | M178: 0 | N178: 0 | O178: 0 | R178: 1 | S178: FALSE | T178: 0 | U178: 0 | V178: 0 | W178: FALSE
A179: FALSE | B179: 658300 | C179: 6 | D179: 6583 Reversement licences | E179: 0 | F179: 0 | G179: 0 | H179: 658300 | M179: 0 | N179: 0 | O179: 0 | R179: 1 | S179: FALSE | T179: 0 | U179: 0 | V179: 0 | W179: FALSE
A180: FALSE | B180: 658400 | C180: 6 | D180: 6584 Frais de mutation | E180: 0 | F180: 0 | G180: 0 | H180: 658400 | M180: 0 | N180: 0 | O180: 0 | R180: 1 | S180: FALSE | T180: 0 | U180: 0 | V180: 0 | W180: FALSE
A181: FALSE | B181: 658500 | C181: 6 | D181: 6585 Frais de réclamations | E181: 0 | F181: 0 | G181: 0 | H181: 658500 | M181: 0 | N181: 0 | O181: 0 | R181: 1 | S181: FALSE | T181: 0 | U181: 0 | V181: 0 | W181: FALSE
A182: FALSE | B182: 658600 | C182: 6 | D182: 6586 Pénalités, Amendes | E182: 0 | F182: 0 | G182: 0 | H182: 658600 | M182: 0 | N182: 0 | O182: 0 | R182: 1 | S182: FALSE | T182: 0 | U182: 0 | V182: 0 | W182: FALSE
A183: FALSE | B183: 658800 | C183: 6 | D183: 6588 Autres | E183: 0 | F183: 0 | G183: 0 | H183: 658800 | M183: 0 | N183: 0 | O183: 0 | R183: 1 | S183: FALSE | T183: 0 | U183: 0 | V183: 0 | W183: FALSE
A184: FALSE | B184: 66 | C184: 2 | D184: 66 Charges financières | E184: 0 | F184: 0 | G184: 0 | L184: 660000 | M184: 0 | N184: 0 | O184: 0 | P184: 660000 | Q184: 670000 | R184: 5 | S184: FALSE | T184: 0 | U184: 0 | V184: 0 | W184: FALSE
A185: FALSE | B185: 661 | C185: 3 | D185: 661 Charges d'intérêts | E185: 0 | F185: 0 | G185: 0 | K185: 661000 | M185: =SUMPRODUCT(((COL_CPC>=$P185)*(COL_CPC<$Q185))*COL_DEBIT) -> 0 | N185: 0 | O185: =+N185-M185 -> 0 | P185: 661000 | Q185: 662000 | R185: 4 | S185: FALSE | T185: 0 | U185: 0 | V185: 0 | W185: FALSE
A186: FALSE | B186: 661100 | C186: 6 | D186: 6611 Intérêts des emprunts et dettes | E186: 0 | F186: 0 | G186: 0 | H186: 661100 | M186: 0 | N186: 0 | O186: 0 | R186: 1 | S186: FALSE | T186: 0 | U186: 0 | V186: 0 | W186: FALSE
A187: FALSE | B187: 661600 | C187: 6 | D187: 6616 Intérêts bancaires | E187: 0 | F187: 0 | G187: 0 | H187: 661600 | M187: 0 | N187: 0 | O187: 0 | R187: 1 | S187: FALSE | T187: 0 | U187: 0 | V187: 0 | W187: FALSE
A188: =IF(COUNTIF(E188:F188,">0"),TRUE,FALSE) -> FALSE | B188: 667 | C188: =LEN(TEXT(B188,0)) -> 3 | D188: 667 Charges nettes sur cession de V.M.P. | E188: 0 | F188: 0 | G188: =IF(C188=6,F188-E188,0) -> 0 | K188: 667000 | M188: 0 | N188: =SUMPRODUCT(((COL_CPC>=$P188)*(COL_CPC<$Q188))*COL_CREDIT) -> 0 | O188: =+N188-M188 -> 0 | P188: 667000 | Q188: =IF($R188>1,P188+INDEX($H$5:$L$5,0,R188),"") -> 668000 | R188: =7-C188 -> 4 | S188: =OR((COUNTIF(E188:F188,">0")),COUNTIF(M188:N188,">0")) -> FALSE | T188: =S188*SUM(H188:L188) -> 0 | U188: =+M188+E188 -> 0 | V188: =+N188+F188 -> 0 | W188: FALSE
A189: FALSE | B189: 667000 | C189: 6 | D189: 667 Charges nettes sur cession de V.M.P. | E189: 0 | F189: 0 | G189: 0 | H189: 667000 | M189: 0 | N189: 0 | O189: 0 | R189: 1 | S189: FALSE | T189: 0 | U189: 0 | V189: 0 | W189: FALSE
A190: =IF(COUNTIF(E190:F190,">0"),TRUE,FALSE) -> FALSE | B190: 668 | C190: =LEN(TEXT(B190,0)) -> 3 | D190: 668 Autres Charges financières | E190: 0 | F190: 0 | G190: =IF(C190=6,F190-E190,0) -> 0 | K190: 668000 | M190: 0 | N190: 0 | O190: =+N190-M190 -> 0 | P190: 668000 | Q190: =IF($R190>1,P190+INDEX($H$5:$L$5,0,R190),"") -> 669000 | R190: =7-C190 -> 4 | S190: =OR((COUNTIF(E190:F190,">0")),COUNTIF(M190:N190,">0")) -> FALSE | T190: =S190*SUM(H190:L190) -> 0 | U190: =+M190+E190 -> 0 | V190: =+N190+F190 -> 0 | W190: FALSE
A191: FALSE | B191: 668000 | C191: 6 | D191: 668 Autres Charges financières | E191: 0 | F191: 0 | G191: 0 | H191: 668000 | M191: 0 | N191: 0 | O191: 0 | R191: 1 | S191: FALSE | T191: 0 | U191: 0 | V191: 0 | W191: FALSE
A192: FALSE | B192: 67 | C192: 2 | D192: 67 Charges exceptionnelles | E192: 0 | F192: 0 | G192: 0 | L192: 670000 | M192: 0 | N192: 0 | O192: 0 | P192: 670000 | Q192: 680000 | R192: 5 | S192: FALSE | T192: 0 | U192: 0 | V192: 0 | W192: FALSE
A193: FALSE | B193: 671200 | C193: 6 | D193: 6712 Pénalités et amendes fiscales, pénales | E193: 0 | F193: 0 | G193: 0 | H193: 671200 | M193: 0 | N193: 0 | O193: 0 | R193: 1 | S193: FALSE | T193: 0 | U193: 0 | V193: 0 | W193: FALSE
A194: FALSE | B194: 671300 | C194: 6 | D194: 6713 Dons, libéralités | E194: 0 | F194: 0 | G194: 0 | H194: 671300 | M194: 0 | N194: 0 | O194: 0 | R194: 1 | S194: FALSE | T194: 0 | U194: 0 | V194: 0 | W194: FALSE
A195: FALSE | B195: 675000 | C195: 6 | D195: 675 Valeur nette comptable | E195: 0 | F195: 0 | G195: 0 | H195: 675000 | M195: 0 | N195: 0 | O195: 0 | R195: 1 | S195: FALSE | T195: 0 | U195: 0 | V195: 0 | W195: FALSE
A196: FALSE | B196: 68 | C196: 2 | D196: 68 Dotation Amortissement et provisions | E196: 0 | F196: 0 | G196: 0 | L196: 680000 | M196: 0 | N196: 0 | O196: 0 | P196: 680000 | Q196: 690000 | R196: 5 | S196: FALSE | T196: 0 | U196: 0 | V196: 0 | W196: FALSE
A197: FALSE | B197: 681000 | C197: 6 | D197: 681 Dot. Amortissement. Immob. corporelles | E197: 0 | F197: 0 | G197: 0 | H197: 681000 | M197: 0 | N197: 0 | O197: 0 | R197: 1 | S197: FALSE | T197: 0 | U197: 0 | V197: 0 | W197: FALSE
A198: FALSE | B198: 686000 | C198: 6 | D198: 686 Dot. Aux Provisions | E198: 0 | F198: 0 | G198: 0 | H198: 686000 | M198: 0 | N198: 0 | O198: 0 | R198: 1 | S198: FALSE | T198: 0 | U198: 0 | V198: 0 | W198: FALSE
A199: FALSE | D199: CLASSE 7 - Produits | E199: 0 | F199: 0 | G199: 0 | R199: 7 | S199: FALSE | T199: 0 | W199: FALSE
A200: FALSE | B200: 70 | C200: 2 | D200: 70 Ventes et prestations de services | E200: 0 | F200: 0 | G200: 0 | L200: 700000 | M200: 0 | N200: 0 | O200: 0 | P200: 700000 | Q200: 710000 | R200: 5 | S200: FALSE | T200: 0 | U200: 0 | V200: 0 | W200: FALSE
... 61 more rows

Sheet Paramètres
C3: Compléter les paramètres de durée d'exercice et nom de l'association
C5: Version à utiliser avec Excel 2007 - 2010 | E5: Si votre fin d'exercice est FIN Février lors des années bissextiles mettre valeur 29 à JOUR
C6: Nom de l'Association -> | D6: Club Test
C7: Fin d'exercice (à renseigner) | D7: JOUR | E7: MOIS | G7: ANNÉE | H7: =E50 -> 2019-08-31
C8: Début exercice Automatique -> | D8: date de début d'exercice calculée automatiquement pour une durée "normale" de 12 mois ---> | H8: =EDATE(H7,-12)+1 -> 2018-09-01
D9: =IF(H9<>"","ATTENTION FIN EXERCICE PERSONNALISE","") ->  | H9: =IF(E15=0,"",E15) -> 
C11: A titre exceptionnel (obligation fédérale, …) vous pouvez être dans l'obligation de modifier la durée d'un exercice,
C12: et le calcul automatique de FIN d'exercice ne pas correspondre à vos exigences.
C13: Vous pouvez exprimer la date souhaitée dans la cellule jaune ci-dessous, sous la forme JJ/MM/AAAA cette dernière sera alors prise en compte.
C15: Date de Fin d'exercice EXCEPTIONNELLE | G15: =IF(AND(E15<>0,E15<=H8),"DATE NON CONFORME","") ->  | H15: =IF(E15<>0,EDATE(E15,12),"") -> 
H16: =IF(E15>0,"Au prochain exercice vous devrez paramétrer votre fin d'exercice pour obtenir cette date. Prenez note!","") -> 
C17: La durée de l'exercice est de : | D17: =Fin_Exercice-Debut_Exercice+1 -> 365 | E17: jours
B40: paramètres des menus déroulants | E40: Zone Fin exercice | F40: CHOIX | H40: Fin d'exercice (exceptionnel ou pas)
B41: 1 | C41: Janvier | D41: 2015 | E41: Date Fin | H41: reprise des paramètres J/M/A ("Report")
B42: 2 | C42: février | D42: =+D41+1 -> 2016 | E42: jour | F42: 31 | G42: 3 cellules "liées" aux ascenceurs de paramétrage de date | H42: Nouveau Jour
B43: 3 | C43: mars | D43: =+D42+1 -> 2017 | E43: mois | F43: 8 | H43: =DAY(G46) -> 31
B44: 4 | C44: avril | D44: 2018 | E44: année | F44: 5 | H44: Nouveau Mois
B45: 5 | C45: mai | D45: 2019 | E45: fin exercice appliqué | F45: =+F51+F44-1 -> 2019 | H45: =MONTH(G46) -> 8
B46: 6 | C46: juin | D46: 2020 | E46: =IF(E48<>0,E48,E50) -> 2019-08-31 | F46: valeur = >>> | G46: =Fin_Exercice -> 42246 | H46: Nouvelle année index +1
B47: 7 | C47: juillet | D47: 2021 | E47: Fin d'exercice modifié | F47: valeur | H47: =YEAR(G46)-F51+1+1 -> 6
B48: 8 | C48: août | D48: 2022 | E48: =E15 -> 1904-01-01 | F48: =Fin_d_exercice_modifié -> 0 | H48: qui sont transférés en F42,F43,F44
B49: 9 | C49: septembre | D49: 2023 | E49: fin exercice originel
B50: 10 | C50: octobre | D50: 2024 | E50: =DATEVALUE(CONCATENATE($F$42,"/",$F$43,"/",$F$45)) -> 2019-08-31
B51: 11 | C51: novembre | D51: 2025 | E51: Année départ | F51: 2015 | G51: Année de départ de la liste déroulante à reporter en D1
B52: 12 | C52: décembre | D52: 2026
B53: 13 | D53: 2027 | E53: =H8 -> 2018-09-01 | F53: Début Exercice | G53: =Debut_Exercice -> 2018-09-01
B54: 14 | D54: 2028
B55: 15 | D55: 2029
B56: 16 | D56: 2030
B57: 17 | D57: 2031
B58: 18 | D58: 2032
B59: 19 | D59: 2033
B60: 20 | D60: 2034
B61: 21 | D61: 2035
B62: 22 | D62: 2036
B63: 23 | D63: 2037
B64: 24 | D64: 2038
B65: 25 | D65: 2039
B66: 26 | D66: 2040
B67: 27 | D67: 2041
B68: 28 | D68: 2042
B69: 29 | D69: 2043
B70: 30 | D70: 2044
B71: 31 | D71: 2045

Sheet JOURNAUX
C1: J O U R N AU X | F1: =+Debut_Exercice -> 2018-09-01 | G1: Total Chq émis | H1: Rappel des comptes trésorerie suivis | I1: C.P.C. | J1: Débit | K1: Crédit | V1: =IF(SUM(--$Q$11:$Q$2010)>0,"Manque élément(s) obligatoire(s)","Néant") -> Néant | AF1: CJAL | AG1: Dates | AH1: Code CPC | AI1: Libellé écriture | AJ1: N°CHQ | AK1: Débit | AL1: Crédit
C2: AN-BQ- CA- OD | F2: =+Fin_Exercice -> 2019-08-31 | G2: non débités | H2: =IF($I2<>0,INDEX(PLAN,MATCH($I2,NIVEAU6,0),3),"-") -> 5121 Compte Courant Banque Populaire ! | I2: 512100 | J2: =+IF($L2>$M2,$L2-$M2,"") -> 3111.3 | K2: =+IF($L2<$M2,-$L2+$M2,0) -> 0 | L2: =SUMIF(TABLERECUP,TEXT($I2,0),COL_DEBIT) -> 4548.86 | M2: =SUMIF(TABLERECUP,TEXT($I2,0),COL_CREDIT) -> 1437.56 | V2: =IF(SUM(--$T$11:$T$2011)>0,"Problème de date","Néant") -> Néant | AF2: OD | AG2: =Fin_Exercice -> 2019-08-31 | AH2: 120000 | AI2: Résultat excédentaire saison | AL2: =IF($J$5>=0,$J$5,"") -> 1062.44
G3: =SuiviChqs!M10 -> 150 | H3: =IF($I3<>0,INDEX(PLAN,MATCH($I3,NIVEAU6,0),3),"-") -> 5122Livret Association Banque Populaire ! | I3: 512200 | J3: =+IF($L3>$M3,$L3-$M3,"") -> 36658.34 | K3: =+IF($L3<$M3,-$L3+$M3,0) -> 0 | L3: =SUMIF(TABLERECUP,TEXT($I3,0),COL_DEBIT) -> 36658.34 | M3: =SUMIF(TABLERECUP,TEXT($I3,0),COL_CREDIT) -> 0 | V3: =IF(F9+10<>B8,"ATTENTION: LIGNES VIDES",(IF(I9="DOUBLON","Attention Numéro Doublon","Néant"))) -> Néant | AF3: OD | AG3: =Fin_Exercice -> 2019-08-31 | AH3: 129000 | AI3: Résultat déficitaire saison | AK3: =IF($J$5<0,ABS($J$5),"") -> 
G4: CPC double clic | H4: =IF($I4<>0,INDEX(PLAN,MATCH($I4,NIVEAU6,0),3),"-") -> 5123 Compte Courant | I4: 512300 | J4: =+IF($L4>$M4,$L4-$M4,"") ->  | K4: =+IF($L4<$M4,-$L4+$M4,0) -> 0 | L4: =SUMIF(TABLERECUP,TEXT($I4,0),COL_DEBIT) -> 0 | M4: =SUMIF(TABLERECUP,TEXT($I4,0),COL_CREDIT) -> 0 | V4: Vers Contributions Volontaires
F5: Ctrl + Maj + P | G5: =IFERROR(VALUE(LEFT(H8,6)),"ZERO") -> 512100 | H5: =IF('BILAN '!$I$37=2,"BILAN ÉQUILIBRÉ",0) -> 0 | I5: =IF(J5<0,"DEFICIT","EXCÉDENT") -> EXCÉDENT | J5: ='PRODUITS '!$E$48 -> 1062.44 | AH5: "Paiement"
F6: Ctrl + Maj + M | G6: =IF(V9,V9&" CPC Erroné",0) -> 0 | H6: =IF(OR(Temoin=1,Temoin=3,V9<>0),"Balance Fausse: Cliquer Vérifier Balance ->",IF(Temoin=4,"Pb Compte Résultat CPC non ventilé",IF(Temoin=5,"2 Pb: Balance et Etat Charges ou Produits",0))) -> 0 | J6: =IF(J7>0,"Manque Débit",0) -> 0 | K6: =IF(K7>0,"Différence",0) -> 0 | AB6: Attention si 2 fichiers sont ouverts | AH6: Liste déroulante N° chèque et +
C7: Liste & Nb ANA | D7: N°Max | F7: Date max | G7: =IF(V8=0,0,"Ligne : "&V8) -> 0 | H7: =IF(Temoin=11,"Différence Balance = Résultat [OK]",0) -> 0 | I7: =AJ10 -> 0 | K7: =IF($J9<>$K9,ABS($J9-$K9),0) -> 0 | AB7: simultanément les 2 journaux seront | AH7: Prélèvmt | AJ7: Compteur
B8: =MAX(B10:B2011) -> 28 | D8: =MAX(D10:D2011) -> 6 | F8: =MAX(F10:F2011) -> 2018-11-30 | G8: Vérif CPC> + | H8: 512100 - 5121 Compte Courant Banque Populaire ! | I8: =MODE(I11:I2011) ->  | J8: =+COUNTIF(J10:J2011,">0") -> 8 | K8: =+COUNTIF(K10:K2011,">0") -> 10 | V8: =IFERROR(MATCH(FALSE,$V$11:$V$2002,0)+10,0) -> 0 | AB8: effacés. Effacer manuellement! | AH8: Carte | AJ8: CRT 51… non renseigné
C9: =COUNTIF(C11:C2011,"<>") -> 1 | D9: =+COUNTIF(D11:D2011,">0") -> 18 | F9: =+COUNTIF(F11:F2011,">0") -> 18 | G9: =+COUNTIF(G11:G2011,">0") -> 18 | H9: =--($J$9<>$K$9)--(('BILAN '!$I$37=0)*2)--(('BILAN '!I40<>0)*4)--(('BILAN '!J13='BILAN '!I39)*8) -> 0 | I9: =IF(ISERROR(I8),"-","DOUBLON") -> - | J9: =SUM(J11:J2011) -> 47345.36 | K9: =SUM(K11:K2011) -> 47345.36 | O9: nbre d'éléments | R9: vérif dates | V9: =+COUNTIF(V11:V2002,"=FAUX") -> 0 | AH9: Virement
A10: Ligne | C10: ANA | D10: N° pièce | E10: JAL | F10: Dates | G10: CPC | H10: Libellé écriture | I10: N°CHQ ou Liste | J10: Débit | K10: Crédit | L10: Pointé | M10: ! PB ! | N10: Analyse CPC [G] | O10: <>4 | P10: <>0 | Q10: Erreur (si VRAI) | R10: DATE=0 | S10: Hors | T10: Résumé dates | U10: ERREUR (si VRAI) | V10: Intilulés CPC (Auto) | W10: NR | AE10: Codes ANA | AH10: Autres | AJ10: =SUM(AJ11:AJ2011) -> 0
A11: =B11<>"" -> TRUE | B11: =+IF(SUM($J11:$K11)<>0,ROW(),"") -> 11 | D11: 1 | E11: AN | F11: 2018-09-01 | G11: 102100 | H11: Report à nouveau N-1 | K11: 22727.16 | M11: =+IF(U11,"! Pb !","-") -> - | N11: =(V11)=FALSE -> FALSE | O11: =NOT(AND((COUNTA($E11,$F11,$G11)=3),COUNTBLANK(J11:K11)=1)) -> FALSE | P11: =NOT(COUNTA($E11,$F11,$G11,$J11,$K11)=0) -> TRUE | Q11: =AND(O11,P11) -> FALSE | R11: =NOT(F11=0) -> TRUE | S11: =OR(F11>Fin_Exercice,F11<Debut_Exercice) -> FALSE | T11: =AND(R11:S11) -> FALSE | U11: =OR(T11,Q11) -> FALSE | V11: =IF($G11<>0,IFERROR(INDEX(PLAN,MATCH($G11,NIVEAU6,0),3),FALSE),"-") -> 1021 Valeur du patrimoine intégré | W11: =AND(G11=512100,L11="") -> FALSE | AE11: =MATCH($C11,CodeANA!$A$4:$A$45,0) ->  | AH11: =ListeNumChq -> 888 | AJ11: =--(AND(LEFT(G11,2)="51",K11<>0,COUNTA(I11)=0)) -> 0
A12: =B12<>"" -> TRUE | B12: 12 | D12: 1 | E12: AN | F12: 2018-09-01 | G12: 110000 | H12: Report à nouveau N-1 | K12: 8936.97 | M12: =+IF(U12,"! Pb !","-") -> - | N12: =(V12)=FALSE -> FALSE | O12: =NOT(AND((COUNTA($E12,$F12,$G12)=3),COUNTBLANK(J12:K12)=1)) -> FALSE | P12: TRUE | Q12: FALSE | R12: =NOT(F12=0) -> TRUE | S12: FALSE | T12: =AND(R12:S12) -> FALSE | U12: =OR(T12,Q12) -> FALSE | V12: 110 Report à nouveau (solde créditeur) | W12: =AND(G12=512100,L12="") -> FALSE | AE12: =MATCH($C12,CodeANA!$A$4:$A$45,0) ->  | AH12: 889 | AJ12: =--(AND(LEFT(G12,2)="51",K12<>0,COUNTA(I12)=0)) -> 0
A13: TRUE | B13: 13 | D13: 1 | E13: AN | F13: 2018-09-01 | G13: 119000 | H13: Report à nouveau N-1 | J13: 1236.24 | M13: - | N13: FALSE | O13: =NOT(AND((COUNTA($E13,$F13,$G13)=3),COUNTBLANK(J13:K13)=1)) -> FALSE | P13: TRUE | Q13: FALSE | R13: TRUE | S13: FALSE | T13: FALSE | U13: FALSE | V13: 119 Report à nouveau (solde débiteur) | W13: FALSE | AE13: =MATCH($C13,CodeANA!$A$4:$A$45,0) ->  | AH13: 890 | AJ13: 0
A14: TRUE | B14: 14 | D14: 1 | E14: AN | F14: 2018-09-01 | G14: 120000 | H14: Report à nouveau N-1 | K14: 3464.36 | M14: - | N14: FALSE | O14: =NOT(AND((COUNTA($E14,$F14,$G14)=3),COUNTBLANK(J14:K14)=1)) -> FALSE | P14: TRUE | Q14: FALSE | R14: TRUE | S14: FALSE | T14: FALSE | U14: FALSE | V14: 120 Résultat exercice (excédent) | W14: FALSE | AE14: =MATCH($C14,CodeANA!$A$4:$A$45,0) ->  | AH14: 891 | AJ14: 0
A15: TRUE | B15: 15 | D15: 1 | E15: AN | F15: 2018-09-01 | G15: 460000 | H15: Report à nouveau N-1 | K15: 1021.95 | M15: - | N15: FALSE | O15: =NOT(AND((COUNTA($E15,$F15,$G15)=3),COUNTBLANK(J15:K15)=1)) -> FALSE | P15: TRUE | Q15: FALSE | R15: TRUE | S15: FALSE | T15: FALSE | U15: FALSE | V15: 460 Débiteurs Divers | W15: FALSE | AE15: =MATCH($C15,CodeANA!$A$4:$A$45,0) ->  | AH15: 892 | AJ15: 0
A16: TRUE | B16: 16 | D16: 1 | E16: AN | F16: 2018-09-01 | G16: 487000 | H16: Report à nouveau N-1 | K16: 3793 | M16: - | N16: FALSE | O16: FALSE | P16: TRUE | Q16: FALSE | R16: TRUE | S16: FALSE | T16: FALSE | U16: FALSE | V16: 487 Produits constatés d'avance | W16: FALSE | AE16: =MATCH($C16,CodeANA!$A$4:$A$45,0) ->  | AH16: 893 | AJ16: 0
A17: TRUE | B17: 17 | D17: 1 | E17: AN | F17: 2018-09-01 | G17: 512100 | H17: Report à nouveau N-1 | J17: 2048.86 | L17: x | M17: - | N17: FALSE | O17: FALSE | P17: TRUE | Q17: FALSE | R17: TRUE | S17: FALSE | T17: FALSE | U17: FALSE | V17: 5121 Compte Courant Banque Populaire ! | W17: FALSE | AE17: =MATCH($C17,CodeANA!$A$4:$A$45,0) ->  | AH17: 894 | AJ17: 0
A18: TRUE | B18: 18 | D18: 1 | E18: AN | F18: 2018-09-01 | G18: 512200 | H18: Report à nouveau N-1 | J18: 36658.34 | L18: x | M18: - | N18: FALSE | O18: FALSE | P18: TRUE | Q18: FALSE | R18: TRUE | S18: FALSE | T18: FALSE | U18: FALSE | V18: 5122Livret Association Banque Populaire ! | W18: FALSE | AE18: =MATCH($C18,CodeANA!$A$4:$A$45,0) ->  | AH18: 895 | AJ18: 0
A19: TRUE | B19: 19 | D19: 3 | E19: OD | F19: 2018-09-01 | G19: 120000 | H19: Affectation du résultat N-1 | J19: 3464.36 | M19: - | N19: FALSE | O19: FALSE | P19: TRUE | Q19: FALSE | R19: TRUE | S19: FALSE | T19: FALSE | U19: FALSE | V19: 120 Résultat exercice (excédent) | W19: FALSE | AE19: =MATCH($C19,CodeANA!$A$4:$A$45,0) ->  | AH19: 896 | AJ19: 0
A20: TRUE | B20: 20 | D20: 3 | E20: OD | F20: 2018-09-01 | G20: 110000 | H20: Affectation du résultat N-1 | K20: 3464.36 | M20: - | N20: FALSE | O20: FALSE | P20: TRUE | Q20: FALSE | R20: TRUE | S20: FALSE | T20: FALSE | U20: FALSE | V20: 110 Report à nouveau (solde créditeur) | W20: FALSE | AE20: =MATCH($C20,CodeANA!$A$4:$A$45,0) ->  | AH20: 897 | AJ20: 0
A21: TRUE | B21: 21 | D21: 3 | E21: BQ | F21: 2018-09-02 | G21: 512100 | H21: Achat | I21: Carte | K21: 1000 | L21: 10 | M21: - | N21: FALSE | O21: FALSE | P21: TRUE | Q21: FALSE | R21: TRUE | S21: FALSE | T21: FALSE | U21: FALSE | V21: 5121 Compte Courant Banque Populaire ! | W21: FALSE | AE21: =MATCH($C21,CodeANA!$A$4:$A$45,0) ->  | AH21: 898 | AJ21: 0
A22: TRUE | B22: =+IF(SUM($J22:$K22)<>0,ROW(),"") -> 22 | D22: 3 | E22: BQ | F22: 2018-09-02 | G22: 625100 | H22: Achat bois | J22: 1000 | M22: - | N22: FALSE | O22: FALSE | P22: TRUE | Q22: FALSE | R22: TRUE | S22: FALSE | T22: FALSE | U22: FALSE | V22: 6251 Déplacements compétitions | W22: FALSE | AE22: =MATCH($C22,CodeANA!$A$4:$A$45,0) ->  | AH22: 899 | AJ22: 0
A23: TRUE | B23: 23 | D23: 4 | E23: BQ | F23: 2018-10-30 | G23: 512100 | H23: RCH Machin | J23: 2500 | M23: - | N23: FALSE | O23: FALSE | P23: TRUE | Q23: FALSE | R23: TRUE | S23: FALSE | T23: FALSE | U23: FALSE | V23: 5121 Compte Courant Banque Populaire ! | W23: TRUE | AE23: =MATCH($C23,CodeANA!$A$4:$A$45,0) ->  | AH23: 900 | AJ23: 0
A24: TRUE | B24: 24 | D24: 4 | E24: BQ | F24: 2018-10-30 | G24: 754000 | H24: meuble | K24: 2500 | M24: - | N24: FALSE | O24: FALSE | P24: TRUE | Q24: FALSE | R24: TRUE | S24: FALSE | T24: FALSE | U24: FALSE | V24: 754 Collectes | W24: FALSE | AE24: =MATCH($C24,CodeANA!$A$4:$A$45,0) ->  | AH24: 901 | AJ24: 0
A25: TRUE | B25: 25 | D25: 5 | E25: BQ | F25: 2018-11-10 | G25: 625100 | H25: fff | J25: 125.56 | M25: - | N25: FALSE | O25: FALSE | P25: TRUE | Q25: FALSE | R25: TRUE | S25: FALSE | T25: FALSE | U25: FALSE | V25: 6251 Déplacements compétitions | W25: FALSE | AE25: =MATCH($C25,CodeANA!$A$4:$A$45,0) ->  | AH25: 902 | AJ25: 0
A26: TRUE | B26: 26 | D26: 5 | E26: BQ | F26: 2018-11-10 | G26: 512100 | H26: fff | I26: 891 | K26: 125.56 | M26: - | N26: FALSE | O26: FALSE | P26: TRUE | Q26: FALSE | R26: TRUE | S26: FALSE | T26: FALSE | U26: FALSE | V26: 5121 Compte Courant Banque Populaire ! | W26: TRUE | Y26: =--(TRUE) -> 1 | AE26: =MATCH($C26,CodeANA!$A$4:$A$45,0) ->  | AH26: 903 | AJ26: 0
A27: TRUE | B27: 27 | C27: ANA1 | D27: 6 | E27: BQ | F27: 2018-11-30 | G27: 616000 | H27: Assurance | J27: 312 | M27: - | N27: FALSE | O27: FALSE | P27: TRUE | Q27: FALSE | R27: TRUE | S27: FALSE | T27: FALSE | U27: FALSE | V27: 616 Primes d'assurances | W27: FALSE | AE27: =MATCH($C27,CodeANA!$A$4:$A$45,0) -> 1 | AH27: 904 | AJ27: 0
A28: TRUE | B28: 28 | D28: 6 | E28: BQ | F28: 2018-11-30 | G28: 512100 | H28: Prélevement auto | I28: 889 | K28: 312 | M28: - | N28: FALSE | O28: FALSE | P28: TRUE | Q28: FALSE | R28: TRUE | S28: FALSE | T28: FALSE | U28: FALSE | V28: 5121 Compte Courant Banque Populaire ! | W28: TRUE | AE28: =MATCH($C28,CodeANA!$A$4:$A$45,0) ->  | AH28: 905 | AJ28: 0
A29: FALSE | M29: - | N29: FALSE | O29: TRUE | P29: FALSE | Q29: FALSE | R29: FALSE | S29: TRUE | T29: FALSE | U29: FALSE | V29: - | W29: FALSE | AE29: =MATCH($C29,CodeANA!$A$4:$A$45,0) ->  | AH29: 906 | AJ29: 0
A30: FALSE | M30: - | N30: FALSE | O30: TRUE | P30: FALSE | Q30: FALSE | R30: FALSE | S30: TRUE | T30: FALSE | U30: FALSE | V30: - | W30: FALSE | AE30: =MATCH($C30,CodeANA!$A$4:$A$45,0) ->  | AH30: 907 | AJ30: 0
A31: FALSE | M31: - | N31: FALSE | O31: TRUE | P31: FALSE | Q31: FALSE | R31: FALSE | S31: TRUE | T31: FALSE | U31: FALSE | V31: - | W31: FALSE | AE31: =MATCH($C31,CodeANA!$A$4:$A$45,0) ->  | AH31: 908 | AJ31: 0
A32: FALSE | M32: - | N32: FALSE | O32: TRUE | P32: FALSE | Q32: FALSE | R32: FALSE | S32: TRUE | T32: FALSE | U32: FALSE | V32: - | W32: FALSE | AE32: =MATCH($C32,CodeANA!$A$4:$A$45,0) ->  | AH32: 1200 | AJ32: 0
A33: FALSE | M33: - | N33: FALSE | O33: TRUE | P33: FALSE | Q33: FALSE | R33: FALSE | S33: TRUE | T33: FALSE | U33: FALSE | V33: - | W33: FALSE | AE33: =MATCH($C33,CodeANA!$A$4:$A$45,0) ->  | AH33: 1201 | AJ33: 0
A34: FALSE | N34: FALSE | O34: TRUE | P34: FALSE | Q34: FALSE | R34: FALSE | S34: TRUE | T34: FALSE | U34: FALSE | V34: - | W34: FALSE | AE34: =MATCH($C34,CodeANA!$A$4:$A$45,0) ->  | AH34: 1202 | AJ34: 0
A35: FALSE | M35: =+IF(U35,"! Pb !","") ->  | N35: FALSE | O35: TRUE | P35: FALSE | Q35: FALSE | R35: FALSE | S35: TRUE | T35: FALSE | U35: FALSE | V35: - | W35: FALSE | AE35: =MATCH($C35,CodeANA!$A$4:$A$45,0) ->  | AH35: 1203 | AJ35: 0
A36: FALSE | N36: FALSE | O36: TRUE | P36: FALSE | Q36: FALSE | R36: FALSE | S36: TRUE | T36: FALSE | U36: FALSE | V36: - | W36: FALSE | AE36: =MATCH($C36,CodeANA!$A$4:$A$45,0) ->  | AH36: 1204 | AJ36: 0
A37: FALSE | N37: FALSE | O37: TRUE | P37: FALSE | Q37: FALSE | R37: FALSE | S37: TRUE | T37: FALSE | U37: FALSE | V37: - | W37: FALSE | AE37: =MATCH($C37,CodeANA!$A$4:$A$45,0) ->  | AH37: 1205 | AJ37: 0
A38: FALSE | N38: FALSE | O38: TRUE | P38: FALSE | Q38: FALSE | R38: FALSE | S38: TRUE | T38: FALSE | U38: FALSE | V38: - | W38: =AND(G38=512100,L38<>"") -> FALSE | AE38: =MATCH($C38,CodeANA!$A$4:$A$45,0) ->  | AH38: 1206 | AJ38: 0
A39: FALSE | N39: FALSE | O39: TRUE | P39: FALSE | Q39: FALSE | R39: FALSE | S39: TRUE | T39: FALSE | U39: FALSE | V39: - | W39: FALSE | AE39: =MATCH($C39,CodeANA!$A$4:$A$45,0) ->  | AH39: 1207 | AJ39: 0
A40: FALSE | N40: FALSE | O40: TRUE | P40: FALSE | Q40: FALSE | R40: FALSE | S40: TRUE | T40: FALSE | U40: FALSE | V40: - | W40: FALSE | AE40: =MATCH($C40,CodeANA!$A$4:$A$45,0) ->  | AH40: 1208 | AJ40: 0
A41: FALSE | N41: FALSE | O41: TRUE | P41: FALSE | Q41: FALSE | R41: FALSE | S41: TRUE | T41: FALSE | U41: FALSE | V41: - | W41: FALSE | AE41: =MATCH($C41,CodeANA!$A$4:$A$45,0) ->  | AH41: 1209 | AJ41: 0
A42: FALSE | N42: FALSE | O42: TRUE | P42: FALSE | Q42: FALSE | R42: FALSE | S42: TRUE | T42: FALSE | U42: FALSE | V42: - | W42: FALSE | AE42: =MATCH($C42,CodeANA!$A$4:$A$45,0) ->  | AH42: 1210 | AJ42: 0
A43: FALSE | N43: FALSE | O43: TRUE | P43: FALSE | Q43: FALSE | R43: FALSE | S43: TRUE | T43: FALSE | U43: FALSE | V43: - | W43: FALSE | AE43: =MATCH($C43,CodeANA!$A$4:$A$45,0) ->  | AH43: 1211 | AJ43: 0
A44: FALSE | N44: FALSE | O44: TRUE | P44: FALSE | Q44: FALSE | R44: FALSE | S44: TRUE | T44: FALSE | U44: FALSE | V44: - | W44: FALSE | AE44: =MATCH($C44,CodeANA!$A$4:$A$45,0) ->  | AH44: 1212 | AJ44: 0
A45: FALSE | N45: FALSE | O45: TRUE | P45: FALSE | Q45: FALSE | R45: FALSE | S45: TRUE | T45: FALSE | U45: FALSE | V45: - | W45: FALSE | AE45: =MATCH($C45,CodeANA!$A$4:$A$45,0) ->  | AH45: 1213 | AJ45: 0
A46: FALSE | N46: FALSE | O46: TRUE | P46: FALSE | Q46: FALSE | R46: FALSE | S46: TRUE | T46: FALSE | U46: FALSE | V46: - | W46: FALSE | AE46: =MATCH($C46,CodeANA!$A$4:$A$45,0) ->  | AH46: 1214 | AJ46: 0
A47: FALSE | N47: FALSE | O47: TRUE | P47: FALSE | Q47: FALSE | R47: FALSE | S47: TRUE | T47: FALSE | U47: FALSE | V47: - | W47: FALSE | AE47: =MATCH($C47,CodeANA!$A$4:$A$45,0) ->  | AH47: 1215 | AJ47: 0
A48: FALSE | N48: FALSE | O48: TRUE | P48: FALSE | Q48: FALSE | R48: FALSE | S48: TRUE | T48: FALSE | U48: FALSE | V48: - | W48: FALSE | AE48: =MATCH($C48,CodeANA!$A$4:$A$45,0) ->  | AH48: 1216 | AJ48: 0
A49: FALSE | N49: FALSE | O49: TRUE | P49: FALSE | Q49: FALSE | R49: FALSE | S49: TRUE | T49: FALSE | U49: FALSE | V49: - | W49: FALSE | AE49: =MATCH($C49,CodeANA!$A$4:$A$45,0) ->  | AH49: 1217 | AJ49: 0
A50: FALSE | N50: FALSE | O50: TRUE | P50: FALSE | Q50: FALSE | R50: =NOT(F50=0) -> FALSE | S50: =OR(F50>Fin_Exercice,F50<Debut_Exercice) -> TRUE | T50: =AND(R50:S50) -> FALSE | U50: FALSE | V50: - | W50: FALSE | AE50: =MATCH($C50,CodeANA!$A$4:$A$45,0) ->  | AH50: 1218 | AJ50: 0
A51: FALSE | N51: FALSE | O51: TRUE | P51: FALSE | Q51: FALSE | R51: FALSE | S51: TRUE | T51: FALSE | U51: FALSE | V51: - | W51: FALSE | AE51: =MATCH($C51,CodeANA!$A$4:$A$45,0) ->  | AH51: 1219 | AJ51: 0
A52: FALSE | N52: FALSE | O52: TRUE | P52: FALSE | Q52: FALSE | R52: FALSE | S52: TRUE | T52: FALSE | U52: FALSE | V52: - | W52: FALSE | AE52: =MATCH($C52,CodeANA!$A$4:$A$45,0) ->  | AH52: 1220 | AJ52: 0
A53: FALSE | N53: FALSE | O53: TRUE | P53: FALSE | Q53: FALSE | R53: FALSE | S53: TRUE | T53: FALSE | U53: FALSE | V53: - | W53: FALSE | AE53: =MATCH($C53,CodeANA!$A$4:$A$45,0) ->  | AH53: 1221 | AJ53: 0
A54: FALSE | N54: FALSE | O54: TRUE | P54: FALSE | Q54: FALSE | R54: FALSE | S54: TRUE | T54: FALSE | U54: FALSE | V54: - | W54: FALSE | AE54: =MATCH($C54,CodeANA!$A$4:$A$45,0) ->  | AH54: 1222 | AJ54: 0
A55: FALSE | N55: FALSE | O55: TRUE | P55: FALSE | Q55: FALSE | R55: FALSE | S55: TRUE | T55: FALSE | U55: FALSE | V55: - | W55: FALSE | AE55: =MATCH($C55,CodeANA!$A$4:$A$45,0) ->  | AH55: 1223 | AJ55: 0
A56: FALSE | N56: FALSE | O56: TRUE | P56: FALSE | Q56: FALSE | R56: FALSE | S56: TRUE | T56: FALSE | U56: FALSE | V56: - | W56: FALSE | AE56: =MATCH($C56,CodeANA!$A$4:$A$45,0) ->  | AH56: 1224 | AJ56: 0
A57: FALSE | N57: FALSE | O57: TRUE | P57: FALSE | Q57: FALSE | R57: FALSE | S57: TRUE | T57: FALSE | U57: FALSE | V57: - | W57: FALSE | AE57: =MATCH($C57,CodeANA!$A$4:$A$45,0) ->  | AH57: 1225 | AJ57: 0
A58: FALSE | N58: FALSE | O58: TRUE | P58: FALSE | Q58: FALSE | R58: FALSE | S58: TRUE | T58: FALSE | U58: FALSE | V58: - | W58: FALSE | AE58: =MATCH($C58,CodeANA!$A$4:$A$45,0) ->  | AH58: 1226 | AJ58: 0
A59: FALSE | N59: FALSE | O59: TRUE | P59: FALSE | Q59: FALSE | R59: FALSE | S59: TRUE | T59: FALSE | U59: FALSE | V59: - | W59: FALSE | AE59: =MATCH($C59,CodeANA!$A$4:$A$45,0) ->  | AH59: 1227 | AJ59: 0
A60: FALSE | N60: FALSE | O60: TRUE | P60: FALSE | Q60: FALSE | R60: FALSE | S60: TRUE | T60: FALSE | U60: FALSE | V60: - | W60: FALSE | AE60: =MATCH($C60,CodeANA!$A$4:$A$45,0) ->  | AH60: 1228 | AJ60: 0
A61: FALSE | N61: FALSE | O61: TRUE | P61: FALSE | Q61: FALSE | R61: FALSE | S61: TRUE | T61: FALSE | U61: FALSE | V61: - | W61: FALSE | AE61: =MATCH($C61,CodeANA!$A$4:$A$45,0) ->  | AH61: 1229 | AJ61: 0
A62: FALSE | N62: FALSE | O62: TRUE | P62: FALSE | Q62: FALSE | R62: FALSE | S62: TRUE | T62: FALSE | U62: FALSE | V62: - | W62: FALSE | AE62: =MATCH($C62,CodeANA!$A$4:$A$45,0) ->  | AH62: 1230 | AJ62: 0
A63: FALSE | N63: FALSE | O63: TRUE | P63: FALSE | Q63: FALSE | R63: FALSE | S63: TRUE | T63: FALSE | U63: FALSE | V63: - | W63: FALSE | AE63: =MATCH($C63,CodeANA!$A$4:$A$45,0) ->  | AH63: 1231 | AJ63: 0
A64: FALSE | N64: FALSE | O64: TRUE | P64: FALSE | Q64: FALSE | R64: FALSE | S64: TRUE | T64: FALSE | U64: FALSE | V64: - | W64: FALSE | AE64: =MATCH($C64,CodeANA!$A$4:$A$45,0) ->  | AH64: 1232 | AJ64: 0
A65: FALSE | N65: FALSE | O65: TRUE | P65: FALSE | Q65: FALSE | R65: FALSE | S65: TRUE | T65: FALSE | U65: FALSE | V65: - | W65: FALSE | AE65: =MATCH($C65,CodeANA!$A$4:$A$45,0) ->  | AH65: 1233 | AJ65: 0
A66: FALSE | N66: FALSE | O66: TRUE | P66: FALSE | Q66: FALSE | R66: FALSE | S66: TRUE | T66: FALSE | U66: FALSE | V66: - | W66: FALSE | AE66: =MATCH($C66,CodeANA!$A$4:$A$45,0) ->  | AH66: 1234 | AJ66: 0
A67: FALSE | N67: FALSE | O67: TRUE | P67: FALSE | Q67: FALSE | R67: FALSE | S67: TRUE | T67: FALSE | U67: FALSE | V67: - | W67: FALSE | AE67: =MATCH($C67,CodeANA!$A$4:$A$45,0) ->  | AH67: 1235 | AJ67: 0
A68: FALSE | N68: FALSE | O68: TRUE | P68: FALSE | Q68: FALSE | R68: FALSE | S68: TRUE | T68: FALSE | U68: FALSE | V68: - | W68: FALSE | AE68: =MATCH($C68,CodeANA!$A$4:$A$45,0) ->  | AH68: 1236 | AJ68: 0
A69: FALSE | N69: FALSE | O69: TRUE | P69: FALSE | Q69: FALSE | R69: FALSE | S69: TRUE | T69: FALSE | U69: FALSE | V69: - | W69: FALSE | AE69: =MATCH($C69,CodeANA!$A$4:$A$45,0) ->  | AH69: 1237 | AJ69: 0
A70: FALSE | N70: FALSE | O70: TRUE | P70: FALSE | Q70: FALSE | R70: FALSE | S70: TRUE | T70: FALSE | U70: FALSE | V70: - | W70: FALSE | AE70: =MATCH($C70,CodeANA!$A$4:$A$45,0) ->  | AH70: 1238 | AJ70: 0
A71: FALSE | N71: FALSE | O71: TRUE | P71: FALSE | Q71: FALSE | R71: FALSE | S71: TRUE | T71: FALSE | U71: FALSE | V71: - | W71: FALSE | AE71: =MATCH($C71,CodeANA!$A$4:$A$45,0) ->  | AH71: 1239 | AJ71: 0
A72: FALSE | N72: FALSE | O72: TRUE | P72: FALSE | Q72: FALSE | R72: FALSE | S72: TRUE | T72: FALSE | U72: FALSE | V72: - | W72: FALSE | AE72: =MATCH($C72,CodeANA!$A$4:$A$45,0) ->  | AH72: 1240 | AJ72: 0
A73: FALSE | N73: FALSE | O73: TRUE | P73: FALSE | Q73: FALSE | R73: FALSE | S73: TRUE | T73: FALSE | U73: FALSE | V73: - | W73: FALSE | AE73: =MATCH($C73,CodeANA!$A$4:$A$45,0) ->  | AH73: 1241 | AJ73: 0
A74: FALSE | N74: FALSE | O74: TRUE | P74: FALSE | Q74: FALSE | R74: FALSE | S74: TRUE | T74: FALSE | U74: FALSE | V74: - | W74: FALSE | AE74: =MATCH($C74,CodeANA!$A$4:$A$45,0) ->  | AH74: 1242 | AJ74: 0
A75: FALSE | M75: =+IF(U75,"! Pb !","") ->  | N75: FALSE | O75: TRUE | P75: FALSE | Q75: =AND(O75,P75) -> FALSE | R75: FALSE | S75: =OR(F75>Fin_Exercice,F75<Debut_Exercice) -> TRUE | T75: FALSE | U75: FALSE | V75: =IF($G75<>0,IFERROR(INDEX(PLAN,MATCH($G75,NIVEAU6,0),3),FALSE),"-") -> - | W75: FALSE | AE75: =MATCH($C75,CodeANA!$A$4:$A$45,0) ->  | AH75: 1243 | AJ75: 0
A76: =B76<>"" -> FALSE | B76: =+IF(SUM($J76:$K76)<>0,ROW(),"") ->  | N76: =(V76)=FALSE -> FALSE | O76: TRUE | P76: =NOT(COUNTA($E76,$F76,$G76,$J76,$K76)=0) -> FALSE | Q76: FALSE | R76: =NOT(F76=0) -> FALSE | S76: TRUE | T76: =AND(R76:S76) -> FALSE | U76: =OR(T76,Q76) -> FALSE | V76: - | W76: =AND(G76=512100,L76<>"") -> FALSE | AE76: =MATCH($C76,CodeANA!$A$4:$A$45,0) ->  | AH76: 1244 | AJ76: =--(AND(LEFT(G76,2)="51",K76<>0,COUNTA(I76)=0)) -> 0
A77: FALSE | N77: FALSE | O77: TRUE | P77: FALSE | Q77: FALSE | R77: FALSE | S77: TRUE | T77: FALSE | U77: FALSE | V77: - | W77: FALSE | AE77: =MATCH($C77,CodeANA!$A$4:$A$45,0) ->  | AH77: 1245 | AJ77: 0
A78: FALSE | N78: FALSE | O78: TRUE | P78: FALSE | Q78: FALSE | R78: FALSE | S78: TRUE | T78: FALSE | U78: FALSE | V78: - | W78: FALSE | AE78: =MATCH($C78,CodeANA!$A$4:$A$45,0) ->  | AH78: 1246 | AJ78: 0
A79: FALSE | N79: FALSE | O79: =NOT(AND((COUNTA($E79,$F79,$G79)=3),COUNTBLANK(J79:K79)=1)) -> TRUE | P79: FALSE | Q79: FALSE | R79: FALSE | S79: TRUE | T79: FALSE | U79: FALSE | V79: - | W79: FALSE | AE79: =MATCH($C79,CodeANA!$A$4:$A$45,0) ->  | AH79: 1247 | AJ79: 0
A80: FALSE | N80: FALSE | O80: TRUE | P80: FALSE | Q80: FALSE | R80: FALSE | S80: TRUE | T80: FALSE | U80: FALSE | V80: - | W80: FALSE | AE80: =MATCH($C80,CodeANA!$A$4:$A$45,0) ->  | AH80: 1248 | AJ80: 0
A81: FALSE | N81: FALSE | O81: TRUE | P81: FALSE | Q81: FALSE | R81: FALSE | S81: TRUE | T81: FALSE | U81: FALSE | V81: - | W81: FALSE | AE81: =MATCH($C81,CodeANA!$A$4:$A$45,0) ->  | AH81: 1249 | AJ81: 0
A82: FALSE | N82: FALSE | O82: TRUE | P82: FALSE | Q82: FALSE | R82: FALSE | S82: TRUE | T82: FALSE | U82: FALSE | V82: - | W82: FALSE | AE82: =MATCH($C82,CodeANA!$A$4:$A$45,0) ->  | AH82: 1250 | AJ82: 0
A83: FALSE | N83: FALSE | O83: TRUE | P83: FALSE | Q83: FALSE | R83: FALSE | S83: TRUE | T83: FALSE | U83: FALSE | V83: - | W83: FALSE | AE83: =MATCH($C83,CodeANA!$A$4:$A$45,0) ->  | AH83: 1251 | AJ83: 0
A84: FALSE | N84: FALSE | O84: TRUE | P84: FALSE | Q84: FALSE | R84: FALSE | S84: TRUE | T84: FALSE | U84: FALSE | V84: - | W84: FALSE | AE84: =MATCH($C84,CodeANA!$A$4:$A$45,0) ->  | AH84: 1252 | AJ84: 0
A85: FALSE | N85: FALSE | O85: TRUE | P85: FALSE | Q85: FALSE | R85: FALSE | S85: TRUE | T85: FALSE | U85: FALSE | V85: - | W85: FALSE | AE85: =MATCH($C85,CodeANA!$A$4:$A$45,0) ->  | AH85: 1253 | AJ85: 0
A86: FALSE | N86: FALSE | O86: TRUE | P86: FALSE | Q86: FALSE | R86: FALSE | S86: TRUE | T86: FALSE | U86: FALSE | V86: - | W86: FALSE | AE86: =MATCH($C86,CodeANA!$A$4:$A$45,0) ->  | AH86: 1254 | AJ86: 0
A87: FALSE | N87: FALSE | O87: TRUE | P87: FALSE | Q87: FALSE | R87: FALSE | S87: TRUE | T87: FALSE | U87: FALSE | V87: - | W87: FALSE | AE87: =MATCH($C87,CodeANA!$A$4:$A$45,0) ->  | AH87: 1255 | AJ87: 0
A88: FALSE | N88: FALSE | O88: TRUE | P88: FALSE | Q88: FALSE | R88: FALSE | S88: TRUE | T88: FALSE | U88: FALSE | V88: - | W88: FALSE | AE88: =MATCH($C88,CodeANA!$A$4:$A$45,0) ->  | AH88: 1256 | AJ88: 0
A89: FALSE | N89: FALSE | O89: TRUE | P89: FALSE | Q89: FALSE | R89: FALSE | S89: TRUE | T89: FALSE | U89: FALSE | V89: - | W89: FALSE | AE89: =MATCH($C89,CodeANA!$A$4:$A$45,0) ->  | AH89: 1257 | AJ89: 0
A90: FALSE | N90: FALSE | O90: TRUE | P90: FALSE | Q90: FALSE | R90: FALSE | S90: TRUE | T90: FALSE | U90: FALSE | V90: - | W90: FALSE | AE90: =MATCH($C90,CodeANA!$A$4:$A$45,0) ->  | AH90: 1258 | AJ90: 0
A91: FALSE | N91: FALSE | O91: TRUE | P91: FALSE | Q91: FALSE | R91: FALSE | S91: TRUE | T91: FALSE | U91: FALSE | V91: - | W91: FALSE | AE91: =MATCH($C91,CodeANA!$A$4:$A$45,0) ->  | AH91: 1259 | AJ91: 0
A92: FALSE | N92: FALSE | O92: TRUE | P92: FALSE | Q92: FALSE | R92: FALSE | S92: TRUE | T92: FALSE | U92: FALSE | V92: - | W92: FALSE | AE92: =MATCH($C92,CodeANA!$A$4:$A$45,0) ->  | AH92: 1260 | AJ92: 0
A93: FALSE | N93: FALSE | O93: TRUE | P93: FALSE | Q93: FALSE | R93: FALSE | S93: TRUE | T93: FALSE | U93: FALSE | V93: - | W93: FALSE | AE93: =MATCH($C93,CodeANA!$A$4:$A$45,0) ->  | AH93: 1261 | AJ93: 0
A94: FALSE | N94: FALSE | O94: TRUE | P94: FALSE | Q94: FALSE | R94: FALSE | S94: TRUE | T94: FALSE | U94: FALSE | V94: - | W94: FALSE | AE94: =MATCH($C94,CodeANA!$A$4:$A$45,0) ->  | AH94: 1262 | AJ94: 0
A95: FALSE | N95: FALSE | O95: TRUE | P95: FALSE | Q95: FALSE | R95: FALSE | S95: TRUE | T95: FALSE | U95: FALSE | V95: - | W95: FALSE | AE95: =MATCH($C95,CodeANA!$A$4:$A$45,0) ->  | AH95: 1263 | AJ95: 0
A96: FALSE | N96: FALSE | O96: TRUE | P96: FALSE | Q96: FALSE | R96: FALSE | S96: TRUE | T96: FALSE | U96: FALSE | V96: - | W96: FALSE | AE96: =MATCH($C96,CodeANA!$A$4:$A$45,0) ->  | AH96: 1264 | AJ96: 0
A97: FALSE | N97: FALSE | O97: TRUE | P97: FALSE | Q97: FALSE | R97: FALSE | S97: TRUE | T97: FALSE | U97: FALSE | V97: - | W97: FALSE | AE97: =MATCH($C97,CodeANA!$A$4:$A$45,0) ->  | AH97: 1265 | AJ97: 0
A98: FALSE | N98: FALSE | O98: TRUE | P98: FALSE | Q98: FALSE | R98: FALSE | S98: TRUE | T98: FALSE | U98: FALSE | V98: - | W98: FALSE | AE98: =MATCH($C98,CodeANA!$A$4:$A$45,0) ->  | AH98: 1266 | AJ98: 0
A99: FALSE | N99: FALSE | O99: TRUE | P99: FALSE | Q99: FALSE | R99: FALSE | S99: TRUE | T99: FALSE | U99: FALSE | V99: - | W99: FALSE | AE99: =MATCH($C99,CodeANA!$A$4:$A$45,0) ->  | AH99: 1267 | AJ99: 0
A100: FALSE | N100: FALSE | O100: TRUE | P100: FALSE | Q100: FALSE | R100: FALSE | S100: TRUE | T100: FALSE | U100: FALSE | V100: - | W100: FALSE | AE100: =MATCH($C100,CodeANA!$A$4:$A$45,0) ->  | AH100: 1268 | AJ100: 0
A101: FALSE | N101: FALSE | O101: TRUE | P101: FALSE | Q101: FALSE | R101: FALSE | S101: TRUE | T101: FALSE | U101: FALSE | V101: - | W101: FALSE | AE101: =MATCH($C101,CodeANA!$A$4:$A$45,0) ->  | AH101: 1269 | AJ101: 0
A102: FALSE | N102: FALSE | O102: TRUE | P102: FALSE | Q102: FALSE | R102: FALSE | S102: TRUE | T102: FALSE | U102: FALSE | V102: - | W102: FALSE | AE102: =MATCH($C102,CodeANA!$A$4:$A$45,0) ->  | AH102: 1270 | AJ102: 0
A103: FALSE | N103: FALSE | O103: TRUE | P103: FALSE | Q103: FALSE | R103: FALSE | S103: TRUE | T103: FALSE | U103: FALSE | V103: - | W103: FALSE | AE103: =MATCH($C103,CodeANA!$A$4:$A$45,0) ->  | AH103: 1271 | AJ103: 0
A104: FALSE | N104: FALSE | O104: TRUE | P104: FALSE | Q104: FALSE | R104: FALSE | S104: TRUE | T104: FALSE | U104: FALSE | V104: - | W104: FALSE | AE104: =MATCH($C104,CodeANA!$A$4:$A$45,0) ->  | AH104: 1272 | AJ104: 0
A105: FALSE | N105: FALSE | O105: TRUE | P105: FALSE | Q105: FALSE | R105: FALSE | S105: TRUE | T105: FALSE | U105: FALSE | V105: - | W105: FALSE | AE105: =MATCH($C105,CodeANA!$A$4:$A$45,0) ->  | AH105: 1273 | AJ105: 0
A106: FALSE | N106: FALSE | O106: TRUE | P106: FALSE | Q106: FALSE | R106: FALSE | S106: TRUE | T106: FALSE | U106: FALSE | V106: - | W106: FALSE | AE106: =MATCH($C106,CodeANA!$A$4:$A$45,0) ->  | AH106: 1274 | AJ106: 0
A107: FALSE | N107: FALSE | O107: TRUE | P107: FALSE | Q107: FALSE | R107: FALSE | S107: TRUE | T107: FALSE | U107: FALSE | V107: - | W107: FALSE | AE107: =MATCH($C107,CodeANA!$A$4:$A$45,0) ->  | AH107: 1275 | AJ107: 0
A108: FALSE | N108: FALSE | O108: TRUE | P108: FALSE | Q108: FALSE | R108: FALSE | S108: TRUE | T108: FALSE | U108: FALSE | V108: - | W108: FALSE | AE108: =MATCH($C108,CodeANA!$A$4:$A$45,0) ->  | AH108: 1276 | AJ108: 0
A109: FALSE | N109: FALSE | O109: TRUE | P109: FALSE | Q109: FALSE | R109: FALSE | S109: TRUE | T109: FALSE | U109: FALSE | V109: - | W109: FALSE | AE109: =MATCH($C109,CodeANA!$A$4:$A$45,0) ->  | AH109: 1277 | AJ109: 0
A110: FALSE | N110: FALSE | O110: TRUE | P110: FALSE | Q110: FALSE | R110: FALSE | S110: TRUE | T110: FALSE | U110: FALSE | V110: - | W110: FALSE | AE110: =MATCH($C110,CodeANA!$A$4:$A$45,0) ->  | AH110: 1278 | AJ110: 0
A111: FALSE | N111: FALSE | O111: TRUE | P111: FALSE | Q111: FALSE | R111: FALSE | S111: TRUE | T111: FALSE | U111: FALSE | V111: - | W111: FALSE | AE111: =MATCH($C111,CodeANA!$A$4:$A$45,0) ->  | AH111: 1279 | AJ111: 0
A112: FALSE | N112: FALSE | O112: TRUE | P112: FALSE | Q112: FALSE | R112: FALSE | S112: TRUE | T112: FALSE | U112: FALSE | V112: - | W112: FALSE | AE112: =MATCH($C112,CodeANA!$A$4:$A$45,0) ->  | AH112: 1280 | AJ112: 0
A113: FALSE | N113: FALSE | O113: TRUE | P113: FALSE | Q113: FALSE | R113: FALSE | S113: TRUE | T113: FALSE | U113: FALSE | V113: - | W113: FALSE | AE113: =MATCH($C113,CodeANA!$A$4:$A$45,0) ->  | AH113: 1281 | AJ113: 0
A114: FALSE | N114: FALSE | O114: TRUE | P114: FALSE | Q114: FALSE | R114: FALSE | S114: TRUE | T114: FALSE | U114: FALSE | V114: - | W114: FALSE | AE114: =MATCH($C114,CodeANA!$A$4:$A$45,0) ->  | AH114: 1282 | AJ114: 0
A115: FALSE | N115: FALSE | O115: TRUE | P115: FALSE | Q115: FALSE | R115: FALSE | S115: TRUE | T115: FALSE | U115: FALSE | V115: - | W115: FALSE | AE115: =MATCH($C115,CodeANA!$A$4:$A$45,0) ->  | AH115: 1283 | AJ115: 0
A116: FALSE | N116: FALSE | O116: TRUE | P116: FALSE | Q116: FALSE | R116: FALSE | S116: TRUE | T116: FALSE | U116: FALSE | V116: - | W116: FALSE | AE116: =MATCH($C116,CodeANA!$A$4:$A$45,0) ->  | AH116: 1284 | AJ116: 0
A117: FALSE | N117: FALSE | O117: TRUE | P117: FALSE | Q117: FALSE | R117: FALSE | S117: TRUE | T117: FALSE | U117: FALSE | V117: - | W117: FALSE | AE117: =MATCH($C117,CodeANA!$A$4:$A$45,0) ->  | AH117: 1285 | AJ117: 0
A118: FALSE | N118: FALSE | O118: TRUE | P118: FALSE | Q118: FALSE | R118: FALSE | S118: TRUE | T118: FALSE | U118: FALSE | V118: - | W118: FALSE | AE118: =MATCH($C118,CodeANA!$A$4:$A$45,0) ->  | AH118: 1286 | AJ118: 0
A119: FALSE | N119: FALSE | O119: TRUE | P119: FALSE | Q119: FALSE | R119: FALSE | S119: TRUE | T119: FALSE | U119: FALSE | V119: - | W119: FALSE | AE119: =MATCH($C119,CodeANA!$A$4:$A$45,0) ->  | AH119: 1287 | AJ119: 0
A120: FALSE | N120: FALSE | O120: TRUE | P120: FALSE | Q120: FALSE | R120: FALSE | S120: TRUE | T120: FALSE | U120: FALSE | V120: - | W120: FALSE | AE120: =MATCH($C120,CodeANA!$A$4:$A$45,0) ->  | AH120: 1288 | AJ120: 0
A121: FALSE | N121: FALSE | O121: TRUE | P121: FALSE | Q121: FALSE | R121: FALSE | S121: TRUE | T121: FALSE | U121: FALSE | V121: - | W121: FALSE | AE121: =MATCH($C121,CodeANA!$A$4:$A$45,0) ->  | AH121: 1289 | AJ121: 0
A122: FALSE | N122: FALSE | O122: TRUE | P122: FALSE | Q122: FALSE | R122: FALSE | S122: TRUE | T122: FALSE | U122: FALSE | V122: - | W122: FALSE | AE122: =MATCH($C122,CodeANA!$A$4:$A$45,0) ->  | AH122: 1290 | AJ122: 0
A123: FALSE | N123: FALSE | O123: TRUE | P123: FALSE | Q123: FALSE | R123: FALSE | S123: TRUE | T123: FALSE | U123: FALSE | V123: - | W123: FALSE | AE123: =MATCH($C123,CodeANA!$A$4:$A$45,0) ->  | AH123: 1291 | AJ123: 0
A124: FALSE | N124: FALSE | O124: TRUE | P124: FALSE | Q124: FALSE | R124: FALSE | S124: TRUE | T124: FALSE | U124: FALSE | V124: - | W124: FALSE | AE124: =MATCH($C124,CodeANA!$A$4:$A$45,0) ->  | AH124: 1292 | AJ124: 0
A125: FALSE | N125: FALSE | O125: TRUE | P125: FALSE | Q125: FALSE | R125: FALSE | S125: TRUE | T125: FALSE | U125: FALSE | V125: - | W125: FALSE | AE125: =MATCH($C125,CodeANA!$A$4:$A$45,0) ->  | AH125: 1293 | AJ125: 0
A126: FALSE | N126: FALSE | O126: TRUE | P126: FALSE | Q126: FALSE | R126: FALSE | S126: TRUE | T126: FALSE | U126: FALSE | V126: - | W126: FALSE | AE126: =MATCH($C126,CodeANA!$A$4:$A$45,0) ->  | AH126: 1294 | AJ126: 0
A127: FALSE | N127: FALSE | O127: TRUE | P127: FALSE | Q127: FALSE | R127: FALSE | S127: TRUE | T127: FALSE | U127: FALSE | V127: - | W127: FALSE | AE127: =MATCH($C127,CodeANA!$A$4:$A$45,0) ->  | AH127: 1295 | AJ127: 0
A128: FALSE | N128: FALSE | O128: TRUE | P128: FALSE | Q128: FALSE | R128: FALSE | S128: TRUE | T128: FALSE | U128: FALSE | V128: - | W128: FALSE | AE128: =MATCH($C128,CodeANA!$A$4:$A$45,0) ->  | AH128: 1296 | AJ128: 0
A129: FALSE | N129: FALSE | O129: TRUE | P129: FALSE | Q129: FALSE | R129: FALSE | S129: TRUE | T129: FALSE | U129: FALSE | V129: - | W129: FALSE | AE129: =MATCH($C129,CodeANA!$A$4:$A$45,0) ->  | AH129: 1297 | AJ129: 0
A130: =B130<>"" -> FALSE | M130: =+IF(U130,"! Pb !","") ->  | N130: FALSE | O130: =NOT(AND((COUNTA($E130,$F130,$G130)=3),COUNTBLANK(J130:K130)=1)) -> TRUE | P130: FALSE | Q130: =AND(O130,P130) -> FALSE | R130: =NOT(F130=0) -> FALSE | S130: =OR(F130>Fin_Exercice,F130<Debut_Exercice) -> TRUE | T130: =AND(R130:S130) -> FALSE | U130: =OR(T130,Q130) -> FALSE | V130: - | W130: =AND(G130=512100,L130<>"") -> FALSE | AE130: =MATCH($C130,CodeANA!$A$4:$A$45,0) ->  | AH130: 1298 | AJ130: 0
A131: FALSE | N131: FALSE | O131: TRUE | P131: FALSE | Q131: FALSE | R131: FALSE | S131: TRUE | T131: FALSE | U131: FALSE | V131: - | W131: FALSE | AE131: =MATCH($C131,CodeANA!$A$4:$A$45,0) ->  | AH131: 1299 | AJ131: 0
A132: FALSE | N132: FALSE | O132: TRUE | P132: FALSE | Q132: FALSE | R132: FALSE | S132: TRUE | T132: FALSE | U132: FALSE | V132: - | W132: FALSE | AE132: =MATCH($C132,CodeANA!$A$4:$A$45,0) ->  | AH132: 1300 | AJ132: 0
A133: FALSE | N133: FALSE | O133: TRUE | P133: FALSE | Q133: FALSE | R133: FALSE | S133: TRUE | T133: FALSE | U133: FALSE | V133: - | W133: FALSE | AE133: =MATCH($C133,CodeANA!$A$4:$A$45,0) ->  | AH133: 1301 | AJ133: 0
A134: FALSE | N134: FALSE | O134: TRUE | P134: FALSE | Q134: FALSE | R134: FALSE | S134: TRUE | T134: FALSE | U134: FALSE | V134: - | W134: FALSE | AE134: =MATCH($C134,CodeANA!$A$4:$A$45,0) ->  | AH134: 1302 | AJ134: 0
A135: FALSE | N135: FALSE | O135: TRUE | P135: FALSE | Q135: FALSE | R135: FALSE | S135: TRUE | T135: FALSE | U135: FALSE | V135: - | W135: FALSE | AE135: =MATCH($C135,CodeANA!$A$4:$A$45,0) ->  | AH135: 1303 | AJ135: 0
A136: FALSE | N136: FALSE | O136: TRUE | P136: FALSE | Q136: FALSE | R136: FALSE | S136: TRUE | T136: FALSE | U136: FALSE | V136: - | W136: FALSE | AE136: =MATCH($C136,CodeANA!$A$4:$A$45,0) ->  | AH136: 1304 | AJ136: 0
A137: FALSE | N137: FALSE | O137: TRUE | P137: FALSE | Q137: FALSE | R137: FALSE | S137: TRUE | T137: FALSE | U137: FALSE | V137: - | W137: FALSE | AE137: =MATCH($C137,CodeANA!$A$4:$A$45,0) ->  | AH137: 1305 | AJ137: 0
A138: FALSE | N138: FALSE | O138: TRUE | P138: FALSE | Q138: FALSE | R138: FALSE | S138: TRUE | T138: FALSE | U138: FALSE | V138: - | W138: FALSE | AE138: =MATCH($C138,CodeANA!$A$4:$A$45,0) ->  | AH138: 1306 | AJ138: 0
A139: FALSE | N139: FALSE | O139: TRUE | P139: FALSE | Q139: FALSE | R139: FALSE | S139: TRUE | T139: FALSE | U139: FALSE | V139: - | W139: FALSE | AE139: =MATCH($C139,CodeANA!$A$4:$A$45,0) ->  | AH139: 1307 | AJ139: 0
A140: FALSE | N140: =(V140)=FALSE -> FALSE | O140: TRUE | P140: FALSE | Q140: FALSE | R140: FALSE | S140: TRUE | T140: FALSE | U140: FALSE | V140: - | W140: FALSE | AE140: =MATCH($C140,CodeANA!$A$4:$A$45,0) ->  | AH140: 1308 | AJ140: =--(AND(LEFT(G140,2)="51",K140<>0,COUNTA(I140)=0)) -> 0
A141: FALSE | N141: FALSE | O141: TRUE | P141: FALSE | Q141: FALSE | R141: FALSE | S141: TRUE | T141: FALSE | U141: FALSE | V141: - | W141: FALSE | AE141: =MATCH($C141,CodeANA!$A$4:$A$45,0) ->  | AH141: 1309 | AJ141: 0
A142: FALSE | N142: FALSE | O142: TRUE | P142: FALSE | Q142: FALSE | R142: FALSE | S142: TRUE | T142: FALSE | U142: FALSE | V142: - | W142: FALSE | AE142: =MATCH($C142,CodeANA!$A$4:$A$45,0) ->  | AH142: 1310 | AJ142: 0
A143: FALSE | N143: FALSE | O143: TRUE | P143: FALSE | Q143: FALSE | R143: FALSE | S143: TRUE | T143: FALSE | U143: FALSE | V143: - | W143: FALSE | AE143: =MATCH($C143,CodeANA!$A$4:$A$45,0) ->  | AH143: 1311 | AJ143: 0
A144: FALSE | N144: FALSE | O144: TRUE | P144: FALSE | Q144: FALSE | R144: FALSE | S144: TRUE | T144: FALSE | U144: FALSE | V144: - | W144: FALSE | AE144: =MATCH($C144,CodeANA!$A$4:$A$45,0) ->  | AH144: 1312 | AJ144: 0
A145: FALSE | N145: FALSE | O145: TRUE | P145: FALSE | Q145: FALSE | R145: FALSE | S145: TRUE | T145: FALSE | U145: FALSE | V145: - | W145: FALSE | AE145: =MATCH($C145,CodeANA!$A$4:$A$45,0) ->  | AH145: 1313 | AJ145: 0
A146: FALSE | N146: FALSE | O146: TRUE | P146: FALSE | Q146: FALSE | R146: FALSE | S146: TRUE | T146: FALSE | U146: FALSE | V146: - | W146: FALSE | AE146: =MATCH($C146,CodeANA!$A$4:$A$45,0) ->  | AH146: 1314 | AJ146: 0
A147: FALSE | N147: FALSE | O147: TRUE | P147: FALSE | Q147: FALSE | R147: FALSE | S147: TRUE | T147: FALSE | U147: FALSE | V147: - | W147: FALSE | AE147: =MATCH($C147,CodeANA!$A$4:$A$45,0) ->  | AH147: 1315 | AJ147: 0
A148: FALSE | N148: FALSE | O148: TRUE | P148: FALSE | Q148: FALSE | R148: FALSE | S148: TRUE | T148: FALSE | U148: FALSE | V148: - | W148: FALSE | AE148: =MATCH($C148,CodeANA!$A$4:$A$45,0) ->  | AH148: 1316 | AJ148: 0
A149: FALSE | N149: FALSE | O149: TRUE | P149: FALSE | Q149: FALSE | R149: FALSE | S149: TRUE | T149: FALSE | U149: FALSE | V149: - | W149: FALSE | AE149: =MATCH($C149,CodeANA!$A$4:$A$45,0) ->  | AH149: 1317 | AJ149: 0
A150: FALSE | N150: FALSE | O150: TRUE | P150: FALSE | Q150: FALSE | R150: FALSE | S150: TRUE | T150: FALSE | U150: FALSE | V150: - | W150: FALSE | AE150: =MATCH($C150,CodeANA!$A$4:$A$45,0) ->  | AH150: 1318 | AJ150: 0
A151: FALSE | N151: FALSE | O151: TRUE | P151: FALSE | Q151: FALSE | R151: FALSE | S151: TRUE | T151: FALSE | U151: FALSE | V151: - | W151: FALSE | AE151: =MATCH($C151,CodeANA!$A$4:$A$45,0) ->  | AH151: 1319 | AJ151: 0
A152: FALSE | N152: FALSE | O152: TRUE | P152: FALSE | Q152: FALSE | R152: FALSE | S152: TRUE | T152: FALSE | U152: FALSE | V152: - | W152: FALSE | AE152: =MATCH($C152,CodeANA!$A$4:$A$45,0) ->  | AH152: 1320 | AJ152: 0
A153: FALSE | N153: FALSE | O153: TRUE | P153: FALSE | Q153: FALSE | R153: FALSE | S153: TRUE | T153: FALSE | U153: FALSE | V153: - | W153: FALSE | AE153: =MATCH($C153,CodeANA!$A$4:$A$45,0) ->  | AH153: 1321 | AJ153: 0
A154: FALSE | N154: FALSE | O154: TRUE | P154: FALSE | Q154: FALSE | R154: FALSE | S154: TRUE | T154: FALSE | U154: FALSE | V154: - | W154: FALSE | AE154: =MATCH($C154,CodeANA!$A$4:$A$45,0) ->  | AH154: 1322 | AJ154: 0
A155: FALSE | N155: FALSE | O155: TRUE | P155: FALSE | Q155: FALSE | R155: FALSE | S155: TRUE | T155: FALSE | U155: FALSE | V155: - | W155: FALSE | AE155: =MATCH($C155,CodeANA!$A$4:$A$45,0) ->  | AH155: 1323 | AJ155: 0
A156: FALSE | N156: FALSE | O156: TRUE | P156: FALSE | Q156: FALSE | R156: FALSE | S156: TRUE | T156: FALSE | U156: FALSE | V156: - | W156: FALSE | AE156: =MATCH($C156,CodeANA!$A$4:$A$45,0) ->  | AH156: 1324 | AJ156: 0
A157: FALSE | N157: FALSE | O157: TRUE | P157: FALSE | Q157: FALSE | R157: FALSE | S157: TRUE | T157: FALSE | U157: FALSE | V157: - | W157: FALSE | AE157: =MATCH($C157,CodeANA!$A$4:$A$45,0) ->  | AH157: 1325 | AJ157: 0
A158: FALSE | N158: FALSE | O158: TRUE | P158: FALSE | Q158: FALSE | R158: FALSE | S158: TRUE | T158: FALSE | U158: FALSE | V158: - | W158: FALSE | AE158: =MATCH($C158,CodeANA!$A$4:$A$45,0) ->  | AH158: 1326 | AJ158: 0
A159: FALSE | N159: FALSE | O159: TRUE | P159: FALSE | Q159: FALSE | R159: FALSE | S159: TRUE | T159: FALSE | U159: FALSE | V159: - | W159: FALSE | AE159: =MATCH($C159,CodeANA!$A$4:$A$45,0) ->  | AH159: 1327 | AJ159: 0
A160: FALSE | N160: FALSE | O160: TRUE | P160: FALSE | Q160: FALSE | R160: FALSE | S160: TRUE | T160: FALSE | U160: FALSE | V160: - | W160: FALSE | AE160: =MATCH($C160,CodeANA!$A$4:$A$45,0) ->  | AH160: 1328 | AJ160: 0
A161: FALSE | N161: FALSE | O161: TRUE | P161: FALSE | Q161: FALSE | R161: FALSE | S161: TRUE | T161: FALSE | U161: FALSE | V161: - | W161: FALSE | AE161: =MATCH($C161,CodeANA!$A$4:$A$45,0) ->  | AH161: 1329 | AJ161: 0
A162: FALSE | N162: FALSE | O162: TRUE | P162: FALSE | Q162: FALSE | R162: FALSE | S162: TRUE | T162: FALSE | U162: FALSE | V162: - | W162: FALSE | AE162: =MATCH($C162,CodeANA!$A$4:$A$45,0) ->  | AH162: 1330 | AJ162: 0
A163: FALSE | N163: FALSE | O163: TRUE | P163: FALSE | Q163: FALSE | R163: FALSE | S163: TRUE | T163: FALSE | U163: FALSE | V163: - | W163: FALSE | AE163: =MATCH($C163,CodeANA!$A$4:$A$45,0) ->  | AH163: 1331 | AJ163: 0
A164: FALSE | N164: FALSE | O164: TRUE | P164: FALSE | Q164: FALSE | R164: FALSE | S164: TRUE | T164: FALSE | U164: FALSE | V164: - | W164: FALSE | AE164: =MATCH($C164,CodeANA!$A$4:$A$45,0) ->  | AH164: 1332 | AJ164: 0
A165: FALSE | N165: FALSE | O165: TRUE | P165: FALSE | Q165: FALSE | R165: FALSE | S165: TRUE | T165: FALSE | U165: FALSE | V165: - | W165: FALSE | AE165: =MATCH($C165,CodeANA!$A$4:$A$45,0) ->  | AH165: 1333 | AJ165: 0
A166: FALSE | N166: FALSE | O166: TRUE | P166: FALSE | Q166: FALSE | R166: FALSE | S166: TRUE | T166: FALSE | U166: FALSE | V166: - | W166: FALSE | AE166: =MATCH($C166,CodeANA!$A$4:$A$45,0) ->  | AH166: 1334 | AJ166: 0
A167: FALSE | N167: FALSE | O167: TRUE | P167: FALSE | Q167: FALSE | R167: FALSE | S167: TRUE | T167: FALSE | U167: FALSE | V167: - | W167: FALSE | AE167: =MATCH($C167,CodeANA!$A$4:$A$45,0) ->  | AH167: 1335 | AJ167: 0
A168: FALSE | N168: FALSE | O168: TRUE | P168: FALSE | Q168: FALSE | R168: FALSE | S168: TRUE | T168: FALSE | U168: FALSE | V168: - | W168: FALSE | AE168: =MATCH($C168,CodeANA!$A$4:$A$45,0) ->  | AH168: 1336 | AJ168: 0
A169: FALSE | N169: FALSE | O169: TRUE | P169: FALSE | Q169: FALSE | R169: FALSE | S169: TRUE | T169: FALSE | U169: FALSE | V169: - | W169: FALSE | AE169: =MATCH($C169,CodeANA!$A$4:$A$45,0) ->  | AH169: 1337 | AJ169: 0
A170: FALSE | N170: FALSE | O170: TRUE | P170: FALSE | Q170: FALSE | R170: FALSE | S170: TRUE | T170: FALSE | U170: FALSE | V170: - | W170: FALSE | AE170: =MATCH($C170,CodeANA!$A$4:$A$45,0) ->  | AH170: 1338 | AJ170: 0
A171: FALSE | N171: FALSE | O171: TRUE | P171: FALSE | Q171: FALSE | R171: FALSE | S171: TRUE | T171: FALSE | U171: FALSE | V171: - | W171: FALSE | AE171: =MATCH($C171,CodeANA!$A$4:$A$45,0) ->  | AH171: 1339 | AJ171: 0
A172: FALSE | N172: FALSE | O172: TRUE | P172: FALSE | Q172: FALSE | R172: FALSE | S172: TRUE | T172: FALSE | U172: FALSE | V172: - | W172: FALSE | AE172: =MATCH($C172,CodeANA!$A$4:$A$45,0) ->  | AH172: 1340 | AJ172: 0
A173: FALSE | N173: FALSE | O173: TRUE | P173: FALSE | Q173: FALSE | R173: FALSE | S173: TRUE | T173: FALSE | U173: FALSE | V173: - | W173: FALSE | AE173: =MATCH($C173,CodeANA!$A$4:$A$45,0) ->  | AH173: 1341 | AJ173: 0
A174: FALSE | N174: FALSE | O174: TRUE | P174: FALSE | Q174: FALSE | R174: FALSE | S174: TRUE | T174: FALSE | U174: FALSE | V174: - | W174: FALSE | AE174: =MATCH($C174,CodeANA!$A$4:$A$45,0) ->  | AH174: 1342 | AJ174: 0
A175: FALSE | N175: FALSE | O175: TRUE | P175: FALSE | Q175: FALSE | R175: FALSE | S175: TRUE | T175: FALSE | U175: FALSE | V175: - | W175: FALSE | AE175: =MATCH($C175,CodeANA!$A$4:$A$45,0) ->  | AH175: 1343 | AJ175: 0
A176: FALSE | N176: FALSE | O176: TRUE | P176: FALSE | Q176: FALSE | R176: FALSE | S176: TRUE | T176: FALSE | U176: FALSE | V176: - | W176: FALSE | AE176: =MATCH($C176,CodeANA!$A$4:$A$45,0) ->  | AH176: 1344 | AJ176: 0
A177: FALSE | N177: FALSE | O177: TRUE | P177: FALSE | Q177: FALSE | R177: FALSE | S177: TRUE | T177: FALSE | U177: FALSE | V177: - | W177: FALSE | AE177: =MATCH($C177,CodeANA!$A$4:$A$45,0) ->  | AH177: 1345 | AJ177: 0
A178: FALSE | N178: FALSE | O178: TRUE | P178: FALSE | Q178: FALSE | R178: FALSE | S178: TRUE | T178: FALSE | U178: FALSE | V178: - | W178: FALSE | AE178: =MATCH($C178,CodeANA!$A$4:$A$45,0) ->  | AH178: 1346 | AJ178: 0
A179: FALSE | N179: FALSE | O179: TRUE | P179: FALSE | Q179: FALSE | R179: FALSE | S179: TRUE | T179: FALSE | U179: FALSE | V179: - | W179: FALSE | AE179: =MATCH($C179,CodeANA!$A$4:$A$45,0) ->  | AH179: 1347 | AJ179: 0
A180: FALSE | N180: FALSE | O180: TRUE | P180: FALSE | Q180: FALSE | R180: FALSE | S180: TRUE | T180: FALSE | U180: FALSE | V180: - | W180: FALSE | AE180: =MATCH($C180,CodeANA!$A$4:$A$45,0) ->  | AH180: 1348 | AJ180: 0
A181: FALSE | N181: FALSE | O181: TRUE | P181: FALSE | Q181: FALSE | R181: FALSE | S181: TRUE | T181: FALSE | U181: FALSE | V181: - | W181: FALSE | AE181: =MATCH($C181,CodeANA!$A$4:$A$45,0) ->  | AH181: 1349 | AJ181: 0
A182: FALSE | N182: FALSE | O182: TRUE | P182: FALSE | Q182: FALSE | R182: FALSE | S182: TRUE | T182: FALSE | U182: FALSE | V182: - | W182: FALSE | AE182: =MATCH($C182,CodeANA!$A$4:$A$45,0) ->  | AH182: 1350 | AJ182: 0
A183: FALSE | N183: FALSE | O183: TRUE | P183: FALSE | Q183: FALSE | R183: FALSE | S183: TRUE | T183: FALSE | U183: FALSE | V183: - | W183: FALSE | AE183: =MATCH($C183,CodeANA!$A$4:$A$45,0) ->  | AH183: 1351 | AJ183: 0
A184: FALSE | N184: FALSE | O184: TRUE | P184: FALSE | Q184: FALSE | R184: FALSE | S184: TRUE | T184: FALSE | U184: FALSE | V184: - | W184: FALSE | AE184: =MATCH($C184,CodeANA!$A$4:$A$45,0) ->  | AH184: 1352 | AJ184: 0
A185: FALSE | N185: FALSE | O185: TRUE | P185: FALSE | Q185: FALSE | R185: FALSE | S185: TRUE | T185: FALSE | U185: FALSE | V185: - | W185: FALSE | AE185: =MATCH($C185,CodeANA!$A$4:$A$45,0) ->  | AH185: 1353 | AJ185: 0
A186: FALSE | N186: FALSE | O186: TRUE | P186: FALSE | Q186: FALSE | R186: FALSE | S186: TRUE | T186: FALSE | U186: FALSE | V186: - | W186: FALSE | AE186: =MATCH($C186,CodeANA!$A$4:$A$45,0) ->  | AH186: 1354 | AJ186: 0
A187: FALSE | M187: =+IF(U187,"! Pb !","") ->  | N187: FALSE | O187: TRUE | P187: FALSE | Q187: =AND(O187,P187) -> FALSE | R187: FALSE | S187: =OR(F187>Fin_Exercice,F187<Debut_Exercice) -> TRUE | T187: FALSE | U187: FALSE | V187: =IF($G187<>0,IFERROR(INDEX(PLAN,MATCH($G187,NIVEAU6,0),3),FALSE),"-") -> - | W187: FALSE | AE187: =MATCH($C187,CodeANA!$A$4:$A$45,0) ->  | AH187: 1355 | AJ187: 0
A188: =B188<>"" -> FALSE | B188: =+IF(SUM($J188:$K188)<>0,ROW(),"") ->  | N188: FALSE | O188: TRUE | P188: =NOT(COUNTA($E188,$F188,$G188,$J188,$K188)=0) -> FALSE | Q188: FALSE | R188: =NOT(F188=0) -> FALSE | S188: TRUE | T188: =AND(R188:S188) -> FALSE | U188: =OR(T188,Q188) -> FALSE | V188: - | W188: =AND(G188=512100,L188<>"") -> FALSE | AE188: =MATCH($C188,CodeANA!$A$4:$A$45,0) ->  | AH188: 1356 | AJ188: 0
A189: FALSE | N189: FALSE | O189: TRUE | P189: FALSE | Q189: FALSE | R189: FALSE | S189: TRUE | T189: FALSE | U189: FALSE | V189: - | W189: FALSE | AE189: =MATCH($C189,CodeANA!$A$4:$A$45,0) ->  | AH189: 1357 | AJ189: 0
A190: FALSE | N190: FALSE | O190: TRUE | P190: FALSE | Q190: FALSE | R190: FALSE | S190: TRUE | T190: FALSE | U190: FALSE | V190: - | W190: FALSE | AE190: =MATCH($C190,CodeANA!$A$4:$A$45,0) ->  | AH190: 1358 | AJ190: 0
A191: FALSE | N191: FALSE | O191: =NOT(AND((COUNTA($E191,$F191,$G191)=3),COUNTBLANK(J191:K191)=1)) -> TRUE | P191: FALSE | Q191: FALSE | R191: FALSE | S191: TRUE | T191: FALSE | U191: FALSE | V191: - | W191: FALSE | AE191: =MATCH($C191,CodeANA!$A$4:$A$45,0) ->  | AH191: 1359 | AJ191: 0
A192: FALSE | N192: FALSE | O192: TRUE | P192: FALSE | Q192: FALSE | R192: FALSE | S192: TRUE | T192: FALSE | U192: FALSE | V192: - | W192: FALSE | AE192: =MATCH($C192,CodeANA!$A$4:$A$45,0) ->  | AH192: 1360 | AJ192: 0
A193: FALSE | N193: FALSE | O193: TRUE | P193: FALSE | Q193: FALSE | R193: FALSE | S193: TRUE | T193: FALSE | U193: FALSE | V193: - | W193: FALSE | AE193: =MATCH($C193,CodeANA!$A$4:$A$45,0) ->  | AH193: 1361 | AJ193: 0
A194: FALSE | N194: FALSE | O194: TRUE | P194: FALSE | Q194: FALSE | R194: FALSE | S194: TRUE | T194: FALSE | U194: FALSE | V194: - | W194: FALSE | AE194: =MATCH($C194,CodeANA!$A$4:$A$45,0) ->  | AH194: 1362 | AJ194: 0
A195: FALSE | N195: FALSE | O195: TRUE | P195: FALSE | Q195: FALSE | R195: FALSE | S195: TRUE | T195: FALSE | U195: FALSE | V195: - | W195: FALSE | AE195: =MATCH($C195,CodeANA!$A$4:$A$45,0) ->  | AH195: 1363 | AJ195: 0
A196: FALSE | N196: FALSE | O196: TRUE | P196: FALSE | Q196: FALSE | R196: FALSE | S196: TRUE | T196: FALSE | U196: FALSE | V196: - | W196: FALSE | AE196: =MATCH($C196,CodeANA!$A$4:$A$45,0) ->  | AH196: 1364 | AJ196: 0
A197: FALSE | N197: FALSE | O197: TRUE | P197: FALSE | Q197: FALSE | R197: FALSE | S197: TRUE | T197: FALSE | U197: FALSE | V197: - | W197: FALSE | AE197: =MATCH($C197,CodeANA!$A$4:$A$45,0) ->  | AH197: 1365 | AJ197: 0
A198: FALSE | N198: FALSE | O198: TRUE | P198: FALSE | Q198: FALSE | R198: FALSE | S198: TRUE | T198: FALSE | U198: FALSE | V198: - | W198: FALSE | AE198: =MATCH($C198,CodeANA!$A$4:$A$45,0) ->  | AH198: 1366 | AJ198: 0
A199: FALSE | N199: FALSE | O199: TRUE | P199: FALSE | Q199: FALSE | R199: FALSE | S199: TRUE | T199: FALSE | U199: FALSE | V199: - | W199: FALSE | AE199: =MATCH($C199,CodeANA!$A$4:$A$45,0) ->  | AH199: 1367 | AJ199: 0
A200: FALSE | N200: FALSE | O200: TRUE | P200: FALSE | Q200: FALSE | R200: FALSE | S200: TRUE | T200: FALSE | U200: FALSE | V200: - | W200: FALSE | AE200: =MATCH($C200,CodeANA!$A$4:$A$45,0) ->  | AH200: 1368 | AJ200: 0
... 1842 more rows

Sheet Index
A1: Symboles utilisés | D1: Les mots index en bleu renvoient vers un ou plusieurs CPC
A2: $ | B2: Renvoi vers document Lexique
A3: î | B3: Renvoi vers un autre mot
A4: & | B4: Renvoi vers document Annexes
A5: E | B5: Explications commentaires
A6: 4 | B6: Concerne le Plan comptable
C8: Mots index | D8: Commentaires | E8: CPC
B9: A | C9: Abonnement | D9: Abonnement à une revue technique / fédérale (Documentation) | E9: 618
C10: Achats pour reventes | D10: Achats de boissons pour Buvette, Articles divers... | E10: 607.
D11: Ce CPC 607 pourra être subdivisé par exemple pour différencier un achat avec projet de revente pour en tirer bénéfices (6071) et un achat pour revendre sans marge 6072 (achat de survêtements pour revente aux adhérents)
C12: Achat d’équipements pour le Club | D12: Achats de matériel important (ex ORDINATEUR : Consulter l’Annexe A : IMMOBILISATIONS - AMORTISSEMENT.
D13: Achat de matériel voir dans le CPC 605 et 606
D14: Autres consulter voir 623 et sous rubriques | E14: 605 606
E15: 623.
C16: Achat de services | D16: Consulter rubriques 61 & 62 et rechercher dans les mots index. | E16: 61 62
C17: Acte | D17: Frais d’acte (huissier) | E17: 6227
C18: Actif | D18: voir le LEXIQUE | E18: $
C19: Actions | D19: Voir Titres | E19: î
C20: Adhérents | D20: Cotisations des adhérents (que vous pouvez subdiviser Eybinois Extérieurs par exemple ou part club/fédé) | E20: 756
C21: Administratif | D21: § Achat fournitures administratives. | E21: 606400
D22: § Déplacements administratifs (pour assister à une AG par exemple) hôtel, restaurant, essence | E22: 6256
C23: Affranchissement | D23: Frais postaux (timbres, recommandé) | E23: 6263
C24: Affiliation | D24: Affiliation fédérale, O.M.S., autres | E24: 6581
C25: Agios | D25: voir Intérêts (débiteurs) | E25: î
C26: Alimentaire | D26: Ÿ Achat de produits alimentaires pour revente (ne pas mettre en 6233) | E26: 607..
D27: Ÿ Ventes de produits alimentaires | E27: 707..
D28: Ÿ Achat pour usage interne à l’association (non revente) | E28: 606200
D29: Ÿ Achat ponctuel pour réception, invitation lors de l'A.G. par exemple (traiteur, boissons, etc...) | E29: 6257
D30: Ÿ Voir Repas | E30: î
C31: Aménagement- Agencement | D31: w Achat de matériel pour aménagement. | E31: 606...
D32: w Immobilisations - Installations (voir complément d’informations en Annexe A) | E32: 2181 & &
C33: Amendes | D33: L Amendes fédérales | E33: 6586
D34: L Amendes d’Etat (P.V.) | E34: 6712
C35: Amortissements | D35: Voir l’Annexe A: IMMOBILISATIONS AMORTISSEMENtS | E35: $&
D36: l’amortissement consiste à une répartition de charges sur plusieurs exercices.
C37: Annonces | D37: Annonces dans la presse, radio, TV | E37: 6231
C38: A nouveau | D38: Voir le LEXIQUE et Exemples | E38: $&
C39: Apprentissage | D39: · Taxes d’apprentissage (Personnel) - Les associations sont actuellement dispensées de cette taxe | E39: 6312
D40: Voir Stages | E40: î
C41: Arbitrage | D41: Règlement des arbitres officiant vos compétitions | E41: 6221
D42: Voir Stages | E42: î
C43: Assedic | D43: Cotisations aux ASSEDIC | E43: 6454
C44: Assurance | D44: Cotisations d’assurance ou Primes d’assurance | E44: 616
C45: Associatif | D45: de Fonds Associatif voir Le LEXIQUE (fonds propres) & Exemples | E45: 10.. &
C46: Autoroute | D46: Voir Transports | E46: î
C47: Avocat | D47: Honoraires | E47: 6226
B50: B | C50: Bal | D50: Voir Manifestations | E50: î
C51: Balance | D51: Voir le LEXIQUE et Exemples | E51: $&
C52: Banque (*) | D52: Ce compte enregistre TOUTES les opérations bancaires, Chèques, Prélèvements, Virements Versements et Retraits d’espèces. Peut être subdivisé par banque et/ ou par compte (ex compte chèque:5121 / Epargne:5122) | E52: 512
D53: Il s’agit d’un CPC de BILAN (Actif) donc:
D54: Mouvements
D55: Toutes les opérations qui créditent votre compte en banque passent au débit de 512
D56: “ “ “ “ “ débitent “ “ “ “ “ crédit de 512 | E56: E
D57: w Pour les opérations de retrait espèces ou virements voir Virement (utilisation du compte 581)
D58: Un pointage et ajustement doit être fait à partir du relevé de compte adressé par votre banque | E58: & î
D59: (*) pour les frais de tenue de compte voir “ Tenue de compte”
C60: Bénéfices | D60: Bénéfices de l’exercice : déterminé par différence (Classe 7 - Classe 6) si positif | E60: 121
D61: Autre appellation recommandée “EXCEDENT” Voir le LEXIQUE (Résultat) & Exemples | E61: $&
C62: Bilan | D62: Représentation à une date donnée de l’état financier de l’Association Voir LEXIQUE & Exemples | E62: $&
C63: Boissons | D63: Voir Alimentaire | E63: î
C64: Bureau (matériel de) | D64: Achat de matériel de bureau (montant peu élevé) | E64: 6063
D65: Achat important (ex:ORDINATEUR) si vous souhaitez le faire apparaître en “Immobilisations” | E65: 2183
C66: Buvette | D66: Voir Alimentaire (pour achats) | E66: î
D67: Ventes des boissons avec recherche de profit. | E67: 707.
B70: C | C70: Caisse | D70: Enregistre toutes les opérations espèces, ce compte peut être subdivisé selon les besoins | E70: 53.
D71: Se référer à Banque pour les Mouvements | E71: &
D72: w Pour les opérations de retrait ou versement d’espèces utilisation du compte 581 voir Virement ....................... | E72: î
C73: Car | D73: Voir Transports | E73: î
C74: Carburant | D74: Voir Transports | E74: î
C75: Carte | D75: Carte de membre honoraire (dans collecte) | E75: 754
D76: Carte bancaire (frais d’abonnement) | E76: 627
C77: Caution | D77: si encaissée par le bénéficiaire | E77: 275
C78: Cession | D78: © Frais de vente sur cession de valeurs mobilières (titres) | E78: 667
D79: © Cession de valeur mobilières voir Annexe C | E79: &
D80: © Cession de matériel immobilisé voir Annexe A | E80: &
C81: Charges | D81: Comptes de CLASSE 6 - qui enregistrent toutes les frais et dépenses diverses et qui sont classés par familles: | E81: 4
D82: 60 Achats - 61 Services Extérieurs - 62 Autres Services Extérieurs - 63 Impôts et Taxes - 64 Charges de Personnel - 65 Autres Charges de gestion courante - 66 Charges Financières.
D83: Voir le détail sur le Plan Comptable ou rechercher un mot clef sur l’index
C84: Charges locatives et copropriété | D84: Charges de location permanente et copropriété. | E84: 614
D85: Voir Locations | E85: î
C86: Classe | D86: Niveau le plus élevé du plan comptable (UN CHIFFRE) ex: Classe 6 : Comptes de Charges | E86: 4
C87: Clients | D87: Compte de tiers à utiliser en comptabilité informatisée et à développer en fonction de vos besoins | E87: 41.
C88: Collectes | D88: Les Associations sportives n’ont pas vocation à ce type d’opération (collecte). Dans ce CPC enregistrer les cartes de membres honoraires | E88: 754
C89: Comptabilité | D89: Système d’informations financières composé de pièces comptables, de journaux d’enregistrements, de comptes et d’état récapitulatif (balance) | E89: E
C90: Comptes | D90: Classification numérique des opérations financières sous forme de PLAN COMPTABLE. Les Comptes sont regroupés par niveaux à l’intérieur de chaque classe - Classe 1 à 7 | E90: 4
D91: Comptes de régularisation 48 Ajustement fin des Dépenses et Produits qui affectent plusieurs exercices Annexe B | E91: 486/487
E92: &
D93: Compte en banque F Voir Banque | E93: î
D94: Compte de Résultat: Voir Le LEXIQUE | E94: $
C95: Compétition | D95: Les frais relatifs aux compétitions sont principalement classés en 6221, 6233,6251,658..,selon leur nature. | E95: E
C96: Contentieux | D96: Frais d’actes et de contentieux | E96: 6227
C97: Congés | D97: Congés payés (personnel) | E97: 6412
C98: Conseil Général | D98: Subventions du Conseil Général | E98: 743
C99: Coupes | D99: Trophées achetés dans la cadre d’un manifestation CPC au choix selon usage > | E99: 6068/6233
C100: Coupons | D100: Revenus de valeurs mobilières (détachement de coupons) F voir Titres si nécessaire | E100: 764 î
C101: Cotisations | D101: Cotisations versés par les Adhérents à votre Association | E101: 756
D102: Affiliation réglée à votre Fédération, à l'O.M.S. d’Eybens, CODEP | E102: 6581
D103: Voir PERSONNEL (cotisations aux différents organismes) Voir Annexe D | E103: &
C104: CPC | D104: Abréviation de Compte de Plan Comptable | E104: E
C105: Crédit | D105: Voir Emprunt. (remboursement | E105: î
D106: voir le LEXIQUE | E106: $
B110: D | C110: Débit | D110: Voir le LEXIQUE | E110: $
C111: Département | D111: Subventions - subventions du Conseil Général , METRO, ... | E111: 743
C112: Déplacements | D112: Voir Transports | E112: î
D113: Voir Repas | E113: î
C114: Dépôts | D114: Dépôts en banque | E114: 512
D115: Dépôts de cautionnement | E115: 275
C116: Dettes | D116: Selon la nature de la dette (emprunt) (fournisseur non réglé, ...) | E116: E
C117: Documentations | D117: Pour la Formation ou Information administrative et/ou sportive (livres, revues etc.) | E117: 618
B121: E | C121: Eau, Electricité, Eclairage | D121: Dépenses afférentes à … | E121: 6061
C122: Ecriture | D122: Ensemble constitué par deux ou plusieurs lignes dont le total des débits et égal au total des crédits | E122: E
C123: Emprunt | D123: Engagement financier avec organisme, ville, ... | E123: 16
C124: Engagement | D124: Frais d’engagement d’équipe | E124: 6582
D125: Affiliation du club | E125: 6581
C126: Entretien | D126: Matériel d’entretien 6063 - Travaux d’entretien 615 - Maintenance 6156 | E126: E
C127: Etudes | D127: Etudes et recherches | E127: 617
C128: Equipement | D128: w Petit équipement pour exercice de l’activité | E128: 605
D129: w Petit équipement autre | E129: 6063
D130: w Equipement important généralement > 400-500 euros | E130: 218
C131: Essence | D131: Voir Transports | E131: î
C132: Etat | D132: Voir Taxes | E132: î
D133: Pénalités - Amendes | E133: 6712
C134: Excédent | D134: Résultat positif de l’exercice ou bénéfices - Voir Le LEXIQUE (Résultat) | E134: 121 & $
C135: Exercice | D135: Voir le LEXIQUE | E135: $
B138: F | C138: Factures | D138: Voir le LEXIQUE (justificatifs) | E138: $
C139: Fédération | D139: Frais d’affiliation | E139: 6581
C140: Flocage | D140: Frais d’équipement | E140: 605
C141: Fonds | D141: Fonds Associatif voir Exemples | E141: &
C142: Fonds propres | D142: Voir le LEXIQUE | E142: $
C143: Formation | D143: Frais de stage | E143: 6222
C144: Fournisseurs | D144: Fournisseurs (compte de tiers) le compte 40 peut être développé si besoin | E144: 40..
C145: Fournitures | D145: Selon la nature rechercher dans les comptes de classe 6 ou INDEX | E145: 4
C146: Frais | D146: Selon la nature rechercher dans les comptes de classe 6 ou INDEX | E146: 4
B150: G-H-I-J | C150: Grand-livre | D150: Voir le LEXIQUE | E150: $
C151: Hôtel | D151: Voir Transports | E151: î
C152: Huissier | D152: Frais d’actes et de contentieux | E152: 622
C153: Immobilisations | D153: Pour des achats de valeur importante, on peut enregistrer l’écriture en 218.. , cela permet de montrer l’ existence de matériel de valeur dans l’association; et par la procédure comptable d’amortissements, d’affecter la dépense sur plusieurs exercices (4, ou 5) - Voir Annexe A | E153: &
C154: Inventaire | D154: Voir Stock | E154: î
C155: Impôts | D155: Voir Taxes | E155: î
C156: Informatique | D156: w Achat de matériel informatique ou de logiciel non immobilisé | E156: 605
D157: w Achat de logiciel immobilisé ( Voir rubrique Immobilisations Annexe A) | E157: 20 & &
D158: w Achat de matériel immobilisé ( Voir rubrique Immobilisations Annexe A) | E158: 2183 & &
C159: Insertion | D159: Annonces dans la presse | E159: 6231
C160: Inscriptions | D160: Voir Cotisations | E160: î
D161: Inscriptions de l’association pour activités, engagement d’équipe ... | E161: 6582
C162: Intérêts | D162: Débiteurs (agios) | E162: 661
D163: Créditeurs (de compte épargne) | E163: 768
C164: Internet | D164: Abonnement chez le fournisseur de service. | E164: 6261
C165: Journal (comptable) | D165: Voir le LEXIQUE | E165: $
B169: L-M | C169: Licences | D169: Reversions de licences à Fédération | E169: 6583
D170: Voir Cotisations | E170: î
C171: Locations | D171: Ÿ Salle des fêtes pour manifestations | E171: 6233
D172: Ÿ Véhicule dans le cadre de l’activité >>> Voir Transports | E172: î
D173: Ÿ Autres | E173: 613
C174: Loto | D174: Achats de lots | E174: 6068
D175: Recettes du loto | E175: 708
D176: Voir Manifestations | E176: î
C177: Maintenance | D177: par exemple : Entretien photocopieur | E177: 6156
C178: Manifestations | D178: § Dépenses afférentes à la manifestation | E178: 6233
D179: § Recettes autres que marchandises, à ventiler dans les comptes 708 selon nature | E179: 708...
D180: § Recettes de reventes de marchandises | E180: 707.
C181: Marchandises | D181: © Achat pour reventes * | E181: 607
D182: © Ventes de marchandises achetées en 607 * | E182: 707
D183: © Autres achats et Ventes à usage différent que ci-dessus (*) , à ventiler selon nature des marchandises | E183: 6.. / 7..
C184: Matériel | D184: A ventiler selon la nature du matériel et de l’opération | E184: E
C185: Membres | D185: Voir Adhérents | E185: î
C186: Mutations | D186: Frais de mutations | E186: 6584
B190: P-Q | C190: Panneaux (publicitaire) | D190: Achat, réalisation | E190: 6068
D191: Recettes (parrainage, ex-sponsor) | E191: 706
C192: Participation | D192: Participation des adhérents / membres à une activité (déplacements, repas, arrhes ) | E192: 758
C193: Passif | D193: Voir le LEXIQUE | E193: $
C194: Papeterie | D194: Achat de papier (fournitures administratives) | E194: 6064
C195: Péréquation | D195: Quote-part reversée par Fédération (à ventiler au crédit du compte charge selon nature du remboursement : Arbitrage / Transports) | E195: E
C196: Personnel | D196: Cette rubrique ne concerne que les clubs qui ont du personnel rémunéré Voir Annexe D | E196: &
D197: Personnel extérieur à l’association (621) et règlement d’honoraires (6226). | E197: 62..
C198: Pertes | D198: Pertes de l’exercice : déterminé par différence (Classe 7 - Classe 6) si négatif | E198: 129
D199: Autre appellation recommandée: “DEFICIT” - Voir le LEXIQUE (résultat) | E199: $
C200: Pharmacie | D200: Produits pharmaceutiques | E200: 6063
C201: Photos | D201: Tirages photos | E201: 6068
C202: Placement | D202: Sur un compte épargne: à classer en sous compte de 512 | E202: 512..
D203: Voir Titres | E203: î
C204: Prime | D204: Prime d’assurance | E204: 616
C205: Profession Sport38 | D205: Personnel extérieur | E205: 621.
B209: R-S | C209: Réceptions | D209: Réceptions à caractère exceptionnel (AG ... ) | E209: 6257
C210: Recherches | D210: Voir Etudes | E210: î
C211: Réclamations | D211: Frais de réclamations auprès des instances fédérales | E211: 6585
C212: Recommandé (lettre) | D212: Affranchissement | E212: 6263
C213: Récompenses | D213: Cadeaux autre possibilité selon interprétation du mot index voir Coupes | E213: 6234
C214: Redevance | D214: Redevance T.V. | E214: 6378
C215: Rémunérations | D215: Voir Personnel | E215: î
C216: Réparations | D216: Voir Entretien | E216: î
C217: Repas | D217: Ÿ Dans le cadre d’une réception exceptionnelle (AG,....) | E217: 6257
D218: Ÿ Remboursement de frais de repas dans le cadre de déplacements de compétition | E218: 6251
D219: Ÿ A usage interne au Club | E219: 6062
D220: Ÿ Remboursement de frais de repas dans le cadre d’une mission (AG ou réunion extérieure) | E220: 6256
C221: Report (à nouveau) | D221: Voir le LEXIQUE et Exemples | E221: $&
C222: Réserves | D222: Réserves statutaires et autres voir Exemples | E222: &
C223: Résultat | D223: Voir Le LEXIQUE | E223: $
C224: Retraite | D224: Voir Personnel | E224: î
C225: Remboursement (de frais) | D225: Selon nature dans le CPC 62 | E225: 62..
... 31 more rows

Sheet BALANCE
A1: =TRUE -> TRUE | B1: BALANCE Des COMPTES | D1: NE PAS TRIER CE TABLEAU | F1: <<ATTENTION
B2: =COUNTIF(B7:B255,">0") -> 11 | C2: RAZ Filtre : conserve un filtrage sur des valeurs non utilisées de la colonne Intitulés
B3: =IF($D$5<>$E$5,"ATTENTION BALANCE FAUSSE : différence : "&ABS(A4)&" Euros - situation normale si Bilan équilibré","Balance équilibrée") -> Balance équilibrée | D3: BALANCE des COMPTES
A4: =E4-D4 -> 0 | B4: =TODAY() -> 2018-12-03 | C4: Sous-Totaux filtrés | D4: =IFERROR(SUBTOTAL(9,D7:OFFSET(D7,$B$2-1,0)),0) -> 47345.36 | E4: =IFERROR(SUBTOTAL(9,E7:OFFSET(E7,$B$2-1,0)),0) -> 47345.36 | F4: =SUBTOTAL(9,F7:OFFSET(F7,$B$2-1,0)) -> 42443.44 | G4: =SUBTOTAL(9,G7:OFFSET(G7,$B$2-1,0)) -> 42443.44
C5: TOTAUX > | D5: =IFERROR(SUM(D7:OFFSET(D7,$B$2-1,0)),0) -> 47345.36 | E5: =IFERROR(SUM(E7:OFFSET(E7,$B$2-1,0)),0) -> 47345.36 | F5: =+SUM(F7:OFFSET(F7,$B$2-1,0)) -> 42443.44 | G5: =+SUM(G7:OFFSET(G7,$B$2-1,0)) -> 42443.44
B6: CPC | C6: Intitulés | D6: Débit | E6: Crédit | F6: Solde Débit | G6: Solde Crédit | H6: N°ligne
B7: =INDEX(PLAN!$A$8:$G$245,MATCH(TRUE,PLAN!$A$8:$A$245,0),2) -> 102100 | C7: =INDEX(PLAN!$A$8:$G$245,MATCH(TRUE,PLAN!$A$8:$A$245,0),4) -> 1021 Valeur du patrimoine intégré | D7: =INDEX(PLAN!$A$8:$G$2245,MATCH(TRUE,PLAN!$A$8:$A$245,0),COLUMN(Col_Plan_Dt)) -> 0 | E7: =INDEX(PLAN!$A$8:$G$245,MATCH(TRUE,PLAN!$A$8:$A$245,0),COLUMN(Col_Plan_Cr)) -> 22727.16 | F7: =IF(D7>E7,D7-E7,0) -> 0 | G7: =IF(E7>D7,E7-D7,0) -> 22727.16 | H7: =MATCH($A$1,PLAN!$A$8:$A$245,0) -> 3
B8: =INDEX(PLAN!$A$8:$G$245,$H8,2) -> 110000 | C8: =INDEX(PLAN!$A$8:$G$245,$H8,4) -> 110 Report à nouveau (solde créditeur) | D8: =INDEX(PLAN!$A$8:$G$245,$H8,COLUMN(Col_Plan_Dt)) -> 0 | E8: =INDEX(PLAN!$A$8:$G$245,$H8,COLUMN(Col_Plan_Cr)) -> 12401.33 | F8: 0 | G8: 12401.33 | H8: =+H7+MATCH($A$1,OFFSET(DEBUT,H7,0):FIN,0) -> 11
B9: =INDEX(PLAN!$A$8:$G$245,$H9,2) -> 119000 | C9: =INDEX(PLAN!$A$8:$G$245,$H9,4) -> 119 Report à nouveau (solde débiteur) | D9: =INDEX(PLAN!$A$8:$G$245,$H9,COLUMN(Col_Plan_Dt)) -> 1236.24 | E9: =INDEX(PLAN!$A$8:$G$245,$H9,COLUMN(Col_Plan_Cr)) -> 0 | F9: 1236.24 | G9: 0 | H9: =+H8+MATCH($A$1,OFFSET(DEBUT,H8,0):FIN,0) -> 12
B10: =INDEX(PLAN!$A$8:$G$245,$H10,2) -> 120000 | C10: =INDEX(PLAN!$A$8:$G$245,$H10,4) -> 120 Résultat exercice (excédent) | D10: =INDEX(PLAN!$A$8:$G$245,$H10,COLUMN(Col_Plan_Dt)) -> 3464.36 | E10: =INDEX(PLAN!$A$8:$G$245,$H10,COLUMN(Col_Plan_Cr)) -> 3464.36 | F10: 0 | G10: 0 | H10: =+H9+MATCH($A$1,OFFSET(DEBUT,H9,0):FIN,0) -> 14
B11: =INDEX(PLAN!$A$8:$G$245,$H11,2) -> 460000 | C11: =INDEX(PLAN!$A$8:$G$245,$H11,4) -> 460 Débiteurs Divers | D11: =INDEX(PLAN!$A$8:$G$245,$H11,COLUMN(Col_Plan_Dt)) -> 0 | E11: =INDEX(PLAN!$A$8:$G$245,$H11,COLUMN(Col_Plan_Cr)) -> 1021.95 | F11: 0 | G11: 1021.95 | H11: =+H10+MATCH($A$1,OFFSET(DEBUT,H10,0):FIN,0) -> 66
B12: =INDEX(PLAN!$A$8:$G$245,$H12,2) -> 487000 | C12: =INDEX(PLAN!$A$8:$G$245,$H12,4) -> 487 Produits constatés d'avance | D12: =INDEX(PLAN!$A$8:$G$245,$H12,COLUMN(Col_Plan_Dt)) -> 0 | E12: =INDEX(PLAN!$A$8:$G$245,$H12,COLUMN(Col_Plan_Cr)) -> 3793 | F12: 0 | G12: 3793 | H12: =+H11+MATCH($A$1,OFFSET(DEBUT,H11,0):FIN,0) -> 70
B13: =INDEX(PLAN!$A$8:$G$245,$H13,2) -> 512100 | C13: =INDEX(PLAN!$A$8:$G$245,$H13,4) -> 5121 Compte Courant Banque Populaire ! | D13: =INDEX(PLAN!$A$8:$G$245,$H13,COLUMN(Col_Plan_Dt)) -> 4548.86 | E13: =INDEX(PLAN!$A$8:$G$245,$H13,COLUMN(Col_Plan_Cr)) -> 1437.56 | F13: 3111.3 | G13: 0 | H13: =+H12+MATCH($A$1,OFFSET(DEBUT,H12,0):FIN,0) -> 75
B14: =INDEX(PLAN!$A$8:$G$245,$H14,2) -> 512200 | C14: =INDEX(PLAN!$A$8:$G$245,$H14,4) -> 5122Livret Association Banque Populaire ! | D14: =INDEX(PLAN!$A$8:$G$245,$H14,COLUMN(Col_Plan_Dt)) -> 36658.34 | E14: =INDEX(PLAN!$A$8:$G$245,$H14,COLUMN(Col_Plan_Cr)) -> 0 | F14: 36658.34 | G14: 0 | H14: =+H13+MATCH($A$1,OFFSET(DEBUT,H13,0):FIN,0) -> 76
B15: =INDEX(PLAN!$A$8:$G$245,$H15,2) -> 616000 | C15: =INDEX(PLAN!$A$8:$G$245,$H15,4) -> 616 Primes d'assurances | D15: =INDEX(PLAN!$A$8:$G$245,$H15,COLUMN(Col_Plan_Dt)) -> 312 | E15: =INDEX(PLAN!$A$8:$G$245,$H15,COLUMN(Col_Plan_Cr)) -> 0 | F15: 312 | G15: 0 | H15: =+H14+MATCH($A$1,OFFSET(DEBUT,H14,0):FIN,0) -> 110
B16: =INDEX(PLAN!$A$8:$G$245,$H16,2) -> 625100 | C16: =INDEX(PLAN!$A$8:$G$245,$H16,4) -> 6251 Déplacements compétitions | D16: =INDEX(PLAN!$A$8:$G$245,$H16,COLUMN(Col_Plan_Dt)) -> 1125.56 | E16: =INDEX(PLAN!$A$8:$G$245,$H16,COLUMN(Col_Plan_Cr)) -> 0 | F16: 1125.56 | G16: 0 | H16: =+H15+MATCH($A$1,OFFSET(DEBUT,H15,0):FIN,0) -> 131
B17: =INDEX(PLAN!$A$8:$G$245,$H17,2) -> 754000 | C17: =INDEX(PLAN!$A$8:$G$245,$H17,4) -> 754 Collectes | D17: =INDEX(PLAN!$A$8:$G$245,$H17,COLUMN(Col_Plan_Dt)) -> 0 | E17: =INDEX(PLAN!$A$8:$G$245,$H17,COLUMN(Col_Plan_Cr)) -> 2500 | F17: 0 | G17: 2500 | H17: =+H16+MATCH($A$1,OFFSET(DEBUT,H16,0):FIN,0) -> 226
B18: =INDEX(PLAN!$A$8:$G$245,$H18,2) ->  | C18: =INDEX(PLAN!$A$8:$G$245,$H18,4) ->  | D18: =INDEX(PLAN!$A$8:$G$245,$H18,COLUMN(Col_Plan_Dt)) ->  | E18: =INDEX(PLAN!$A$8:$G$245,$H18,COLUMN(Col_Plan_Cr)) ->  | F18: =IF(D18>E18,D18-E18,0) ->  | G18: =IF(E18>D18,E18-D18,0) ->  | H18: =+H17+MATCH($A$1,OFFSET(DEBUT,H17,0):FIN,0) -> 
B19: =INDEX(PLAN!$A$8:$G$245,$H19,2) ->  | C19: =INDEX(PLAN!$A$8:$G$245,$H19,4) ->  | D19: =INDEX(PLAN!$A$8:$G$245,$H19,COLUMN(Col_Plan_Dt)) ->  | E19: =INDEX(PLAN!$A$8:$G$245,$H19,COLUMN(Col_Plan_Cr)) ->  | H19: =+H18+MATCH(TRUE,OFFSET(DEBUT,H18,0):FIN,0) -> 
B20: =INDEX(PLAN!$A$8:$G$245,$H20,2) ->  | C20: =INDEX(PLAN!$A$8:$G$245,$H20,4) ->  | D20: =INDEX(PLAN!$A$8:$G$245,$H20,COLUMN(Col_Plan_Dt)) ->  | E20: =INDEX(PLAN!$A$8:$G$245,$H20,COLUMN(Col_Plan_Cr)) ->  | H20: =+H19+MATCH($A$1,OFFSET(DEBUT,H19,0):FIN,0) -> 
B21: =INDEX(PLAN!$A$8:$G$245,$H21,2) ->  | C21: =INDEX(PLAN!$A$8:$G$245,$H21,4) ->  | D21: =INDEX(PLAN!$A$8:$G$245,$H21,COLUMN(Col_Plan_Dt)) ->  | E21: =INDEX(PLAN!$A$8:$G$245,$H21,COLUMN(Col_Plan_Cr)) ->  | H21: =+H20+MATCH($A$1,OFFSET(DEBUT,H20,0):FIN,0) -> 
B22: =INDEX(PLAN!$A$8:$G$245,$H22,2) ->  | C22: =INDEX(PLAN!$A$8:$G$245,$H22,4) ->  | D22: =INDEX(PLAN!$A$8:$G$245,$H22,COLUMN(Col_Plan_Dt)) ->  | E22: =INDEX(PLAN!$A$8:$G$245,$H22,COLUMN(Col_Plan_Cr)) ->  | H22: =+H21+MATCH($A$1,OFFSET(DEBUT,H21,0):FIN,0) -> 
B23: =INDEX(PLAN!$A$8:$G$245,$H23,2) ->  | C23: =INDEX(PLAN!$A$8:$G$245,$H23,4) ->  | D23: =INDEX(PLAN!$A$8:$G$245,$H23,COLUMN(Col_Plan_Dt)) ->  | E23: =INDEX(PLAN!$A$8:$G$245,$H23,COLUMN(Col_Plan_Cr)) ->  | H23: =+H22+MATCH($A$1,OFFSET(DEBUT,H22,0):FIN,0) -> 
B24: =INDEX(PLAN!$A$8:$G$245,$H24,2) ->  | C24: =INDEX(PLAN!$A$8:$G$245,$H24,4) ->  | D24: =INDEX(PLAN!$A$8:$G$245,$H24,COLUMN(Col_Plan_Dt)) ->  | E24: =INDEX(PLAN!$A$8:$G$245,$H24,COLUMN(Col_Plan_Cr)) ->  | H24: =+H23+MATCH($A$1,OFFSET(DEBUT,H23,0):FIN,0) -> 
B25: =INDEX(PLAN!$A$8:$G$245,$H25,2) ->  | C25: =INDEX(PLAN!$A$8:$G$245,$H25,4) ->  | D25: =INDEX(PLAN!$A$8:$G$245,$H25,COLUMN(Col_Plan_Dt)) ->  | E25: =INDEX(PLAN!$A$8:$G$245,$H25,COLUMN(Col_Plan_Cr)) ->  | H25: =+H24+MATCH($A$1,OFFSET(DEBUT,H24,0):FIN,0) -> 
B26: =INDEX(PLAN!$A$8:$G$245,$H26,2) ->  | C26: =INDEX(PLAN!$A$8:$G$245,$H26,4) ->  | D26: =INDEX(PLAN!$A$8:$G$245,$H26,COLUMN(Col_Plan_Dt)) ->  | E26: =INDEX(PLAN!$A$8:$G$245,$H26,COLUMN(Col_Plan_Cr)) ->  | H26: =+H25+MATCH(TRUE,OFFSET(DEBUT,H25,0):FIN,0) -> 
B27: =INDEX(PLAN!$A$8:$G$245,$H27,2) ->  | C27: =INDEX(PLAN!$A$8:$G$245,$H27,4) ->  | D27: =INDEX(PLAN!$A$8:$G$245,$H27,COLUMN(Col_Plan_Dt)) ->  | E27: =INDEX(PLAN!$A$8:$G$245,$H27,COLUMN(Col_Plan_Cr)) ->  | H27: =+H26+MATCH($A$1,OFFSET(DEBUT,H26,0):FIN,0) -> 
B28: =INDEX(PLAN!$A$8:$G$245,$H28,2) ->  | C28: =INDEX(PLAN!$A$8:$G$245,$H28,4) ->  | D28: =INDEX(PLAN!$A$8:$G$245,$H28,COLUMN(Col_Plan_Dt)) ->  | E28: =INDEX(PLAN!$A$8:$G$245,$H28,COLUMN(Col_Plan_Cr)) ->  | H28: =+H27+MATCH($A$1,OFFSET(DEBUT,H27,0):FIN,0) -> 
B29: =INDEX(PLAN!$A$8:$G$245,$H29,2) ->  | C29: =INDEX(PLAN!$A$8:$G$245,$H29,4) ->  | D29: =INDEX(PLAN!$A$8:$G$245,$H29,COLUMN(Col_Plan_Dt)) ->  | E29: =INDEX(PLAN!$A$8:$G$245,$H29,COLUMN(Col_Plan_Cr)) ->  | H29: =+H28+MATCH($A$1,OFFSET(DEBUT,H28,0):FIN,0) -> 
B30: =INDEX(PLAN!$A$8:$G$245,$H30,2) ->  | C30: =INDEX(PLAN!$A$8:$G$245,$H30,4) ->  | D30: =INDEX(PLAN!$A$8:$G$245,$H30,COLUMN(Col_Plan_Dt)) ->  | E30: =INDEX(PLAN!$A$8:$G$245,$H30,COLUMN(Col_Plan_Cr)) ->  | H30: =+H29+MATCH($A$1,OFFSET(DEBUT,H29,0):FIN,0) -> 
B31: =INDEX(PLAN!$A$8:$G$245,$H31,2) ->  | C31: =INDEX(PLAN!$A$8:$G$245,$H31,4) ->  | D31: =INDEX(PLAN!$A$8:$G$245,$H31,COLUMN(Col_Plan_Dt)) ->  | E31: =INDEX(PLAN!$A$8:$G$245,$H31,COLUMN(Col_Plan_Cr)) ->  | F31: =IF(D31>E31,D31-E31,0) ->  | G31: =IF(E31>D31,E31-D31,0) ->  | H31: =+H30+MATCH($A$1,OFFSET(DEBUT,H30,0):FIN,0) -> 
B32: =INDEX(PLAN!$A$8:$G$245,$H32,2) ->  | C32: =INDEX(PLAN!$A$8:$G$245,$H32,4) ->  | D32: =INDEX(PLAN!$A$8:$G$245,$H32,COLUMN(Col_Plan_Dt)) ->  | E32: =INDEX(PLAN!$A$8:$G$245,$H32,COLUMN(Col_Plan_Cr)) ->  | H32: =+H31+MATCH($A$1,OFFSET(DEBUT,H31,0):FIN,0) -> 
B33: =INDEX(PLAN!$A$8:$G$245,$H33,2) ->  | C33: =INDEX(PLAN!$A$8:$G$245,$H33,4) ->  | D33: =INDEX(PLAN!$A$8:$G$245,$H33,COLUMN(Col_Plan_Dt)) ->  | E33: =INDEX(PLAN!$A$8:$G$245,$H33,COLUMN(Col_Plan_Cr)) ->  | H33: =+H32+MATCH($A$1,OFFSET(DEBUT,H32,0):FIN,0) -> 
B34: =INDEX(PLAN!$A$8:$G$245,$H34,2) ->  | C34: =INDEX(PLAN!$A$8:$G$245,$H34,4) ->  | D34: =INDEX(PLAN!$A$8:$G$245,$H34,COLUMN(Col_Plan_Dt)) ->  | E34: =INDEX(PLAN!$A$8:$G$245,$H34,COLUMN(Col_Plan_Cr)) ->  | H34: =+H33+MATCH($A$1,OFFSET(DEBUT,H33,0):FIN,0) -> 
B35: =INDEX(PLAN!$A$8:$G$245,$H35,2) ->  | C35: =INDEX(PLAN!$A$8:$G$245,$H35,4) ->  | D35: =INDEX(PLAN!$A$8:$G$245,$H35,COLUMN(Col_Plan_Dt)) ->  | E35: =INDEX(PLAN!$A$8:$G$245,$H35,COLUMN(Col_Plan_Cr)) ->  | H35: =+H34+MATCH($A$1,OFFSET(DEBUT,H34,0):FIN,0) -> 
B36: =INDEX(PLAN!$A$8:$G$245,$H36,2) ->  | C36: =INDEX(PLAN!$A$8:$G$245,$H36,4) ->  | D36: =INDEX(PLAN!$A$8:$G$245,$H36,COLUMN(Col_Plan_Dt)) ->  | E36: =INDEX(PLAN!$A$8:$G$245,$H36,COLUMN(Col_Plan_Cr)) ->  | H36: =+H35+MATCH($A$1,OFFSET(DEBUT,H35,0):FIN,0) -> 
B37: =INDEX(PLAN!$A$8:$G$245,$H37,2) ->  | C37: =INDEX(PLAN!$A$8:$G$245,$H37,4) ->  | D37: =INDEX(PLAN!$A$8:$G$245,$H37,COLUMN(Col_Plan_Dt)) ->  | E37: =INDEX(PLAN!$A$8:$G$245,$H37,COLUMN(Col_Plan_Cr)) ->  | H37: =+H36+MATCH($A$1,OFFSET(DEBUT,H36,0):FIN,0) -> 
B38: =INDEX(PLAN!$A$8:$G$245,$H38,2) ->  | C38: =INDEX(PLAN!$A$8:$G$245,$H38,4) ->  | D38: =INDEX(PLAN!$A$8:$G$245,$H38,COLUMN(Col_Plan_Dt)) ->  | E38: =INDEX(PLAN!$A$8:$G$245,$H38,COLUMN(Col_Plan_Cr)) ->  | H38: =+H37+MATCH($A$1,OFFSET(DEBUT,H37,0):FIN,0) -> 
B39: =INDEX(PLAN!$A$8:$G$245,$H39,2) ->  | C39: =INDEX(PLAN!$A$8:$G$245,$H39,4) ->  | D39: =INDEX(PLAN!$A$8:$G$245,$H39,COLUMN(Col_Plan_Dt)) ->  | E39: =INDEX(PLAN!$A$8:$G$245,$H39,COLUMN(Col_Plan_Cr)) ->  | H39: =+H38+MATCH($A$1,OFFSET(DEBUT,H38,0):FIN,0) -> 
B40: =INDEX(PLAN!$A$8:$G$245,$H40,2) ->  | C40: =INDEX(PLAN!$A$8:$G$245,$H40,4) ->  | D40: =INDEX(PLAN!$A$8:$G$245,$H40,COLUMN(Col_Plan_Dt)) ->  | E40: =INDEX(PLAN!$A$8:$G$245,$H40,COLUMN(Col_Plan_Cr)) ->  | H40: =+H39+MATCH($A$1,OFFSET(DEBUT,H39,0):FIN,0) -> 
B41: =INDEX(PLAN!$A$8:$G$245,$H41,2) ->  | C41: =INDEX(PLAN!$A$8:$G$245,$H41,4) ->  | D41: =INDEX(PLAN!$A$8:$G$245,$H41,COLUMN(Col_Plan_Dt)) ->  | E41: =INDEX(PLAN!$A$8:$G$245,$H41,COLUMN(Col_Plan_Cr)) ->  | H41: =+H40+MATCH($A$1,OFFSET(DEBUT,H40,0):FIN,0) -> 
B42: =INDEX(PLAN!$A$8:$G$245,$H42,2) ->  | C42: =INDEX(PLAN!$A$8:$G$245,$H42,4) ->  | D42: =INDEX(PLAN!$A$8:$G$245,$H42,COLUMN(Col_Plan_Dt)) ->  | E42: =INDEX(PLAN!$A$8:$G$245,$H42,COLUMN(Col_Plan_Cr)) ->  | H42: =+H41+MATCH($A$1,OFFSET(DEBUT,H41,0):FIN,0) -> 
B43: =INDEX(PLAN!$A$8:$G$245,$H43,2) ->  | C43: =INDEX(PLAN!$A$8:$G$245,$H43,4) ->  | D43: =INDEX(PLAN!$A$8:$G$245,$H43,COLUMN(Col_Plan_Dt)) ->  | E43: =INDEX(PLAN!$A$8:$G$245,$H43,COLUMN(Col_Plan_Cr)) ->  | H43: =+H42+MATCH($A$1,OFFSET(DEBUT,H42,0):FIN,0) -> 
B44: =INDEX(PLAN!$A$8:$G$245,$H44,2) ->  | C44: =INDEX(PLAN!$A$8:$G$245,$H44,4) ->  | D44: =INDEX(PLAN!$A$8:$G$245,$H44,COLUMN(Col_Plan_Dt)) ->  | E44: =INDEX(PLAN!$A$8:$G$245,$H44,COLUMN(Col_Plan_Cr)) ->  | H44: =+H43+MATCH($A$1,OFFSET(DEBUT,H43,0):FIN,0) -> 
B45: =INDEX(PLAN!$A$8:$G$245,$H45,2) ->  | C45: =INDEX(PLAN!$A$8:$G$245,$H45,4) ->  | D45: =INDEX(PLAN!$A$8:$G$245,$H45,COLUMN(Col_Plan_Dt)) ->  | E45: =INDEX(PLAN!$A$8:$G$245,$H45,COLUMN(Col_Plan_Cr)) ->  | H45: =+H44+MATCH($A$1,OFFSET(DEBUT,H44,0):FIN,0) -> 
B46: =INDEX(PLAN!$A$8:$G$245,$H46,2) ->  | C46: =INDEX(PLAN!$A$8:$G$245,$H46,4) ->  | D46: =INDEX(PLAN!$A$8:$G$245,$H46,COLUMN(Col_Plan_Dt)) ->  | E46: =INDEX(PLAN!$A$8:$G$245,$H46,COLUMN(Col_Plan_Cr)) ->  | H46: =+H45+MATCH($A$1,OFFSET(DEBUT,H45,0):FIN,0) -> 
B47: =INDEX(PLAN!$A$8:$G$245,$H47,2) ->  | C47: =INDEX(PLAN!$A$8:$G$245,$H47,4) ->  | D47: =INDEX(PLAN!$A$8:$G$245,$H47,COLUMN(Col_Plan_Dt)) ->  | E47: =INDEX(PLAN!$A$8:$G$245,$H47,COLUMN(Col_Plan_Cr)) ->  | H47: =+H46+MATCH($A$1,OFFSET(DEBUT,H46,0):FIN,0) -> 
B48: =INDEX(PLAN!$A$8:$G$245,$H48,2) ->  | C48: =INDEX(PLAN!$A$8:$G$245,$H48,4) ->  | D48: =INDEX(PLAN!$A$8:$G$245,$H48,COLUMN(Col_Plan_Dt)) ->  | E48: =INDEX(PLAN!$A$8:$G$245,$H48,COLUMN(Col_Plan_Cr)) ->  | H48: =+H47+MATCH($A$1,OFFSET(DEBUT,H47,0):FIN,0) -> 
B49: =INDEX(PLAN!$A$8:$G$245,$H49,2) ->  | C49: =INDEX(PLAN!$A$8:$G$245,$H49,4) ->  | D49: =INDEX(PLAN!$A$8:$G$245,$H49,COLUMN(Col_Plan_Dt)) ->  | E49: =INDEX(PLAN!$A$8:$G$245,$H49,COLUMN(Col_Plan_Cr)) ->  | H49: =+H48+MATCH($A$1,OFFSET(DEBUT,H48,0):FIN,0) -> 
B50: =INDEX(PLAN!$A$8:$G$245,$H50,2) ->  | C50: =INDEX(PLAN!$A$8:$G$245,$H50,4) ->  | D50: =INDEX(PLAN!$A$8:$G$245,$H50,COLUMN(Col_Plan_Dt)) ->  | E50: =INDEX(PLAN!$A$8:$G$245,$H50,COLUMN(Col_Plan_Cr)) ->  | H50: =+H49+MATCH($A$1,OFFSET(DEBUT,H49,0):FIN,0) -> 
B51: =INDEX(PLAN!$A$8:$G$245,$H51,2) ->  | C51: =INDEX(PLAN!$A$8:$G$245,$H51,4) ->  | D51: =INDEX(PLAN!$A$8:$G$245,$H51,COLUMN(Col_Plan_Dt)) ->  | E51: =INDEX(PLAN!$A$8:$G$245,$H51,COLUMN(Col_Plan_Cr)) ->  | H51: =+H50+MATCH($A$1,OFFSET(DEBUT,H50,0):FIN,0) -> 
B52: =INDEX(PLAN!$A$8:$G$245,$H52,2) ->  | C52: =INDEX(PLAN!$A$8:$G$245,$H52,4) ->  | D52: =INDEX(PLAN!$A$8:$G$245,$H52,COLUMN(Col_Plan_Dt)) ->  | E52: =INDEX(PLAN!$A$8:$G$245,$H52,COLUMN(Col_Plan_Cr)) ->  | H52: =+H51+MATCH($A$1,OFFSET(DEBUT,H51,0):FIN,0) -> 
B53: =INDEX(PLAN!$A$8:$G$245,$H53,2) ->  | C53: =INDEX(PLAN!$A$8:$G$245,$H53,4) ->  | D53: =INDEX(PLAN!$A$8:$G$245,$H53,COLUMN(Col_Plan_Dt)) ->  | E53: =INDEX(PLAN!$A$8:$G$245,$H53,COLUMN(Col_Plan_Cr)) ->  | H53: =+H52+MATCH($A$1,OFFSET(DEBUT,H52,0):FIN,0) -> 
B54: =INDEX(PLAN!$A$8:$G$245,$H54,2) ->  | C54: =INDEX(PLAN!$A$8:$G$245,$H54,4) ->  | D54: =INDEX(PLAN!$A$8:$G$245,$H54,COLUMN(Col_Plan_Dt)) ->  | E54: =INDEX(PLAN!$A$8:$G$245,$H54,COLUMN(Col_Plan_Cr)) ->  | H54: =+H53+MATCH($A$1,OFFSET(DEBUT,H53,0):FIN,0) -> 
B55: =INDEX(PLAN!$A$8:$G$245,$H55,2) ->  | C55: =INDEX(PLAN!$A$8:$G$245,$H55,4) ->  | D55: =INDEX(PLAN!$A$8:$G$245,$H55,COLUMN(Col_Plan_Dt)) ->  | E55: =INDEX(PLAN!$A$8:$G$245,$H55,COLUMN(Col_Plan_Cr)) ->  | H55: =+H54+MATCH($A$1,OFFSET(DEBUT,H54,0):FIN,0) -> 
B56: =INDEX(PLAN!$A$8:$G$245,$H56,2) ->  | C56: =INDEX(PLAN!$A$8:$G$245,$H56,4) ->  | D56: =INDEX(PLAN!$A$8:$G$245,$H56,COLUMN(Col_Plan_Dt)) ->  | E56: =INDEX(PLAN!$A$8:$G$245,$H56,COLUMN(Col_Plan_Cr)) ->  | H56: =+H55+MATCH($A$1,OFFSET(DEBUT,H55,0):FIN,0) -> 
B57: =INDEX(PLAN!$A$8:$G$245,$H57,2) ->  | C57: =INDEX(PLAN!$A$8:$G$245,$H57,4) ->  | D57: =INDEX(PLAN!$A$8:$G$245,$H57,COLUMN(Col_Plan_Dt)) ->  | E57: =INDEX(PLAN!$A$8:$G$245,$H57,COLUMN(Col_Plan_Cr)) ->  | H57: =+H56+MATCH($A$1,OFFSET(DEBUT,H56,0):FIN,0) -> 
B58: =INDEX(PLAN!$A$8:$G$245,$H58,2) ->  | C58: =INDEX(PLAN!$A$8:$G$245,$H58,4) ->  | D58: =INDEX(PLAN!$A$8:$G$245,$H58,COLUMN(Col_Plan_Dt)) ->  | E58: =INDEX(PLAN!$A$8:$G$245,$H58,COLUMN(Col_Plan_Cr)) ->  | H58: =+H57+MATCH($A$1,OFFSET(DEBUT,H57,0):FIN,0) -> 
B59: =INDEX(PLAN!$A$8:$G$245,$H59,2) ->  | C59: =INDEX(PLAN!$A$8:$G$245,$H59,4) ->  | D59: =INDEX(PLAN!$A$8:$G$245,$H59,COLUMN(Col_Plan_Dt)) ->  | E59: =INDEX(PLAN!$A$8:$G$245,$H59,COLUMN(Col_Plan_Cr)) ->  | H59: =+H58+MATCH($A$1,OFFSET(DEBUT,H58,0):FIN,0) -> 
B60: =INDEX(PLAN!$A$8:$G$245,$H60,2) ->  | C60: =INDEX(PLAN!$A$8:$G$245,$H60,4) ->  | D60: =INDEX(PLAN!$A$8:$G$245,$H60,COLUMN(Col_Plan_Dt)) ->  | E60: =INDEX(PLAN!$A$8:$G$245,$H60,COLUMN(Col_Plan_Cr)) ->  | H60: =+H59+MATCH($A$1,OFFSET(DEBUT,H59,0):FIN,0) -> 
B61: =INDEX(PLAN!$A$8:$G$245,$H61,2) ->  | C61: =INDEX(PLAN!$A$8:$G$245,$H61,4) ->  | D61: =INDEX(PLAN!$A$8:$G$245,$H61,COLUMN(Col_Plan_Dt)) ->  | E61: =INDEX(PLAN!$A$8:$G$245,$H61,COLUMN(Col_Plan_Cr)) ->  | H61: =+H60+MATCH($A$1,OFFSET(DEBUT,H60,0):FIN,0) -> 
B62: =INDEX(PLAN!$A$8:$G$245,$H62,2) ->  | C62: =INDEX(PLAN!$A$8:$G$245,$H62,4) ->  | D62: =INDEX(PLAN!$A$8:$G$245,$H62,COLUMN(Col_Plan_Dt)) ->  | E62: =INDEX(PLAN!$A$8:$G$245,$H62,COLUMN(Col_Plan_Cr)) ->  | H62: =+H61+MATCH($A$1,OFFSET(DEBUT,H61,0):FIN,0) -> 
B63: =INDEX(PLAN!$A$8:$G$245,$H63,2) ->  | C63: =INDEX(PLAN!$A$8:$G$245,$H63,4) ->  | D63: =INDEX(PLAN!$A$8:$G$245,$H63,COLUMN(Col_Plan_Dt)) ->  | E63: =INDEX(PLAN!$A$8:$G$245,$H63,COLUMN(Col_Plan_Cr)) ->  | H63: =+H62+MATCH($A$1,OFFSET(DEBUT,H62,0):FIN,0) -> 
B64: =INDEX(PLAN!$A$8:$G$245,$H64,2) ->  | C64: =INDEX(PLAN!$A$8:$G$245,$H64,4) ->  | D64: =INDEX(PLAN!$A$8:$G$245,$H64,COLUMN(Col_Plan_Dt)) ->  | E64: =INDEX(PLAN!$A$8:$G$245,$H64,COLUMN(Col_Plan_Cr)) ->  | H64: =+H63+MATCH($A$1,OFFSET(DEBUT,H63,0):FIN,0) -> 
B65: =INDEX(PLAN!$A$8:$G$245,$H65,2) ->  | C65: =INDEX(PLAN!$A$8:$G$245,$H65,4) ->  | D65: =INDEX(PLAN!$A$8:$G$245,$H65,COLUMN(Col_Plan_Dt)) ->  | E65: =INDEX(PLAN!$A$8:$G$245,$H65,COLUMN(Col_Plan_Cr)) ->  | H65: =+H64+MATCH($A$1,OFFSET(DEBUT,H64,0):FIN,0) -> 
B66: =INDEX(PLAN!$A$8:$G$245,$H66,2) ->  | C66: =INDEX(PLAN!$A$8:$G$245,$H66,4) ->  | D66: =INDEX(PLAN!$A$8:$G$245,$H66,COLUMN(Col_Plan_Dt)) ->  | E66: =INDEX(PLAN!$A$8:$G$245,$H66,COLUMN(Col_Plan_Cr)) ->  | H66: =+H65+MATCH($A$1,OFFSET(DEBUT,H65,0):FIN,0) -> 
B67: =INDEX(PLAN!$A$8:$G$245,$H67,2) ->  | C67: =INDEX(PLAN!$A$8:$G$245,$H67,4) ->  | D67: =INDEX(PLAN!$A$8:$G$245,$H67,COLUMN(Col_Plan_Dt)) ->  | E67: =INDEX(PLAN!$A$8:$G$245,$H67,COLUMN(Col_Plan_Cr)) ->  | H67: =+H66+MATCH($A$1,OFFSET(DEBUT,H66,0):FIN,0) -> 
B68: =INDEX(PLAN!$A$8:$G$245,$H68,2) ->  | C68: =INDEX(PLAN!$A$8:$G$245,$H68,4) ->  | D68: =INDEX(PLAN!$A$8:$G$245,$H68,COLUMN(Col_Plan_Dt)) ->  | E68: =INDEX(PLAN!$A$8:$G$245,$H68,COLUMN(Col_Plan_Cr)) ->  | H68: =+H67+MATCH($A$1,OFFSET(DEBUT,H67,0):FIN,0) -> 
B69: =INDEX(PLAN!$A$8:$G$245,$H69,2) ->  | C69: =INDEX(PLAN!$A$8:$G$245,$H69,4) ->  | D69: =INDEX(PLAN!$A$8:$G$245,$H69,COLUMN(Col_Plan_Dt)) ->  | E69: =INDEX(PLAN!$A$8:$G$245,$H69,COLUMN(Col_Plan_Cr)) ->  | H69: =+H68+MATCH($A$1,OFFSET(DEBUT,H68,0):FIN,0) -> 
B70: =INDEX(PLAN!$A$8:$G$245,$H70,2) ->  | C70: =INDEX(PLAN!$A$8:$G$245,$H70,4) ->  | D70: =INDEX(PLAN!$A$8:$G$245,$H70,COLUMN(Col_Plan_Dt)) ->  | E70: =INDEX(PLAN!$A$8:$G$245,$H70,COLUMN(Col_Plan_Cr)) ->  | H70: =+H69+MATCH($A$1,OFFSET(DEBUT,H69,0):FIN,0) -> 
B71: =INDEX(PLAN!$A$8:$G$245,$H71,2) ->  | C71: =INDEX(PLAN!$A$8:$G$245,$H71,4) ->  | D71: =INDEX(PLAN!$A$8:$G$245,$H71,COLUMN(Col_Plan_Dt)) ->  | E71: =INDEX(PLAN!$A$8:$G$245,$H71,COLUMN(Col_Plan_Cr)) ->  | H71: =+H70+MATCH($A$1,OFFSET(DEBUT,H70,0):FIN,0) -> 
B72: =INDEX(PLAN!$A$8:$G$245,$H72,2) ->  | C72: =INDEX(PLAN!$A$8:$G$245,$H72,4) ->  | D72: =INDEX(PLAN!$A$8:$G$245,$H72,COLUMN(Col_Plan_Dt)) ->  | E72: =INDEX(PLAN!$A$8:$G$245,$H72,COLUMN(Col_Plan_Cr)) ->  | H72: =+H71+MATCH($A$1,OFFSET(DEBUT,H71,0):FIN,0) -> 
B73: =INDEX(PLAN!$A$8:$G$245,$H73,2) ->  | C73: =INDEX(PLAN!$A$8:$G$245,$H73,4) ->  | D73: =INDEX(PLAN!$A$8:$G$245,$H73,COLUMN(Col_Plan_Dt)) ->  | E73: =INDEX(PLAN!$A$8:$G$245,$H73,COLUMN(Col_Plan_Cr)) ->  | H73: =+H72+MATCH($A$1,OFFSET(DEBUT,H72,0):FIN,0) -> 
B74: =INDEX(PLAN!$A$8:$G$245,$H74,2) ->  | C74: =INDEX(PLAN!$A$8:$G$245,$H74,4) ->  | D74: =INDEX(PLAN!$A$8:$G$245,$H74,COLUMN(Col_Plan_Dt)) ->  | E74: =INDEX(PLAN!$A$8:$G$245,$H74,COLUMN(Col_Plan_Cr)) ->  | H74: =+H73+MATCH($A$1,OFFSET(DEBUT,H73,0):FIN,0) -> 
B75: =INDEX(PLAN!$A$8:$G$245,$H75,2) ->  | C75: =INDEX(PLAN!$A$8:$G$245,$H75,4) ->  | D75: =INDEX(PLAN!$A$8:$G$245,$H75,COLUMN(Col_Plan_Dt)) ->  | E75: =INDEX(PLAN!$A$8:$G$245,$H75,COLUMN(Col_Plan_Cr)) ->  | H75: =+H74+MATCH($A$1,OFFSET(DEBUT,H74,0):FIN,0) -> 
B76: =INDEX(PLAN!$A$8:$G$245,$H76,2) ->  | C76: =INDEX(PLAN!$A$8:$G$245,$H76,4) ->  | D76: =INDEX(PLAN!$A$8:$G$245,$H76,COLUMN(Col_Plan_Dt)) ->  | E76: =INDEX(PLAN!$A$8:$G$245,$H76,COLUMN(Col_Plan_Cr)) ->  | H76: =+H75+MATCH($A$1,OFFSET(DEBUT,H75,0):FIN,0) -> 
B77: =INDEX(PLAN!$A$8:$G$245,$H77,2) ->  | C77: =INDEX(PLAN!$A$8:$G$245,$H77,4) ->  | D77: =INDEX(PLAN!$A$8:$G$245,$H77,COLUMN(Col_Plan_Dt)) ->  | E77: =INDEX(PLAN!$A$8:$G$245,$H77,COLUMN(Col_Plan_Cr)) ->  | H77: =+H76+MATCH($A$1,OFFSET(DEBUT,H76,0):FIN,0) -> 
B78: =INDEX(PLAN!$A$8:$G$245,$H78,2) ->  | C78: =INDEX(PLAN!$A$8:$G$245,$H78,4) ->  | D78: =INDEX(PLAN!$A$8:$G$245,$H78,COLUMN(Col_Plan_Dt)) ->  | E78: =INDEX(PLAN!$A$8:$G$245,$H78,COLUMN(Col_Plan_Cr)) ->  | H78: =+H77+MATCH($A$1,OFFSET(DEBUT,H77,0):FIN,0) -> 
B79: =INDEX(PLAN!$A$8:$G$245,$H79,2) ->  | C79: =INDEX(PLAN!$A$8:$G$245,$H79,4) ->  | D79: =INDEX(PLAN!$A$8:$G$245,$H79,COLUMN(Col_Plan_Dt)) ->  | E79: =INDEX(PLAN!$A$8:$G$245,$H79,COLUMN(Col_Plan_Cr)) ->  | H79: =+H78+MATCH($A$1,OFFSET(DEBUT,H78,0):FIN,0) -> 
B80: =INDEX(PLAN!$A$8:$G$245,$H80,2) ->  | C80: =INDEX(PLAN!$A$8:$G$245,$H80,4) ->  | D80: =INDEX(PLAN!$A$8:$G$245,$H80,COLUMN(Col_Plan_Dt)) ->  | E80: =INDEX(PLAN!$A$8:$G$245,$H80,COLUMN(Col_Plan_Cr)) ->  | H80: =+H79+MATCH($A$1,OFFSET(DEBUT,H79,0):FIN,0) -> 
B81: =INDEX(PLAN!$A$8:$G$245,$H81,2) ->  | C81: =INDEX(PLAN!$A$8:$G$245,$H81,4) ->  | D81: =INDEX(PLAN!$A$8:$G$245,$H81,COLUMN(Col_Plan_Dt)) ->  | E81: =INDEX(PLAN!$A$8:$G$245,$H81,COLUMN(Col_Plan_Cr)) ->  | H81: =+H80+MATCH($A$1,OFFSET(DEBUT,H80,0):FIN,0) -> 
B82: =INDEX(PLAN!$A$8:$G$245,$H82,2) ->  | C82: =INDEX(PLAN!$A$8:$G$245,$H82,4) ->  | D82: =INDEX(PLAN!$A$8:$G$245,$H82,COLUMN(Col_Plan_Dt)) ->  | E82: =INDEX(PLAN!$A$8:$G$245,$H82,COLUMN(Col_Plan_Cr)) ->  | H82: =+H81+MATCH($A$1,OFFSET(DEBUT,H81,0):FIN,0) -> 
B83: =INDEX(PLAN!$A$8:$G$245,$H83,2) ->  | C83: =INDEX(PLAN!$A$8:$G$245,$H83,4) ->  | D83: =INDEX(PLAN!$A$8:$G$245,$H83,COLUMN(Col_Plan_Dt)) ->  | E83: =INDEX(PLAN!$A$8:$G$245,$H83,COLUMN(Col_Plan_Cr)) ->  | H83: =+H82+MATCH($A$1,OFFSET(DEBUT,H82,0):FIN,0) -> 
B84: =INDEX(PLAN!$A$8:$G$245,$H84,2) ->  | C84: =INDEX(PLAN!$A$8:$G$245,$H84,4) ->  | D84: =INDEX(PLAN!$A$8:$G$245,$H84,COLUMN(Col_Plan_Dt)) ->  | E84: =INDEX(PLAN!$A$8:$G$245,$H84,COLUMN(Col_Plan_Cr)) ->  | H84: =+H83+MATCH($A$1,OFFSET(DEBUT,H83,0):FIN,0) -> 
B85: =INDEX(PLAN!$A$8:$G$245,$H85,2) ->  | C85: =INDEX(PLAN!$A$8:$G$245,$H85,4) ->  | D85: =INDEX(PLAN!$A$8:$G$245,$H85,COLUMN(Col_Plan_Dt)) ->  | E85: =INDEX(PLAN!$A$8:$G$245,$H85,COLUMN(Col_Plan_Cr)) ->  | H85: =+H84+MATCH($A$1,OFFSET(DEBUT,H84,0):FIN,0) -> 
B86: =INDEX(PLAN!$A$8:$G$245,$H86,2) ->  | C86: =INDEX(PLAN!$A$8:$G$245,$H86,4) ->  | D86: =INDEX(PLAN!$A$8:$G$245,$H86,COLUMN(Col_Plan_Dt)) ->  | E86: =INDEX(PLAN!$A$8:$G$245,$H86,COLUMN(Col_Plan_Cr)) ->  | H86: =+H85+MATCH($A$1,OFFSET(DEBUT,H85,0):FIN,0) -> 
B87: =INDEX(PLAN!$A$8:$G$245,$H87,2) ->  | C87: =INDEX(PLAN!$A$8:$G$245,$H87,4) ->  | D87: =INDEX(PLAN!$A$8:$G$245,$H87,COLUMN(Col_Plan_Dt)) ->  | E87: =INDEX(PLAN!$A$8:$G$245,$H87,COLUMN(Col_Plan_Cr)) ->  | H87: =+H86+MATCH($A$1,OFFSET(DEBUT,H86,0):FIN,0) -> 
B88: =INDEX(PLAN!$A$8:$G$245,$H88,2) ->  | C88: =INDEX(PLAN!$A$8:$G$245,$H88,4) ->  | D88: =INDEX(PLAN!$A$8:$G$245,$H88,COLUMN(Col_Plan_Dt)) ->  | E88: =INDEX(PLAN!$A$8:$G$245,$H88,COLUMN(Col_Plan_Cr)) ->  | H88: =+H87+MATCH($A$1,OFFSET(DEBUT,H87,0):FIN,0) -> 
B89: =INDEX(PLAN!$A$8:$G$245,$H89,2) ->  | C89: =INDEX(PLAN!$A$8:$G$245,$H89,4) ->  | D89: =INDEX(PLAN!$A$8:$G$245,$H89,COLUMN(Col_Plan_Dt)) ->  | E89: =INDEX(PLAN!$A$8:$G$245,$H89,COLUMN(Col_Plan_Cr)) ->  | H89: =+H88+MATCH($A$1,OFFSET(DEBUT,H88,0):FIN,0) -> 
B90: =INDEX(PLAN!$A$8:$G$245,$H90,2) ->  | C90: =INDEX(PLAN!$A$8:$G$245,$H90,4) ->  | D90: =INDEX(PLAN!$A$8:$G$245,$H90,COLUMN(Col_Plan_Dt)) ->  | E90: =INDEX(PLAN!$A$8:$G$245,$H90,COLUMN(Col_Plan_Cr)) ->  | H90: =+H89+MATCH($A$1,OFFSET(DEBUT,H89,0):FIN,0) -> 
B91: =INDEX(PLAN!$A$8:$G$245,$H91,2) ->  | C91: =INDEX(PLAN!$A$8:$G$245,$H91,4) ->  | D91: =INDEX(PLAN!$A$8:$G$245,$H91,COLUMN(Col_Plan_Dt)) ->  | E91: =INDEX(PLAN!$A$8:$G$245,$H91,COLUMN(Col_Plan_Cr)) ->  | H91: =+H90+MATCH($A$1,OFFSET(DEBUT,H90,0):FIN,0) -> 
B92: =INDEX(PLAN!$A$8:$G$245,$H92,2) ->  | C92: =INDEX(PLAN!$A$8:$G$245,$H92,4) ->  | D92: =INDEX(PLAN!$A$8:$G$245,$H92,COLUMN(Col_Plan_Dt)) ->  | E92: =INDEX(PLAN!$A$8:$G$245,$H92,COLUMN(Col_Plan_Cr)) ->  | H92: =+H91+MATCH($A$1,OFFSET(DEBUT,H91,0):FIN,0) -> 
B93: =INDEX(PLAN!$A$8:$G$245,$H93,2) ->  | C93: =INDEX(PLAN!$A$8:$G$245,$H93,4) ->  | D93: =INDEX(PLAN!$A$8:$G$245,$H93,COLUMN(Col_Plan_Dt)) ->  | E93: =INDEX(PLAN!$A$8:$G$245,$H93,COLUMN(Col_Plan_Cr)) ->  | H93: =+H92+MATCH($A$1,OFFSET(DEBUT,H92,0):FIN,0) -> 
B94: =INDEX(PLAN!$A$8:$G$245,$H94,2) ->  | C94: =INDEX(PLAN!$A$8:$G$245,$H94,4) ->  | D94: =INDEX(PLAN!$A$8:$G$245,$H94,COLUMN(Col_Plan_Dt)) ->  | E94: =INDEX(PLAN!$A$8:$G$245,$H94,COLUMN(Col_Plan_Cr)) ->  | H94: =+H93+MATCH($A$1,OFFSET(DEBUT,H93,0):FIN,0) -> 
B95: =INDEX(PLAN!$A$8:$G$245,$H95,2) ->  | C95: =INDEX(PLAN!$A$8:$G$245,$H95,4) ->  | D95: =INDEX(PLAN!$A$8:$G$245,$H95,COLUMN(Col_Plan_Dt)) ->  | E95: =INDEX(PLAN!$A$8:$G$245,$H95,COLUMN(Col_Plan_Cr)) ->  | F95: =IF(D95>E95,D95-E95,0) ->  | G95: =IF(E95>D95,E95-D95,0) ->  | H95: =+H94+MATCH($A$1,OFFSET(DEBUT,H94,0):FIN,0) -> 
B96: =INDEX(PLAN!$A$8:$G$245,$H96,2) ->  | C96: =INDEX(PLAN!$A$8:$G$245,$H96,4) ->  | D96: =INDEX(PLAN!$A$8:$G$245,$H96,COLUMN(Col_Plan_Dt)) ->  | E96: =INDEX(PLAN!$A$8:$G$245,$H96,COLUMN(Col_Plan_Cr)) ->  | H96: =+H95+MATCH($A$1,OFFSET(DEBUT,H95,0):FIN,0) -> 
B97: =INDEX(PLAN!$A$8:$G$245,$H97,2) ->  | C97: =INDEX(PLAN!$A$8:$G$245,$H97,4) ->  | D97: =INDEX(PLAN!$A$8:$G$245,$H97,COLUMN(Col_Plan_Dt)) ->  | E97: =INDEX(PLAN!$A$8:$G$245,$H97,COLUMN(Col_Plan_Cr)) ->  | H97: =+H96+MATCH($A$1,OFFSET(DEBUT,H96,0):FIN,0) -> 
B98: =INDEX(PLAN!$A$8:$G$245,$H98,2) ->  | C98: =INDEX(PLAN!$A$8:$G$245,$H98,4) ->  | D98: =INDEX(PLAN!$A$8:$G$245,$H98,COLUMN(Col_Plan_Dt)) ->  | E98: =INDEX(PLAN!$A$8:$G$245,$H98,COLUMN(Col_Plan_Cr)) ->  | H98: =+H97+MATCH($A$1,OFFSET(DEBUT,H97,0):FIN,0) -> 
B99: =INDEX(PLAN!$A$8:$G$245,$H99,2) ->  | C99: =INDEX(PLAN!$A$8:$G$245,$H99,4) ->  | D99: =INDEX(PLAN!$A$8:$G$245,$H99,COLUMN(Col_Plan_Dt)) ->  | E99: =INDEX(PLAN!$A$8:$G$245,$H99,COLUMN(Col_Plan_Cr)) ->  | H99: =+H98+MATCH($A$1,OFFSET(DEBUT,H98,0):FIN,0) -> 
B100: =INDEX(PLAN!$A$8:$G$245,$H100,2) ->  | C100: =INDEX(PLAN!$A$8:$G$245,$H100,4) ->  | D100: =INDEX(PLAN!$A$8:$G$245,$H100,COLUMN(Col_Plan_Dt)) ->  | E100: =INDEX(PLAN!$A$8:$G$245,$H100,COLUMN(Col_Plan_Cr)) ->  | H100: =+H99+MATCH($A$1,OFFSET(DEBUT,H99,0):FIN,0) -> 
B101: =INDEX(PLAN!$A$8:$G$245,$H101,2) ->  | C101: =INDEX(PLAN!$A$8:$G$245,$H101,4) ->  | D101: =INDEX(PLAN!$A$8:$G$245,$H101,COLUMN(Col_Plan_Dt)) ->  | E101: =INDEX(PLAN!$A$8:$G$245,$H101,COLUMN(Col_Plan_Cr)) ->  | F101: =IF(D101>E101,D101-E101,0) ->  | G101: =IF(E101>D101,E101-D101,0) ->  | H101: =+H100+MATCH($A$1,OFFSET(DEBUT,H100,0):FIN,0) -> 
B102: =INDEX(PLAN!$A$8:$G$245,$H102,2) ->  | C102: =INDEX(PLAN!$A$8:$G$245,$H102,4) ->  | D102: =INDEX(PLAN!$A$8:$G$245,$H102,COLUMN(Col_Plan_Dt)) ->  | E102: =INDEX(PLAN!$A$8:$G$245,$H102,COLUMN(Col_Plan_Cr)) ->  | H102: =+H101+MATCH($A$1,OFFSET(DEBUT,H101,0):FIN,0) -> 
B103: =INDEX(PLAN!$A$8:$G$245,$H103,2) ->  | C103: =INDEX(PLAN!$A$8:$G$245,$H103,4) ->  | D103: =INDEX(PLAN!$A$8:$G$245,$H103,COLUMN(Col_Plan_Dt)) ->  | E103: =INDEX(PLAN!$A$8:$G$245,$H103,COLUMN(Col_Plan_Cr)) ->  | H103: =+H102+MATCH($A$1,OFFSET(DEBUT,H102,0):FIN,0) -> 
B104: =INDEX(PLAN!$A$8:$G$245,$H104,2) ->  | C104: =INDEX(PLAN!$A$8:$G$245,$H104,4) ->  | D104: =INDEX(PLAN!$A$8:$G$245,$H104,COLUMN(Col_Plan_Dt)) ->  | E104: =INDEX(PLAN!$A$8:$G$245,$H104,COLUMN(Col_Plan_Cr)) ->  | H104: =+H103+MATCH($A$1,OFFSET(DEBUT,H103,0):FIN,0) -> 
B105: =INDEX(PLAN!$A$8:$G$245,$H105,2) ->  | C105: =INDEX(PLAN!$A$8:$G$245,$H105,4) ->  | D105: =INDEX(PLAN!$A$8:$G$245,$H105,COLUMN(Col_Plan_Dt)) ->  | E105: =INDEX(PLAN!$A$8:$G$245,$H105,COLUMN(Col_Plan_Cr)) ->  | H105: =+H104+MATCH($A$1,OFFSET(DEBUT,H104,0):FIN,0) -> 
B106: =INDEX(PLAN!$A$8:$G$245,$H106,2) ->  | C106: =INDEX(PLAN!$A$8:$G$245,$H106,4) ->  | D106: =INDEX(PLAN!$A$8:$G$245,$H106,COLUMN(Col_Plan_Dt)) ->  | E106: =INDEX(PLAN!$A$8:$G$245,$H106,COLUMN(Col_Plan_Cr)) ->  | H106: =+H105+MATCH($A$1,OFFSET(DEBUT,H105,0):FIN,0) -> 
B107: =INDEX(PLAN!$A$8:$G$245,$H107,2) ->  | C107: =INDEX(PLAN!$A$8:$G$245,$H107,4) ->  | D107: =INDEX(PLAN!$A$8:$G$245,$H107,COLUMN(Col_Plan_Dt)) ->  | E107: =INDEX(PLAN!$A$8:$G$245,$H107,COLUMN(Col_Plan_Cr)) ->  | H107: =+H106+MATCH($A$1,OFFSET(DEBUT,H106,0):FIN,0) -> 
B108: =INDEX(PLAN!$A$8:$G$245,$H108,2) ->  | C108: =INDEX(PLAN!$A$8:$G$245,$H108,4) ->  | D108: =INDEX(PLAN!$A$8:$G$245,$H108,COLUMN(Col_Plan_Dt)) ->  | E108: =INDEX(PLAN!$A$8:$G$245,$H108,COLUMN(Col_Plan_Cr)) ->  | H108: =+H107+MATCH($A$1,OFFSET(DEBUT,H107,0):FIN,0) -> 
B109: =INDEX(PLAN!$A$8:$G$245,$H109,2) ->  | C109: =INDEX(PLAN!$A$8:$G$245,$H109,4) ->  | D109: =INDEX(PLAN!$A$8:$G$245,$H109,COLUMN(Col_Plan_Dt)) ->  | E109: =INDEX(PLAN!$A$8:$G$245,$H109,COLUMN(Col_Plan_Cr)) ->  | H109: =+H108+MATCH($A$1,OFFSET(DEBUT,H108,0):FIN,0) -> 
B110: =INDEX(PLAN!$A$8:$G$245,$H110,2) ->  | C110: =INDEX(PLAN!$A$8:$G$245,$H110,4) ->  | D110: =INDEX(PLAN!$A$8:$G$245,$H110,COLUMN(Col_Plan_Dt)) ->  | E110: =INDEX(PLAN!$A$8:$G$245,$H110,COLUMN(Col_Plan_Cr)) ->  | H110: =+H109+MATCH($A$1,OFFSET(DEBUT,H109,0):FIN,0) -> 
B111: =INDEX(PLAN!$A$8:$G$245,$H111,2) ->  | C111: =INDEX(PLAN!$A$8:$G$245,$H111,4) ->  | D111: =INDEX(PLAN!$A$8:$G$245,$H111,COLUMN(Col_Plan_Dt)) ->  | E111: =INDEX(PLAN!$A$8:$G$245,$H111,COLUMN(Col_Plan_Cr)) ->  | H111: =+H110+MATCH($A$1,OFFSET(DEBUT,H110,0):FIN,0) -> 
B112: =INDEX(PLAN!$A$8:$G$245,$H112,2) ->  | C112: =INDEX(PLAN!$A$8:$G$245,$H112,4) ->  | D112: =INDEX(PLAN!$A$8:$G$245,$H112,COLUMN(Col_Plan_Dt)) ->  | E112: =INDEX(PLAN!$A$8:$G$245,$H112,COLUMN(Col_Plan_Cr)) ->  | H112: =+H111+MATCH($A$1,OFFSET(DEBUT,H111,0):FIN,0) -> 
B113: =INDEX(PLAN!$A$8:$G$245,$H113,2) ->  | C113: =INDEX(PLAN!$A$8:$G$245,$H113,4) ->  | D113: =INDEX(PLAN!$A$8:$G$245,$H113,COLUMN(Col_Plan_Dt)) ->  | E113: =INDEX(PLAN!$A$8:$G$245,$H113,COLUMN(Col_Plan_Cr)) ->  | H113: =+H112+MATCH($A$1,OFFSET(DEBUT,H112,0):FIN,0) -> 
B114: =INDEX(PLAN!$A$8:$G$245,$H114,2) ->  | C114: =INDEX(PLAN!$A$8:$G$245,$H114,4) ->  | D114: =INDEX(PLAN!$A$8:$G$245,$H114,COLUMN(Col_Plan_Dt)) ->  | E114: =INDEX(PLAN!$A$8:$G$245,$H114,COLUMN(Col_Plan_Cr)) ->  | H114: =+H113+MATCH($A$1,OFFSET(DEBUT,H113,0):FIN,0) -> 

Sheet JOURNAL Filtre
J1: Grand Livre à filtrer et Journal des écritures et Analytique | N1: NE PAS TRIER CE TABLEAU
D2: Dclic | L2: =SUBTOTAL(103,$L$6:$L$2005) -> 18 | N2: ATTENTION | O2: ããã
D3: =COUNTIF($J$6:$J$1657,">0") -> 18 | E3: écritures | G3: ="JOURNAL DES ÉCRITURES - Sélection ("&L2&")" -> JOURNAL DES ÉCRITURES - Sélection (18) | M3: Sous-Totaux filtrés | N3: =SUBTOTAL(109,N6:N2005) -> 47345.36 | O3: =SUBTOTAL(109,O6:O2005) -> 47345.36
A4: N°lignevrai | D4: 2 | E4: 12 | F4: 3 | G4: 4 | H4: 9 | I4: 5 | J4: 6 | K4: 7 | L4: 22 | M4: 8 | N4: 10 | O4: 11
D5: Ligne | E5: Pointé | F5: ANA | G5: Pièce | H5: Chèque | I5: CJAL | J5: Date | K5: Code CPC | L5: Intitulés | M5: Libellé écriture | N5: Débit | O5: Crédit | P5: RAZ Filtre : conserve un filtrage sur des valeurs non utilisées de la colonne Intitulés
A6: =MATCH(TRUE,MvtVRAI,0) -> 1 | D6: =IF(INDEX(JournalPlus,$A6,D$4)=0,"-",INDEX(JournalPlus,$A6,$D$4)) -> 11 | E6: =IF(INDEX(JournalPlus,$A6,E$4)=0,"-",INDEX(JournalPlus,$A6,$E$4)) -> - | F6: =IF(INDEX(JournalPlus,$A6,F$4)=0,"-",INDEX(JournalPlus,$A6,$F$4)) -> - | G6: =INDEX(JournalPlus,$A6,G$4) -> 1 | H6: 0 | I6: AN | J6: 2018-09-01 | K6: 102100 | L6: 1021 Valeur du patrimoine intégré | M6: Report à nouveau N-1 | N6: =INDEX(JournalPlus,$A6,N$4) -> 0 | O6: 22727.16
A7: =A6+MATCH(TRUE,OFFSET(JOURNAUX!$A$11,A6,0):'JOURNAUX'!$A$2010,0) -> 2 | D7: =IF(INDEX(JournalPlus,$A7,D$4)=0,"-",INDEX(JournalPlus,$A7,$D$4)) -> 12 | E7: - | F7: - | G7: 1 | H7: 0 | I7: AN | J7: 2018-09-01 | K7: 110000 | L7: 110 Report à nouveau (solde créditeur) | M7: Report à nouveau N-1 | N7: 0 | O7: 8936.97
A8: =A7+MATCH(TRUE,OFFSET(JOURNAUX!$A$11,A7,0):'JOURNAUX'!$A$2010,0) -> 3 | D8: 13 | E8: - | F8: - | G8: 1 | H8: 0 | I8: AN | J8: 2018-09-01 | K8: 119000 | L8: 119 Report à nouveau (solde débiteur) | M8: Report à nouveau N-1 | N8: 1236.24 | O8: 0
A9: =A8+MATCH(TRUE,OFFSET(JOURNAUX!$A$11,A8,0):'JOURNAUX'!$A$2010,0) -> 4 | D9: 14 | E9: - | F9: - | G9: 1 | H9: 0 | I9: AN | J9: 2018-09-01 | K9: 120000 | L9: 120 Résultat exercice (excédent) | M9: Report à nouveau N-1 | N9: 0 | O9: 3464.36
A10: =A9+MATCH(TRUE,OFFSET(JOURNAUX!$A$11,A9,0):'JOURNAUX'!$A$2010,0) -> 5 | D10: 15 | E10: - | F10: - | G10: 1 | H10: 0 | I10: AN | J10: 2018-09-01 | K10: 460000 | L10: 460 Débiteurs Divers | M10: Report à nouveau N-1 | N10: 0 | O10: 1021.95
A11: =A10+MATCH(TRUE,OFFSET(JOURNAUX!$A$11,A10,0):'JOURNAUX'!$A$2010,0) -> 6 | D11: 16 | E11: - | F11: - | G11: 1 | H11: 0 | I11: AN | J11: 2018-09-01 | K11: 487000 | L11: 487 Produits constatés d'avance | M11: Report à nouveau N-1 | N11: 0 | O11: 3793
A12: =A11+MATCH(TRUE,OFFSET(JOURNAUX!$A$11,A11,0):'JOURNAUX'!$A$2010,0) -> 7 | D12: 17 | E12: x | F12: - | G12: 1 | H12: 0 | I12: AN | J12: 2018-09-01 | K12: 512100 | L12: 5121 Compte Courant Banque Populaire ! | M12: Report à nouveau N-1 | N12: 2048.86 | O12: 0
A13: =A12+MATCH(TRUE,OFFSET(JOURNAUX!$A$11,A12,0):'JOURNAUX'!$A$2010,0) -> 8 | D13: 18 | E13: x | F13: - | G13: 1 | H13: 0 | I13: AN | J13: 2018-09-01 | K13: 512200 | L13: 5122Livret Association Banque Populaire ! | M13: Report à nouveau N-1 | N13: 36658.34 | O13: 0
A14: =A13+MATCH(TRUE,OFFSET(JOURNAUX!$A$11,A13,0):'JOURNAUX'!$A$2010,0) -> 9 | D14: 19 | E14: - | F14: - | G14: 3 | H14: 0 | I14: =INDEX(JournalPlus,$A14,I$4) -> OD | J14: 2018-09-01 | K14: 120000 | L14: 120 Résultat exercice (excédent) | M14: Affectation du résultat N-1 | N14: 3464.36 | O14: 0
A15: =A14+MATCH(TRUE,OFFSET(JOURNAUX!$A$11,A14,0):'JOURNAUX'!$A$2010,0) -> 10 | D15: 20 | E15: - | F15: - | G15: 3 | H15: 0 | I15: OD | J15: 2018-09-01 | K15: 110000 | L15: 110 Report à nouveau (solde créditeur) | M15: Affectation du résultat N-1 | N15: 0 | O15: 3464.36
A16: =A15+MATCH(TRUE,OFFSET(JOURNAUX!$A$11,A15,0):'JOURNAUX'!$A$2010,0) -> 11 | D16: 21 | E16: 10 | F16: - | G16: =INDEX(JournalPlus,$A16,G$4) -> 3 | H16: Carte | I16: BQ | J16: 2018-09-02 | K16: 512100 | L16: 5121 Compte Courant Banque Populaire ! | M16: Achat | N16: 0 | O16: 1000
A17: =A16+MATCH(TRUE,OFFSET(JOURNAUX!$A$11,A16,0):'JOURNAUX'!$A$2010,0) -> 12 | D17: 22 | E17: - | F17: - | G17: 3 | H17: 0 | I17: BQ | J17: 2018-09-02 | K17: 625100 | L17: 6251 Déplacements compétitions | M17: Achat bois | N17: 1000 | O17: 0
A18: =A17+MATCH(TRUE,OFFSET(JOURNAUX!$A$11,A17,0):'JOURNAUX'!$A$2010,0) -> 13 | D18: 23 | E18: - | F18: - | G18: 4 | H18: 0 | I18: BQ | J18: 2018-10-30 | K18: 512100 | L18: 5121 Compte Courant Banque Populaire ! | M18: RCH Machin | N18: 2500 | O18: 0
A19: =A18+MATCH(TRUE,OFFSET(JOURNAUX!$A$11,A18,0):'JOURNAUX'!$A$2010,0) -> 14 | D19: 24 | E19: - | F19: - | G19: 4 | H19: 0 | I19: BQ | J19: 2018-10-30 | K19: 754000 | L19: 754 Collectes | M19: meuble | N19: 0 | O19: 2500
A20: =A19+MATCH(TRUE,OFFSET(JOURNAUX!$A$11,A19,0):'JOURNAUX'!$A$2010,0) -> 15 | D20: 25 | E20: - | F20: - | G20: 5 | H20: 0 | I20: BQ | J20: 2018-11-10 | K20: 625100 | L20: 6251 Déplacements compétitions | M20: fff | N20: 125.56 | O20: 0
A21: =A20+MATCH(TRUE,OFFSET(JOURNAUX!$A$11,A20,0):'JOURNAUX'!$A$2010,0) -> 16 | D21: 26 | E21: - | F21: - | G21: 5 | H21: 891 | I21: BQ | J21: 2018-11-10 | K21: 512100 | L21: 5121 Compte Courant Banque Populaire ! | M21: fff | N21: 0 | O21: 125.56
A22: =A21+MATCH(TRUE,OFFSET(JOURNAUX!$A$11,A21,0):'JOURNAUX'!$A$2010,0) -> 17 | D22: 27 | E22: - | F22: ANA1 | G22: 6 | H22: 0 | I22: BQ | J22: 2018-11-30 | K22: 616000 | L22: 616 Primes d'assurances | M22: Assurance | N22: 312 | O22: 0
A23: =A22+MATCH(TRUE,OFFSET(JOURNAUX!$A$11,A22,0):'JOURNAUX'!$A$2010,0) -> 18 | D23: 28 | E23: - | F23: - | G23: 6 | H23: 889 | I23: BQ | J23: 2018-11-30 | K23: 512100 | L23: 5121 Compte Courant Banque Populaire ! | M23: Prélevement auto | N23: 0 | O23: 312
A24: =A23+MATCH(TRUE,OFFSET(JOURNAUX!$A$11,A23,0):'JOURNAUX'!$A$2010,0) -> 
A25: =A24+MATCH(TRUE,OFFSET(JOURNAUX!$A$11,A24,0):'JOURNAUX'!$A$2010,0) -> 
A26: =A25+MATCH(TRUE,OFFSET(JOURNAUX!$A$11,A25,0):'JOURNAUX'!$A$2010,0) ->  | G26: =INDEX(JournalPlus,$A26,G$4) -> 
A27: =A26+MATCH(TRUE,OFFSET(JOURNAUX!$A$11,A26,0):'JOURNAUX'!$A$2010,0) ->  | M27: =INDEX(JournalPlus,$A27,M$4) -> 
A28: =A27+MATCH(TRUE,OFFSET(JOURNAUX!$A$11,A27,0):'JOURNAUX'!$A$2010,0) ->  | E28: =IF(INDEX(JournalPlus,$A28,E$4)=0,"-",INDEX(JournalPlus,$A28,$E$4)) -> 
A29: =A28+MATCH(TRUE,OFFSET(JOURNAUX!$A$11,A28,0):'JOURNAUX'!$A$2010,0) -> 
A30: =A29+MATCH(TRUE,OFFSET(JOURNAUX!$A$11,A29,0):'JOURNAUX'!$A$2010,0) -> 
A31: =A30+MATCH(TRUE,OFFSET(JOURNAUX!$A$11,A30,0):'JOURNAUX'!$A$2010,0) -> 
A32: =A31+MATCH(TRUE,OFFSET(JOURNAUX!$A$11,A31,0):'JOURNAUX'!$A$2010,0) -> 
A33: =A32+MATCH(TRUE,OFFSET(JOURNAUX!$A$11,A32,0):'JOURNAUX'!$A$2010,0) -> 
A34: =A33+MATCH(TRUE,OFFSET(JOURNAUX!$A$11,A33,0):'JOURNAUX'!$A$2010,0) -> 
A35: =A34+MATCH(TRUE,OFFSET(JOURNAUX!$A$11,A34,0):'JOURNAUX'!$A$2010,0) -> 
A36: =A35+MATCH(TRUE,OFFSET(JOURNAUX!$A$11,A35,0):'JOURNAUX'!$A$2010,0) ->  | G36: =INDEX(JournalPlus,$A36,G$4) -> 
A37: =A36+MATCH(TRUE,OFFSET(JOURNAUX!$A$11,A36,0):'JOURNAUX'!$A$2010,0) -> 
A38: =A37+MATCH(TRUE,OFFSET(JOURNAUX!$A$11,A37,0):'JOURNAUX'!$A$2010,0) -> 
A39: =A38+MATCH(TRUE,OFFSET(JOURNAUX!$A$11,A38,0):'JOURNAUX'!$A$2010,0) -> 
A40: =A39+MATCH(TRUE,OFFSET(JOURNAUX!$A$11,A39,0):'JOURNAUX'!$A$2010,0) -> 
A41: =A40+MATCH(TRUE,OFFSET(JOURNAUX!$A$11,A40,0):'JOURNAUX'!$A$2010,0) -> 
A42: =A41+MATCH(TRUE,OFFSET(JOURNAUX!$A$11,A41,0):'JOURNAUX'!$A$2010,0) -> 
A43: =A42+MATCH(TRUE,OFFSET(JOURNAUX!$A$11,A42,0):'JOURNAUX'!$A$2010,0) -> 
A44: =A43+MATCH(TRUE,OFFSET(JOURNAUX!$A$11,A43,0):'JOURNAUX'!$A$2010,0) -> 
A45: =A44+MATCH(TRUE,OFFSET(JOURNAUX!$A$11,A44,0):'JOURNAUX'!$A$2010,0) -> 
A46: =A45+MATCH(TRUE,OFFSET(JOURNAUX!$A$11,A45,0):'JOURNAUX'!$A$2010,0) ->  | G46: =INDEX(JournalPlus,$A46,G$4) -> 
A47: =A46+MATCH(TRUE,OFFSET(JOURNAUX!$A$11,A46,0):'JOURNAUX'!$A$2010,0) -> 
A48: =A47+MATCH(TRUE,OFFSET(JOURNAUX!$A$11,A47,0):'JOURNAUX'!$A$2010,0) -> 
A49: =A48+MATCH(TRUE,OFFSET(JOURNAUX!$A$11,A48,0):'JOURNAUX'!$A$2010,0) -> 
A50: =A49+MATCH(TRUE,OFFSET(JOURNAUX!$A$11,A49,0):'JOURNAUX'!$A$2010,0) -> 
A51: =A50+MATCH(TRUE,OFFSET(JOURNAUX!$A$11,A50,0):'JOURNAUX'!$A$2010,0) -> 
A52: =A51+MATCH(TRUE,OFFSET(JOURNAUX!$A$11,A51,0):'JOURNAUX'!$A$2010,0) -> 
A53: =A52+MATCH(TRUE,OFFSET(JOURNAUX!$A$11,A52,0):'JOURNAUX'!$A$2010,0) -> 
A54: =A53+MATCH(TRUE,OFFSET(JOURNAUX!$A$11,A53,0):'JOURNAUX'!$A$2010,0) ->  | D54: =IF(INDEX(JournalPlus,$A54,D$4)=0,"-",INDEX(JournalPlus,$A54,$D$4)) -> 
A55: =A54+MATCH(TRUE,OFFSET(JOURNAUX!$A$11,A54,0):'JOURNAUX'!$A$2010,0) -> 
A56: =A55+MATCH(TRUE,OFFSET(JOURNAUX!$A$11,A55,0):'JOURNAUX'!$A$2010,0) -> 
A57: =A56+MATCH(TRUE,OFFSET(JOURNAUX!$A$11,A56,0):'JOURNAUX'!$A$2010,0) ->  | G57: =INDEX(JournalPlus,$A57,G$4) -> 
A58: =A57+MATCH(TRUE,OFFSET(JOURNAUX!$A$11,A57,0):'JOURNAUX'!$A$2010,0) -> 
A59: =A58+MATCH(TRUE,OFFSET(JOURNAUX!$A$11,A58,0):'JOURNAUX'!$A$2010,0) -> 
A60: =A59+MATCH(TRUE,OFFSET(JOURNAUX!$A$11,A59,0):'JOURNAUX'!$A$2010,0) -> 
A61: =A60+MATCH(TRUE,OFFSET(JOURNAUX!$A$11,A60,0):'JOURNAUX'!$A$2010,0) -> 
A62: =A61+MATCH(TRUE,OFFSET(JOURNAUX!$A$11,A61,0):'JOURNAUX'!$A$2010,0) -> 
A63: =A62+MATCH(TRUE,OFFSET(JOURNAUX!$A$11,A62,0):'JOURNAUX'!$A$2010,0) -> 
A64: =A63+MATCH(TRUE,OFFSET(JOURNAUX!$A$11,A63,0):'JOURNAUX'!$A$2010,0) -> 
A65: =A64+MATCH(TRUE,OFFSET(JOURNAUX!$A$11,A64,0):'JOURNAUX'!$A$2010,0) -> 
A66: =A65+MATCH(TRUE,OFFSET(JOURNAUX!$A$11,A65,0):'JOURNAUX'!$A$2010,0) ->  | G66: =INDEX(JournalPlus,$A66,G$4) -> 
A67: =A66+MATCH(TRUE,OFFSET(JOURNAUX!$A$11,A66,0):'JOURNAUX'!$A$2010,0) -> 
A68: =A67+MATCH(TRUE,OFFSET(JOURNAUX!$A$11,A67,0):'JOURNAUX'!$A$2010,0) -> 
A69: =A68+MATCH(TRUE,OFFSET(JOURNAUX!$A$11,A68,0):'JOURNAUX'!$A$2010,0) -> 
A70: =A69+MATCH(TRUE,OFFSET(JOURNAUX!$A$11,A69,0):'JOURNAUX'!$A$2010,0) ->  | D70: =IF(INDEX(JournalPlus,$A70,D$4)=0,"-",INDEX(JournalPlus,$A70,$D$4)) ->  | F70: =IF(INDEX(JournalPlus,$A70,F$4)=0,"-",INDEX(JournalPlus,$A70,$F$4)) -> 
A71: =A70+MATCH(TRUE,OFFSET(JOURNAUX!$A$11,A70,0):'JOURNAUX'!$A$2010,0) -> 
A72: =A71+MATCH(TRUE,OFFSET(JOURNAUX!$A$11,A71,0):'JOURNAUX'!$A$2010,0) -> 
A73: =A72+MATCH(TRUE,OFFSET(JOURNAUX!$A$11,A72,0):'JOURNAUX'!$A$2010,0) -> 
A74: =A73+MATCH(TRUE,OFFSET(JOURNAUX!$A$11,A73,0):'JOURNAUX'!$A$2010,0) -> 
A75: =A74+MATCH(TRUE,OFFSET(JOURNAUX!$A$11,A74,0):'JOURNAUX'!$A$2010,0) -> 
A76: =A75+MATCH(TRUE,OFFSET(JOURNAUX!$A$11,A75,0):'JOURNAUX'!$A$2010,0) ->  | G76: =INDEX(JournalPlus,$A76,G$4) -> 
A77: =A76+MATCH(TRUE,OFFSET(JOURNAUX!$A$11,A76,0):'JOURNAUX'!$A$2010,0) -> 
A78: =A77+MATCH(TRUE,OFFSET(JOURNAUX!$A$11,A77,0):'JOURNAUX'!$A$2010,0) -> 
A79: =A78+MATCH(TRUE,OFFSET(JOURNAUX!$A$11,A78,0):'JOURNAUX'!$A$2010,0) -> 
A80: =A79+MATCH(TRUE,OFFSET(JOURNAUX!$A$11,A79,0):'JOURNAUX'!$A$2010,0) -> 
A81: =A80+MATCH(TRUE,OFFSET(JOURNAUX!$A$11,A80,0):'JOURNAUX'!$A$2010,0) -> 
A82: =A81+MATCH(TRUE,OFFSET(JOURNAUX!$A$11,A81,0):'JOURNAUX'!$A$2010,0) -> 
A83: =A82+MATCH(TRUE,OFFSET(JOURNAUX!$A$11,A82,0):'JOURNAUX'!$A$2010,0) -> 
A84: =A83+MATCH(TRUE,OFFSET(JOURNAUX!$A$11,A83,0):'JOURNAUX'!$A$2010,0) -> 
A85: =A84+MATCH(TRUE,OFFSET(JOURNAUX!$A$11,A84,0):'JOURNAUX'!$A$2010,0) -> 
A86: =A85+MATCH(TRUE,OFFSET(JOURNAUX!$A$11,A85,0):'JOURNAUX'!$A$2010,0) ->  | G86: =INDEX(JournalPlus,$A86,G$4) -> 
A87: =A86+MATCH(TRUE,OFFSET(JOURNAUX!$A$11,A86,0):'JOURNAUX'!$A$2010,0) -> 
A88: =A87+MATCH(TRUE,OFFSET(JOURNAUX!$A$11,A87,0):'JOURNAUX'!$A$2010,0) -> 
A89: =A88+MATCH(TRUE,OFFSET(JOURNAUX!$A$11,A88,0):'JOURNAUX'!$A$2010,0) -> 
A90: =A89+MATCH(TRUE,OFFSET(JOURNAUX!$A$11,A89,0):'JOURNAUX'!$A$2010,0) -> 
A91: =A90+MATCH(TRUE,OFFSET(JOURNAUX!$A$11,A90,0):'JOURNAUX'!$A$2010,0) ->  | E91: =IF(INDEX(JournalPlus,$A91,E$4)=0,"-",INDEX(JournalPlus,$A91,$E$4)) -> 
A92: =A91+MATCH(TRUE,OFFSET(JOURNAUX!$A$11,A91,0):'JOURNAUX'!$A$2010,0) -> 
A93: =A92+MATCH(TRUE,OFFSET(JOURNAUX!$A$11,A92,0):'JOURNAUX'!$A$2010,0) -> 
A94: =A93+MATCH(TRUE,OFFSET(JOURNAUX!$A$11,A93,0):'JOURNAUX'!$A$2010,0) -> 
A95: =A94+MATCH(TRUE,OFFSET(JOURNAUX!$A$11,A94,0):'JOURNAUX'!$A$2010,0) -> 
A96: =A95+MATCH(TRUE,OFFSET(JOURNAUX!$A$11,A95,0):'JOURNAUX'!$A$2010,0) ->  | G96: =INDEX(JournalPlus,$A96,G$4) -> 
A97: =A96+MATCH(TRUE,OFFSET(JOURNAUX!$A$11,A96,0):'JOURNAUX'!$A$2010,0) -> 
A98: =A97+MATCH(TRUE,OFFSET(JOURNAUX!$A$11,A97,0):'JOURNAUX'!$A$2010,0) -> 
A99: =A98+MATCH(TRUE,OFFSET(JOURNAUX!$A$11,A98,0):'JOURNAUX'!$A$2010,0) -> 
A100: =A99+MATCH(TRUE,OFFSET(JOURNAUX!$A$11,A99,0):'JOURNAUX'!$A$2010,0) -> 
A101: =A100+MATCH(TRUE,OFFSET(JOURNAUX!$A$11,A100,0):'JOURNAUX'!$A$2010,0) -> 
A102: =A101+MATCH(TRUE,OFFSET(JOURNAUX!$A$11,A101,0):'JOURNAUX'!$A$2010,0) -> 
A103: =A102+MATCH(TRUE,OFFSET(JOURNAUX!$A$11,A102,0):'JOURNAUX'!$A$2010,0) -> 
A104: =A103+MATCH(TRUE,OFFSET(JOURNAUX!$A$11,A103,0):'JOURNAUX'!$A$2010,0) -> 
A105: =A104+MATCH(TRUE,OFFSET(JOURNAUX!$A$11,A104,0):'JOURNAUX'!$A$2010,0) -> 
A106: =A105+MATCH(TRUE,OFFSET(JOURNAUX!$A$11,A105,0):'JOURNAUX'!$A$2010,0) ->  | G106: =INDEX(JournalPlus,$A106,G$4) -> 
A107: =A106+MATCH(TRUE,OFFSET(JOURNAUX!$A$11,A106,0):'JOURNAUX'!$A$2010,0) -> 
A108: =A107+MATCH(TRUE,OFFSET(JOURNAUX!$A$11,A107,0):'JOURNAUX'!$A$2010,0) -> 
A109: =A108+MATCH(TRUE,OFFSET(JOURNAUX!$A$11,A108,0):'JOURNAUX'!$A$2010,0) -> 
A110: =A109+MATCH(TRUE,OFFSET(JOURNAUX!$A$11,A109,0):'JOURNAUX'!$A$2010,0) -> 
A111: =A110+MATCH(TRUE,OFFSET(JOURNAUX!$A$11,A110,0):'JOURNAUX'!$A$2010,0) -> 
A112: =A111+MATCH(TRUE,OFFSET(JOURNAUX!$A$11,A111,0):'JOURNAUX'!$A$2010,0) -> 
A113: =A112+MATCH(TRUE,OFFSET(JOURNAUX!$A$11,A112,0):'JOURNAUX'!$A$2010,0) -> 
A114: =A113+MATCH(TRUE,OFFSET(JOURNAUX!$A$11,A113,0):'JOURNAUX'!$A$2010,0) -> 
A115: =A114+MATCH(TRUE,OFFSET(JOURNAUX!$A$11,A114,0):'JOURNAUX'!$A$2010,0) -> 
A116: =A115+MATCH(TRUE,OFFSET(JOURNAUX!$A$11,A115,0):'JOURNAUX'!$A$2010,0) ->  | G116: =INDEX(JournalPlus,$A116,G$4) -> 
A117: =A116+MATCH(TRUE,OFFSET(JOURNAUX!$A$11,A116,0):'JOURNAUX'!$A$2010,0) -> 
A118: =A117+MATCH(TRUE,OFFSET(JOURNAUX!$A$11,A117,0):'JOURNAUX'!$A$2010,0) -> 
A119: =A118+MATCH(TRUE,OFFSET(JOURNAUX!$A$11,A118,0):'JOURNAUX'!$A$2010,0) -> 
A120: =A119+MATCH(TRUE,OFFSET(JOURNAUX!$A$11,A119,0):'JOURNAUX'!$A$2010,0) -> 
A121: =A120+MATCH(TRUE,OFFSET(JOURNAUX!$A$11,A120,0):'JOURNAUX'!$A$2010,0) -> 
A122: =A121+MATCH(TRUE,OFFSET(JOURNAUX!$A$11,A121,0):'JOURNAUX'!$A$2010,0) -> 
A123: =A122+MATCH(TRUE,OFFSET(JOURNAUX!$A$11,A122,0):'JOURNAUX'!$A$2010,0) -> 
A124: =A123+MATCH(TRUE,OFFSET(JOURNAUX!$A$11,A123,0):'JOURNAUX'!$A$2010,0) -> 
A125: =A124+MATCH(TRUE,OFFSET(JOURNAUX!$A$11,A124,0):'JOURNAUX'!$A$2010,0) -> 
A126: =A125+MATCH(TRUE,OFFSET(JOURNAUX!$A$11,A125,0):'JOURNAUX'!$A$2010,0) ->  | G126: =INDEX(JournalPlus,$A126,G$4) -> 
A127: =A126+MATCH(TRUE,OFFSET(JOURNAUX!$A$11,A126,0):'JOURNAUX'!$A$2010,0) -> 
A128: =A127+MATCH(TRUE,OFFSET(JOURNAUX!$A$11,A127,0):'JOURNAUX'!$A$2010,0) -> 
A129: =A128+MATCH(TRUE,OFFSET(JOURNAUX!$A$11,A128,0):'JOURNAUX'!$A$2010,0) -> 
A130: =A129+MATCH(TRUE,OFFSET(JOURNAUX!$A$11,A129,0):'JOURNAUX'!$A$2010,0) -> 
A131: =A130+MATCH(TRUE,OFFSET(JOURNAUX!$A$11,A130,0):'JOURNAUX'!$A$2010,0) -> 
A132: =A131+MATCH(TRUE,OFFSET(JOURNAUX!$A$11,A131,0):'JOURNAUX'!$A$2010,0) -> 
A133: =A132+MATCH(TRUE,OFFSET(JOURNAUX!$A$11,A132,0):'JOURNAUX'!$A$2010,0) -> 
A134: =A133+MATCH(TRUE,OFFSET(JOURNAUX!$A$11,A133,0):'JOURNAUX'!$A$2010,0) ->  | D134: =IF(INDEX(JournalPlus,$A134,D$4)=0,"-",INDEX(JournalPlus,$A134,$D$4)) ->  | F134: =IF(INDEX(JournalPlus,$A134,F$4)=0,"-",INDEX(JournalPlus,$A134,$F$4)) -> 
A135: =A134+MATCH(TRUE,OFFSET(JOURNAUX!$A$11,A134,0):'JOURNAUX'!$A$2010,0) -> 
A136: =A135+MATCH(TRUE,OFFSET(JOURNAUX!$A$11,A135,0):'JOURNAUX'!$A$2010,0) ->  | G136: =INDEX(JournalPlus,$A136,G$4) -> 
A137: =A136+MATCH(TRUE,OFFSET(JOURNAUX!$A$11,A136,0):'JOURNAUX'!$A$2010,0) -> 
A138: =A137+MATCH(TRUE,OFFSET(JOURNAUX!$A$11,A137,0):'JOURNAUX'!$A$2010,0) -> 
A139: =A138+MATCH(TRUE,OFFSET(JOURNAUX!$A$11,A138,0):'JOURNAUX'!$A$2010,0) -> 
A140: =A139+MATCH(TRUE,OFFSET(JOURNAUX!$A$11,A139,0):'JOURNAUX'!$A$2010,0) -> 
A141: =A140+MATCH(TRUE,OFFSET(JOURNAUX!$A$11,A140,0):'JOURNAUX'!$A$2010,0) -> 
A142: =A141+MATCH(TRUE,OFFSET(JOURNAUX!$A$11,A141,0):'JOURNAUX'!$A$2010,0) -> 
A143: =A142+MATCH(TRUE,OFFSET(JOURNAUX!$A$11,A142,0):'JOURNAUX'!$A$2010,0) -> 
A144: =A143+MATCH(TRUE,OFFSET(JOURNAUX!$A$11,A143,0):'JOURNAUX'!$A$2010,0) -> 
A145: =A144+MATCH(TRUE,OFFSET(JOURNAUX!$A$11,A144,0):'JOURNAUX'!$A$2010,0) -> 
A146: =A145+MATCH(TRUE,OFFSET(JOURNAUX!$A$11,A145,0):'JOURNAUX'!$A$2010,0) ->  | G146: =INDEX(JournalPlus,$A146,G$4) -> 
A147: =A146+MATCH(TRUE,OFFSET(JOURNAUX!$A$11,A146,0):'JOURNAUX'!$A$2010,0) -> 
A148: =A147+MATCH(TRUE,OFFSET(JOURNAUX!$A$11,A147,0):'JOURNAUX'!$A$2010,0) -> 
A149: =A148+MATCH(TRUE,OFFSET(JOURNAUX!$A$11,A148,0):'JOURNAUX'!$A$2010,0) -> 
A150: =A149+MATCH(TRUE,OFFSET(JOURNAUX!$A$11,A149,0):'JOURNAUX'!$A$2010,0) -> 
A151: =A150+MATCH(TRUE,OFFSET(JOURNAUX!$A$11,A150,0):'JOURNAUX'!$A$2010,0) -> 
A152: =A151+MATCH(TRUE,OFFSET(JOURNAUX!$A$11,A151,0):'JOURNAUX'!$A$2010,0) -> 
A153: =A152+MATCH(TRUE,OFFSET(JOURNAUX!$A$11,A152,0):'JOURNAUX'!$A$2010,0) -> 
A154: =A153+MATCH(TRUE,OFFSET(JOURNAUX!$A$11,A153,0):'JOURNAUX'!$A$2010,0) -> 
A155: =A154+MATCH(TRUE,OFFSET(JOURNAUX!$A$11,A154,0):'JOURNAUX'!$A$2010,0) ->  | E155: =IF(INDEX(JournalPlus,$A155,E$4)=0,"-",INDEX(JournalPlus,$A155,$E$4)) -> 
A156: =A155+MATCH(TRUE,OFFSET(JOURNAUX!$A$11,A155,0):'JOURNAUX'!$A$2010,0) ->  | G156: =INDEX(JournalPlus,$A156,G$4) -> 
A157: =A156+MATCH(TRUE,OFFSET(JOURNAUX!$A$11,A156,0):'JOURNAUX'!$A$2010,0) -> 
A158: =A157+MATCH(TRUE,OFFSET(JOURNAUX!$A$11,A157,0):'JOURNAUX'!$A$2010,0) -> 
A159: =A158+MATCH(TRUE,OFFSET(JOURNAUX!$A$11,A158,0):'JOURNAUX'!$A$2010,0) -> 
A160: =A159+MATCH(TRUE,OFFSET(JOURNAUX!$A$11,A159,0):'JOURNAUX'!$A$2010,0) -> 
A161: =A160+MATCH(TRUE,OFFSET(JOURNAUX!$A$11,A160,0):'JOURNAUX'!$A$2010,0) -> 
A162: =A161+MATCH(TRUE,OFFSET(JOURNAUX!$A$11,A161,0):'JOURNAUX'!$A$2010,0) -> 
A163: =A162+MATCH(TRUE,OFFSET(JOURNAUX!$A$11,A162,0):'JOURNAUX'!$A$2010,0) -> 
A164: =A163+MATCH(TRUE,OFFSET(JOURNAUX!$A$11,A163,0):'JOURNAUX'!$A$2010,0) -> 
A165: =A164+MATCH(TRUE,OFFSET(JOURNAUX!$A$11,A164,0):'JOURNAUX'!$A$2010,0) -> 
A166: =A165+MATCH(TRUE,OFFSET(JOURNAUX!$A$11,A165,0):'JOURNAUX'!$A$2010,0) ->  | G166: =INDEX(JournalPlus,$A166,G$4) -> 
A167: =A166+MATCH(TRUE,OFFSET(JOURNAUX!$A$11,A166,0):'JOURNAUX'!$A$2010,0) -> 
A168: =A167+MATCH(TRUE,OFFSET(JOURNAUX!$A$11,A167,0):'JOURNAUX'!$A$2010,0) -> 
A169: =A168+MATCH(TRUE,OFFSET(JOURNAUX!$A$11,A168,0):'JOURNAUX'!$A$2010,0) -> 
A170: =A169+MATCH(TRUE,OFFSET(JOURNAUX!$A$11,A169,0):'JOURNAUX'!$A$2010,0) -> 
A171: =A170+MATCH(TRUE,OFFSET(JOURNAUX!$A$11,A170,0):'JOURNAUX'!$A$2010,0) -> 
A172: =A171+MATCH(TRUE,OFFSET(JOURNAUX!$A$11,A171,0):'JOURNAUX'!$A$2010,0) -> 
A173: =A172+MATCH(TRUE,OFFSET(JOURNAUX!$A$11,A172,0):'JOURNAUX'!$A$2010,0) -> 
A174: =A173+MATCH(TRUE,OFFSET(JOURNAUX!$A$11,A173,0):'JOURNAUX'!$A$2010,0) -> 
A175: =A174+MATCH(TRUE,OFFSET(JOURNAUX!$A$11,A174,0):'JOURNAUX'!$A$2010,0) -> 
A176: =A175+MATCH(TRUE,OFFSET(JOURNAUX!$A$11,A175,0):'JOURNAUX'!$A$2010,0) ->  | G176: =INDEX(JournalPlus,$A176,G$4) -> 
A177: =A176+MATCH(TRUE,OFFSET(JOURNAUX!$A$11,A176,0):'JOURNAUX'!$A$2010,0) -> 
A178: =A177+MATCH(TRUE,OFFSET(JOURNAUX!$A$11,A177,0):'JOURNAUX'!$A$2010,0) -> 
A179: =A178+MATCH(TRUE,OFFSET(JOURNAUX!$A$11,A178,0):'JOURNAUX'!$A$2010,0) -> 
A180: =A179+MATCH(TRUE,OFFSET(JOURNAUX!$A$11,A179,0):'JOURNAUX'!$A$2010,0) -> 
A181: =A180+MATCH(TRUE,OFFSET(JOURNAUX!$A$11,A180,0):'JOURNAUX'!$A$2010,0) -> 
A182: =A181+MATCH(TRUE,OFFSET(JOURNAUX!$A$11,A181,0):'JOURNAUX'!$A$2010,0) -> 
A183: =A182+MATCH(TRUE,OFFSET(JOURNAUX!$A$11,A182,0):'JOURNAUX'!$A$2010,0) -> 
A184: =A183+MATCH(TRUE,OFFSET(JOURNAUX!$A$11,A183,0):'JOURNAUX'!$A$2010,0) -> 
A185: =A184+MATCH(TRUE,OFFSET(JOURNAUX!$A$11,A184,0):'JOURNAUX'!$A$2010,0) -> 
A186: =A185+MATCH(TRUE,OFFSET(JOURNAUX!$A$11,A185,0):'JOURNAUX'!$A$2010,0) ->  | G186: =INDEX(JournalPlus,$A186,G$4) -> 
A187: =A186+MATCH(TRUE,OFFSET(JOURNAUX!$A$11,A186,0):'JOURNAUX'!$A$2010,0) -> 
A188: =A187+MATCH(TRUE,OFFSET(JOURNAUX!$A$11,A187,0):'JOURNAUX'!$A$2010,0) -> 
A189: =A188+MATCH(TRUE,OFFSET(JOURNAUX!$A$11,A188,0):'JOURNAUX'!$A$2010,0) -> 
A190: =A189+MATCH(TRUE,OFFSET(JOURNAUX!$A$11,A189,0):'JOURNAUX'!$A$2010,0) -> 
A191: =A190+MATCH(TRUE,OFFSET(JOURNAUX!$A$11,A190,0):'JOURNAUX'!$A$2010,0) -> 
A192: =A191+MATCH(TRUE,OFFSET(JOURNAUX!$A$11,A191,0):'JOURNAUX'!$A$2010,0) -> 
A193: =A192+MATCH(TRUE,OFFSET(JOURNAUX!$A$11,A192,0):'JOURNAUX'!$A$2010,0) -> 
A194: =A193+MATCH(TRUE,OFFSET(JOURNAUX!$A$11,A193,0):'JOURNAUX'!$A$2010,0) -> 
A195: =A194+MATCH(TRUE,OFFSET(JOURNAUX!$A$11,A194,0):'JOURNAUX'!$A$2010,0) -> 
A196: =A195+MATCH(TRUE,OFFSET(JOURNAUX!$A$11,A195,0):'JOURNAUX'!$A$2010,0) ->  | G196: =INDEX(JournalPlus,$A196,G$4) -> 
A197: =A196+MATCH(TRUE,OFFSET(JOURNAUX!$A$11,A196,0):'JOURNAUX'!$A$2010,0) -> 
A198: =A197+MATCH(TRUE,OFFSET(JOURNAUX!$A$11,A197,0):'JOURNAUX'!$A$2010,0) ->  | D198: =IF(INDEX(JournalPlus,$A198,D$4)=0,"-",INDEX(JournalPlus,$A198,$D$4)) ->  | F198: =IF(INDEX(JournalPlus,$A198,F$4)=0,"-",INDEX(JournalPlus,$A198,$F$4)) -> 
A199: =A198+MATCH(TRUE,OFFSET(JOURNAUX!$A$11,A198,0):'JOURNAUX'!$A$2010,0) -> 
A200: =A199+MATCH(TRUE,OFFSET(JOURNAUX!$A$11,A199,0):'JOURNAUX'!$A$2010,0) -> 
... 1804 more rows

Sheet RECAP
B1: =COUNT(C6:C342) -> 23 | C1: IMPORTANT >> | G1: NE PAS TRIER CE TABLEAU
A3: oms | C3: État hiérarchisé des CPC avec solde
A4: N°lignevrai | C4: 11 | D4: 20 | E4: 21 | F4: 17 | J4: 3
C5: CPC | D5: Débit | E5: Crédit | G5: Solde Débiteur | H5: Solde Créditeur | J5: Libellés
A6: =MATCH(TRUE,PLAN!$S$8:$S$246,0) -> 1 | C6: =INDEX(CPC_Utilise,$A6,0) -> 10 | D6: =INDEX(MvtsNiveaux,$A6,D$4) -> 0 | E6: 22727.16 | F6: =IF(INDEX(MvtsNiveaux,$A6,F$4)<>1,"",">>") ->  | G6: =-($E6<=$D6)*($E6-$D6) -> 0 | H6: =($E6>=$D6)*($E6-$D6) -> 22727.16 | J6: =INDEX(MvtsNiveaux,$A6,J$4) -> 10 Fonds Associatif et Réserves
A7: =A6+MATCH(TRUE,OFFSET(PLAN!$S$8,A6,0):'PLAN'!$S$246,0) -> 2 | C7: 102 | D7: 0 | E7: 22727.16 | G7: =-($E7<=$D7)*($E7-$D7) -> 0 | H7: 22727.16 | J7: 102 Fonds Associatif et Réserves
A8: =A7+MATCH(TRUE,OFFSET(PLAN!$S$8,A7,0):'PLAN'!$S$246,0) -> 3 | C8: 102100 | D8: 0 | E8: 22727.16 | F8: >> | G8: 0 | H8: 22727.16 | J8: 1021 Valeur du patrimoine intégré
A9: =A8+MATCH(TRUE,OFFSET(PLAN!$S$8,A8,0):'PLAN'!$S$246,0) -> 10 | C9: 11 | D9: 1236.24 | E9: 12401.33 | G9: 0 | H9: 11165.09 | J9: 11 Report à nouveau
A10: =A9+MATCH(TRUE,OFFSET(PLAN!$S$8,A9,0):'PLAN'!$S$246,0) -> 11 | C10: 110000 | D10: 0 | E10: 12401.33 | F10: >> | G10: 0 | H10: 12401.33 | J10: 110 Report à nouveau (solde créditeur)
A11: =A10+MATCH(TRUE,OFFSET(PLAN!$S$8,A10,0):'PLAN'!$S$246,0) -> 12 | C11: 119000 | D11: 1236.24 | E11: 0 | F11: >> | G11: 1236.24 | H11: 0 | J11: 119 Report à nouveau (solde débiteur)
A12: =A11+MATCH(TRUE,OFFSET(PLAN!$S$8,A11,0):'PLAN'!$S$246,0) -> 13 | C12: 12 | D12: 3464.36 | E12: 3464.36 | G12: 0 | H12: 0 | J12: 12 Résultat de l'exercice
A13: =A12+MATCH(TRUE,OFFSET(PLAN!$S$8,A12,0):'PLAN'!$S$246,0) -> 14 | C13: 120000 | D13: 3464.36 | E13: 3464.36 | F13: >> | G13: 0 | H13: 0 | J13: 120 Résultat exercice (excédent)
A14: =A13+MATCH(TRUE,OFFSET(PLAN!$S$8,A13,0):'PLAN'!$S$246,0) -> 65 | C14: 46 | D14: 0 | E14: 1021.95 | G14: 0 | H14: 1021.95 | J14: 46 Débiteurs et Créditeurs Divers
A15: =A14+MATCH(TRUE,OFFSET(PLAN!$S$8,A14,0):'PLAN'!$S$246,0) -> 66 | C15: 460000 | D15: 0 | E15: 1021.95 | F15: >> | G15: 0 | H15: 1021.95 | J15: 460 Débiteurs Divers
A16: =A15+MATCH(TRUE,OFFSET(PLAN!$S$8,A15,0):'PLAN'!$S$246,0) -> 68 | C16: 48 | D16: 0 | E16: 3793 | G16: 0 | H16: 3793 | J16: 48 Comptes de régularisation
A17: =A16+MATCH(TRUE,OFFSET(PLAN!$S$8,A16,0):'PLAN'!$S$246,0) -> 70 | C17: 487000 | D17: 0 | E17: 3793 | F17: >> | G17: 0 | H17: 3793 | J17: 487 Produits constatés d'avance
A18: =A17+MATCH(TRUE,OFFSET(PLAN!$S$8,A17,0):'PLAN'!$S$246,0) -> 74 | C18: 51 | D18: 41207.2 | E18: 1437.56 | G18: 39769.64 | H18: 0 | J18: 51 Banques, Ets financiers
A19: =A18+MATCH(TRUE,OFFSET(PLAN!$S$8,A18,0):'PLAN'!$S$246,0) -> 75 | C19: 512100 | D19: 4548.86 | E19: 1437.56 | F19: >> | G19: 3111.3 | H19: 0 | J19: 5121 Compte Courant Banque Populaire !
A20: =A19+MATCH(TRUE,OFFSET(PLAN!$S$8,A19,0):'PLAN'!$S$246,0) -> 76 | C20: 512200 | D20: 36658.34 | E20: 0 | F20: >> | G20: 36658.34 | H20: 0 | J20: 5122Livret Association Banque Populaire !
A21: =A20+MATCH(TRUE,OFFSET(PLAN!$S$8,A20,0):'PLAN'!$S$246,0) -> 100 | C21: 61 | D21: 312 | E21: 0 | G21: 312 | H21: 0 | J21: 61 Services extérieurs
A22: =A21+MATCH(TRUE,OFFSET(PLAN!$S$8,A21,0):'PLAN'!$S$246,0) -> 109 | C22: 616 | D22: 312 | E22: 0 | G22: 312 | H22: 0 | J22: 616 Assurances
A23: =A22+MATCH(TRUE,OFFSET(PLAN!$S$8,A22,0):'PLAN'!$S$246,0) -> 110 | C23: 616000 | D23: 312 | E23: 0 | F23: >> | G23: 312 | H23: 0 | J23: 616 Primes d'assurances
A24: =A23+MATCH(TRUE,OFFSET(PLAN!$S$8,A23,0):'PLAN'!$S$246,0) -> 115 | C24: 62 | D24: 1125.56 | E24: 0 | G24: 1125.56 | H24: 0 | J24: 62 Autres services extérieurs
A25: =A24+MATCH(TRUE,OFFSET(PLAN!$S$8,A24,0):'PLAN'!$S$246,0) -> 130 | C25: 625 | D25: 1125.56 | E25: 0 | G25: 1125.56 | H25: 0 | J25: 625 Déplacements, missions et réceptions
A26: =A25+MATCH(TRUE,OFFSET(PLAN!$S$8,A25,0):'PLAN'!$S$246,0) -> 131 | C26: 625100 | D26: =INDEX(MvtsNiveaux,$A26,D$4) -> 1125.56 | E26: 0 | F26: >> | G26: 1125.56 | H26: 0 | J26: 6251 Déplacements compétitions
A27: =A26+MATCH(TRUE,OFFSET(PLAN!$S$8,A26,0):'PLAN'!$S$246,0) -> 225 | C27: 75 | D27: 0 | E27: 2500 | G27: 0 | H27: 2500 | J27: 75 Autres produits de gestion courante
A28: =A27+MATCH(TRUE,OFFSET(PLAN!$S$8,A27,0):'PLAN'!$S$246,0) -> 226 | C28: 754000 | D28: 0 | E28: 2500 | F28: >> | G28: 0 | H28: 2500 | J28: 754 Collectes
A29: =A28+MATCH(TRUE,OFFSET(PLAN!$S$8,A28,0):'PLAN'!$S$246,0) -> 
A30: =A29+MATCH(TRUE,OFFSET(PLAN!$S$8,A29,0):'PLAN'!$S$246,0) -> 
A31: =A30+MATCH(TRUE,OFFSET(PLAN!$S$8,A30,0):'PLAN'!$S$246,0) -> 
A32: =A31+MATCH(TRUE,OFFSET(PLAN!$S$8,A31,0):'PLAN'!$S$246,0) -> 
A33: =A32+MATCH(TRUE,OFFSET(PLAN!$S$8,A32,0):'PLAN'!$S$246,0) -> 
A34: =A33+MATCH(TRUE,OFFSET(PLAN!$S$8,A33,0):'PLAN'!$S$246,0) -> 
A35: =A34+MATCH(TRUE,OFFSET(PLAN!$S$8,A34,0):'PLAN'!$S$246,0) -> 
A36: =A35+MATCH(TRUE,OFFSET(PLAN!$S$8,A35,0):'PLAN'!$S$246,0) ->  | D36: =INDEX(MvtsNiveaux,$A36,D$4) -> 
A37: =A36+MATCH(TRUE,OFFSET(PLAN!$S$8,A36,0):'PLAN'!$S$246,0) -> 
A38: =A37+MATCH(TRUE,OFFSET(PLAN!$S$8,A37,0):'PLAN'!$S$246,0) -> 
A39: =A38+MATCH(TRUE,OFFSET(PLAN!$S$8,A38,0):'PLAN'!$S$246,0) -> 
A40: =A39+MATCH(TRUE,OFFSET(PLAN!$S$8,A39,0):'PLAN'!$S$246,0) -> 
A41: =A40+MATCH(TRUE,OFFSET(PLAN!$S$8,A40,0):'PLAN'!$S$246,0) -> 
A42: =A41+MATCH(TRUE,OFFSET(PLAN!$S$8,A41,0):'PLAN'!$S$246,0) -> 
A43: =A42+MATCH(TRUE,OFFSET(PLAN!$S$8,A42,0):'PLAN'!$S$246,0) -> 
A44: =A43+MATCH(TRUE,OFFSET(PLAN!$S$8,A43,0):'PLAN'!$S$246,0) -> 
A45: =A44+MATCH(TRUE,OFFSET(PLAN!$S$8,A44,0):'PLAN'!$S$246,0) -> 
A46: =A45+MATCH(TRUE,OFFSET(PLAN!$S$8,A45,0):'PLAN'!$S$246,0) ->  | D46: =INDEX(MvtsNiveaux,$A46,D$4) -> 
A47: =A46+MATCH(TRUE,OFFSET(PLAN!$S$8,A46,0):'PLAN'!$S$246,0) -> 
A48: =A47+MATCH(TRUE,OFFSET(PLAN!$S$8,A47,0):'PLAN'!$S$246,0) -> 
A49: =A48+MATCH(TRUE,OFFSET(PLAN!$S$8,A48,0):'PLAN'!$S$246,0) -> 
A50: =A49+MATCH(TRUE,OFFSET(PLAN!$S$8,A49,0):'PLAN'!$S$246,0) -> 
A51: =A50+MATCH(TRUE,OFFSET(PLAN!$S$8,A50,0):'PLAN'!$S$246,0) -> 
A52: =A51+MATCH(TRUE,OFFSET(PLAN!$S$8,A51,0):'PLAN'!$S$246,0) -> 
A53: =A52+MATCH(TRUE,OFFSET(PLAN!$S$8,A52,0):'PLAN'!$S$246,0) -> 
A54: =A53+MATCH(TRUE,OFFSET(PLAN!$S$8,A53,0):'PLAN'!$S$246,0) -> 
A55: =A54+MATCH(TRUE,OFFSET(PLAN!$S$8,A54,0):'PLAN'!$S$246,0) -> 
A56: =A55+MATCH(TRUE,OFFSET(PLAN!$S$8,A55,0):'PLAN'!$S$246,0) -> 
A57: =A56+MATCH(TRUE,OFFSET(PLAN!$S$8,A56,0):'PLAN'!$S$246,0) -> 
A58: =A57+MATCH(TRUE,OFFSET(PLAN!$S$8,A57,0):'PLAN'!$S$246,0) -> 
A59: =A58+MATCH(TRUE,OFFSET(PLAN!$S$8,A58,0):'PLAN'!$S$246,0) -> 
A60: =A59+MATCH(TRUE,OFFSET(PLAN!$S$8,A59,0):'PLAN'!$S$246,0) -> 
A61: =A60+MATCH(TRUE,OFFSET(PLAN!$S$8,A60,0):'PLAN'!$S$246,0) -> 
A62: =A61+MATCH(TRUE,OFFSET(PLAN!$S$8,A61,0):'PLAN'!$S$246,0) ->  | D62: =INDEX(MvtsNiveaux,$A62,D$4) -> 
A63: =A62+MATCH(TRUE,OFFSET(PLAN!$S$8,A62,0):'PLAN'!$S$246,0) -> 
A64: =A63+MATCH(TRUE,OFFSET(PLAN!$S$8,A63,0):'PLAN'!$S$246,0) -> 
A65: =A64+MATCH(TRUE,OFFSET(PLAN!$S$8,A64,0):'PLAN'!$S$246,0) -> 
A66: =A65+MATCH(TRUE,OFFSET(PLAN!$S$8,A65,0):'PLAN'!$S$246,0) -> 
A67: =A66+MATCH(TRUE,OFFSET(PLAN!$S$8,A66,0):'PLAN'!$S$246,0) -> 
A68: =A67+MATCH(TRUE,OFFSET(PLAN!$S$8,A67,0):'PLAN'!$S$246,0) -> 
A69: =A68+MATCH(TRUE,OFFSET(PLAN!$S$8,A68,0):'PLAN'!$S$246,0) -> 
A70: =A69+MATCH(TRUE,OFFSET(PLAN!$S$8,A69,0):'PLAN'!$S$246,0) ->  | C70: =INDEX(CPC_Utilise,$A70,0) ->  | F70: =IF(INDEX(MvtsNiveaux,$A70,F$4)<>1,"",">>") ->  | J70: =INDEX(MvtsNiveaux,$A70,J$4) -> 
A71: =A70+MATCH(TRUE,OFFSET(PLAN!$S$8,A70,0):'PLAN'!$S$246,0) ->  | G71: =-($E71<=$D71)*($E71-$D71) ->  | H71: =($E71>=$D71)*($E71-$D71) -> 
A72: =A71+MATCH(TRUE,OFFSET(PLAN!$S$8,A71,0):'PLAN'!$S$246,0) ->  | D72: =INDEX(MvtsNiveaux,$A72,D$4) -> 
A73: =A72+MATCH(TRUE,OFFSET(PLAN!$S$8,A72,0):'PLAN'!$S$246,0) -> 
A74: =A73+MATCH(TRUE,OFFSET(PLAN!$S$8,A73,0):'PLAN'!$S$246,0) -> 
A75: =A74+MATCH(TRUE,OFFSET(PLAN!$S$8,A74,0):'PLAN'!$S$246,0) -> 
A76: =A75+MATCH(TRUE,OFFSET(PLAN!$S$8,A75,0):'PLAN'!$S$246,0) -> 
A77: =A76+MATCH(TRUE,OFFSET(PLAN!$S$8,A76,0):'PLAN'!$S$246,0) -> 
A78: =A77+MATCH(TRUE,OFFSET(PLAN!$S$8,A77,0):'PLAN'!$S$246,0) -> 
A79: =A78+MATCH(TRUE,OFFSET(PLAN!$S$8,A78,0):'PLAN'!$S$246,0) -> 
A80: =A79+MATCH(TRUE,OFFSET(PLAN!$S$8,A79,0):'PLAN'!$S$246,0) -> 
A81: =A80+MATCH(TRUE,OFFSET(PLAN!$S$8,A80,0):'PLAN'!$S$246,0) -> 
A82: =A81+MATCH(TRUE,OFFSET(PLAN!$S$8,A81,0):'PLAN'!$S$246,0) ->  | D82: =INDEX(MvtsNiveaux,$A82,D$4) -> 
A83: =A82+MATCH(TRUE,OFFSET(PLAN!$S$8,A82,0):'PLAN'!$S$246,0) -> 
A84: =A83+MATCH(TRUE,OFFSET(PLAN!$S$8,A83,0):'PLAN'!$S$246,0) -> 
A85: =A84+MATCH(TRUE,OFFSET(PLAN!$S$8,A84,0):'PLAN'!$S$246,0) -> 
A86: =A85+MATCH(TRUE,OFFSET(PLAN!$S$8,A85,0):'PLAN'!$S$246,0) -> 
A87: =A86+MATCH(TRUE,OFFSET(PLAN!$S$8,A86,0):'PLAN'!$S$246,0) -> 
A88: =A87+MATCH(TRUE,OFFSET(PLAN!$S$8,A87,0):'PLAN'!$S$246,0) -> 
A89: =A88+MATCH(TRUE,OFFSET(PLAN!$S$8,A88,0):'PLAN'!$S$246,0) -> 
A90: =A89+MATCH(TRUE,OFFSET(PLAN!$S$8,A89,0):'PLAN'!$S$246,0) -> 
A91: =A90+MATCH(TRUE,OFFSET(PLAN!$S$8,A90,0):'PLAN'!$S$246,0) -> 
A92: =A91+MATCH(TRUE,OFFSET(PLAN!$S$8,A91,0):'PLAN'!$S$246,0) ->  | D92: =INDEX(MvtsNiveaux,$A92,D$4) -> 
A93: =A92+MATCH(TRUE,OFFSET(PLAN!$S$8,A92,0):'PLAN'!$S$246,0) -> 
A94: =A93+MATCH(TRUE,OFFSET(PLAN!$S$8,A93,0):'PLAN'!$S$246,0) -> 
A95: =A94+MATCH(TRUE,OFFSET(PLAN!$S$8,A94,0):'PLAN'!$S$246,0) -> 
A96: =A95+MATCH(TRUE,OFFSET(PLAN!$S$8,A95,0):'PLAN'!$S$246,0) -> 
A97: =A96+MATCH(TRUE,OFFSET(PLAN!$S$8,A96,0):'PLAN'!$S$246,0) -> 
A98: =A97+MATCH(TRUE,OFFSET(PLAN!$S$8,A97,0):'PLAN'!$S$246,0) -> 
A99: =A98+MATCH(TRUE,OFFSET(PLAN!$S$8,A98,0):'PLAN'!$S$246,0) -> 
A100: =A99+MATCH(TRUE,OFFSET(PLAN!$S$8,A99,0):'PLAN'!$S$246,0) -> 
A101: =A100+MATCH(TRUE,OFFSET(PLAN!$S$8,A100,0):'PLAN'!$S$246,0) -> 
A102: =A101+MATCH(TRUE,OFFSET(PLAN!$S$8,A101,0):'PLAN'!$S$246,0) ->  | D102: =INDEX(MvtsNiveaux,$A102,D$4) -> 
A103: =A102+MATCH(TRUE,OFFSET(PLAN!$S$8,A102,0):'PLAN'!$S$246,0) -> 
A104: =A103+MATCH(TRUE,OFFSET(PLAN!$S$8,A103,0):'PLAN'!$S$246,0) -> 
A105: =A104+MATCH(TRUE,OFFSET(PLAN!$S$8,A104,0):'PLAN'!$S$246,0) -> 
A106: =A105+MATCH(TRUE,OFFSET(PLAN!$S$8,A105,0):'PLAN'!$S$246,0) -> 
A107: =A106+MATCH(TRUE,OFFSET(PLAN!$S$8,A106,0):'PLAN'!$S$246,0) -> 
A108: =A107+MATCH(TRUE,OFFSET(PLAN!$S$8,A107,0):'PLAN'!$S$246,0) -> 
A109: =A108+MATCH(TRUE,OFFSET(PLAN!$S$8,A108,0):'PLAN'!$S$246,0) -> 
A110: =A109+MATCH(TRUE,OFFSET(PLAN!$S$8,A109,0):'PLAN'!$S$246,0) -> 
A111: =A110+MATCH(TRUE,OFFSET(PLAN!$S$8,A110,0):'PLAN'!$S$246,0) -> 
A112: =A111+MATCH(TRUE,OFFSET(PLAN!$S$8,A111,0):'PLAN'!$S$246,0) ->  | D112: =INDEX(MvtsNiveaux,$A112,D$4) -> 
A113: =A112+MATCH(TRUE,OFFSET(PLAN!$S$8,A112,0):'PLAN'!$S$246,0) -> 
A114: =A113+MATCH(TRUE,OFFSET(PLAN!$S$8,A113,0):'PLAN'!$S$246,0) -> 
A115: =A114+MATCH(TRUE,OFFSET(PLAN!$S$8,A114,0):'PLAN'!$S$246,0) -> 
A116: =A115+MATCH(TRUE,OFFSET(PLAN!$S$8,A115,0):'PLAN'!$S$246,0) -> 
A117: =A116+MATCH(TRUE,OFFSET(PLAN!$S$8,A116,0):'PLAN'!$S$246,0) -> 
A118: =A117+MATCH(TRUE,OFFSET(PLAN!$S$8,A117,0):'PLAN'!$S$246,0) -> 
A119: =A118+MATCH(TRUE,OFFSET(PLAN!$S$8,A118,0):'PLAN'!$S$246,0) -> 
A120: =A119+MATCH(TRUE,OFFSET(PLAN!$S$8,A119,0):'PLAN'!$S$246,0) -> 
A121: =A120+MATCH(TRUE,OFFSET(PLAN!$S$8,A120,0):'PLAN'!$S$246,0) -> 
A122: =A121+MATCH(TRUE,OFFSET(PLAN!$S$8,A121,0):'PLAN'!$S$246,0) ->  | D122: =INDEX(MvtsNiveaux,$A122,D$4) -> 
A123: =A122+MATCH(TRUE,OFFSET(PLAN!$S$8,A122,0):'PLAN'!$S$246,0) -> 
A124: =A123+MATCH(TRUE,OFFSET(PLAN!$S$8,A123,0):'PLAN'!$S$246,0) -> 
A125: =A124+MATCH(TRUE,OFFSET(PLAN!$S$8,A124,0):'PLAN'!$S$246,0) -> 
A126: =A125+MATCH(TRUE,OFFSET(PLAN!$S$8,A125,0):'PLAN'!$S$246,0) -> 
A127: =A126+MATCH(TRUE,OFFSET(PLAN!$S$8,A126,0):'PLAN'!$S$246,0) -> 
A128: =A127+MATCH(TRUE,OFFSET(PLAN!$S$8,A127,0):'PLAN'!$S$246,0) -> 
A129: =A128+MATCH(TRUE,OFFSET(PLAN!$S$8,A128,0):'PLAN'!$S$246,0) -> 
A130: =A129+MATCH(TRUE,OFFSET(PLAN!$S$8,A129,0):'PLAN'!$S$246,0) -> 
A131: =A130+MATCH(TRUE,OFFSET(PLAN!$S$8,A130,0):'PLAN'!$S$246,0) -> 
A132: =A131+MATCH(TRUE,OFFSET(PLAN!$S$8,A131,0):'PLAN'!$S$246,0) ->  | D132: =INDEX(MvtsNiveaux,$A132,D$4) -> 
A133: =A132+MATCH(TRUE,OFFSET(PLAN!$S$8,A132,0):'PLAN'!$S$246,0) -> 
A134: =A133+MATCH(TRUE,OFFSET(PLAN!$S$8,A133,0):'PLAN'!$S$246,0) ->  | C134: =INDEX(CPC_Utilise,$A134,0) ->  | F134: =IF(INDEX(MvtsNiveaux,$A134,F$4)<>1,"",">>") ->  | J134: =INDEX(MvtsNiveaux,$A134,J$4) -> 
A135: =A134+MATCH(TRUE,OFFSET(PLAN!$S$8,A134,0):'PLAN'!$S$246,0) ->  | G135: =-($E135<=$D135)*($E135-$D135) ->  | H135: =($E135>=$D135)*($E135-$D135) -> 
A136: =A135+MATCH(TRUE,OFFSET(PLAN!$S$8,A135,0):'PLAN'!$S$246,0) -> 
A137: =A136+MATCH(TRUE,OFFSET(PLAN!$S$8,A136,0):'PLAN'!$S$246,0) -> 
A138: =A137+MATCH(TRUE,OFFSET(PLAN!$S$8,A137,0):'PLAN'!$S$246,0) -> 
A139: =A138+MATCH(TRUE,OFFSET(PLAN!$S$8,A138,0):'PLAN'!$S$246,0) -> 
A140: =A139+MATCH(TRUE,OFFSET(PLAN!$S$8,A139,0):'PLAN'!$S$246,0) -> 
A141: =A140+MATCH(TRUE,OFFSET(PLAN!$S$8,A140,0):'PLAN'!$S$246,0) -> 
A142: =A141+MATCH(TRUE,OFFSET(PLAN!$S$8,A141,0):'PLAN'!$S$246,0) ->  | D142: =INDEX(MvtsNiveaux,$A142,D$4) -> 
A143: =A142+MATCH(TRUE,OFFSET(PLAN!$S$8,A142,0):'PLAN'!$S$246,0) -> 
A144: =A143+MATCH(TRUE,OFFSET(PLAN!$S$8,A143,0):'PLAN'!$S$246,0) -> 
A145: =A144+MATCH(TRUE,OFFSET(PLAN!$S$8,A144,0):'PLAN'!$S$246,0) -> 
A146: =A145+MATCH(TRUE,OFFSET(PLAN!$S$8,A145,0):'PLAN'!$S$246,0) -> 
A147: =A146+MATCH(TRUE,OFFSET(PLAN!$S$8,A146,0):'PLAN'!$S$246,0) -> 
A148: =A147+MATCH(TRUE,OFFSET(PLAN!$S$8,A147,0):'PLAN'!$S$246,0) -> 
A149: =A148+MATCH(TRUE,OFFSET(PLAN!$S$8,A148,0):'PLAN'!$S$246,0) -> 
A150: =A149+MATCH(TRUE,OFFSET(PLAN!$S$8,A149,0):'PLAN'!$S$246,0) -> 
A151: =A150+MATCH(TRUE,OFFSET(PLAN!$S$8,A150,0):'PLAN'!$S$246,0) -> 
A152: =A151+MATCH(TRUE,OFFSET(PLAN!$S$8,A151,0):'PLAN'!$S$246,0) ->  | D152: =INDEX(MvtsNiveaux,$A152,D$4) -> 
A153: =A152+MATCH(TRUE,OFFSET(PLAN!$S$8,A152,0):'PLAN'!$S$246,0) -> 
A154: =A153+MATCH(TRUE,OFFSET(PLAN!$S$8,A153,0):'PLAN'!$S$246,0) -> 
A155: =A154+MATCH(TRUE,OFFSET(PLAN!$S$8,A154,0):'PLAN'!$S$246,0) -> 
A156: =A155+MATCH(TRUE,OFFSET(PLAN!$S$8,A155,0):'PLAN'!$S$246,0) -> 
A157: =A156+MATCH(TRUE,OFFSET(PLAN!$S$8,A156,0):'PLAN'!$S$246,0) -> 
A158: =A157+MATCH(TRUE,OFFSET(PLAN!$S$8,A157,0):'PLAN'!$S$246,0) -> 
A159: =A158+MATCH(TRUE,OFFSET(PLAN!$S$8,A158,0):'PLAN'!$S$246,0) -> 
A160: =A159+MATCH(TRUE,OFFSET(PLAN!$S$8,A159,0):'PLAN'!$S$246,0) -> 
A161: =A160+MATCH(TRUE,OFFSET(PLAN!$S$8,A160,0):'PLAN'!$S$246,0) -> 
A162: =A161+MATCH(TRUE,OFFSET(PLAN!$S$8,A161,0):'PLAN'!$S$246,0) ->  | D162: =INDEX(MvtsNiveaux,$A162,D$4) -> 
A163: =A162+MATCH(TRUE,OFFSET(PLAN!$S$8,A162,0):'PLAN'!$S$246,0) -> 
A164: =A163+MATCH(TRUE,OFFSET(PLAN!$S$8,A163,0):'PLAN'!$S$246,0) -> 
A165: =A164+MATCH(TRUE,OFFSET(PLAN!$S$8,A164,0):'PLAN'!$S$246,0) -> 
A166: =A165+MATCH(TRUE,OFFSET(PLAN!$S$8,A165,0):'PLAN'!$S$246,0) -> 
A167: =A166+MATCH(TRUE,OFFSET(PLAN!$S$8,A166,0):'PLAN'!$S$246,0) -> 
A168: =A167+MATCH(TRUE,OFFSET(PLAN!$S$8,A167,0):'PLAN'!$S$246,0) -> 
A169: =A168+MATCH(TRUE,OFFSET(PLAN!$S$8,A168,0):'PLAN'!$S$246,0) -> 
A170: =A169+MATCH(TRUE,OFFSET(PLAN!$S$8,A169,0):'PLAN'!$S$246,0) -> 
A171: =A170+MATCH(TRUE,OFFSET(PLAN!$S$8,A170,0):'PLAN'!$S$246,0) -> 
A172: =A171+MATCH(TRUE,OFFSET(PLAN!$S$8,A171,0):'PLAN'!$S$246,0) ->  | D172: =INDEX(MvtsNiveaux,$A172,D$4) -> 
A173: =A172+MATCH(TRUE,OFFSET(PLAN!$S$8,A172,0):'PLAN'!$S$246,0) -> 
A174: =A173+MATCH(TRUE,OFFSET(PLAN!$S$8,A173,0):'PLAN'!$S$246,0) -> 
A175: =A174+MATCH(TRUE,OFFSET(PLAN!$S$8,A174,0):'PLAN'!$S$246,0) -> 
A176: =A175+MATCH(TRUE,OFFSET(PLAN!$S$8,A175,0):'PLAN'!$S$246,0) -> 
A177: =A176+MATCH(TRUE,OFFSET(PLAN!$S$8,A176,0):'PLAN'!$S$246,0) -> 
A178: =A177+MATCH(TRUE,OFFSET(PLAN!$S$8,A177,0):'PLAN'!$S$246,0) -> 
A179: =A178+MATCH(TRUE,OFFSET(PLAN!$S$8,A178,0):'PLAN'!$S$246,0) -> 
A180: =A179+MATCH(TRUE,OFFSET(PLAN!$S$8,A179,0):'PLAN'!$S$246,0) -> 
A181: =A180+MATCH(TRUE,OFFSET(PLAN!$S$8,A180,0):'PLAN'!$S$246,0) -> 
A182: =A181+MATCH(TRUE,OFFSET(PLAN!$S$8,A181,0):'PLAN'!$S$246,0) ->  | D182: =INDEX(MvtsNiveaux,$A182,D$4) -> 
A183: =A182+MATCH(TRUE,OFFSET(PLAN!$S$8,A182,0):'PLAN'!$S$246,0) -> 
A184: =A183+MATCH(TRUE,OFFSET(PLAN!$S$8,A183,0):'PLAN'!$S$246,0) -> 
A185: =A184+MATCH(TRUE,OFFSET(PLAN!$S$8,A184,0):'PLAN'!$S$246,0) -> 
A186: =A185+MATCH(TRUE,OFFSET(PLAN!$S$8,A185,0):'PLAN'!$S$246,0) -> 
A187: =A186+MATCH(TRUE,OFFSET(PLAN!$S$8,A186,0):'PLAN'!$S$246,0) -> 
A188: =A187+MATCH(TRUE,OFFSET(PLAN!$S$8,A187,0):'PLAN'!$S$246,0) -> 
A189: =A188+MATCH(TRUE,OFFSET(PLAN!$S$8,A188,0):'PLAN'!$S$246,0) -> 
A190: =A189+MATCH(TRUE,OFFSET(PLAN!$S$8,A189,0):'PLAN'!$S$246,0) -> 
A191: =A190+MATCH(TRUE,OFFSET(PLAN!$S$8,A190,0):'PLAN'!$S$246,0) -> 
A192: =A191+MATCH(TRUE,OFFSET(PLAN!$S$8,A191,0):'PLAN'!$S$246,0) ->  | D192: =INDEX(MvtsNiveaux,$A192,D$4) -> 
A193: =A192+MATCH(TRUE,OFFSET(PLAN!$S$8,A192,0):'PLAN'!$S$246,0) -> 
A194: =A193+MATCH(TRUE,OFFSET(PLAN!$S$8,A193,0):'PLAN'!$S$246,0) -> 
A195: =A194+MATCH(TRUE,OFFSET(PLAN!$S$8,A194,0):'PLAN'!$S$246,0) -> 
A196: =A195+MATCH(TRUE,OFFSET(PLAN!$S$8,A195,0):'PLAN'!$S$246,0) -> 
A197: =A196+MATCH(TRUE,OFFSET(PLAN!$S$8,A196,0):'PLAN'!$S$246,0) -> 
A198: =A197+MATCH(TRUE,OFFSET(PLAN!$S$8,A197,0):'PLAN'!$S$246,0) ->  | C198: =INDEX(CPC_Utilise,$A198,0) ->  | F198: =IF(INDEX(MvtsNiveaux,$A198,F$4)<>1,"",">>") ->  | J198: =INDEX(MvtsNiveaux,$A198,J$4) -> 
A199: =A198+MATCH(TRUE,OFFSET(PLAN!$S$8,A198,0):'PLAN'!$S$246,0) ->  | G199: =-($E199<=$D199)*($E199-$D199) ->  | H199: =($E199>=$D199)*($E199-$D199) -> 
A200: =A199+MATCH(TRUE,OFFSET(PLAN!$S$8,A199,0):'PLAN'!$S$246,0) -> 
A201: =A200+MATCH(TRUE,OFFSET(PLAN!$S$8,A200,0):'PLAN'!$S$246,0) -> 
... 141 more rows

Sheet CHARGES
F1: EtatCharges
B2: Club: | C2: =NOMASSOC -> Club Test | F2: Non Ventilé
B3: Compte de résultats (Charges) | D3: du | E3: =+Debut_Exercice -> 2018-09-01 | F3: =COUNTIF($F$6:$F$51,">0") -> 0
D4: au | E4: =+Fin_Exercice -> 2019-08-31 | F4: =SUM(F6:F49) -> 0
B5: CHARGES | D5: Montants | E5: Totaux
B6: 60 | C6: ACHATS | E6: =SUMIFS(COL_DEBIT,COL_CPC,">=600000",COL_CPC,"<610000")-SUMIFS(COL_CREDIT,COL_CPC,">=600000",COL_CPC,"<610000") -> 0 | F6: =+E6-SUM(D7:D11) -> 0
B7: 605 | C7: Achats équipement pour activité | D7: =SUMIFS(COL_DEBIT,COL_CPC,">=605000",COL_CPC,"<606000")-SUMIFS(COL_CREDIT,COL_CPC,">=605000",COL_CPC,"<606000") -> 0
B8: 606 | C8: Achat matière première fournitures | D8: =SUMIFS(COL_DEBIT,COL_CPC,">=606000",COL_CPC,"<607000")-SUMIFS(COL_CREDIT,COL_CPC,">=606000",COL_CPC,"<607000") -> 0
B9: 607 | C9: Achats marchandises pour revente | D9: =SUMIFS(COL_DEBIT,COL_CPC,">=607000",COL_CPC,"<608000")-SUMIFS(COL_CREDIT,COL_CPC,">=607000",COL_CPC,"<608000") -> 0
B10: 6037 | C10: Variation de stock de marchandises (+ou-) | D10: =SUMIFS(COL_DEBIT,COL_CPC,">=603700",COL_CPC,"<604000")-SUMIFS(COL_CREDIT,COL_CPC,">=603700",COL_CPC,"<604000") -> 0
A11: * | B11: 60. | H11: =IF(H12<>0,"Ecriture CHARGES passée au CREDIT","") -> 
B12: 61 | C12: SERVICES EXTERIEURS | E12: =SUMIFS(COL_DEBIT,COL_CPC,">=610000",COL_CPC,"<620000")-SUMIFS(COL_CREDIT,COL_CPC,">=610000",COL_CPC,"<620000") -> 312 | F12: =E12-SUM(D13:D18) -> 0 | H12: =SUMIF(TABLERECUP,">=600000",COL_CREDIT)-SUMIF(TABLERECUP,">=700000",COL_CREDIT) -> 0
B13: 611 | C13: Sous-traitance Générale | D13: =SUMIFS(COL_DEBIT,COL_CPC,">=611000",COL_CPC,"<612000")-SUMIFS(COL_CREDIT,COL_CPC,">=611000",COL_CPC,"<612000") -> 0
B14: 613 | C14: Locations | D14: =SUMIFS(COL_DEBIT,COL_CPC,">=613000",COL_CPC,"<614000")-SUMIFS(COL_CREDIT,COL_CPC,">=613000",COL_CPC,"<614000") -> 0
B15: 615 | C15: Travaux entretien et réparation | D15: =SUMIFS(COL_DEBIT,COL_CPC,">=615000",COL_CPC,"<616000")-SUMIFS(COL_CREDIT,COL_CPC,">=615000",COL_CPC,"<616000") -> 0
B16: 616 | C16: Primes d'assurance | D16: =SUMIFS(COL_DEBIT,COL_CPC,">=616000",COL_CPC,"<617000")-SUMIFS(COL_CREDIT,COL_CPC,">=616000",COL_CPC,"<617000") -> 312
B17: 617 | C17: Etudes et recherches | D17: =SUMIFS(COL_DEBIT,COL_CPC,">=617000",COL_CPC,"<618000")-SUMIFS(COL_CREDIT,COL_CPC,">=617000",COL_CPC,"<618000") -> 0
B18: 618 | C18: Documentation générale | D18: =SUMIFS(COL_DEBIT,COL_CPC,">=619000",COL_CPC,"<619000")-SUMIFS(COL_CREDIT,COL_CPC,">=618000",COL_CPC,"<619000") -> 0
B19: 62 | C19: AUTRES SERVICES EXTERIEURS | E19: =SUMIFS(COL_DEBIT,COL_CPC,">=620000",COL_CPC,"<630000")-SUMIFS(COL_CREDIT,COL_CPC,">=620000",COL_CPC,"<630000") -> 1125.56 | F19: =E19-SUM(D20:D27) -> 0
B20: 621 | C20: Personnel extérieur à l'Association | D20: =SUMIFS(COL_DEBIT,COL_CPC,">=621000",COL_CPC,"<622000")-SUMIFS(COL_CREDIT,COL_CPC,">=621000",COL_CPC,"<622000") -> 0
B21: 622 | C21: Frais de rémunération d'intermédiaires | D21: =SUMIFS(COL_DEBIT,COL_CPC,">=622000",COL_CPC,"<623000")-SUMIFS(COL_CREDIT,COL_CPC,">=622000",COL_CPC,"<623000") -> 0
B22: 623 | C22: Relations extérieures, manifestations | D22: =SUMIFS(COL_DEBIT,COL_CPC,">=623000",COL_CPC,"<624000")-SUMIFS(COL_CREDIT,COL_CPC,">=623000",COL_CPC,"<624000") -> 0
B23: 624 | C23: Transports de biens | D23: =SUMIFS(COL_DEBIT,COL_CPC,">=624000",COL_CPC,"<625000")-SUMIFS(COL_CREDIT,COL_CPC,">=624000",COL_CPC,"<625000") -> 0
B24: 625 | C24: Déplacements, missions, réception | D24: =SUMIFS(COL_DEBIT,COL_CPC,">=625000",COL_CPC,"<626000")-SUMIFS(COL_CREDIT,COL_CPC,">=625000",COL_CPC,"<626000") -> 1125.56
B25: 626 | C25: Frais postaux et télécommunication | D25: =SUMIFS(COL_DEBIT,COL_CPC,">=626000",COL_CPC,"<627000")-SUMIFS(COL_CREDIT,COL_CPC,">=626000",COL_CPC,"<627000") -> 0
B26: 627 | C26: Services bancaires et assimilés | D26: =SUMIFS(COL_DEBIT,COL_CPC,">=627000",COL_CPC,"<628000")-SUMIFS(COL_CREDIT,COL_CPC,">=627000",COL_CPC,"<628000") -> 0
B27: 628 | C27: Autres | D27: =SUMIFS(COL_DEBIT,COL_CPC,">=628000",COL_CPC,"<629000")-SUMIFS(COL_CREDIT,COL_CPC,">=628000",COL_CPC,"<629000") -> 0
B28: 63 | C28: IMPÔTS TAXES et VERSEMENTS ASSIMILÉS | E28: =SUMIFS(COL_DEBIT,COL_CPC,">=630000",COL_CPC,"<640000")-SUMIFS(COL_CREDIT,COL_CPC,">=630000",COL_CPC,"<640000") -> 0 | F28: =+E28-D29 -> 0
B29: 63. | D29: =SUMIFS(COL_DEBIT,COL_CPC,">=630000",COL_CPC,"<640000")-SUMIFS(COL_CREDIT,COL_CPC,">=630000",COL_CPC,"<640000") -> 0
B30: 64 | C30: CHARGES DE PERSONNEL | E30: =SUMIFS(COL_DEBIT,COL_CPC,">=640000",COL_CPC,"<650000")-SUMIFS(COL_CREDIT,COL_CPC,">=640000",COL_CPC,"<650000") -> 0 | F30: =E30-SUM(D31:D34) -> 0
B31: 641 | C31: Rémunération du personnel | D31: =SUMIFS(COL_DEBIT,COL_CPC,">=641000",COL_CPC,"<642000")-SUMIFS(COL_CREDIT,COL_CPC,">=641000",COL_CPC,"<642000") -> 0
B32: 645 | C32: Charges Sécurité sociale et prévoyance | D32: =SUMIFS(COL_DEBIT,COL_CPC,">=645000",COL_CPC,"<646000")-SUMIFS(COL_CREDIT,COL_CPC,">=645000",COL_CPC,"<646000") -> 0
B33: 647 | C33: Autres Charges Sociales | D33: =SUMIFS(COL_DEBIT,COL_CPC,">=647000",COL_CPC,"<648000")-SUMIFS(COL_CREDIT,COL_CPC,">=647000",COL_CPC,"<648000") -> 0
B34: 648 | C34: Autres Charges de Personnel | D34: =SUMIFS(COL_DEBIT,COL_CPC,">=648000",COL_CPC,"<649000")-SUMIFS(COL_CREDIT,COL_CPC,">=648000",COL_CPC,"<649000") -> 0
B35: 65 | C35: AUTRES CHARGES de GESTION COURANTE | E35: =SUMIFS(COL_DEBIT,COL_CPC,">=650000",COL_CPC,"<660000")-SUMIFS(COL_CREDIT,COL_CPC,">=650000",COL_CPC,"<660000") -> 0 | F35: =E35-(D36+D37) -> 0
B36: 651 | C36: Redevances | D36: =SUMIFS(COL_DEBIT,COL_CPC,">=651000",COL_CPC,"<652000")-SUMIFS(COL_CREDIT,COL_CPC,">=651000",COL_CPC,"<652000") -> 0
B37: 658 | C37: Charges diverses de gestion courante | D37: =SUM(D38:D44) -> 0
B38: 6581 | C38: Frais affiliations et cotisations | D38: =SUMIFS(COL_DEBIT,COL_CPC,">=658100",COL_CPC,"<658200")-SUMIFS(COL_CREDIT,COL_CPC,">=658100",COL_CPC,"<658200") -> 0
B39: 6582 | C39: Engagement équipe ou compétiteur | D39: =SUMIFS(COL_DEBIT,COL_CPC,">=658200",COL_CPC,"<658300")-SUMIFS(COL_CREDIT,COL_CPC,">=658200",COL_CPC,"<658300") -> 0
B40: 6583 | C40: Reversement licences | D40: =SUMIFS(COL_DEBIT,COL_CPC,">=658300",COL_CPC,"<658400")-SUMIFS(COL_CREDIT,COL_CPC,">=658300",COL_CPC,"<658400") -> 0
B41: 6584 | C41: Frais de mutation | D41: =SUMIFS(COL_DEBIT,COL_CPC,">=658400",COL_CPC,"<658500")-SUMIFS(COL_CREDIT,COL_CPC,">=658400",COL_CPC,"<658500") -> 0
B42: 6585 | C42: Frais de réclamations | D42: =SUMIFS(COL_DEBIT,COL_CPC,">=658500",COL_CPC,"<658600")-SUMIFS(COL_CREDIT,COL_CPC,">=658500",COL_CPC,"<658600") -> 0
B43: 6586 | C43: Pénalités, amendes | D43: =SUMIFS(COL_DEBIT,COL_CPC,">=658600",COL_CPC,"<658700")-SUMIFS(COL_CREDIT,COL_CPC,">=658600",COL_CPC,"<658700") -> 0
B44: 6588 | C44: Autres | D44: =SUMIFS(COL_DEBIT,COL_CPC,">=658800",COL_CPC,"<658900")-SUMIFS(COL_CREDIT,COL_CPC,">=658800",COL_CPC,"<658900") -> 0
B45: 66 | C45: CHARGES FINANCIERES | E45: =SUMIFS(COL_DEBIT,COL_CPC,">=660000",COL_CPC,"<670000")-SUMIFS(COL_CREDIT,COL_CPC,">=660000",COL_CPC,"<670000") -> 0 | F45: =+E45-D46 -> 0
B46: 66. | D46: =SUMIFS(COL_DEBIT,COL_CPC,">=660000",COL_CPC,"<670000")-SUMIFS(COL_CREDIT,COL_CPC,">=660000",COL_CPC,"<670000") -> 0
B47: 67 | C47: CHARGES EXCEPTIONNELLES | E47: =SUMIFS(COL_DEBIT,COL_CPC,">=670000",COL_CPC,"<680000")-SUMIFS(COL_CREDIT,COL_CPC,">=670000",COL_CPC,"<680000") -> 0 | F47: =+E47-D48 -> 0
B48: 67. | D48: =SUMIFS(COL_DEBIT,COL_CPC,">=670000",COL_CPC,"<680000")-SUMIFS(COL_CREDIT,COL_CPC,">=670000",COL_CPC,"<680000") -> 0
B49: 68 | C49: DOTATION AUX AMORTISSEMENTS | E49: =SUMIFS(COL_DEBIT,COL_CPC,">=680000",COL_CPC,"<690000")-SUMIFS(COL_CREDIT,COL_CPC,">=680000",COL_CPC,"<690000") -> 0 | F49: =+E49-D50 -> 0
B50: 68. | D50: =SUMIFS(COL_DEBIT,COL_CPC,">=680000",COL_CPC,"<690000")-SUMIFS(COL_CREDIT,COL_CPC,">=680000",COL_CPC,"<690000") -> 0
C51: TOTAL Charges | E51: =SUM(E6:E49) -> 1437.56

Sheet PRODUITS
E1: EtatProduits | F1: EtatResultats
B2: =NOMASSOC -> Club Test | F2: Non Ventilé
B3: Compte de résultats Produits | D3: du | E3: =+Debut_Exercice -> 2018-09-01 | F3: =COUNTIF($F$6:$F$44,">0") -> 0
D4: au | E4: =+Fin_Exercice -> 2019-08-31 | F4: =SUM(F6:F44) -> 0
B5: PRODUITS | D5: Montants | E5: Totaux
B6: 70 | C6: VENTES | E6: =SUMIFS(COL_CREDIT,COL_CPC,">=700000",COL_CPC,"<710000")-SUMIFS(COL_DEBIT,COL_CPC,">=700000",COL_CPC,"<710000") -> 0 | F6: =+E6-SUM(D7:D11) -> 0
B7: 706 | C7: Prestations de services | D7: =SUMIFS(COL_CREDIT,COL_CPC,">=706000",COL_CPC,"<707000")-SUMIFS(COL_DEBIT,COL_CPC,">=706000",COL_CPC,"<707000") -> 0
B8: 707 | C8: Vente de marchandises | D8: =SUMIFS(COL_CREDIT,COL_CPC,">=707000",COL_CPC,"<708000")-SUMIFS(COL_DEBIT,COL_CPC,">=707000",COL_CPC,"<708000") -> 0
B9: 708 | C9: Produits des activités annexes | D9: =SUMIFS(COL_CREDIT,COL_CPC,">=708000",COL_CPC,"<709000")-SUMIFS(COL_DEBIT,COL_CPC,">=708000",COL_CPC,"<709000") -> 0
A10: * | B10: 70.
A11: * | B11: 70. | H11: =IF(H12<>0,"Ecriture PRODUITS passée au DEBIT","") -> 
B12: 74 | C12: SUBVENTIONS | E12: =SUMIFS(COL_CREDIT,COL_CPC,">=740000",COL_CPC,"<750000")-SUMIFS(COL_DEBIT,COL_CPC,">=740000",COL_CPC,"<750000") -> 0 | F12: =+E12-(D13+D14+D15+D16+D31+D32) -> 0 | H12: =SUMIF(TABLERECUP,">=700000",COL_DEBIT)-SUMIF(TABLERECUP,">=799000",COL_DEBIT) -> 0
B13: 741 | C13: Subvention d’Etat | D13: =SUMIFS(COL_CREDIT,COL_CPC,">=741000",COL_CPC,"<742000")-SUMIFS(COL_DEBIT,COL_CPC,">=741000",COL_CPC,"<742000") -> 0
B14: 742 | C14: Subvention de la Région | D14: =SUMIFS(COL_CREDIT,COL_CPC,">=742000",COL_CPC,"<743000")-SUMIFS(COL_DEBIT,COL_CPC,">=742000",COL_CPC,"<743000") -> 0
B15: 743 | C15: Subvention du Département | D15: =SUMIFS(COL_CREDIT,COL_CPC,">=743000",COL_CPC,"<744000")-SUMIFS(COL_DEBIT,COL_CPC,">=743000",COL_CPC,"<744000") -> 0
B16: 744 | C16: Subvention de Villes | D16: =+D17+D28+D29+D30 -> 0
B17: 7441 | C17: Subventions de la Ville d'Eybens | D17: =SUM(D18:D27) -> 0
B18: 744111 | C18: Subv. Eybens Fonctionmt - Adhérents | D18: =SUMIFS(COL_CREDIT,COL_CPC,">=744111",COL_CPC,"<744112")-SUMIFS(COL_DEBIT,COL_CPC,">=744111",COL_CPC,"<744112") -> 0
B19: 744112 | C19: Subv. Eybens Fonctionmt - Encadrement | D19: =SUMIFS(COL_CREDIT,COL_CPC,">=744112",COL_CPC,"<744113")-SUMIFS(COL_DEBIT,COL_CPC,">=744112",COL_CPC,"<744113") -> 0
B20: 744113 | C20: Subv. Eybens Fonctiomt - Invest Dirigeants | D20: =SUMIFS(COL_CREDIT,COL_CPC,">=744113",COL_CPC,"<744114")-SUMIFS(COL_DEBIT,COL_CPC,">=744113",COL_CPC,"<744114") -> 0
B21: 744121 | C21: Subv. Eybens Compétition - Déplacements | D21: =SUMIFS(COL_CREDIT,COL_CPC,">=744121",COL_CPC,"<744122")-SUMIFS(COL_DEBIT,COL_CPC,">=744121",COL_CPC,"<744122") -> 0
B22: 744122 | C22: Subv. Eybens Compétition - Résultats | D22: =SUMIFS(COL_CREDIT,COL_CPC,">=744122",COL_CPC,"<744123")-SUMIFS(COL_DEBIT,COL_CPC,">=744122",COL_CPC,"<744123") -> 0
B23: 744123 | C23: Subv. Eybens Compétition - Officiels | D23: =SUMIFS(COL_CREDIT,COL_CPC,">=744123",COL_CPC,"<744124")-SUMIFS(COL_DEBIT,COL_CPC,">=744123",COL_CPC,"<744124") -> 0
B24: 744131 | C24: Subv. Eybens Projet - Projet Club | D24: =SUMIFS(COL_CREDIT,COL_CPC,">=744131",COL_CPC,"<744132")-SUMIFS(COL_DEBIT,COL_CPC,">=744131",COL_CPC,"<744132") -> 0
B25: 744132 | C25: Subv. Eybens Projet - Projet Ville | D25: =SUMIFS(COL_CREDIT,COL_CPC,">=744132",COL_CPC,"<744133")-SUMIFS(COL_DEBIT,COL_CPC,">=744132",COL_CPC,"<744133") -> 0
B26: 744133 | C26: Subv. Eybens Projet - Projet Ht Niveau | D26: =SUMIFS(COL_CREDIT,COL_CPC,">=744133",COL_CPC,"<744134")-SUMIFS(COL_DEBIT,COL_CPC,">=744133",COL_CPC,"<744134") -> 0
B27: 744140 | C27: Subv Eybens Autre Aide Exceptionnelle | D27: =SUMIFS(COL_CREDIT,COL_CPC,">=744140",COL_CPC,"<744141")-SUMIFS(COL_DEBIT,COL_CPC,">=744140",COL_CPC,"<744141") -> 0
B28: 7442 | C28: Subvention Ville de Grenoble | D28: =SUMIFS(COL_CREDIT,COL_CPC,">=744200",COL_CPC,"<744300")-SUMIFS(COL_DEBIT,COL_CPC,">=744200",COL_CPC,"<744300") -> 0
B29: 7443 | C29: Subvention Ville de Poisat | D29: =SUMIFS(COL_CREDIT,COL_CPC,">=744300",COL_CPC,"<744400")-SUMIFS(COL_DEBIT,COL_CPC,">=744300",COL_CPC,"<744400") -> 0
B30: 7444 | C30: Subvention Autre Ville | D30: =SUMIFS(COL_CREDIT,COL_CPC,">=744400",COL_CPC,"<744500")-SUMIFS(COL_DEBIT,COL_CPC,">=744400",COL_CPC,"<744500") -> 0
B31: 7448 | C31: Subvention Autre | D31: =SUMIFS(COL_CREDIT,COL_CPC,">=744800",COL_CPC,"<744900")-SUMIFS(COL_DEBIT,COL_CPC,">=744800",COL_CPC,"<744900") -> 0
B32: 745 | C32: Subventions Fédérales et assimilées | D32: =SUMIFS(COL_CREDIT,COL_CPC,">=745000",COL_CPC,"<746000")-SUMIFS(COL_DEBIT,COL_CPC,">=745000",COL_CPC,"<746000") -> 0
B33: 75 | C33: AUTRES PRODUITS GESTION COURANTE | E33: =SUMIFS(COL_CREDIT,COL_CPC,">=750000",COL_CPC,"<760000")-SUMIFS(COL_DEBIT,COL_CPC,">=750000",COL_CPC,"<760000") -> 2500 | F33: =+E33-SUM(D34:D36) -> 0
B34: 756 | C34: Cotisations | D34: =SUMIFS(COL_CREDIT,COL_CPC,">=756000",COL_CPC,"<757000")-SUMIFS(COL_DEBIT,COL_CPC,">=756000",COL_CPC,"<757000") -> 0
B35: 758 | C35: Produits Divers de gestion courante | D35: =SUMIFS(COL_CREDIT,COL_CPC,">=758000",COL_CPC,"<759000")-SUMIFS(COL_DEBIT,COL_CPC,">=758000",COL_CPC,"<759000") -> 0
A36: * | B36: 75. | D36: 2500
B37: 76 | C37: PRODUITS FINANCIERS | E37: =SUMIFS(COL_CREDIT,COL_CPC,">=760000",COL_CPC,"<770000")-SUMIFS(COL_DEBIT,COL_CPC,">=760000",COL_CPC,"<770000") -> 0 | F37: =+E37-SUM(D38:D40) -> 0
B38: 764 | C38: Revenus des valeurs mobilières de placement | D38: =SUMIFS(COL_CREDIT,COL_CPC,">=764000",COL_CPC,"<765000")-SUMIFS(COL_DEBIT,COL_CPC,">=764000",COL_CPC,"<765000") -> 0
B39: 768 | C39: Autres produits financiers | D39: =SUMIFS(COL_CREDIT,COL_CPC,">=768000",COL_CPC,"<769000")-SUMIFS(COL_DEBIT,COL_CPC,">=768000",COL_CPC,"<769000") -> 0
A40: * | B40: 76.
B41: 77 | C41: PRODUITS EXCEPTIONNELS | E41: =SUMIFS(COL_CREDIT,COL_CPC,">=770000",COL_CPC,"<780000")-SUMIFS(COL_DEBIT,COL_CPC,">=770000",COL_CPC,"<780000") -> 0 | F41: =+E41-SUM(D42:D43) -> 0
B42: 77. | D42: =SUMIFS(COL_CREDIT,COL_CPC,">=770000",COL_CPC,"<780000")-SUMIFS(COL_DEBIT,COL_CPC,">=770000",COL_CPC,"<780000") -> 0
A43: *
B44: B | C44: Total Produits | E44: =SUM(E6:E41) -> 2500
B46: A | C46: Rappel Total Charges | E46: =+'CHARGES '!E51 -> 1437.56
B48: B-A | C48: Résultat de l'exercice | D48: =IF(E48<0,"Déficit","Excédent") -> Excédent | E48: =+E44-E46 -> 1062.44

Sheet BILAN
B2: Association : | D2: =+NOMASSOC -> Club Test
B3: =IF(Fin_Exercice<>$H$3,"Bilan Intermédiaire","") -> Bilan Intermédiaire | D3: BILAN | F3: AU | H3: =MAXDATE -> 2018-11-30
B4: ACTIF | G4: PASSIF
B5: Comptes | G5: Comptes
B6: 20 | C6: Immobilisations incorporelles | E6: =SUMIFS(COL_DEBIT,COL_CPC,">=200000",COL_CPC,"<210000")-SUMIFS(COL_CREDIT,COL_CPC,">=200000",COL_CPC,"<210000") -> 0 | G6: 10 | H6: Fonds associatif (c+d+e+f+g) | J6: =SUM(I7:I11) -> 22727.16
G7: 1021 | H7: c) Valeur patrimoine intégré = | I7: =SUMIFS(COL_CREDIT,COL_CPC,">=102100",COL_CPC,"<102200")-SUMIFS(COL_DEBIT,COL_CPC,">=102100",COL_CPC,"<102200") -> 22727.16
B8: 21 | C8: Immobilisations corporelles(a-b) | E8: =+D9-D10 -> 0 | G8: 1025 | H8: d) Legs/donation contrepart, immobilis = | I8: =SUMIFS(COL_CREDIT,COL_CPC,">=102500",COL_CPC,"<102600")-SUMIFS(COL_DEBIT,COL_CPC,">=102500",COL_CPC,"<102600") -> 0
B9: 218 | C9: a) Immob. Corporelles = | D9: =SUMIFS(COL_DEBIT,COL_CPC,">=218000",COL_CPC,"<219000")-SUMIFS(COL_CREDIT,COL_CPC,">=218000",COL_CPC,"<219000") -> 0 | G9: 105 | H9: e) Ecart de réévaluation = | I9: =SUMIFS(COL_CREDIT,COL_CPC,">=105000",COL_CPC,"<106000")-SUMIFS(COL_DEBIT,COL_CPC,">=105000",COL_CPC,"<106000") -> 0
B10: 281 | C10: b) Amortissements = | D10: =SUMIFS(COL_CREDIT,COL_CPC,">=281000",COL_CPC,"<282000")-SUMIFS(COL_DEBIT,COL_CPC,">=281000",COL_CPC,"<282000") -> 0 | G10: 1063 | H10: f) Réserves = | I10: =SUMIFS(COL_CREDIT,COL_CPC,">=106300",COL_CPC,"<106400")-SUMIFS(COL_DEBIT,COL_CPC,">=106300",COL_CPC,"<106400") -> 0
G11: 1068 | H11: g) Projets = | I11: =SUMIFS(COL_CREDIT,COL_CPC,">=106800",COL_CPC,"<106900")-SUMIFS(COL_DEBIT,COL_CPC,">=106800",COL_CPC,"<106900") -> 0
A12: s | B12: 27 | C12: Immobilisations financières | E12: =SUMIFS(COL_DEBIT,COL_CPC,">=270000",COL_CPC,"<280000")-SUMIFS(COL_CREDIT,COL_CPC,">=270000",COL_CPC,"<280000") -> 0 | G12: 11 | H12: Report à nouveau (+ou -) | J12: =SUMIFS(COL_CREDIT,COL_CPC,">=110000",COL_CPC,"<120000")-SUMIFS(COL_DEBIT,COL_CPC,">=110000",COL_CPC,"<120000") -> 11165.09
C13: TOTAL IMMOBILISATIONS | E13: =+E6+E8+E12 -> 0 | G13: 12 | H13: Résultat de l'exercice (+h ou -i) | J13: =+I14-I15 -> 0
G14: 120 | H14: h) Excédent = | I14: =SUMIFS(COL_CREDIT,COL_CPC,"=120000")-SUMIFS(COL_DEBIT,COL_CPC,"=120000") -> 0
B15: 37 | C15: Stocks | E15: =SUMIFS(COL_DEBIT,COL_CPC,">=370000",COL_CPC,"<380000")-SUMIFS(COL_CREDIT,COL_CPC,">=370000",COL_CPC,"<380000") -> 0 | G15: 129 | H15: i) Déficit = | I15: =SUMIFS(COL_DEBIT,COL_CPC,"=129000")-SUMIFS(COL_CREDIT,COL_CPC,"=129000") -> 0
C17: TOTAL STOCK | E17: =+E15 -> 0 | H17: TOTAL FONDS PROPRES | J17: =+$J$6+$J$12+$J$13 -> 33892.25
B19: 409 | C19: Fournisseurs débiteurs | E19: =SUMIFS(COL_DEBIT,COL_CPC,">=409000",COL_CPC,"<410000")-SUMIFS(COL_CREDIT,COL_CPC,">=409000",COL_CPC,"<410000") -> 0 | G19: 15 | H19: PROVISIONS POUR RISQUES | J19: =+SUMIF(TABLERECUP,"=150000",COL_CREDIT)-SUMIF(TABLERECUP,"=150000",COL_DEBIT) -> 0
B20: 41 | C20: Clients- Adhérents | E20: =SUMIFS(COL_DEBIT,COL_CPC,">=410000",COL_CPC,"<420000")-SUMIFS(COL_CREDIT,COL_CPC,">=410000",COL_CPC,"<420000") -> 0
B21: 4687 | C21: Produits à recevoir | E21: =SUMIFS(COL_DEBIT,COL_CPC,">=468700",COL_CPC,"<468800")-SUMIFS(COL_CREDIT,COL_CPC,">=468700",COL_CPC,"<468800") -> 0 | G21: 16 | H21: Emprunts et dettes financières | J21: =SUMIFS(COL_CREDIT,COL_CPC,">=160000",COL_CPC,"<170000")-SUMIFS(COL_DEBIT,COL_CPC,">=160000",COL_CPC,"<170000") -> 0
B22: 486 | C22: Charges constatées d' avance | E22: =SUMIFS(COL_DEBIT,COL_CPC,">=486000",COL_CPC,"<487000")-SUMIFS(COL_CREDIT,COL_CPC,">=486000",COL_CPC,"<487000") -> 0 | G22: 40 | H22: Fournisseurs | J22: =SUMIFS(COL_CREDIT,COL_CPC,">=400000",COL_CPC,"<409000")-SUMIFS(COL_DEBIT,COL_CPC,">=400000",COL_CPC,"<409000") -> 0
G23: 42 | H23: Dettes personnel | J23: =SUMIFS(COL_CREDIT,COL_CPC,">=420000",COL_CPC,"<430000")-SUMIFS(COL_DEBIT,COL_CPC,">=420000",COL_CPC,"<430000") -> 0
C24: TOTAL CREANCES | E24: =SUM(E19:E22) -> 0 | G24: 43 | H24: Dettes organismes sociaux | J24: =SUMIFS(COL_CREDIT,COL_CPC,">=430000",COL_CPC,"<440000")-SUMIFS(COL_DEBIT,COL_CPC,">=430000",COL_CPC,"<440000") -> 0
G25: 44 | H25: Dettes Etat et Collectivités Publiques | J25: =SUMIFS(COL_CREDIT,COL_CPC,">=440000",COL_CPC,"<450000")-SUMIFS(COL_DEBIT,COL_CPC,">=440000",COL_CPC,"<450000") -> 0
B26: 50 | C26: Valeurs mobilières de placement | E26: =SUMIFS(COL_DEBIT,COL_CPC,">=500000",COL_CPC,"<510000")-SUMIFS(COL_CREDIT,COL_CPC,">=500000",COL_CPC,"<510000") -> 0 | G26: 460 | H26: Créditeurs divers | J26: =SUMIFS(COL_CREDIT,COL_CPC,">=460000",COL_CPC,"<=468700")-SUMIFS(COL_DEBIT,COL_CPC,">=460000",COL_CPC,"<468700") -> 1021.95
B27: 51 | C27: Banques | E27: =+IF(Solde_Banque>0,Solde_Banque,0) -> 39769.64 | G27: 487 | H27: Produits constatés d'avance | J27: =SUMIFS(COL_CREDIT,COL_CPC,">=487000",COL_CPC,"<490000")-SUMIFS(COL_DEBIT,COL_CPC,">=487000",COL_CPC,"<490000") -> 3793
B28: 53 | C28: Caisses | E28: =SUMIFS(COL_DEBIT,COL_CPC,">=530000",COL_CPC,"<540000")-SUMIFS(COL_CREDIT,COL_CPC,">=530000",COL_CPC,"<540000") -> 0 | H28: TOTAL DETTES | J28: =SUM(J21:J27) -> 4814.95
G30: 51 | H30: Banque créditrice | J30: =+IF(Solde_Banque<0,-Solde_Banque,0) -> 0
C31: TOTAL LIQUIDITES | E31: =+E26+E27+E28 -> 39769.64 | H31: TOTAL DECOUVERT BANCAIRE | J31: =+J30 -> 0
B32: =B3 -> Bilan Intermédiaire | G32: =B3 -> Bilan Intermédiaire
B33: édité le | C33: =TODAY() -> 2018-12-03 | D33: TOTAL GENERAL | E33: =+E31+E24+E17+E13 -> 39769.64 | G33: =IF(E33<>J33,"Actif-Passif = "&FIXED($E$33-$J$33,2)&" / "&H34,"") -> Actif-Passif = 1 062,44 / Résultat = 1 062,44 | I33: TOTAL GENERAL | J33: =+J31+J28+J19+J17 -> 38707.2
H34: ="Résultat = "&FIXED(I39,2) -> Résultat = 1 062,44
B36: Assistance automatique pour enregistrer résultat
C37: Solde DES Cptes Bancaires | D37: =SUMIFS(COL_DEBIT,COL_CPC,">=510000",COL_CPC,"<530000")-SUMIFS(COL_CREDIT,COL_CPC,">=510000",COL_CPC,"<530000") -> 39769.64 | H37: Différence Actif-Passif | I37: =+E33-J33 -> 1062.44
H39: Résultat Produits-Charges | I39: =+'PRODUITS '!E48 -> 1062.44
D40: =IF(I40=0,"","Attention Charges et/ou Produits erroné (voir colonnes NON VENTILÉ) - Total >> :") ->  | I40: =ABS('CHARGES '!F4)+ABS('PRODUITS '!F4) -> 0
G41: =IF(I37-I39=0,"OUI","NON") -> OUI | H41: Si X = Y : La Balance des Comptes est exacte vous pouvez enregistrer votre résultat
H42: dans le journal des OD comme ci-dessous, afin d'équilibrer votre BILAN
B43: =IF(AND(I37=I39,I40=0),"OK Enregistrer l'écriture (Journal OD) ci-contre -->",IF(AND(E33=J33,J13=I39),"O.K. BILAN ÉQUILIBRÉ","En anomalie")) -> OK Enregistrer l'écriture (Journal OD) ci-contre --> | E43: =Fin_Exercice -> 2019-08-31 | G43: CPC | H43: =+IF($I$39<0,"1 2 9 0 0 0","1 2 0 0 0 0") -> 1 2 0 0 0 0 | I43: Colonne | J43: =+IF($I$39>=0,"CREDIT","DEBIT") -> CREDIT | K43: =+ABS(I39) -> 1062.44
C44: =IF(AND(I37=I39,I40=0),TRUE,FALSE) -> TRUE | H44: Dans le cas contraire rechercher l'erreur dans les journaux
B48: * | C48: aujourdhui la date maxi des écritures est : | E48: =MAXDATE -> 2018-11-30
A50: * | B50: Remarque la date 'automatique' du BILAN applique la date la plus récente de vos enregistrements

Sheet CTE RESULT
A1: =NOMASSOC -> Club Test | D1: ="Compte de Résultat du "& TEXT(Debut_Exercice,"jj-mm-aaaa")&" au "& TEXT(Fin_Exercice,"jj-mm-aaaa") -> Compte de Résultat du 01-09-2018 au 31-08-2019
K2: Différences
A3: CHARGES | F3: PRODUITS | K3: Charges | L3: Produits
A4: 60 | B4: ACHATS | D4: =SUMIFS(COL_DEBIT,COL_CPC,">=600000",COL_CPC,"<610000")-SUMIFS(COL_CREDIT,COL_CPC,">=600000",COL_CPC,"<610000") -> 0 | F4: 70 | G4: VENTES | I4: =SUMIFS(COL_CREDIT,COL_CPC,">=700000",COL_CPC,"<710000")-SUMIFS(COL_DEBIT,COL_CPC,">=700000",COL_CPC,"<710000") -> 0 | K4: =+D8+D14+D23+D30 -> 0 | L4: =+I8+I14+I35+I39 -> 0
A5: 605 | B5: Achats équipement pour activité | C5: =SUMIFS(COL_DEBIT,COL_CPC,">=605000",COL_CPC,"<606000")-SUMIFS(COL_CREDIT,COL_CPC,">=605000",COL_CPC,"<606000") -> 0 | F5: 706 | G5: Prestations de services | H5: =SUMIFS(COL_CREDIT,COL_CPC,">=706000",COL_CPC,"<707000")-SUMIFS(COL_DEBIT,COL_CPC,">=706000",COL_CPC,"<707000") -> 0
A6: 606 | B6: Achat matière première fournitures | C6: =SUMIFS(COL_DEBIT,COL_CPC,">=606000",COL_CPC,"<607000")-SUMIFS(COL_CREDIT,COL_CPC,">=606000",COL_CPC,"<607000") -> 0 | F6: 707 | G6: Vente de marchandises | H6: =SUMIFS(COL_CREDIT,COL_CPC,">=707000",COL_CPC,"<708000")-SUMIFS(COL_DEBIT,COL_CPC,">=707000",COL_CPC,"<708000") -> 0
A7: 607 | B7: Achats marchandises pour revente | C7: =SUMIFS(COL_DEBIT,COL_CPC,">=607000",COL_CPC,"<608000")-SUMIFS(COL_CREDIT,COL_CPC,">=607000",COL_CPC,"<608000") -> 0 | D7: =IF(D4<>SUM(C5:C9),"Différence","") ->  | F7: 708 | G7: Produits des activités annexes | H7: =SUMIFS(COL_CREDIT,COL_CPC,">=708000",COL_CPC,"<709000")-SUMIFS(COL_DEBIT,COL_CPC,">=708000",COL_CPC,"<709000") -> 0 | I7: =IF(I4<>SUM(H5:H9),"Différence","") -> 
A8: 6037 | B8: Variation de stock de marchandises(+ou-) | C8: =SUMIFS(COL_DEBIT,COL_CPC,">=603700",COL_CPC,"<604000")-SUMIFS(COL_CREDIT,COL_CPC,">=603700",COL_CPC,"<604000") -> 0 | D8: =+D4-SUM(C5:C9) -> 0 | F8: 70. | I8: =+I4-SUM(H5:H9) -> 0
A9: 60.
A10: 61 | B10: SERVICES EXTERIEURS | D10: =SUMIFS(COL_DEBIT,COL_CPC,">=610000",COL_CPC,"<620000")-SUMIFS(COL_CREDIT,COL_CPC,">=610000",COL_CPC,"<620000") -> 312 | F10: 74 | G10: SUBVENTIONS | I10: =SUMIFS(COL_CREDIT,COL_CPC,">=740000",COL_CPC,"<750000")-SUMIFS(COL_DEBIT,COL_CPC,">=740000",COL_CPC,"<750000") -> 0
A11: 611 | B11: Sous-traitance Générale | C11: =SUMIFS(COL_DEBIT,COL_CPC,">=611000",COL_CPC,"<612000")-SUMIFS(COL_CREDIT,COL_CPC,">=611000",COL_CPC,"<612000") -> 0 | F11: 741 | G11: Subvention d’Etat | H11: =SUMIFS(COL_CREDIT,COL_CPC,">=741000",COL_CPC,"<742000")-SUMIFS(COL_DEBIT,COL_CPC,">=741000",COL_CPC,"<742000") -> 0
A12: 613 | B12: Location | C12: =SUMIFS(COL_DEBIT,COL_CPC,">=613000",COL_CPC,"<614000")-SUMIFS(COL_CREDIT,COL_CPC,">=613000",COL_CPC,"<614000") -> 0 | F12: 742 | G12: Subvention de la Région | H12: =SUMIFS(COL_CREDIT,COL_CPC,">=742000",COL_CPC,"<743000")-SUMIFS(COL_DEBIT,COL_CPC,">=742000",COL_CPC,"<743000") -> 0
A13: 615 | B13: Travaux entretien et réparation | C13: =SUMIFS(COL_DEBIT,COL_CPC,">=615000",COL_CPC,"<616000")-SUMIFS(COL_CREDIT,COL_CPC,">=615000",COL_CPC,"<616000") -> 0 | D13: =IF(D10<>SUM(C12:C16),"Différence","") ->  | F13: 743 | G13: Subvention du Département | H13: =SUMIFS(COL_CREDIT,COL_CPC,">=743000",COL_CPC,"<744000")-SUMIFS(COL_DEBIT,COL_CPC,">=743000",COL_CPC,"<744000") -> 0 | I13: =IF(I10<>H11+H12+H13+H14+H29+H30+H32,"Différence","") -> 
A14: 616 | B14: Primes d'assurance | C14: =SUMIFS(COL_DEBIT,COL_CPC,">=616000",COL_CPC,"<617000")-SUMIFS(COL_CREDIT,COL_CPC,">=616000",COL_CPC,"<617000") -> 312 | D14: =+D10-SUM(C11:C16) -> 0 | F14: 744 | G14: Subvention de Villes | H14: =+H15+H26+H27+H28 -> 0 | I14: =I10-(SUM(H11:H14)+SUM(H29:H32)) -> 0
A15: 617 | B15: Etudes et recherches | C15: =SUMIFS(COL_DEBIT,COL_CPC,">=617000",COL_CPC,"<618000")-SUMIFS(COL_CREDIT,COL_CPC,">=617000",COL_CPC,"<618000") -> 0 | F15: 7441 | G15: Subventions de la Ville d'Eybens | H15: =SUM(H16:H25) -> 0
A16: 618 | B16: Documentation générale | C16: =SUMIFS(COL_DEBIT,COL_CPC,">=619000",COL_CPC,"<619000")-SUMIFS(COL_CREDIT,COL_CPC,">=618000",COL_CPC,"<619000") -> 0 | F16: 744111 | G16: Subv. Eybens Fonctionmt - Adhérents | H16: =SUMIFS(COL_CREDIT,COL_CPC,">=744111",COL_CPC,"<744112")-SUMIFS(COL_DEBIT,COL_CPC,">=744111",COL_CPC,"<744112") -> 0
A17: 62 | B17: AUTRES SERVICES EXTERIEURS | D17: =SUMIFS(COL_DEBIT,COL_CPC,">=620000",COL_CPC,"<630000")-SUMIFS(COL_CREDIT,COL_CPC,">=620000",COL_CPC,"<630000") -> 1125.56 | F17: 744112 | G17: Subv. Eybens Fonctionmt - Encadrement | H17: =SUMIFS(COL_CREDIT,COL_CPC,">=744112",COL_CPC,"<744113")-SUMIFS(COL_DEBIT,COL_CPC,">=744112",COL_CPC,"<744113") -> 0
A18: 621 | B18: Personnel extérieur à l'Association | C18: =SUMIFS(COL_DEBIT,COL_CPC,">=621000",COL_CPC,"<622000")-SUMIFS(COL_CREDIT,COL_CPC,">=621000",COL_CPC,"<622000") -> 0 | F18: 744113 | G18: Subv. Eybens Fonctiomt - Invest Dirigeants | H18: =SUMIFS(COL_CREDIT,COL_CPC,">=744113",COL_CPC,"<744114")-SUMIFS(COL_DEBIT,COL_CPC,">=744113",COL_CPC,"<744114") -> 0
A19: 622 | B19: Frais de rémunération d'intermédiaires | C19: =SUMIFS(COL_DEBIT,COL_CPC,">=622000",COL_CPC,"<623000")-SUMIFS(COL_CREDIT,COL_CPC,">=622000",COL_CPC,"<623000") -> 0 | F19: 744121 | G19: Subv. Eybens Compétition - Déplacements | H19: =SUMIFS(COL_CREDIT,COL_CPC,">=744121",COL_CPC,"<744122")-SUMIFS(COL_DEBIT,COL_CPC,">=744121",COL_CPC,"<744122") -> 0
A20: 623 | B20: Relations extérieures, manifestations | C20: =SUMIFS(COL_DEBIT,COL_CPC,">=623000",COL_CPC,"<624000")-SUMIFS(COL_CREDIT,COL_CPC,">=623000",COL_CPC,"<624000") -> 0 | F20: 744122 | G20: Subv. Eybens Compétition - Résultats | H20: =SUMIFS(COL_CREDIT,COL_CPC,">=744122",COL_CPC,"<744123")-SUMIFS(COL_DEBIT,COL_CPC,">=744122",COL_CPC,"<744123") -> 0
A21: 624 | B21: Transports de biens | C21: =SUMIFS(COL_DEBIT,COL_CPC,">=624000",COL_CPC,"<625000")-SUMIFS(COL_CREDIT,COL_CPC,">=624000",COL_CPC,"<625000") -> 0 | D21: =+D17-SUM(C18:C25) -> 0 | F21: 744123 | G21: Subv. Eybens Compétition - Officiels | H21: =SUMIFS(COL_CREDIT,COL_CPC,">=744123",COL_CPC,"<744124")-SUMIFS(COL_DEBIT,COL_CPC,">=744123",COL_CPC,"<744124") -> 0
A22: 625 | B22: Déplacements, missions,réception | C22: =SUMIFS(COL_DEBIT,COL_CPC,">=625000",COL_CPC,"<626000")-SUMIFS(COL_CREDIT,COL_CPC,">=625000",COL_CPC,"<626000") -> 1125.56 | F22: 744131 | G22: Subv. Eybens Projet - Projet Club | H22: =SUMIFS(COL_CREDIT,COL_CPC,">=744131",COL_CPC,"<744132")-SUMIFS(COL_DEBIT,COL_CPC,">=744131",COL_CPC,"<744132") -> 0
A23: 626 | B23: Frais postaux et télécommunication | C23: =SUMIFS(COL_DEBIT,COL_CPC,">=626000",COL_CPC,"<627000")-SUMIFS(COL_CREDIT,COL_CPC,">=626000",COL_CPC,"<627000") -> 0 | F23: 744132 | G23: Subv. Eybens Projet - Projet Ville | H23: =SUMIFS(COL_CREDIT,COL_CPC,">=744132",COL_CPC,"<744133")-SUMIFS(COL_DEBIT,COL_CPC,">=744132",COL_CPC,"<744133") -> 0
A24: 627 | B24: Services bancaires | C24: =SUMIFS(COL_DEBIT,COL_CPC,">=627000",COL_CPC,"<628000")-SUMIFS(COL_CREDIT,COL_CPC,">=627000",COL_CPC,"<628000") -> 0 | F24: 744133 | G24: Subv. Eybens Projet - Projet Ht Niveau | H24: =SUMIFS(COL_CREDIT,COL_CPC,">=744133",COL_CPC,"<744134")-SUMIFS(COL_DEBIT,COL_CPC,">=744133",COL_CPC,"<744134") -> 0
A25: 628 | B25: Autres services | C25: =SUMIFS(COL_DEBIT,COL_CPC,">=628000",COL_CPC,"<629000")-SUMIFS(COL_CREDIT,COL_CPC,">=628000",COL_CPC,"<629000") -> 0 | F25: 744140 | G25: Subv Eybens Autre Aide Exceptionnelle | H25: =SUMIFS(COL_CREDIT,COL_CPC,">=744140",COL_CPC,"<744141")-SUMIFS(COL_DEBIT,COL_CPC,">=744140",COL_CPC,"<744141") -> 0
A26: 63 | B26: IMPOTS TAXES et VERSEMENTS ASSIMILES | D26: =SUMIFS(COL_DEBIT,COL_CPC,">=630000",COL_CPC,"<640000")-SUMIFS(COL_CREDIT,COL_CPC,">=630000",COL_CPC,"<640000") -> 0 | F26: 7442 | G26: Subvention Ville de Grenoble | H26: =SUMIFS(COL_CREDIT,COL_CPC,">=744200",COL_CPC,"<744300")-SUMIFS(COL_DEBIT,COL_CPC,">=744200",COL_CPC,"<744300") -> 0
A27: 63. | C27: =SUMIFS(COL_DEBIT,COL_CPC,">=630000",COL_CPC,"<640000")-SUMIFS(COL_CREDIT,COL_CPC,">=630000",COL_CPC,"<640000") -> 0 | F27: 7443 | G27: Subvention Ville de Poisat | H27: =SUMIFS(COL_CREDIT,COL_CPC,">=744300",COL_CPC,"<744400")-SUMIFS(COL_DEBIT,COL_CPC,">=744300",COL_CPC,"<744400") -> 0
A28: 64 | B28: CHARGES DE PERSONNEL | D28: =SUMIFS(COL_DEBIT,COL_CPC,">=640000",COL_CPC,"<650000")-SUMIFS(COL_CREDIT,COL_CPC,">=640000",COL_CPC,"<650000") -> 0 | F28: 7444 | G28: Subvention Autre Ville | H28: =SUMIFS(COL_CREDIT,COL_CPC,">=744400",COL_CPC,"<744500")-SUMIFS(COL_DEBIT,COL_CPC,">=744400",COL_CPC,"<744500") -> 0
A29: 641 | B29: Rémunération du personnel | C29: =SUMIFS(COL_DEBIT,COL_CPC,">=641000",COL_CPC,"<642000")-SUMIFS(COL_CREDIT,COL_CPC,">=641000",COL_CPC,"<642000") -> 0 | D29: =IF(D28<>SUM(C29:C32),"Différence","") ->  | F29: 7448 | G29: Subvention Autre | H29: =SUMIFS(COL_CREDIT,COL_CPC,">=744800",COL_CPC,"<744900")-SUMIFS(COL_DEBIT,COL_CPC,">=744800",COL_CPC,"<744900") -> 0
A30: 645 | B30: Charges Sécurité sociale et prévoyance | C30: =SUMIFS(COL_DEBIT,COL_CPC,">=645000",COL_CPC,"<646000")-SUMIFS(COL_CREDIT,COL_CPC,">=645000",COL_CPC,"<646000") -> 0 | D30: =+D28-SUM(C29:C32) -> 0 | F30: 745 | G30: Subventions Fédérales et assimilées | H30: =SUMIFS(COL_CREDIT,COL_CPC,">=745000",COL_CPC,"<746000")-SUMIFS(COL_DEBIT,COL_CPC,">=745000",COL_CPC,"<746000") -> 0
A31: 647 | B31: Autres Charges Sociales | C31: =SUMIFS(COL_DEBIT,COL_CPC,">=647000",COL_CPC,"<648000")-SUMIFS(COL_CREDIT,COL_CPC,">=647000",COL_CPC,"<648000") -> 0
A32: 648 | B32: Autres Charges de Personnel | C32: =SUMIFS(COL_DEBIT,COL_CPC,">=648000",COL_CPC,"<649000")-SUMIFS(COL_CREDIT,COL_CPC,">=648000",COL_CPC,"<649000") -> 0
A33: 65 | B33: AUTRES CHARGES de GESTION COURANTE | D33: =SUMIFS(COL_DEBIT,COL_CPC,">=650000",COL_CPC,"<660000")-SUMIFS(COL_CREDIT,COL_CPC,">=650000",COL_CPC,"<660000") -> 0 | F33: 75 | G33: AUTRES PRODUITS GESTION COURANTE | I33: =SUMIFS(COL_CREDIT,COL_CPC,">=750000",COL_CPC,"<760000")-SUMIFS(COL_DEBIT,COL_CPC,">=750000",COL_CPC,"<760000") -> 2500
A34: 651 | B34: Redevances | C34: =SUMIFS(COL_DEBIT,COL_CPC,">=651000",COL_CPC,"<652000")-SUMIFS(COL_CREDIT,COL_CPC,">=651000",COL_CPC,"<652000") -> 0 | F34: 756 | G34: Cotisations | H34: =SUMIFS(COL_CREDIT,COL_CPC,">=756000",COL_CPC,"<757000")-SUMIFS(COL_DEBIT,COL_CPC,">=756000",COL_CPC,"<757000") -> 0 | I34: =IF(I33<>SUM(H34:H36),"Différence","") -> 
A35: 658 | B35: Charges diverses de gestion courante | C35: =SUM(C36:C42) -> 0 | F35: 758 | G35: Produits Divers de gestion courante | H35: =SUMIFS(COL_CREDIT,COL_CPC,">=758000",COL_CPC,"<759000")-SUMIFS(COL_DEBIT,COL_CPC,">=758000",COL_CPC,"<759000") -> 0 | I35: =+I33-SUM(H34:H36) -> 0
A36: 6581 | B36: Frais affiliations et cotisations | C36: =SUMIFS(COL_DEBIT,COL_CPC,">=658100",COL_CPC,"<658200")-SUMIFS(COL_CREDIT,COL_CPC,">=658100",COL_CPC,"<658200") -> 0 | D36: =D33-SUM(C34:C42) -> 0 | F36: 75. | H36: 2500
A37: 6582 | B37: Engagement équipe ou compétiteur | C37: =SUMIFS(COL_DEBIT,COL_CPC,">=658200",COL_CPC,"<658300")-SUMIFS(COL_CREDIT,COL_CPC,">=658200",COL_CPC,"<658300") -> 0 | F37: 76 | G37: PRODUITS FINANCIERS | I37: =SUMIFS(COL_CREDIT,COL_CPC,">=760000",COL_CPC,"<770000")-SUMIFS(COL_DEBIT,COL_CPC,">=760000",COL_CPC,"<770000") -> 0
A38: 6583 | B38: Reversement licences | C38: =SUMIFS(COL_DEBIT,COL_CPC,">=658300",COL_CPC,"<658400")-SUMIFS(COL_CREDIT,COL_CPC,">=658300",COL_CPC,"<658400") -> 0 | F38: 764 | G38: Revenus des val mobilières de placement | H38: =SUMIFS(COL_CREDIT,COL_CPC,">=764000",COL_CPC,"<765000")-SUMIFS(COL_DEBIT,COL_CPC,">=764000",COL_CPC,"<765000") -> 0 | I38: =IF(I37<>SUM(H39:H41),"Différence","") -> 
A39: 6584 | B39: Frais de mutation | C39: =SUMIFS(COL_DEBIT,COL_CPC,">=658400",COL_CPC,"<658500")-SUMIFS(COL_CREDIT,COL_CPC,">=658400",COL_CPC,"<658500") -> 0 | F39: 768 | G39: Autres produits financiers | H39: =SUMIFS(COL_CREDIT,COL_CPC,">=768000",COL_CPC,"<769000")-SUMIFS(COL_DEBIT,COL_CPC,">=768000",COL_CPC,"<769000") -> 0 | I39: =+I37-SUM(H38:H40) -> 0
A40: 6585 | B40: Frais de réclamations | C40: =SUMIFS(COL_DEBIT,COL_CPC,">=658500",COL_CPC,"<658600")-SUMIFS(COL_CREDIT,COL_CPC,">=658500",COL_CPC,"<658600") -> 0 | F40: 76
A41: 6586 | B41: Pénalités, amendes | C41: =SUMIFS(COL_DEBIT,COL_CPC,">=658600",COL_CPC,"<658700")-SUMIFS(COL_CREDIT,COL_CPC,">=658600",COL_CPC,"<658700") -> 0 | F41: 77 | G41: PRODUITS EXCEPTIONNELS | I41: =SUMIFS(COL_CREDIT,COL_CPC,">=770000",COL_CPC,"<780000")-SUMIFS(COL_DEBIT,COL_CPC,">=770000",COL_CPC,"<780000") -> 0
A42: 6588 | B42: Autres | C42: =SUMIFS(COL_DEBIT,COL_CPC,">=658800",COL_CPC,"<658900")-SUMIFS(COL_CREDIT,COL_CPC,">=658800",COL_CPC,"<658900") -> 0 | F42: 77. | H42: =SUMIFS(COL_CREDIT,COL_CPC,">=770000",COL_CPC,"<780000")-SUMIFS(COL_DEBIT,COL_CPC,">=770000",COL_CPC,"<780000") -> 0
A43: 66 | B43: CHARGES FINANCIERES | D43: =SUMIFS(COL_DEBIT,COL_CPC,">=660000",COL_CPC,"<670000")-SUMIFS(COL_CREDIT,COL_CPC,">=660000",COL_CPC,"<670000") -> 0
A44: 66. | C44: =SUMIFS(COL_DEBIT,COL_CPC,">=660000",COL_CPC,"<670000")-SUMIFS(COL_CREDIT,COL_CPC,">=660000",COL_CPC,"<670000") -> 0
A45: 67 | B45: CHARGES EXCEPTIONNELLES | D45: =SUMIFS(COL_DEBIT,COL_CPC,">=670000",COL_CPC,"<680000")-SUMIFS(COL_CREDIT,COL_CPC,">=670000",COL_CPC,"<680000") -> 0
A46: 67. | C46: =SUMIFS(COL_DEBIT,COL_CPC,">=670000",COL_CPC,"<680000")-SUMIFS(COL_CREDIT,COL_CPC,">=670000",COL_CPC,"<680000") -> 0
A47: 68 | B47: DOTATION AMORTISSEMENTS | D47: =SUMIFS(COL_DEBIT,COL_CPC,">=680000",COL_CPC,"<690000")-SUMIFS(COL_CREDIT,COL_CPC,">=680000",COL_CPC,"<690000") -> 0
A48: 68. | C48: =SUMIFS(COL_DEBIT,COL_CPC,">=680000",COL_CPC,"<690000")-SUMIFS(COL_CREDIT,COL_CPC,">=680000",COL_CPC,"<690000") -> 0
C49: TOTAL CHARGES | D49: =SUM(D4:D47) -> 1437.56 | H49: TOTAL PRODUITS | I49: =SUM(I4:I45) -> 2500
C50: =IF(D50<"","Résultat de l'exercice <EXCEDENT>","") -> Résultat de l'exercice <EXCEDENT> | D50: =IF($I$49>$D$49,$I$49-$D$49,"") -> 1062.44 | H50: =IF(I50<"","Résultat de l'exercice <DEFICIT>","") ->  | I50: =IF($I$49<$D$49,-($I$49-$D$49),"") -> 
C51: TOTAL | D51: =SUM(D49:D50) -> 2500 | H51: TOTAL | I51: =SUM(I49:I50) -> 2500
C54: BALANCE DES CONTRIBUTIONS VOLONTAIRES
B55: EMPLOIS | D55: =SUM(C57:C60) -> 0 | G55: CONTRIBUTIONS | I55: =SUM(H56:H58) -> 0
A56: 861 | B56: Total mises à disposition | C56: =+C57+C58 -> 0 | F56: 870 | G56: Bénévolat | H56: =SUMIF(TABLECV_RECUP,"=870000",ColCV_contrib) -> 0
A57: 8611 | B57: Mise à disposition gratuite de locaux | C57: =SUMIF(TABLECV_RECUP,"=861100",ColCV_emplois) -> 0 | F57: 871 | G57: Prestations en nature | H57: =SUMIF(TABLECV_RECUP,"=871000",ColCV_contrib) -> 0
A58: 8612 | B58: Mise à dispostion gratuite de matériel | C58: =SUMIF(TABLECV_RECUP,"=861200",ColCV_emplois) -> 0 | F58: 875 | G58: Dons en nature | H58: =SUMIF(TABLECV_RECUP,"=875000",ColCV_contrib) -> 0
A59: 862 | B59: Prestations | C59: =SUMIF(TABLECV_RECUP,"=862000",ColCV_emplois) -> 0
A60: 864 | B60: Personnel Bénévole | C60: =SUMIF(TABLECV_RECUP,"=864000",ColCV_emplois) -> 0
C61: BALANCE GENERALE
B62: Total CHARGES + EMPLOIS | D62: =+D55+D51 -> 2500 | G62: Total PRODUITS + CONTRIBUTIONS | I62: =+I55+I51 -> 2500

Sheet Previsionnel
A1: =NOMASSOC -> Club Test | D1: ="Budget PREVISIONNEL "&"SAISON "&YEAR(Debut_Exercice)+1&" - "&YEAR(Debut_Exercice)+2 -> Budget PREVISIONNEL SAISON 2019 - 2020
K2: Différences
A3: CHARGES | F3: PRODUITS | K3: Charges | L3: Produits
A4: 60 | B4: ACHATS | D4: =SUM(C5:C9) -> 0 | F4: 70 | G4: VENTES | I4: =SUM(H5:H9) -> 0 | K4: =+D8+D14+D23+D30 -> 0 | L4: =+I8+I14+I33+I38 -> 0
A5: 605 | B5: Achats équipement pour activité | F5: 706 | G5: Prestations de services
A6: 606 | B6: Achat matière première fournitures | F6: 707 | G6: Vente de marchandises
A7: 607 | B7: Achats marchandises pour revente | F7: 708 | G7: Produits des activités annexes
A8: 6037 | B8: Variation de stock de marchandises(+ou-) | F8: 70.
A9: 60.
A10: 61 | B10: SERVICES EXTERIEURS | D10: =SUM(C11:C16) -> 0 | F10: 74 | G10: SUBVENTIONS | I10: =H11+H12+H13+H14+H29+H30 -> 0
A11: 611 | B11: Sous-traitance Générale | F11: 741 | G11: Subvention d’Etat
A12: 613 | B12: Location | F12: 742 | G12: Subvention de la Région
A13: 615 | B13: Travaux entretien et réparation | D13: =IF(D10<>SUM(C12:C16),"Différence","") ->  | F13: 743 | G13: Subvention du Département
A14: 616 | B14: Primes d'assurance | D14: =+D10-SUM(C12:C16) -> 0 | F14: 744 | G14: Subvention de Villes | H14: =+H15+H26+H27+H28 -> 0
A15: 617 | B15: Etudes et recherches | F15: 7441 | G15: Subventions de la Ville d'Eybens | H15: =SUM(H16:H25) -> 0
A16: 618 | B16: Documentation générale | F16: 744111 | G16: Subv. Eybens Fonctionmt - Adhérents
A17: 62 | B17: AUTRES SERVICES EXTERIEURS | D17: =SUM(C18:C25) -> 0 | F17: 744112 | G17: Subv. Eybens Fonctionmt - Encadrement
A18: 621 | B18: Personnel extérieur à l'Association | F18: 744113 | G18: Subv. Eybens Fonctiomt - Invest Dirigeants
A19: 622 | B19: Frais de rémunération d'intermédiaires | F19: 744121 | G19: Subv. Eybens Compétition - Déplacements
A20: 623 | B20: Relations extérieures, manifestations | F20: 744122 | G20: Subv. Eybens Compétition - Résultats
A21: 624 | B21: Transports de biens | F21: 744123 | G21: Subv. Eybens Compétition - Officiels
A22: 625 | B22: Déplacements, missions,réception | F22: 744131 | G22: Subv. Eybens Projet - Projet Club
A23: 626 | B23: Frais postaux et télécommunication | F23: 744132 | G23: Subv. Eybens Projet - Projet Ville
A24: 627 | B24: Services bancaires | F24: 744133 | G24: Subv. Eybens Projet - Projet Ht Niveau
A25: 628 | B25: Autres services | F25: 744140 | G25: Subv Eybens Autre Aide Exceptionnelle
A26: 63 | B26: IMPOTS TAXES et VERSEMENTS ASSIMILES | D26: =C27 -> 0 | F26: 7442 | G26: Subvention Ville de Grenoble
A27: 63. | F27: 7443 | G27: Subvention Ville de Poisat
A28: 64 | B28: CHARGES DE PERSONNEL | D28: =SUM(C29:C31) -> 0 | F28: 7444 | G28: Subvention Autre Ville
A29: 641 | B29: Rémunération du personnel | D29: =IF(D28<>SUM(C29:C31),"Différence","") ->  | F29: 7448 | G29: Subvention Autre
A30: 645 | B30: Charges Sécurité sociale et prévoyance | F30: 745 | G30: Subventions Fédérales et assimilées
A31: 648 | B31: Autres Charges de Personnel
A32: 65 | B32: AUTRES CHARGES de GESTION COURANTE | D32: =+C33+C34 -> 0 | F32: 75 | G32: AUTRES PRODUITS GESTION COURANTE | I32: =SUM(H33:H35) -> 0
A33: 651 | B33: Redevances | F33: 756 | G33: Cotisations
A34: 658 | B34: Charges diverses de gestion courante | C34: =SUM(C35:C41) -> 0 | F34: 758 | G34: Produits Divers de gestion courante
A35: 6581 | B35: Frais affiliations et cotisations | F35: 75.
A36: 6582 | B36: Engagement équipe ou compétiteur | F36: 76 | G36: PRODUITS FINANCIERS | I36: =SUM(H37:H39) -> 0
A37: 6583 | B37: Reversement licences | F37: 764 | G37: Revenus des val mobilières de placement
A38: 6584 | B38: Frais de mutation | F38: 768 | G38: Autres produits financiers
A39: 6585 | B39: Frais de réclamations | F39: 76
A40: 6586 | B40: Pénalités, amendes | F40: 77 | G40: PRODUITS EXCEPTIONNELS | I40: =H41 -> 0
A41: 6588 | B41: Autres | F41: 77.
A42: 66 | B42: CHARGES FINANCIERES | D42: =+C43 -> 0
A43: 66.
A44: 67 | B44: CHARGES EXCEPTIONNELLES | D44: =+C45 -> 0
A45: 67.
A46: 68 | B46: DOTATION AMORTISSEMENTS | D46: =+C47 -> 0
A47: 68.
C48: TOTAL CHARGES | D48: =SUM(D4:D46) -> 0 | H48: TOTAL PRODUITS | I48: =SUM(I4:I44) -> 0
C49: =IF(D49<"","Résultat de l'exercice <EXCEDENT>","") ->  | D49: =IF($I$48>$D$48,$I$48-$D$48,"") ->  | H49: =IF(I49<"","Résultat de l'exercice <DEFICIT>","") ->  | I49: =IF($I$48<$D$48,-($I$48-$D$48),"") -> 
C50: TOTAL | D50: =SUM(D48:D49) -> 0 | H50: TOTAL | I50: =SUM(I48:I49) -> 0
C53: BALANCE DES CONTRIBUTIONS VOLONTAIRES
B54: EMPLOIS | D54: =SUM(C56:C59) -> 0 | G54: CONTRIBUTIONS | I54: =SUM(H56:H57) -> 0
A55: 861 | B55: Total mises à disposition | C55: =+C56+C57 -> 0 | F55: 870 | G55: Bénévolat
A56: 8611 | B56: Mise à disposition gratuite de locaux | F56: 871 | G56: Prestations en nature
A57: 8612 | B57: Mise à dispostion gratuite de matériel | F57: 875 | G57: Dons en nature
A58: 862 | B58: Prestations
A59: 864 | B59: Personnel Bénévole
C60: BALANCE GENERALE
B61: Total CHARGES + EMPLOIS | D61: =+D54+D50 -> 0 | G61: Total PRODUITS + CONTRIBUTIONS | I61: =+I54+I50 -> 0

Sheet SuiviChqs
B1: ESPACE RESERVÉ pour un suivi des chèques émis et faciliter le travail dit de "régularisations" en fin d'exercice | M1: CODES ANOMALIES Cumulables | N1: cumulable | O1: 1 | P1: non pointé | S1: =COUNTIF($T$12:$T$107,">0") -> 55
B2: SaisieChqDyn | D2: =MAX(ROW(C12:C300)*(C12:C300<>0))-11 -> 251 | E2: =MAX(ROW(E12:E262)*(E12:E262<>0))-11 -> 2 | O2: 2 | P2: montant déclaré différent ou absent | S2: =COUNTIF($W$12:$W$107,">0") -> 55 | T2: =MAX(S1,S2) -> 55
B3: =Fin_Exercice -> 2019-08-31 | C3: =Debut_Exercice -> 2018-09-01 | O3: 4 | P3: chèque non débité (REGUL)
O4: 8 ou 22 | P4: CHQ non émis ou émis N+1 | AG4: RÉCAP des CHEQUES RÉGULARISÉS
C6: début | D6: =Debut_Exercice -> 2018-09-01 | T6: =IF(OR(T10<>M10,W10<>M10),"Revoir les colonnes O et P mal ou non renseignées !","OK bon à imprimer et enregistrer écritures en OD") -> Revoir les colonnes O et P mal ou non renseignées !
C7: fin | D7: =Fin_Exercice -> 2019-08-31 | I7: Le suivi automatique des chèques utilise les N° de chèques pour CPC Banque [JOURNAUX] | T7: Pièce comptable numéro : > | AG7: ListeChqRegul
C8: =COUNT(C12:C262) -> 251 | D8: OBLIGATOIRE | E8: OBLIGATOIRE | H8: Dclic | O8: A compléter après purge | T8: RÉCAP des CPC affectés op. REGULARISATIONS | Z8: Émis (date) | AA8: Débité | AB8: Egal | AC8: Pointé | AD8: Date N+1 | AG8: =COUNTIF(AG12:AG113,">0") -> 1 | AH8: 11 | AI8: 1 | AJ8: 13 | AK8: 14 | AL8: 2 | AM8: 4 | AN8: 15
C9: Entrer N° | D9: Saisir | E9: Saisir | F9: Saisir | H9: AUTOMATIQUE | O9: Saisir | P9: Saisir | T9: =" Exercice du : "&DAY(Debut_Exercice)&" / "&MONTH(Debut_Exercice)&" / "&YEAR(Debut_Exercice)&" au "&DAY(Fin_Exercice)&" / "&MONTH(Fin_Exercice)&" / "&YEAR(Fin_Exercice) -> Exercice du : 1 / 9 / 2018 au 31 / 8 / 2019 | AH9: ="Exercice comptable du: "&DAY(Debut_Exercice)&" / "&MONTH(Debut_Exercice)&" / "&YEAR(Debut_Exercice)&" au "&DAY(Fin_Exercice)&" / "&MONTH(Fin_Exercice)&" / "&YEAR(Fin_Exercice) -> Exercice comptable du: 1 / 9 / 2018 au 31 / 8 / 2019
A10: Ligne N° | B10: Chéquiers | C10: selon chéquiers | D10: selon talons | E10: selon talons et ou facture | F10: selon talons | G10: REGUL+ | H10: Ligne Jnx | I10: Montant Chq | J10: Enregistré le | K10: pointé (x) ou mention | L10: OK ou Code Erreur | M10: =SUM(M12:M113) -> 150 | O10: CPC Charges à affecter | P10: CPC de Contrepartie | Q10: A compléter après purge | R10: Vérif CPC | T10: =SUM(T12:T262) -> 8250 | U10: CPC REGUL CHARGES | W10: =SUM(W12:W262) -> 8250 | X10: CPC BILAN Affectés | Y10: Code Erreur x | Z10: 8 | AA10: 4 | AB10: 2 | AC10: 1 | AD10: 16 | AH10: ="Annexe à Pièce comptable N° "&W7&CHAR(10)&CHAR(10)&" TABLEAU RÉCAPITULATIF DES "&AG8&" CHEQUE(S) EMIS NON DEBITÉ(S) = "&$M$10&" €" -> Annexe à Pièce comptable N° TABLEAU RÉCAPITULATIF DES 1 CHEQUE(S) EMIS NON DEBITÉ(S) = 150 € | AO10: Contrôle des CPC
B11: N0 | C11: Numéros | D11: Date émission | E11: Montant | F11: Bénéficiaire | G11: R | H11: Auto | I11: Auto | J11: Auto | K11: Auto | L11: Auto | M11: Non débité | O11: Manuel | P11: Manuel | Q11: Notes complémentaires | R11: Dt | S11: Cr | T11: Total par CPC | U11: Débit | W11: Total par CPC | X11: Crédit | Y11: colonnes | Z11: D | AA11: H | AB11: E;I;M | AC11: K | AD11: D | AG11: Ligne<- | AH11: Montant | AI11: N°Chq | AJ11: CPC Débit | AK11: CPC Crédit | AL11: Émis le | AM11: Bénéficiaire | AN11: Notes | AO11: Débit | AP11: Crédit
A12: 1 | B12: 1 | C12: 888 | D12: 2018-10-15 | E12: 150 | F12: gg | H12: =INDEX(JournalPlus,MATCH(SuiviChqs!$C12,JOURNAUX!$I$11:$I$2010,0),2) ->  | I12: =IFERROR(INDEX(JournalPlus,MATCH(SuiviChqs!$C12,JOURNAUX!$I$11:$I$2010,0),11),0) -> 0 | J12: =INDEX(JournalPlus,MATCH(SuiviChqs!C12,JOURNAUX!$I$11:$I$2010,0),6) ->  | K12: =INDEX(JournalPlus,MATCH(C12,JOURNAUX!$I$11:$I$2010,0),12) ->  | L12: =IF(Y12=0,"O.K.",IF(Y12=4,"REGUL","Erreur "&Y12)) -> REGUL | M12: =--(IFERROR($H12=0,IF(D12<=Fin_Exercice,E12,IF(G12="R",E12,0)))) -> 150 | N12: =M12>0 -> TRUE | R12: =IF(O12<>0,IFERROR(INDEX(PLAN,MATCH(O12,NIVEAU6,0),2),FALSE),"-") -> - | S12: =IF(P12<>0,IFERROR(INDEX(PLAN,MATCH(P12,NIVEAU6,0),2),FALSE),"-") -> - | T12: =IF(U12<>0,SUMPRODUCT(--($O$12:$O$262=U12),$M$12:$M$262),0) -> 150 | U12: =IFERROR(INDEX(O$12:O$262,MATCH(SMALL(IF((COUNTIF(U$11:U11,O$12:O$262)=0)*(O$12:O$262<>""),COUNTIF(O$12:O$262,"<"&O$12:O$262)),1),IF(O$12:O$262<>"",COUNTIF(O$12:O$262,"<"&O$12:O$262)),0)),"") ->  | W12: =IF(X12<>0,SUMPRODUCT(--($P$12:$P$262=X12),$M$12:$M$262),0) -> 150 | X12: =IFERROR(INDEX(P$12:P$262,MATCH(SMALL(IF((COUNTIF(X$11:X11,P$12:P$262)=0)*(P$12:P$262<>""),COUNTIF(P$12:P$262,"<"&P$12:P$262)),1),IF(P$12:P$262<>"",COUNTIF(P$12:P$262,"<"&P$12:P$262)),0)),"") ->  | Y12: =--(NOT(Z12)*$Z$10)+(NOT(AA12)*$AA$10)+(NOT(AB12)*$AB$10+NOT(AC12)*$AC$10)+(AD12*$AD$10) -> 4 | Z12: =IF($D12<>0,TRUE,FALSE) -> TRUE | AA12: =NOT(ISNA(H12)) -> FALSE | AB12: =E12=I12+M12 -> TRUE | AC12: =IF(ISNA(K12),TRUE,K12<>0) -> TRUE | AD12: =IF(G12="R",FALSE,D12>Fin_Exercice) -> FALSE | AE12: 1 | AG12: =MATCH(TRUE,N12:N262,0) -> 1 | AH12: =INDEX(CHQREGUL,$AG12,AH$8) -> 150 | AI12: 888 | AJ12: =IFERROR(INDEX(CHQREGUL,$AG12,AJ$8),0) -> 0 | AK12: =IFERROR(INDEX(CHQREGUL,$AG12,AK$8),0) -> 0 | AL12: =INDEX(CHQREGUL,$AG12,$AL$8) -> 2018-10-15 | AM12: =INDEX(CHQREGUL,$AG12,AM$8) -> gg | AN12: 0 | AO12: =IF(AJ12<>0,LEFT(INDEX(PLAN,MATCH(AJ12,NIVEAU6,0),3),30),"-") -> - | AP12: =IF(AK12<>0,LEFT(INDEX(PLAN,MATCH(AK12,NIVEAU6,0),3),30),"-") -> -
A13: 2 | B13: 1 | C13: 889 | D13: 2018-09-02 | E13: 1000 | F13: ff | H13: =INDEX(JournalPlus,MATCH(SuiviChqs!$C13,JOURNAUX!$I$11:$I$2010,0),2) -> 28 | I13: =IFERROR(INDEX(JournalPlus,MATCH(SuiviChqs!$C13,JOURNAUX!$I$11:$I$2010,0),11),0) -> 312 | J13: =INDEX(JournalPlus,MATCH(SuiviChqs!C13,JOURNAUX!$I$11:$I$2010,0),6) -> 2018-11-30 | K13: =INDEX(JournalPlus,MATCH(C13,JOURNAUX!$I$11:$I$2010,0),12) -> 0 | L13: =IF(Y13=0,"O.K.",IF(Y13=4,"REGUL","Erreur "&Y13)) -> Erreur 3 | M13: 0 | N13: =M13>0 -> FALSE | R13: - | S13: - | T13: 150 | U13: =IFERROR(INDEX(O$12:O$262,MATCH(SMALL(IF((COUNTIF(U$11:U12,O$12:O$262)=0)*(O$12:O$262<>""),COUNTIF(O$12:O$262,"<"&O$12:O$262)),1),IF(O$12:O$262<>"",COUNTIF(O$12:O$262,"<"&O$12:O$262)),0)),"") ->  | W13: =IF(X13<>0,SUMPRODUCT(--($P$12:$P$262=X13),$M$12:$M$262),0) -> 150 | X13: =IFERROR(INDEX(P$12:P$262,MATCH(SMALL(IF((COUNTIF(X$11:X12,P$12:P$262)=0)*(P$12:P$262<>""),COUNTIF(P$12:P$262,"<"&P$12:P$262)),1),IF(P$12:P$262<>"",COUNTIF(P$12:P$262,"<"&P$12:P$262)),0)),"") ->  | Y13: =--(NOT(Z13)*$Z$10)+(NOT(AA13)*$AA$10)+(NOT(AB13)*$AB$10+NOT(AC13)*$AC$10)+(AD13*$AD$10) -> 3 | Z13: =IF($D13<>0,TRUE,FALSE) -> TRUE | AA13: =NOT(ISNA(H13)) -> TRUE | AB13: =E13=I13+M13 -> FALSE | AC13: =IF(ISNA(K13),TRUE,K13<>0) -> FALSE | AD13: FALSE | AE13: 2 | AG13: =AG12+MATCH(TRUE,OFFSET($N$12,AG12,0):$N$262,0) ->  | AJ13: 0 | AK13: 0 | AO13: - | AP13: -
A14: 3 | B14: 1 | C14: 890 | H14: =INDEX(JournalPlus,MATCH(SuiviChqs!$C14,JOURNAUX!$I$11:$I$2010,0),2) ->  | I14: =IFERROR(INDEX(JournalPlus,MATCH(SuiviChqs!$C14,JOURNAUX!$I$11:$I$2010,0),11),0) -> 0 | J14: =INDEX(JournalPlus,MATCH(SuiviChqs!C14,JOURNAUX!$I$11:$I$2010,0),6) ->  | K14: =INDEX(JournalPlus,MATCH(C14,JOURNAUX!$I$11:$I$2010,0),12) ->  | L14: Erreur 12 | M14: 0 | N14: FALSE | R14: - | S14: - | T14: 150 | U14: =IFERROR(INDEX(O$12:O$262,MATCH(SMALL(IF((COUNTIF(U$11:U13,O$12:O$262)=0)*(O$12:O$262<>""),COUNTIF(O$12:O$262,"<"&O$12:O$262)),1),IF(O$12:O$262<>"",COUNTIF(O$12:O$262,"<"&O$12:O$262)),0)),"") ->  | W14: 150 | X14: =IFERROR(INDEX(P$12:P$262,MATCH(SMALL(IF((COUNTIF(X$11:X13,P$12:P$262)=0)*(P$12:P$262<>""),COUNTIF(P$12:P$262,"<"&P$12:P$262)),1),IF(P$12:P$262<>"",COUNTIF(P$12:P$262,"<"&P$12:P$262)),0)),"") ->  | Y14: 12 | Z14: FALSE | AA14: FALSE | AB14: TRUE | AC14: TRUE | AD14: FALSE | AE14: 3 | AG14: =AG13+MATCH(TRUE,OFFSET($N$12,AG13,0):$N$262,0) ->  | AJ14: 0 | AK14: 0 | AO14: - | AP14: -
A15: 4 | B15: 1 | C15: 891 | H15: =INDEX(JournalPlus,MATCH(SuiviChqs!$C15,JOURNAUX!$I$11:$I$2010,0),2) -> 26 | I15: =IFERROR(INDEX(JournalPlus,MATCH(SuiviChqs!$C15,JOURNAUX!$I$11:$I$2010,0),11),0) -> 125.56 | J15: =INDEX(JournalPlus,MATCH(SuiviChqs!C15,JOURNAUX!$I$11:$I$2010,0),6) -> 2018-11-10 | K15: =INDEX(JournalPlus,MATCH(C15,JOURNAUX!$I$11:$I$2010,0),12) -> 0 | L15: Erreur 11 | M15: 0 | N15: FALSE | R15: - | S15: - | T15: 150 | U15: =IFERROR(INDEX(O$12:O$262,MATCH(SMALL(IF((COUNTIF(U$11:U14,O$12:O$262)=0)*(O$12:O$262<>""),COUNTIF(O$12:O$262,"<"&O$12:O$262)),1),IF(O$12:O$262<>"",COUNTIF(O$12:O$262,"<"&O$12:O$262)),0)),"") ->  | W15: 150 | X15: =IFERROR(INDEX(P$12:P$262,MATCH(SMALL(IF((COUNTIF(X$11:X14,P$12:P$262)=0)*(P$12:P$262<>""),COUNTIF(P$12:P$262,"<"&P$12:P$262)),1),IF(P$12:P$262<>"",COUNTIF(P$12:P$262,"<"&P$12:P$262)),0)),"") ->  | Y15: 11 | Z15: FALSE | AA15: TRUE | AB15: FALSE | AC15: FALSE | AD15: FALSE | AE15: 4 | AG15: =AG14+MATCH(TRUE,OFFSET($N$12,AG14,0):$N$262,0) ->  | AJ15: 0 | AK15: 0 | AO15: - | AP15: - | AR15: =IF($AJ15<>0,LEFT(INDEX(PLAN,MATCH($AJ15,NIVEAU6,0),3),17),"-") -> -
A16: 5 | B16: 1 | C16: 892 | H16: =INDEX(JournalPlus,MATCH(SuiviChqs!$C16,JOURNAUX!$I$11:$I$2010,0),2) ->  | I16: =IFERROR(INDEX(JournalPlus,MATCH(SuiviChqs!$C16,JOURNAUX!$I$11:$I$2010,0),11),0) -> 0 | J16: =INDEX(JournalPlus,MATCH(SuiviChqs!C16,JOURNAUX!$I$11:$I$2010,0),6) ->  | K16: =INDEX(JournalPlus,MATCH(C16,JOURNAUX!$I$11:$I$2010,0),12) ->  | L16: Erreur 12 | M16: 0 | N16: FALSE | R16: - | S16: - | T16: 150 | U16: =IFERROR(INDEX(O$12:O$262,MATCH(SMALL(IF((COUNTIF(U$11:U15,O$12:O$262)=0)*(O$12:O$262<>""),COUNTIF(O$12:O$262,"<"&O$12:O$262)),1),IF(O$12:O$262<>"",COUNTIF(O$12:O$262,"<"&O$12:O$262)),0)),"") ->  | W16: 150 | X16: =IFERROR(INDEX(P$12:P$262,MATCH(SMALL(IF((COUNTIF(X$11:X15,P$12:P$262)=0)*(P$12:P$262<>""),COUNTIF(P$12:P$262,"<"&P$12:P$262)),1),IF(P$12:P$262<>"",COUNTIF(P$12:P$262,"<"&P$12:P$262)),0)),"") ->  | Y16: 12 | Z16: FALSE | AA16: FALSE | AB16: TRUE | AC16: TRUE | AD16: FALSE | AE16: 5 | AG16: =AG15+MATCH(TRUE,OFFSET($N$12,AG15,0):$N$262,0) ->  | AJ16: 0 | AK16: 0 | AO16: - | AP16: -
A17: 6 | B17: 1 | C17: 893 | H17: =INDEX(JournalPlus,MATCH(SuiviChqs!$C17,JOURNAUX!$I$11:$I$2010,0),2) ->  | I17: =IFERROR(INDEX(JournalPlus,MATCH(SuiviChqs!$C17,JOURNAUX!$I$11:$I$2010,0),11),0) -> 0 | J17: =INDEX(JournalPlus,MATCH(SuiviChqs!C17,JOURNAUX!$I$11:$I$2010,0),6) ->  | K17: =INDEX(JournalPlus,MATCH(C17,JOURNAUX!$I$11:$I$2010,0),12) ->  | L17: Erreur 12 | M17: 0 | N17: FALSE | R17: - | S17: - | T17: 150 | U17: =IFERROR(INDEX(O$12:O$262,MATCH(SMALL(IF((COUNTIF(U$11:U16,O$12:O$262)=0)*(O$12:O$262<>""),COUNTIF(O$12:O$262,"<"&O$12:O$262)),1),IF(O$12:O$262<>"",COUNTIF(O$12:O$262,"<"&O$12:O$262)),0)),"") ->  | W17: 150 | X17: =IFERROR(INDEX(P$12:P$262,MATCH(SMALL(IF((COUNTIF(X$11:X16,P$12:P$262)=0)*(P$12:P$262<>""),COUNTIF(P$12:P$262,"<"&P$12:P$262)),1),IF(P$12:P$262<>"",COUNTIF(P$12:P$262,"<"&P$12:P$262)),0)),"") ->  | Y17: 12 | Z17: FALSE | AA17: FALSE | AB17: TRUE | AC17: TRUE | AD17: FALSE | AE17: 6 | AG17: =AG16+MATCH(TRUE,OFFSET($N$12,AG16,0):$N$262,0) ->  | AJ17: 0 | AK17: 0 | AO17: - | AP17: -
A18: 7 | B18: 1 | C18: 894 | H18: =INDEX(JournalPlus,MATCH(SuiviChqs!$C18,JOURNAUX!$I$11:$I$2010,0),2) ->  | I18: =IFERROR(INDEX(JournalPlus,MATCH(SuiviChqs!$C18,JOURNAUX!$I$11:$I$2010,0),11),0) -> 0 | J18: =INDEX(JournalPlus,MATCH(SuiviChqs!C18,JOURNAUX!$I$11:$I$2010,0),6) ->  | K18: =INDEX(JournalPlus,MATCH(C18,JOURNAUX!$I$11:$I$2010,0),12) ->  | L18: Erreur 12 | M18: 0 | N18: FALSE | R18: - | S18: - | T18: 150 | U18: =IFERROR(INDEX(O$12:O$262,MATCH(SMALL(IF((COUNTIF(U$11:U17,O$12:O$262)=0)*(O$12:O$262<>""),COUNTIF(O$12:O$262,"<"&O$12:O$262)),1),IF(O$12:O$262<>"",COUNTIF(O$12:O$262,"<"&O$12:O$262)),0)),"") ->  | W18: 150 | X18: =IFERROR(INDEX(P$12:P$262,MATCH(SMALL(IF((COUNTIF(X$11:X17,P$12:P$262)=0)*(P$12:P$262<>""),COUNTIF(P$12:P$262,"<"&P$12:P$262)),1),IF(P$12:P$262<>"",COUNTIF(P$12:P$262,"<"&P$12:P$262)),0)),"") ->  | Y18: 12 | Z18: FALSE | AA18: FALSE | AB18: TRUE | AC18: TRUE | AD18: FALSE | AE18: 7 | AG18: =AG17+MATCH(TRUE,OFFSET($N$12,AG17,0):$N$262,0) ->  | AJ18: 0 | AK18: 0 | AO18: - | AP18: -
A19: 8 | B19: 1 | C19: 895 | H19: =INDEX(JournalPlus,MATCH(SuiviChqs!$C19,JOURNAUX!$I$11:$I$2010,0),2) ->  | I19: =IFERROR(INDEX(JournalPlus,MATCH(SuiviChqs!$C19,JOURNAUX!$I$11:$I$2010,0),11),0) -> 0 | J19: =INDEX(JournalPlus,MATCH(SuiviChqs!C19,JOURNAUX!$I$11:$I$2010,0),6) ->  | K19: =INDEX(JournalPlus,MATCH(C19,JOURNAUX!$I$11:$I$2010,0),12) ->  | L19: Erreur 12 | M19: 0 | N19: FALSE | R19: - | S19: - | T19: 150 | U19: =IFERROR(INDEX(O$12:O$262,MATCH(SMALL(IF((COUNTIF(U$11:U18,O$12:O$262)=0)*(O$12:O$262<>""),COUNTIF(O$12:O$262,"<"&O$12:O$262)),1),IF(O$12:O$262<>"",COUNTIF(O$12:O$262,"<"&O$12:O$262)),0)),"") ->  | W19: 150 | X19: =IFERROR(INDEX(P$12:P$262,MATCH(SMALL(IF((COUNTIF(X$11:X18,P$12:P$262)=0)*(P$12:P$262<>""),COUNTIF(P$12:P$262,"<"&P$12:P$262)),1),IF(P$12:P$262<>"",COUNTIF(P$12:P$262,"<"&P$12:P$262)),0)),"") ->  | Y19: =--(NOT(Z19)*$Z$10)+(NOT(AA19)*$AA$10)+(NOT(AB19)*$AB$10+NOT(AC19)*$AC$10)+(AD19*$AD$10) -> 12 | Z19: FALSE | AA19: FALSE | AB19: TRUE | AC19: TRUE | AD19: FALSE | AE19: 8 | AG19: =AG18+MATCH(TRUE,OFFSET($N$12,AG18,0):$N$262,0) ->  | AJ19: 0 | AK19: 0 | AO19: - | AP19: -
A20: 9 | B20: 1 | C20: 896 | H20: =INDEX(JournalPlus,MATCH(SuiviChqs!$C20,JOURNAUX!$I$11:$I$2010,0),2) ->  | I20: =IFERROR(INDEX(JournalPlus,MATCH(SuiviChqs!$C20,JOURNAUX!$I$11:$I$2010,0),11),0) -> 0 | J20: =INDEX(JournalPlus,MATCH(SuiviChqs!C20,JOURNAUX!$I$11:$I$2010,0),6) ->  | K20: =INDEX(JournalPlus,MATCH(C20,JOURNAUX!$I$11:$I$2010,0),12) ->  | L20: Erreur 12 | M20: 0 | N20: FALSE | R20: - | S20: - | T20: 150 | U20: =IFERROR(INDEX(O$12:O$262,MATCH(SMALL(IF((COUNTIF(U$11:U19,O$12:O$262)=0)*(O$12:O$262<>""),COUNTIF(O$12:O$262,"<"&O$12:O$262)),1),IF(O$12:O$262<>"",COUNTIF(O$12:O$262,"<"&O$12:O$262)),0)),"") ->  | W20: 150 | X20: =IFERROR(INDEX(P$12:P$262,MATCH(SMALL(IF((COUNTIF(X$11:X19,P$12:P$262)=0)*(P$12:P$262<>""),COUNTIF(P$12:P$262,"<"&P$12:P$262)),1),IF(P$12:P$262<>"",COUNTIF(P$12:P$262,"<"&P$12:P$262)),0)),"") ->  | Y20: 12 | Z20: FALSE | AA20: FALSE | AB20: TRUE | AC20: TRUE | AD20: FALSE | AE20: 9 | AG20: =AG19+MATCH(TRUE,OFFSET($N$12,AG19,0):$N$262,0) ->  | AJ20: 0 | AK20: 0 | AO20: - | AP20: -
A21: 10 | B21: 1 | C21: 897 | H21: =INDEX(JournalPlus,MATCH(SuiviChqs!$C21,JOURNAUX!$I$11:$I$2010,0),2) ->  | I21: =IFERROR(INDEX(JournalPlus,MATCH(SuiviChqs!$C21,JOURNAUX!$I$11:$I$2010,0),11),0) -> 0 | J21: =INDEX(JournalPlus,MATCH(SuiviChqs!C21,JOURNAUX!$I$11:$I$2010,0),6) ->  | K21: =INDEX(JournalPlus,MATCH(C21,JOURNAUX!$I$11:$I$2010,0),12) ->  | L21: Erreur 12 | M21: 0 | N21: FALSE | R21: - | S21: - | T21: 150 | U21: =IFERROR(INDEX(O$12:O$262,MATCH(SMALL(IF((COUNTIF(U$11:U20,O$12:O$262)=0)*(O$12:O$262<>""),COUNTIF(O$12:O$262,"<"&O$12:O$262)),1),IF(O$12:O$262<>"",COUNTIF(O$12:O$262,"<"&O$12:O$262)),0)),"") ->  | W21: 150 | X21: =IFERROR(INDEX(P$12:P$262,MATCH(SMALL(IF((COUNTIF(X$11:X20,P$12:P$262)=0)*(P$12:P$262<>""),COUNTIF(P$12:P$262,"<"&P$12:P$262)),1),IF(P$12:P$262<>"",COUNTIF(P$12:P$262,"<"&P$12:P$262)),0)),"") ->  | Y21: 12 | Z21: FALSE | AA21: FALSE | AB21: TRUE | AC21: TRUE | AD21: FALSE | AE21: 10 | AG21: =AG20+MATCH(TRUE,OFFSET($N$12,AG20,0):$N$262,0) ->  | AJ21: 0 | AK21: 0 | AO21: - | AP21: -
A22: 11 | B22: 1 | C22: 898 | H22: =INDEX(JournalPlus,MATCH(SuiviChqs!$C22,JOURNAUX!$I$11:$I$2010,0),2) ->  | I22: =IFERROR(INDEX(JournalPlus,MATCH(SuiviChqs!$C22,JOURNAUX!$I$11:$I$2010,0),11),0) -> 0 | J22: =INDEX(JournalPlus,MATCH(SuiviChqs!C22,JOURNAUX!$I$11:$I$2010,0),6) ->  | K22: =INDEX(JournalPlus,MATCH(C22,JOURNAUX!$I$11:$I$2010,0),12) ->  | L22: Erreur 12 | M22: 0 | N22: FALSE | R22: - | S22: - | T22: 150 | U22: =IFERROR(INDEX(O$12:O$262,MATCH(SMALL(IF((COUNTIF(U$11:U21,O$12:O$262)=0)*(O$12:O$262<>""),COUNTIF(O$12:O$262,"<"&O$12:O$262)),1),IF(O$12:O$262<>"",COUNTIF(O$12:O$262,"<"&O$12:O$262)),0)),"") ->  | W22: 150 | X22: =IFERROR(INDEX(P$12:P$262,MATCH(SMALL(IF((COUNTIF(X$11:X21,P$12:P$262)=0)*(P$12:P$262<>""),COUNTIF(P$12:P$262,"<"&P$12:P$262)),1),IF(P$12:P$262<>"",COUNTIF(P$12:P$262,"<"&P$12:P$262)),0)),"") ->  | Y22: =--(NOT(Z22)*$Z$10)+(NOT(AA22)*$AA$10)+(NOT(AB22)*$AB$10+NOT(AC22)*$AC$10) -> 12 | Z22: FALSE | AA22: =NOT(ISNA(H22)) -> FALSE | AB22: =E22=I22+M22 -> TRUE | AC22: =IF(ISNA(K22),TRUE,K22<>0) -> TRUE | AD22: FALSE | AE22: 11 | AG22: =AG21+MATCH(TRUE,OFFSET($N$12,AG21,0):$N$262,0) ->  | AJ22: 0 | AK22: 0 | AO22: - | AP22: -
A23: 12 | B23: 1 | C23: 899 | H23: =INDEX(JournalPlus,MATCH(SuiviChqs!$C23,JOURNAUX!$I$11:$I$2010,0),2) ->  | I23: =IFERROR(INDEX(JournalPlus,MATCH(SuiviChqs!$C23,JOURNAUX!$I$11:$I$2010,0),11),0) -> 0 | J23: =INDEX(JournalPlus,MATCH(SuiviChqs!C23,JOURNAUX!$I$11:$I$2010,0),6) ->  | K23: =INDEX(JournalPlus,MATCH(C23,JOURNAUX!$I$11:$I$2010,0),12) ->  | L23: =IF(Y23=0,"O.K.",IF(OR(G23="R",Y23=4),"REGUL","Erreur "&Y23)) -> Erreur 12 | M23: 0 | N23: FALSE | R23: - | S23: - | T23: 150 | U23: =IFERROR(INDEX(O$12:O$262,MATCH(SMALL(IF((COUNTIF(U$11:U22,O$12:O$262)=0)*(O$12:O$262<>""),COUNTIF(O$12:O$262,"<"&O$12:O$262)),1),IF(O$12:O$262<>"",COUNTIF(O$12:O$262,"<"&O$12:O$262)),0)),"") ->  | W23: 150 | X23: =IFERROR(INDEX(P$12:P$262,MATCH(SMALL(IF((COUNTIF(X$11:X22,P$12:P$262)=0)*(P$12:P$262<>""),COUNTIF(P$12:P$262,"<"&P$12:P$262)),1),IF(P$12:P$262<>"",COUNTIF(P$12:P$262,"<"&P$12:P$262)),0)),"") ->  | Y23: 12 | Z23: =IF(AND($D23<>0,$D23<=Fin_Exercice),TRUE,FALSE) -> FALSE | AA23: FALSE | AB23: TRUE | AC23: TRUE | AD23: =AND(D23>Fin_Exercice,D23<>0) -> FALSE | AE23: 12 | AG23: =AG22+MATCH(TRUE,OFFSET($N$12,AG22,0):$N$262,0) ->  | AJ23: 0 | AK23: 0 | AO23: - | AP23: -
A24: 13 | B24: 1 | C24: 900 | H24: =INDEX(JournalPlus,MATCH(SuiviChqs!$C24,JOURNAUX!$I$11:$I$2010,0),2) ->  | I24: =IFERROR(INDEX(JournalPlus,MATCH(SuiviChqs!$C24,JOURNAUX!$I$11:$I$2010,0),11),0) -> 0 | J24: =INDEX(JournalPlus,MATCH(SuiviChqs!C24,JOURNAUX!$I$11:$I$2010,0),6) ->  | K24: =INDEX(JournalPlus,MATCH(C24,JOURNAUX!$I$11:$I$2010,0),12) ->  | L24: =IF(Y24=0,"O.K.",IF(OR(G24="R",Y24=4),"REGUL","Erreur "&Y24)) -> Erreur 12 | M24: 0 | N24: FALSE | R24: - | S24: - | T24: 150 | U24: =IFERROR(INDEX(O$12:O$262,MATCH(SMALL(IF((COUNTIF(U$11:U23,O$12:O$262)=0)*(O$12:O$262<>""),COUNTIF(O$12:O$262,"<"&O$12:O$262)),1),IF(O$12:O$262<>"",COUNTIF(O$12:O$262,"<"&O$12:O$262)),0)),"") ->  | W24: 150 | X24: =IFERROR(INDEX(P$12:P$262,MATCH(SMALL(IF((COUNTIF(X$11:X23,P$12:P$262)=0)*(P$12:P$262<>""),COUNTIF(P$12:P$262,"<"&P$12:P$262)),1),IF(P$12:P$262<>"",COUNTIF(P$12:P$262,"<"&P$12:P$262)),0)),"") ->  | Y24: 12 | Z24: FALSE | AA24: FALSE | AB24: TRUE | AC24: TRUE | AD24: FALSE | AE24: 13 | AG24: =AG23+MATCH(TRUE,OFFSET($N$12,AG23,0):$N$262,0) ->  | AJ24: 0 | AK24: 0 | AO24: - | AP24: -
A25: 14 | B25: 1 | C25: 901 | H25: =INDEX(JournalPlus,MATCH(SuiviChqs!$C25,JOURNAUX!$I$11:$I$2010,0),2) ->  | I25: =IFERROR(INDEX(JournalPlus,MATCH(SuiviChqs!$C25,JOURNAUX!$I$11:$I$2010,0),11),0) -> 0 | J25: =INDEX(JournalPlus,MATCH(SuiviChqs!C25,JOURNAUX!$I$11:$I$2010,0),6) ->  | K25: =INDEX(JournalPlus,MATCH(C25,JOURNAUX!$I$11:$I$2010,0),12) ->  | L25: Erreur 12 | M25: 0 | N25: FALSE | R25: - | S25: - | T25: 150 | U25: =IFERROR(INDEX(O$12:O$262,MATCH(SMALL(IF((COUNTIF(U$11:U24,O$12:O$262)=0)*(O$12:O$262<>""),COUNTIF(O$12:O$262,"<"&O$12:O$262)),1),IF(O$12:O$262<>"",COUNTIF(O$12:O$262,"<"&O$12:O$262)),0)),"") ->  | W25: 150 | X25: =IFERROR(INDEX(P$12:P$262,MATCH(SMALL(IF((COUNTIF(X$11:X24,P$12:P$262)=0)*(P$12:P$262<>""),COUNTIF(P$12:P$262,"<"&P$12:P$262)),1),IF(P$12:P$262<>"",COUNTIF(P$12:P$262,"<"&P$12:P$262)),0)),"") ->  | Y25: 12 | Z25: FALSE | AA25: FALSE | AB25: TRUE | AC25: TRUE | AD25: FALSE | AE25: 14 | AG25: =AG24+MATCH(TRUE,OFFSET($N$12,AG24,0):$N$262,0) ->  | AJ25: 0 | AK25: 0 | AO25: - | AP25: -
A26: 15 | B26: 1 | C26: 902 | H26: =INDEX(JournalPlus,MATCH(SuiviChqs!$C26,JOURNAUX!$I$11:$I$2010,0),2) ->  | I26: =IFERROR(INDEX(JournalPlus,MATCH(SuiviChqs!$C26,JOURNAUX!$I$11:$I$2010,0),11),0) -> 0 | J26: =INDEX(JournalPlus,MATCH(SuiviChqs!C26,JOURNAUX!$I$11:$I$2010,0),6) ->  | K26: =INDEX(JournalPlus,MATCH(C26,JOURNAUX!$I$11:$I$2010,0),12) ->  | L26: Erreur 12 | M26: 0 | N26: FALSE | R26: - | S26: - | T26: 150 | U26: =IFERROR(INDEX(O$12:O$262,MATCH(SMALL(IF((COUNTIF(U$11:U25,O$12:O$262)=0)*(O$12:O$262<>""),COUNTIF(O$12:O$262,"<"&O$12:O$262)),1),IF(O$12:O$262<>"",COUNTIF(O$12:O$262,"<"&O$12:O$262)),0)),"") ->  | W26: 150 | X26: =IFERROR(INDEX(P$12:P$262,MATCH(SMALL(IF((COUNTIF(X$11:X25,P$12:P$262)=0)*(P$12:P$262<>""),COUNTIF(P$12:P$262,"<"&P$12:P$262)),1),IF(P$12:P$262<>"",COUNTIF(P$12:P$262,"<"&P$12:P$262)),0)),"") ->  | Y26: 12 | Z26: FALSE | AA26: FALSE | AB26: TRUE | AC26: TRUE | AD26: FALSE | AE26: 15 | AG26: =AG25+MATCH(TRUE,OFFSET($N$12,AG25,0):$N$262,0) ->  | AJ26: 0 | AK26: 0 | AO26: - | AP26: -
A27: 16 | B27: 1 | C27: 903 | H27: =INDEX(JournalPlus,MATCH(SuiviChqs!$C27,JOURNAUX!$I$11:$I$2010,0),2) ->  | I27: =IFERROR(INDEX(JournalPlus,MATCH(SuiviChqs!$C27,JOURNAUX!$I$11:$I$2010,0),11),0) -> 0 | J27: =INDEX(JournalPlus,MATCH(SuiviChqs!C27,JOURNAUX!$I$11:$I$2010,0),6) ->  | K27: =INDEX(JournalPlus,MATCH(C27,JOURNAUX!$I$11:$I$2010,0),12) ->  | L27: Erreur 12 | M27: 0 | N27: FALSE | R27: - | S27: - | T27: 150 | U27: =IFERROR(INDEX(O$12:O$262,MATCH(SMALL(IF((COUNTIF(U$11:U26,O$12:O$262)=0)*(O$12:O$262<>""),COUNTIF(O$12:O$262,"<"&O$12:O$262)),1),IF(O$12:O$262<>"",COUNTIF(O$12:O$262,"<"&O$12:O$262)),0)),"") ->  | W27: 150 | X27: =IFERROR(INDEX(P$12:P$262,MATCH(SMALL(IF((COUNTIF(X$11:X26,P$12:P$262)=0)*(P$12:P$262<>""),COUNTIF(P$12:P$262,"<"&P$12:P$262)),1),IF(P$12:P$262<>"",COUNTIF(P$12:P$262,"<"&P$12:P$262)),0)),"") ->  | Y27: 12 | Z27: FALSE | AA27: FALSE | AB27: TRUE | AC27: TRUE | AD27: FALSE | AE27: 16 | AG27: =AG26+MATCH(TRUE,OFFSET($N$12,AG26,0):$N$262,0) ->  | AJ27: 0 | AK27: 0 | AO27: - | AP27: -
A28: 17 | B28: 1 | C28: 904 | H28: =INDEX(JournalPlus,MATCH(SuiviChqs!$C28,JOURNAUX!$I$11:$I$2010,0),2) ->  | I28: =IFERROR(INDEX(JournalPlus,MATCH(SuiviChqs!$C28,JOURNAUX!$I$11:$I$2010,0),11),0) -> 0 | J28: =INDEX(JournalPlus,MATCH(SuiviChqs!C28,JOURNAUX!$I$11:$I$2010,0),6) ->  | K28: =INDEX(JournalPlus,MATCH(C28,JOURNAUX!$I$11:$I$2010,0),12) ->  | L28: Erreur 12 | M28: 0 | N28: FALSE | R28: - | S28: - | T28: 150 | U28: =IFERROR(INDEX(O$12:O$262,MATCH(SMALL(IF((COUNTIF(U$11:U27,O$12:O$262)=0)*(O$12:O$262<>""),COUNTIF(O$12:O$262,"<"&O$12:O$262)),1),IF(O$12:O$262<>"",COUNTIF(O$12:O$262,"<"&O$12:O$262)),0)),"") ->  | W28: 150 | X28: =IFERROR(INDEX(P$12:P$262,MATCH(SMALL(IF((COUNTIF(X$11:X27,P$12:P$262)=0)*(P$12:P$262<>""),COUNTIF(P$12:P$262,"<"&P$12:P$262)),1),IF(P$12:P$262<>"",COUNTIF(P$12:P$262,"<"&P$12:P$262)),0)),"") ->  | Y28: 12 | Z28: FALSE | AA28: FALSE | AB28: TRUE | AC28: TRUE | AD28: FALSE | AE28: 17 | AG28: =AG27+MATCH(TRUE,OFFSET($N$12,AG27,0):$N$262,0) ->  | AJ28: 0 | AK28: 0 | AO28: - | AP28: -
A29: 18 | B29: 1 | C29: 905 | H29: =INDEX(JournalPlus,MATCH(SuiviChqs!$C29,JOURNAUX!$I$11:$I$2010,0),2) ->  | I29: =IFERROR(INDEX(JournalPlus,MATCH(SuiviChqs!$C29,JOURNAUX!$I$11:$I$2010,0),11),0) -> 0 | J29: =INDEX(JournalPlus,MATCH(SuiviChqs!C29,JOURNAUX!$I$11:$I$2010,0),6) ->  | K29: =INDEX(JournalPlus,MATCH(C29,JOURNAUX!$I$11:$I$2010,0),12) ->  | L29: Erreur 12 | M29: 0 | N29: FALSE | R29: - | S29: - | T29: 150 | U29: =IFERROR(INDEX(O$12:O$262,MATCH(SMALL(IF((COUNTIF(U$11:U28,O$12:O$262)=0)*(O$12:O$262<>""),COUNTIF(O$12:O$262,"<"&O$12:O$262)),1),IF(O$12:O$262<>"",COUNTIF(O$12:O$262,"<"&O$12:O$262)),0)),"") ->  | W29: 150 | X29: =IFERROR(INDEX(P$12:P$262,MATCH(SMALL(IF((COUNTIF(X$11:X28,P$12:P$262)=0)*(P$12:P$262<>""),COUNTIF(P$12:P$262,"<"&P$12:P$262)),1),IF(P$12:P$262<>"",COUNTIF(P$12:P$262,"<"&P$12:P$262)),0)),"") ->  | Y29: 12 | Z29: FALSE | AA29: FALSE | AB29: TRUE | AC29: TRUE | AD29: FALSE | AE29: 18 | AG29: =AG28+MATCH(TRUE,OFFSET($N$12,AG28,0):$N$262,0) ->  | AJ29: 0 | AK29: 0 | AO29: - | AP29: -
A30: 19 | B30: 1 | C30: 906 | H30: =INDEX(JournalPlus,MATCH(SuiviChqs!$C30,JOURNAUX!$I$11:$I$2010,0),2) ->  | I30: =IFERROR(INDEX(JournalPlus,MATCH(SuiviChqs!$C30,JOURNAUX!$I$11:$I$2010,0),11),0) -> 0 | J30: =INDEX(JournalPlus,MATCH(SuiviChqs!C30,JOURNAUX!$I$11:$I$2010,0),6) ->  | K30: =INDEX(JournalPlus,MATCH(C30,JOURNAUX!$I$11:$I$2010,0),12) ->  | L30: Erreur 12 | M30: 0 | N30: FALSE | R30: - | S30: - | T30: 150 | U30: =IFERROR(INDEX(O$12:O$262,MATCH(SMALL(IF((COUNTIF(U$11:U29,O$12:O$262)=0)*(O$12:O$262<>""),COUNTIF(O$12:O$262,"<"&O$12:O$262)),1),IF(O$12:O$262<>"",COUNTIF(O$12:O$262,"<"&O$12:O$262)),0)),"") ->  | W30: 150 | X30: =IFERROR(INDEX(P$12:P$262,MATCH(SMALL(IF((COUNTIF(X$11:X29,P$12:P$262)=0)*(P$12:P$262<>""),COUNTIF(P$12:P$262,"<"&P$12:P$262)),1),IF(P$12:P$262<>"",COUNTIF(P$12:P$262,"<"&P$12:P$262)),0)),"") ->  | Y30: 12 | Z30: FALSE | AA30: FALSE | AB30: TRUE | AC30: TRUE | AD30: FALSE | AE30: 19 | AG30: =AG29+MATCH(TRUE,OFFSET($N$12,AG29,0):$N$262,0) ->  | AJ30: 0 | AK30: 0 | AO30: - | AP30: -
A31: 20 | B31: 1 | C31: 907 | H31: =INDEX(JournalPlus,MATCH(SuiviChqs!$C31,JOURNAUX!$I$11:$I$2010,0),2) ->  | I31: =IFERROR(INDEX(JournalPlus,MATCH(SuiviChqs!$C31,JOURNAUX!$I$11:$I$2010,0),11),0) -> 0 | J31: =INDEX(JournalPlus,MATCH(SuiviChqs!C31,JOURNAUX!$I$11:$I$2010,0),6) ->  | K31: =INDEX(JournalPlus,MATCH(C31,JOURNAUX!$I$11:$I$2010,0),12) ->  | L31: Erreur 12 | M31: 0 | N31: FALSE | R31: - | S31: - | T31: 150 | U31: =IFERROR(INDEX(O$12:O$262,MATCH(SMALL(IF((COUNTIF(U$11:U30,O$12:O$262)=0)*(O$12:O$262<>""),COUNTIF(O$12:O$262,"<"&O$12:O$262)),1),IF(O$12:O$262<>"",COUNTIF(O$12:O$262,"<"&O$12:O$262)),0)),"") ->  | W31: 150 | X31: =IFERROR(INDEX(P$12:P$262,MATCH(SMALL(IF((COUNTIF(X$11:X30,P$12:P$262)=0)*(P$12:P$262<>""),COUNTIF(P$12:P$262,"<"&P$12:P$262)),1),IF(P$12:P$262<>"",COUNTIF(P$12:P$262,"<"&P$12:P$262)),0)),"") ->  | Y31: 12 | Z31: FALSE | AA31: FALSE | AB31: =E31=I31+M31 -> TRUE | AC31: TRUE | AD31: FALSE | AE31: 20 | AG31: =AG30+MATCH(TRUE,OFFSET($N$12,AG30,0):$N$262,0) ->  | AJ31: 0 | AK31: 0 | AO31: - | AP31: -
A32: 21 | B32: 1 | C32: 908 | H32: =INDEX(JournalPlus,MATCH(SuiviChqs!$C32,JOURNAUX!$I$11:$I$2010,0),2) ->  | I32: =IFERROR(INDEX(JournalPlus,MATCH(SuiviChqs!$C32,JOURNAUX!$I$11:$I$2010,0),11),0) -> 0 | J32: =INDEX(JournalPlus,MATCH(SuiviChqs!C32,JOURNAUX!$I$11:$I$2010,0),6) ->  | K32: =INDEX(JournalPlus,MATCH(C32,JOURNAUX!$I$11:$I$2010,0),12) ->  | L32: Erreur 12 | M32: 0 | N32: FALSE | R32: - | S32: - | T32: 150 | U32: =IFERROR(INDEX(O$12:O$262,MATCH(SMALL(IF((COUNTIF(U$11:U31,O$12:O$262)=0)*(O$12:O$262<>""),COUNTIF(O$12:O$262,"<"&O$12:O$262)),1),IF(O$12:O$262<>"",COUNTIF(O$12:O$262,"<"&O$12:O$262)),0)),"") ->  | W32: 150 | X32: =IFERROR(INDEX(P$12:P$262,MATCH(SMALL(IF((COUNTIF(X$11:X31,P$12:P$262)=0)*(P$12:P$262<>""),COUNTIF(P$12:P$262,"<"&P$12:P$262)),1),IF(P$12:P$262<>"",COUNTIF(P$12:P$262,"<"&P$12:P$262)),0)),"") ->  | Y32: 12 | Z32: FALSE | AA32: FALSE | AB32: TRUE | AC32: TRUE | AD32: FALSE | AE32: 21 | AG32: =AG31+MATCH(TRUE,OFFSET($N$12,AG31,0):$N$262,0) ->  | AH32: =INDEX(CHQREGUL,$AG32,AH$8) ->  | AJ32: 0 | AK32: 0 | AO32: - | AP32: -
A33: 22 | B33: 2 | C33: 1200 | H33: =INDEX(JournalPlus,MATCH(SuiviChqs!$C33,JOURNAUX!$I$11:$I$2010,0),2) ->  | I33: =IFERROR(INDEX(JournalPlus,MATCH(SuiviChqs!$C33,JOURNAUX!$I$11:$I$2010,0),11),0) -> 0 | J33: =INDEX(JournalPlus,MATCH(SuiviChqs!C33,JOURNAUX!$I$11:$I$2010,0),6) ->  | K33: =INDEX(JournalPlus,MATCH(C33,JOURNAUX!$I$11:$I$2010,0),12) ->  | L33: Erreur 12 | M33: 0 | N33: FALSE | R33: - | S33: - | T33: 150 | U33: =IFERROR(INDEX(O$12:O$262,MATCH(SMALL(IF((COUNTIF(U$11:U32,O$12:O$262)=0)*(O$12:O$262<>""),COUNTIF(O$12:O$262,"<"&O$12:O$262)),1),IF(O$12:O$262<>"",COUNTIF(O$12:O$262,"<"&O$12:O$262)),0)),"") ->  | W33: 150 | X33: =IFERROR(INDEX(P$12:P$262,MATCH(SMALL(IF((COUNTIF(X$11:X32,P$12:P$262)=0)*(P$12:P$262<>""),COUNTIF(P$12:P$262,"<"&P$12:P$262)),1),IF(P$12:P$262<>"",COUNTIF(P$12:P$262,"<"&P$12:P$262)),0)),"") ->  | Y33: 12 | Z33: FALSE | AA33: FALSE | AB33: TRUE | AC33: TRUE | AD33: FALSE | AE33: 22 | AG33: =AG32+MATCH(TRUE,OFFSET($N$12,AG32,0):$N$262,0) ->  | AJ33: 0 | AK33: 0 | AO33: - | AP33: -
A34: 23 | B34: 2 | C34: 1201 | H34: =INDEX(JournalPlus,MATCH(SuiviChqs!$C34,JOURNAUX!$I$11:$I$2010,0),2) ->  | I34: =IFERROR(INDEX(JournalPlus,MATCH(SuiviChqs!$C34,JOURNAUX!$I$11:$I$2010,0),11),0) -> 0 | J34: =INDEX(JournalPlus,MATCH(SuiviChqs!C34,JOURNAUX!$I$11:$I$2010,0),6) ->  | K34: =INDEX(JournalPlus,MATCH(C34,JOURNAUX!$I$11:$I$2010,0),12) ->  | L34: Erreur 12 | M34: 0 | N34: FALSE | R34: - | S34: - | T34: 150 | U34: =IFERROR(INDEX(O$12:O$262,MATCH(SMALL(IF((COUNTIF(U$11:U33,O$12:O$262)=0)*(O$12:O$262<>""),COUNTIF(O$12:O$262,"<"&O$12:O$262)),1),IF(O$12:O$262<>"",COUNTIF(O$12:O$262,"<"&O$12:O$262)),0)),"") ->  | W34: 150 | X34: =IFERROR(INDEX(P$12:P$262,MATCH(SMALL(IF((COUNTIF(X$11:X33,P$12:P$262)=0)*(P$12:P$262<>""),COUNTIF(P$12:P$262,"<"&P$12:P$262)),1),IF(P$12:P$262<>"",COUNTIF(P$12:P$262,"<"&P$12:P$262)),0)),"") ->  | Y34: 12 | Z34: FALSE | AA34: FALSE | AB34: TRUE | AC34: TRUE | AD34: FALSE | AE34: 23 | AG34: =AG33+MATCH(TRUE,OFFSET($N$12,AG33,0):$N$262,0) ->  | AJ34: 0 | AK34: 0 | AO34: - | AP34: -
A35: 24 | C35: 1202 | H35: =INDEX(JournalPlus,MATCH(SuiviChqs!$C35,JOURNAUX!$I$11:$I$2010,0),2) ->  | I35: =IFERROR(INDEX(JournalPlus,MATCH(SuiviChqs!$C35,JOURNAUX!$I$11:$I$2010,0),11),0) -> 0 | J35: =INDEX(JournalPlus,MATCH(SuiviChqs!C35,JOURNAUX!$I$11:$I$2010,0),6) ->  | K35: =INDEX(JournalPlus,MATCH(C35,JOURNAUX!$I$11:$I$2010,0),12) ->  | L35: Erreur 12 | M35: 0 | N35: FALSE | R35: - | S35: - | T35: 150 | U35: =IFERROR(INDEX(O$12:O$262,MATCH(SMALL(IF((COUNTIF(U$11:U34,O$12:O$262)=0)*(O$12:O$262<>""),COUNTIF(O$12:O$262,"<"&O$12:O$262)),1),IF(O$12:O$262<>"",COUNTIF(O$12:O$262,"<"&O$12:O$262)),0)),"") ->  | W35: 150 | X35: =IFERROR(INDEX(P$12:P$262,MATCH(SMALL(IF((COUNTIF(X$11:X34,P$12:P$262)=0)*(P$12:P$262<>""),COUNTIF(P$12:P$262,"<"&P$12:P$262)),1),IF(P$12:P$262<>"",COUNTIF(P$12:P$262,"<"&P$12:P$262)),0)),"") ->  | Y35: 12 | Z35: FALSE | AA35: FALSE | AB35: TRUE | AC35: TRUE | AD35: FALSE | AE35: 24 | AG35: =AG34+MATCH(TRUE,OFFSET($N$12,AG34,0):$N$262,0) ->  | AJ35: 0 | AK35: 0 | AO35: - | AP35: -
A36: 25 | C36: 1203 | H36: =INDEX(JournalPlus,MATCH(SuiviChqs!$C36,JOURNAUX!$I$11:$I$2010,0),2) ->  | I36: =IFERROR(INDEX(JournalPlus,MATCH(SuiviChqs!$C36,JOURNAUX!$I$11:$I$2010,0),11),0) -> 0 | J36: =INDEX(JournalPlus,MATCH(SuiviChqs!C36,JOURNAUX!$I$11:$I$2010,0),6) ->  | K36: =INDEX(JournalPlus,MATCH(C36,JOURNAUX!$I$11:$I$2010,0),12) ->  | L36: Erreur 12 | M36: 0 | N36: FALSE | R36: - | S36: - | T36: 150 | U36: =IFERROR(INDEX(O$12:O$262,MATCH(SMALL(IF((COUNTIF(U$11:U35,O$12:O$262)=0)*(O$12:O$262<>""),COUNTIF(O$12:O$262,"<"&O$12:O$262)),1),IF(O$12:O$262<>"",COUNTIF(O$12:O$262,"<"&O$12:O$262)),0)),"") ->  | W36: 150 | X36: =IFERROR(INDEX(P$12:P$262,MATCH(SMALL(IF((COUNTIF(X$11:X35,P$12:P$262)=0)*(P$12:P$262<>""),COUNTIF(P$12:P$262,"<"&P$12:P$262)),1),IF(P$12:P$262<>"",COUNTIF(P$12:P$262,"<"&P$12:P$262)),0)),"") ->  | Y36: 12 | Z36: FALSE | AA36: FALSE | AB36: TRUE | AC36: TRUE | AD36: FALSE | AE36: 25 | AG36: =AG35+MATCH(TRUE,OFFSET($N$12,AG35,0):$N$262,0) ->  | AJ36: 0 | AK36: 0 | AO36: - | AP36: -
A37: 26 | C37: 1204 | H37: =INDEX(JournalPlus,MATCH(SuiviChqs!$C37,JOURNAUX!$I$11:$I$2010,0),2) ->  | I37: =IFERROR(INDEX(JournalPlus,MATCH(SuiviChqs!$C37,JOURNAUX!$I$11:$I$2010,0),11),0) -> 0 | J37: =INDEX(JournalPlus,MATCH(SuiviChqs!C37,JOURNAUX!$I$11:$I$2010,0),6) ->  | K37: =INDEX(JournalPlus,MATCH(C37,JOURNAUX!$I$11:$I$2010,0),12) ->  | L37: Erreur 12 | M37: 0 | N37: FALSE | R37: - | S37: - | T37: 150 | U37: =IFERROR(INDEX(O$12:O$262,MATCH(SMALL(IF((COUNTIF(U$11:U36,O$12:O$262)=0)*(O$12:O$262<>""),COUNTIF(O$12:O$262,"<"&O$12:O$262)),1),IF(O$12:O$262<>"",COUNTIF(O$12:O$262,"<"&O$12:O$262)),0)),"") ->  | W37: 150 | X37: =IFERROR(INDEX(P$12:P$262,MATCH(SMALL(IF((COUNTIF(X$11:X36,P$12:P$262)=0)*(P$12:P$262<>""),COUNTIF(P$12:P$262,"<"&P$12:P$262)),1),IF(P$12:P$262<>"",COUNTIF(P$12:P$262,"<"&P$12:P$262)),0)),"") ->  | Y37: 12 | Z37: FALSE | AA37: FALSE | AB37: TRUE | AC37: TRUE | AD37: FALSE | AE37: 26 | AG37: =AG36+MATCH(TRUE,OFFSET($N$12,AG36,0):$N$262,0) ->  | AJ37: 0 | AK37: 0 | AO37: - | AP37: -
A38: 27 | C38: 1205 | H38: =INDEX(JournalPlus,MATCH(SuiviChqs!$C38,JOURNAUX!$I$11:$I$2010,0),2) ->  | I38: =IFERROR(INDEX(JournalPlus,MATCH(SuiviChqs!$C38,JOURNAUX!$I$11:$I$2010,0),11),0) -> 0 | J38: =INDEX(JournalPlus,MATCH(SuiviChqs!C38,JOURNAUX!$I$11:$I$2010,0),6) ->  | K38: =INDEX(JournalPlus,MATCH(C38,JOURNAUX!$I$11:$I$2010,0),12) ->  | L38: Erreur 12 | M38: 0 | N38: FALSE | R38: - | S38: - | T38: 150 | U38: =IFERROR(INDEX(O$12:O$262,MATCH(SMALL(IF((COUNTIF(U$11:U37,O$12:O$262)=0)*(O$12:O$262<>""),COUNTIF(O$12:O$262,"<"&O$12:O$262)),1),IF(O$12:O$262<>"",COUNTIF(O$12:O$262,"<"&O$12:O$262)),0)),"") ->  | W38: 150 | X38: =IFERROR(INDEX(P$12:P$262,MATCH(SMALL(IF((COUNTIF(X$11:X37,P$12:P$262)=0)*(P$12:P$262<>""),COUNTIF(P$12:P$262,"<"&P$12:P$262)),1),IF(P$12:P$262<>"",COUNTIF(P$12:P$262,"<"&P$12:P$262)),0)),"") ->  | Y38: 12 | Z38: FALSE | AA38: FALSE | AB38: TRUE | AC38: TRUE | AD38: FALSE | AE38: 27 | AG38: =AG37+MATCH(TRUE,OFFSET($N$12,AG37,0):$N$262,0) ->  | AJ38: 0 | AK38: 0 | AO38: - | AP38: -
A39: 28 | C39: 1206 | H39: =INDEX(JournalPlus,MATCH(SuiviChqs!$C39,JOURNAUX!$I$11:$I$2010,0),2) ->  | I39: =IFERROR(INDEX(JournalPlus,MATCH(SuiviChqs!$C39,JOURNAUX!$I$11:$I$2010,0),11),0) -> 0 | J39: =INDEX(JournalPlus,MATCH(SuiviChqs!C39,JOURNAUX!$I$11:$I$2010,0),6) ->  | K39: =INDEX(JournalPlus,MATCH(C39,JOURNAUX!$I$11:$I$2010,0),12) ->  | L39: Erreur 12 | M39: 0 | N39: FALSE | R39: - | S39: - | T39: 150 | U39: =IFERROR(INDEX(O$12:O$262,MATCH(SMALL(IF((COUNTIF(U$11:U38,O$12:O$262)=0)*(O$12:O$262<>""),COUNTIF(O$12:O$262,"<"&O$12:O$262)),1),IF(O$12:O$262<>"",COUNTIF(O$12:O$262,"<"&O$12:O$262)),0)),"") ->  | W39: 150 | X39: =IFERROR(INDEX(P$12:P$262,MATCH(SMALL(IF((COUNTIF(X$11:X38,P$12:P$262)=0)*(P$12:P$262<>""),COUNTIF(P$12:P$262,"<"&P$12:P$262)),1),IF(P$12:P$262<>"",COUNTIF(P$12:P$262,"<"&P$12:P$262)),0)),"") ->  | Y39: 12 | Z39: FALSE | AA39: FALSE | AB39: TRUE | AC39: TRUE | AD39: FALSE | AE39: 28 | AG39: =AG38+MATCH(TRUE,OFFSET($N$12,AG38,0):$N$262,0) ->  | AJ39: 0 | AK39: 0 | AO39: - | AP39: -
A40: 29 | C40: 1207 | H40: =INDEX(JournalPlus,MATCH(SuiviChqs!$C40,JOURNAUX!$I$11:$I$2010,0),2) ->  | I40: =IFERROR(INDEX(JournalPlus,MATCH(SuiviChqs!$C40,JOURNAUX!$I$11:$I$2010,0),11),0) -> 0 | J40: =INDEX(JournalPlus,MATCH(SuiviChqs!C40,JOURNAUX!$I$11:$I$2010,0),6) ->  | K40: =INDEX(JournalPlus,MATCH(C40,JOURNAUX!$I$11:$I$2010,0),12) ->  | L40: Erreur 12 | M40: 0 | N40: FALSE | R40: - | S40: - | T40: 150 | U40: =IFERROR(INDEX(O$12:O$262,MATCH(SMALL(IF((COUNTIF(U$11:U39,O$12:O$262)=0)*(O$12:O$262<>""),COUNTIF(O$12:O$262,"<"&O$12:O$262)),1),IF(O$12:O$262<>"",COUNTIF(O$12:O$262,"<"&O$12:O$262)),0)),"") ->  | W40: 150 | X40: =IFERROR(INDEX(P$12:P$262,MATCH(SMALL(IF((COUNTIF(X$11:X39,P$12:P$262)=0)*(P$12:P$262<>""),COUNTIF(P$12:P$262,"<"&P$12:P$262)),1),IF(P$12:P$262<>"",COUNTIF(P$12:P$262,"<"&P$12:P$262)),0)),"") ->  | Y40: 12 | Z40: FALSE | AA40: FALSE | AB40: TRUE | AC40: TRUE | AD40: FALSE | AE40: 29 | AG40: =AG39+MATCH(TRUE,OFFSET($N$12,AG39,0):$N$262,0) ->  | AJ40: 0 | AK40: 0 | AO40: - | AP40: -
A41: 30 | C41: 1208 | H41: =INDEX(JournalPlus,MATCH(SuiviChqs!$C41,JOURNAUX!$I$11:$I$2010,0),2) ->  | I41: =IFERROR(INDEX(JournalPlus,MATCH(SuiviChqs!$C41,JOURNAUX!$I$11:$I$2010,0),11),0) -> 0 | J41: =INDEX(JournalPlus,MATCH(SuiviChqs!C41,JOURNAUX!$I$11:$I$2010,0),6) ->  | K41: =INDEX(JournalPlus,MATCH(C41,JOURNAUX!$I$11:$I$2010,0),12) ->  | L41: Erreur 12 | M41: 0 | N41: FALSE | R41: - | S41: - | T41: 150 | U41: =IFERROR(INDEX(O$12:O$262,MATCH(SMALL(IF((COUNTIF(U$11:U40,O$12:O$262)=0)*(O$12:O$262<>""),COUNTIF(O$12:O$262,"<"&O$12:O$262)),1),IF(O$12:O$262<>"",COUNTIF(O$12:O$262,"<"&O$12:O$262)),0)),"") ->  | W41: 150 | X41: =IFERROR(INDEX(P$12:P$262,MATCH(SMALL(IF((COUNTIF(X$11:X40,P$12:P$262)=0)*(P$12:P$262<>""),COUNTIF(P$12:P$262,"<"&P$12:P$262)),1),IF(P$12:P$262<>"",COUNTIF(P$12:P$262,"<"&P$12:P$262)),0)),"") ->  | Y41: 12 | Z41: FALSE | AA41: FALSE | AB41: TRUE | AC41: TRUE | AD41: FALSE | AE41: 30 | AG41: =AG40+MATCH(TRUE,OFFSET($N$12,AG40,0):$N$262,0) ->  | AJ41: 0 | AK41: 0 | AO41: - | AP41: -
A42: 31 | C42: 1209 | H42: =INDEX(JournalPlus,MATCH(SuiviChqs!$C42,JOURNAUX!$I$11:$I$2010,0),2) ->  | I42: =IFERROR(INDEX(JournalPlus,MATCH(SuiviChqs!$C42,JOURNAUX!$I$11:$I$2010,0),11),0) -> 0 | J42: =INDEX(JournalPlus,MATCH(SuiviChqs!C42,JOURNAUX!$I$11:$I$2010,0),6) ->  | K42: =INDEX(JournalPlus,MATCH(C42,JOURNAUX!$I$11:$I$2010,0),12) ->  | L42: Erreur 12 | M42: 0 | N42: FALSE | R42: - | S42: - | T42: 150 | U42: =IFERROR(INDEX(O$12:O$262,MATCH(SMALL(IF((COUNTIF(U$11:U41,O$12:O$262)=0)*(O$12:O$262<>""),COUNTIF(O$12:O$262,"<"&O$12:O$262)),1),IF(O$12:O$262<>"",COUNTIF(O$12:O$262,"<"&O$12:O$262)),0)),"") ->  | W42: 150 | X42: =IFERROR(INDEX(P$12:P$262,MATCH(SMALL(IF((COUNTIF(X$11:X41,P$12:P$262)=0)*(P$12:P$262<>""),COUNTIF(P$12:P$262,"<"&P$12:P$262)),1),IF(P$12:P$262<>"",COUNTIF(P$12:P$262,"<"&P$12:P$262)),0)),"") ->  | Y42: 12 | Z42: FALSE | AA42: FALSE | AB42: TRUE | AC42: TRUE | AD42: FALSE | AE42: 31 | AG42: =AG41+MATCH(TRUE,OFFSET($N$12,AG41,0):$N$262,0) ->  | AJ42: 0 | AK42: 0 | AO42: - | AP42: -
A43: 32 | C43: 1210 | H43: =INDEX(JournalPlus,MATCH(SuiviChqs!$C43,JOURNAUX!$I$11:$I$2010,0),2) ->  | I43: =IFERROR(INDEX(JournalPlus,MATCH(SuiviChqs!$C43,JOURNAUX!$I$11:$I$2010,0),11),0) -> 0 | J43: =INDEX(JournalPlus,MATCH(SuiviChqs!C43,JOURNAUX!$I$11:$I$2010,0),6) ->  | K43: =INDEX(JournalPlus,MATCH(C43,JOURNAUX!$I$11:$I$2010,0),12) ->  | L43: Erreur 12 | M43: 0 | N43: FALSE | R43: - | S43: - | T43: 150 | U43: =IFERROR(INDEX(O$12:O$262,MATCH(SMALL(IF((COUNTIF(U$11:U42,O$12:O$262)=0)*(O$12:O$262<>""),COUNTIF(O$12:O$262,"<"&O$12:O$262)),1),IF(O$12:O$262<>"",COUNTIF(O$12:O$262,"<"&O$12:O$262)),0)),"") ->  | W43: 150 | X43: =IFERROR(INDEX(P$12:P$262,MATCH(SMALL(IF((COUNTIF(X$11:X42,P$12:P$262)=0)*(P$12:P$262<>""),COUNTIF(P$12:P$262,"<"&P$12:P$262)),1),IF(P$12:P$262<>"",COUNTIF(P$12:P$262,"<"&P$12:P$262)),0)),"") ->  | Y43: 12 | Z43: FALSE | AA43: FALSE | AB43: TRUE | AC43: TRUE | AD43: FALSE | AE43: 32 | AG43: =AG42+MATCH(TRUE,OFFSET($N$12,AG42,0):$N$262,0) ->  | AJ43: 0 | AK43: 0 | AO43: - | AP43: -
A44: 33 | C44: 1211 | H44: =INDEX(JournalPlus,MATCH(SuiviChqs!$C44,JOURNAUX!$I$11:$I$2010,0),2) ->  | I44: =IFERROR(INDEX(JournalPlus,MATCH(SuiviChqs!$C44,JOURNAUX!$I$11:$I$2010,0),11),0) -> 0 | J44: =INDEX(JournalPlus,MATCH(SuiviChqs!C44,JOURNAUX!$I$11:$I$2010,0),6) ->  | K44: =INDEX(JournalPlus,MATCH(C44,JOURNAUX!$I$11:$I$2010,0),12) ->  | L44: Erreur 12 | M44: 0 | N44: FALSE | R44: - | S44: - | T44: 150 | U44: =IFERROR(INDEX(O$12:O$262,MATCH(SMALL(IF((COUNTIF(U$11:U43,O$12:O$262)=0)*(O$12:O$262<>""),COUNTIF(O$12:O$262,"<"&O$12:O$262)),1),IF(O$12:O$262<>"",COUNTIF(O$12:O$262,"<"&O$12:O$262)),0)),"") ->  | W44: 150 | X44: =IFERROR(INDEX(P$12:P$262,MATCH(SMALL(IF((COUNTIF(X$11:X43,P$12:P$262)=0)*(P$12:P$262<>""),COUNTIF(P$12:P$262,"<"&P$12:P$262)),1),IF(P$12:P$262<>"",COUNTIF(P$12:P$262,"<"&P$12:P$262)),0)),"") ->  | Y44: 12 | Z44: FALSE | AA44: FALSE | AB44: TRUE | AC44: TRUE | AD44: FALSE | AE44: 33 | AG44: =AG43+MATCH(TRUE,OFFSET($N$12,AG43,0):$N$262,0) ->  | AJ44: 0 | AK44: 0 | AM44: =INDEX(CHQREGUL,$AG44,AM$8) ->  | AO44: - | AP44: -
A45: 34 | C45: 1212 | H45: =INDEX(JournalPlus,MATCH(SuiviChqs!$C45,JOURNAUX!$I$11:$I$2010,0),2) ->  | I45: =IFERROR(INDEX(JournalPlus,MATCH(SuiviChqs!$C45,JOURNAUX!$I$11:$I$2010,0),11),0) -> 0 | J45: =INDEX(JournalPlus,MATCH(SuiviChqs!C45,JOURNAUX!$I$11:$I$2010,0),6) ->  | K45: =INDEX(JournalPlus,MATCH(C45,JOURNAUX!$I$11:$I$2010,0),12) ->  | L45: Erreur 12 | M45: 0 | N45: FALSE | R45: - | S45: - | T45: 150 | U45: =IFERROR(INDEX(O$12:O$262,MATCH(SMALL(IF((COUNTIF(U$11:U44,O$12:O$262)=0)*(O$12:O$262<>""),COUNTIF(O$12:O$262,"<"&O$12:O$262)),1),IF(O$12:O$262<>"",COUNTIF(O$12:O$262,"<"&O$12:O$262)),0)),"") ->  | W45: 150 | X45: =IFERROR(INDEX(P$12:P$262,MATCH(SMALL(IF((COUNTIF(X$11:X44,P$12:P$262)=0)*(P$12:P$262<>""),COUNTIF(P$12:P$262,"<"&P$12:P$262)),1),IF(P$12:P$262<>"",COUNTIF(P$12:P$262,"<"&P$12:P$262)),0)),"") ->  | Y45: 12 | Z45: FALSE | AA45: FALSE | AB45: TRUE | AC45: TRUE | AD45: FALSE | AE45: 34 | AG45: =AG44+MATCH(TRUE,OFFSET($N$12,AG44,0):$N$262,0) ->  | AJ45: 0 | AK45: 0 | AO45: - | AP45: -
A46: 35 | C46: 1213 | H46: =INDEX(JournalPlus,MATCH(SuiviChqs!$C46,JOURNAUX!$I$11:$I$2010,0),2) ->  | I46: =IFERROR(INDEX(JournalPlus,MATCH(SuiviChqs!$C46,JOURNAUX!$I$11:$I$2010,0),11),0) -> 0 | J46: =INDEX(JournalPlus,MATCH(SuiviChqs!C46,JOURNAUX!$I$11:$I$2010,0),6) ->  | K46: =INDEX(JournalPlus,MATCH(C46,JOURNAUX!$I$11:$I$2010,0),12) ->  | L46: Erreur 12 | M46: 0 | N46: FALSE | R46: - | S46: - | T46: 150 | U46: =IFERROR(INDEX(O$12:O$262,MATCH(SMALL(IF((COUNTIF(U$11:U45,O$12:O$262)=0)*(O$12:O$262<>""),COUNTIF(O$12:O$262,"<"&O$12:O$262)),1),IF(O$12:O$262<>"",COUNTIF(O$12:O$262,"<"&O$12:O$262)),0)),"") ->  | W46: 150 | X46: =IFERROR(INDEX(P$12:P$262,MATCH(SMALL(IF((COUNTIF(X$11:X45,P$12:P$262)=0)*(P$12:P$262<>""),COUNTIF(P$12:P$262,"<"&P$12:P$262)),1),IF(P$12:P$262<>"",COUNTIF(P$12:P$262,"<"&P$12:P$262)),0)),"") ->  | Y46: 12 | Z46: FALSE | AA46: FALSE | AB46: TRUE | AC46: TRUE | AD46: FALSE | AE46: 35 | AG46: =AG45+MATCH(TRUE,OFFSET($N$12,AG45,0):$N$262,0) ->  | AJ46: 0 | AK46: 0 | AO46: - | AP46: -
A47: 36 | C47: 1214 | H47: =INDEX(JournalPlus,MATCH(SuiviChqs!$C47,JOURNAUX!$I$11:$I$2010,0),2) ->  | I47: =IFERROR(INDEX(JournalPlus,MATCH(SuiviChqs!$C47,JOURNAUX!$I$11:$I$2010,0),11),0) -> 0 | J47: =INDEX(JournalPlus,MATCH(SuiviChqs!C47,JOURNAUX!$I$11:$I$2010,0),6) ->  | K47: =INDEX(JournalPlus,MATCH(C47,JOURNAUX!$I$11:$I$2010,0),12) ->  | L47: Erreur 12 | M47: 0 | N47: FALSE | R47: - | S47: - | T47: 150 | U47: =IFERROR(INDEX(O$12:O$262,MATCH(SMALL(IF((COUNTIF(U$11:U46,O$12:O$262)=0)*(O$12:O$262<>""),COUNTIF(O$12:O$262,"<"&O$12:O$262)),1),IF(O$12:O$262<>"",COUNTIF(O$12:O$262,"<"&O$12:O$262)),0)),"") ->  | W47: 150 | X47: =IFERROR(INDEX(P$12:P$262,MATCH(SMALL(IF((COUNTIF(X$11:X46,P$12:P$262)=0)*(P$12:P$262<>""),COUNTIF(P$12:P$262,"<"&P$12:P$262)),1),IF(P$12:P$262<>"",COUNTIF(P$12:P$262,"<"&P$12:P$262)),0)),"") ->  | Y47: 12 | Z47: FALSE | AA47: FALSE | AB47: TRUE | AC47: TRUE | AD47: FALSE | AE47: 36 | AG47: =AG46+MATCH(TRUE,OFFSET($N$12,AG46,0):$N$262,0) ->  | AJ47: 0 | AK47: 0 | AO47: - | AP47: -
A48: 37 | C48: 1215 | H48: =INDEX(JournalPlus,MATCH(SuiviChqs!$C48,JOURNAUX!$I$11:$I$2010,0),2) ->  | I48: =IFERROR(INDEX(JournalPlus,MATCH(SuiviChqs!$C48,JOURNAUX!$I$11:$I$2010,0),11),0) -> 0 | J48: =INDEX(JournalPlus,MATCH(SuiviChqs!C48,JOURNAUX!$I$11:$I$2010,0),6) ->  | K48: =INDEX(JournalPlus,MATCH(C48,JOURNAUX!$I$11:$I$2010,0),12) ->  | L48: Erreur 12 | M48: 0 | N48: FALSE | R48: - | S48: - | T48: 150 | U48: =IFERROR(INDEX(O$12:O$262,MATCH(SMALL(IF((COUNTIF(U$11:U47,O$12:O$262)=0)*(O$12:O$262<>""),COUNTIF(O$12:O$262,"<"&O$12:O$262)),1),IF(O$12:O$262<>"",COUNTIF(O$12:O$262,"<"&O$12:O$262)),0)),"") ->  | W48: 150 | X48: =IFERROR(INDEX(P$12:P$262,MATCH(SMALL(IF((COUNTIF(X$11:X47,P$12:P$262)=0)*(P$12:P$262<>""),COUNTIF(P$12:P$262,"<"&P$12:P$262)),1),IF(P$12:P$262<>"",COUNTIF(P$12:P$262,"<"&P$12:P$262)),0)),"") ->  | Y48: 12 | Z48: FALSE | AA48: FALSE | AB48: TRUE | AC48: TRUE | AD48: FALSE | AE48: 37 | AG48: =AG47+MATCH(TRUE,OFFSET($N$12,AG47,0):$N$262,0) ->  | AJ48: 0 | AK48: 0 | AO48: - | AP48: -
A49: 38 | C49: 1216 | H49: =INDEX(JournalPlus,MATCH(SuiviChqs!$C49,JOURNAUX!$I$11:$I$2010,0),2) ->  | I49: =IFERROR(INDEX(JournalPlus,MATCH(SuiviChqs!$C49,JOURNAUX!$I$11:$I$2010,0),11),0) -> 0 | J49: =INDEX(JournalPlus,MATCH(SuiviChqs!C49,JOURNAUX!$I$11:$I$2010,0),6) ->  | K49: =INDEX(JournalPlus,MATCH(C49,JOURNAUX!$I$11:$I$2010,0),12) ->  | L49: Erreur 12 | M49: 0 | N49: FALSE | R49: - | S49: - | T49: 150 | U49: =IFERROR(INDEX(O$12:O$262,MATCH(SMALL(IF((COUNTIF(U$11:U48,O$12:O$262)=0)*(O$12:O$262<>""),COUNTIF(O$12:O$262,"<"&O$12:O$262)),1),IF(O$12:O$262<>"",COUNTIF(O$12:O$262,"<"&O$12:O$262)),0)),"") ->  | W49: 150 | X49: =IFERROR(INDEX(P$12:P$262,MATCH(SMALL(IF((COUNTIF(X$11:X48,P$12:P$262)=0)*(P$12:P$262<>""),COUNTIF(P$12:P$262,"<"&P$12:P$262)),1),IF(P$12:P$262<>"",COUNTIF(P$12:P$262,"<"&P$12:P$262)),0)),"") ->  | Y49: 12 | Z49: FALSE | AA49: FALSE | AB49: TRUE | AC49: TRUE | AD49: FALSE | AE49: 38 | AG49: =AG48+MATCH(TRUE,OFFSET($N$12,AG48,0):$N$262,0) ->  | AJ49: 0 | AK49: 0 | AO49: - | AP49: -
A50: 39 | C50: 1217 | H50: =INDEX(JournalPlus,MATCH(SuiviChqs!$C50,JOURNAUX!$I$11:$I$2010,0),2) ->  | I50: =IFERROR(INDEX(JournalPlus,MATCH(SuiviChqs!$C50,JOURNAUX!$I$11:$I$2010,0),11),0) -> 0 | J50: =INDEX(JournalPlus,MATCH(SuiviChqs!C50,JOURNAUX!$I$11:$I$2010,0),6) ->  | K50: =INDEX(JournalPlus,MATCH(C50,JOURNAUX!$I$11:$I$2010,0),12) ->  | L50: Erreur 12 | M50: 0 | N50: FALSE | R50: - | S50: - | T50: 150 | U50: =IFERROR(INDEX(O$12:O$262,MATCH(SMALL(IF((COUNTIF(U$11:U49,O$12:O$262)=0)*(O$12:O$262<>""),COUNTIF(O$12:O$262,"<"&O$12:O$262)),1),IF(O$12:O$262<>"",COUNTIF(O$12:O$262,"<"&O$12:O$262)),0)),"") ->  | W50: 150 | X50: =IFERROR(INDEX(P$12:P$262,MATCH(SMALL(IF((COUNTIF(X$11:X49,P$12:P$262)=0)*(P$12:P$262<>""),COUNTIF(P$12:P$262,"<"&P$12:P$262)),1),IF(P$12:P$262<>"",COUNTIF(P$12:P$262,"<"&P$12:P$262)),0)),"") ->  | Y50: 12 | Z50: FALSE | AA50: FALSE | AB50: TRUE | AC50: TRUE | AD50: FALSE | AE50: 39 | AG50: =AG49+MATCH(TRUE,OFFSET($N$12,AG49,0):$N$262,0) ->  | AJ50: 0 | AK50: 0 | AO50: - | AP50: -
A51: 40 | C51: 1218 | H51: =INDEX(JournalPlus,MATCH(SuiviChqs!$C51,JOURNAUX!$I$11:$I$2010,0),2) ->  | I51: =IFERROR(INDEX(JournalPlus,MATCH(SuiviChqs!$C51,JOURNAUX!$I$11:$I$2010,0),11),0) -> 0 | J51: =INDEX(JournalPlus,MATCH(SuiviChqs!C51,JOURNAUX!$I$11:$I$2010,0),6) ->  | K51: =INDEX(JournalPlus,MATCH(C51,JOURNAUX!$I$11:$I$2010,0),12) ->  | L51: Erreur 12 | M51: 0 | N51: FALSE | R51: - | S51: - | T51: 150 | U51: =IFERROR(INDEX(O$12:O$262,MATCH(SMALL(IF((COUNTIF(U$11:U50,O$12:O$262)=0)*(O$12:O$262<>""),COUNTIF(O$12:O$262,"<"&O$12:O$262)),1),IF(O$12:O$262<>"",COUNTIF(O$12:O$262,"<"&O$12:O$262)),0)),"") ->  | W51: 150 | X51: =IFERROR(INDEX(P$12:P$262,MATCH(SMALL(IF((COUNTIF(X$11:X50,P$12:P$262)=0)*(P$12:P$262<>""),COUNTIF(P$12:P$262,"<"&P$12:P$262)),1),IF(P$12:P$262<>"",COUNTIF(P$12:P$262,"<"&P$12:P$262)),0)),"") ->  | Y51: 12 | Z51: FALSE | AA51: FALSE | AB51: TRUE | AC51: TRUE | AD51: FALSE | AE51: 40 | AG51: =AG50+MATCH(TRUE,OFFSET($N$12,AG50,0):$N$262,0) ->  | AJ51: 0 | AK51: 0 | AO51: - | AP51: -
A52: 41 | C52: 1219 | H52: =INDEX(JournalPlus,MATCH(SuiviChqs!$C52,JOURNAUX!$I$11:$I$2010,0),2) ->  | I52: =IFERROR(INDEX(JournalPlus,MATCH(SuiviChqs!$C52,JOURNAUX!$I$11:$I$2010,0),11),0) -> 0 | J52: =INDEX(JournalPlus,MATCH(SuiviChqs!C52,JOURNAUX!$I$11:$I$2010,0),6) ->  | K52: =INDEX(JournalPlus,MATCH(C52,JOURNAUX!$I$11:$I$2010,0),12) ->  | L52: Erreur 12 | M52: 0 | N52: FALSE | R52: - | S52: - | T52: 150 | U52: =IFERROR(INDEX(O$12:O$262,MATCH(SMALL(IF((COUNTIF(U$11:U51,O$12:O$262)=0)*(O$12:O$262<>""),COUNTIF(O$12:O$262,"<"&O$12:O$262)),1),IF(O$12:O$262<>"",COUNTIF(O$12:O$262,"<"&O$12:O$262)),0)),"") ->  | W52: 150 | X52: =IFERROR(INDEX(P$12:P$262,MATCH(SMALL(IF((COUNTIF(X$11:X51,P$12:P$262)=0)*(P$12:P$262<>""),COUNTIF(P$12:P$262,"<"&P$12:P$262)),1),IF(P$12:P$262<>"",COUNTIF(P$12:P$262,"<"&P$12:P$262)),0)),"") ->  | Y52: 12 | Z52: FALSE | AA52: FALSE | AB52: TRUE | AC52: TRUE | AD52: FALSE | AE52: 41 | AG52: =AG51+MATCH(TRUE,OFFSET($N$12,AG51,0):$N$262,0) ->  | AJ52: 0 | AK52: 0 | AO52: - | AP52: -
A53: 42 | C53: 1220 | H53: =INDEX(JournalPlus,MATCH(SuiviChqs!$C53,JOURNAUX!$I$11:$I$2010,0),2) ->  | I53: =IFERROR(INDEX(JournalPlus,MATCH(SuiviChqs!$C53,JOURNAUX!$I$11:$I$2010,0),11),0) -> 0 | J53: =INDEX(JournalPlus,MATCH(SuiviChqs!C53,JOURNAUX!$I$11:$I$2010,0),6) ->  | K53: =INDEX(JournalPlus,MATCH(C53,JOURNAUX!$I$11:$I$2010,0),12) ->  | L53: Erreur 12 | M53: 0 | N53: FALSE | R53: - | S53: - | T53: 150 | U53: =IFERROR(INDEX(O$12:O$262,MATCH(SMALL(IF((COUNTIF(U$11:U52,O$12:O$262)=0)*(O$12:O$262<>""),COUNTIF(O$12:O$262,"<"&O$12:O$262)),1),IF(O$12:O$262<>"",COUNTIF(O$12:O$262,"<"&O$12:O$262)),0)),"") ->  | W53: 150 | X53: =IFERROR(INDEX(P$12:P$262,MATCH(SMALL(IF((COUNTIF(X$11:X52,P$12:P$262)=0)*(P$12:P$262<>""),COUNTIF(P$12:P$262,"<"&P$12:P$262)),1),IF(P$12:P$262<>"",COUNTIF(P$12:P$262,"<"&P$12:P$262)),0)),"") ->  | Y53: 12 | Z53: FALSE | AA53: FALSE | AB53: TRUE | AC53: TRUE | AD53: FALSE | AE53: 42 | AG53: =AG52+MATCH(TRUE,OFFSET($N$12,AG52,0):$N$262,0) ->  | AJ53: 0 | AK53: 0 | AO53: - | AP53: -
A54: 43 | C54: 1221 | H54: =INDEX(JournalPlus,MATCH(SuiviChqs!$C54,JOURNAUX!$I$11:$I$2010,0),2) ->  | I54: =IFERROR(INDEX(JournalPlus,MATCH(SuiviChqs!$C54,JOURNAUX!$I$11:$I$2010,0),11),0) -> 0 | J54: =INDEX(JournalPlus,MATCH(SuiviChqs!C54,JOURNAUX!$I$11:$I$2010,0),6) ->  | K54: =INDEX(JournalPlus,MATCH(C54,JOURNAUX!$I$11:$I$2010,0),12) ->  | L54: Erreur 12 | M54: 0 | N54: FALSE | R54: - | S54: - | T54: 150 | U54: =IFERROR(INDEX(O$12:O$262,MATCH(SMALL(IF((COUNTIF(U$11:U53,O$12:O$262)=0)*(O$12:O$262<>""),COUNTIF(O$12:O$262,"<"&O$12:O$262)),1),IF(O$12:O$262<>"",COUNTIF(O$12:O$262,"<"&O$12:O$262)),0)),"") ->  | W54: 150 | X54: =IFERROR(INDEX(P$12:P$262,MATCH(SMALL(IF((COUNTIF(X$11:X53,P$12:P$262)=0)*(P$12:P$262<>""),COUNTIF(P$12:P$262,"<"&P$12:P$262)),1),IF(P$12:P$262<>"",COUNTIF(P$12:P$262,"<"&P$12:P$262)),0)),"") ->  | Y54: 12 | Z54: FALSE | AA54: FALSE | AB54: TRUE | AC54: TRUE | AD54: FALSE | AE54: 43 | AG54: =AG53+MATCH(TRUE,OFFSET($N$12,AG53,0):$N$262,0) ->  | AJ54: 0 | AK54: 0 | AO54: - | AP54: -
A55: 44 | C55: 1222 | H55: =INDEX(JournalPlus,MATCH(SuiviChqs!$C55,JOURNAUX!$I$11:$I$2010,0),2) ->  | I55: =IFERROR(INDEX(JournalPlus,MATCH(SuiviChqs!$C55,JOURNAUX!$I$11:$I$2010,0),11),0) -> 0 | J55: =INDEX(JournalPlus,MATCH(SuiviChqs!C55,JOURNAUX!$I$11:$I$2010,0),6) ->  | K55: =INDEX(JournalPlus,MATCH(C55,JOURNAUX!$I$11:$I$2010,0),12) ->  | L55: Erreur 12 | M55: 0 | N55: FALSE | R55: - | S55: - | T55: 150 | U55: =IFERROR(INDEX(O$12:O$262,MATCH(SMALL(IF((COUNTIF(U$11:U54,O$12:O$262)=0)*(O$12:O$262<>""),COUNTIF(O$12:O$262,"<"&O$12:O$262)),1),IF(O$12:O$262<>"",COUNTIF(O$12:O$262,"<"&O$12:O$262)),0)),"") ->  | W55: 150 | X55: =IFERROR(INDEX(P$12:P$262,MATCH(SMALL(IF((COUNTIF(X$11:X54,P$12:P$262)=0)*(P$12:P$262<>""),COUNTIF(P$12:P$262,"<"&P$12:P$262)),1),IF(P$12:P$262<>"",COUNTIF(P$12:P$262,"<"&P$12:P$262)),0)),"") ->  | Y55: 12 | Z55: FALSE | AA55: FALSE | AB55: TRUE | AC55: TRUE | AD55: FALSE | AE55: 44 | AG55: =AG54+MATCH(TRUE,OFFSET($N$12,AG54,0):$N$262,0) ->  | AJ55: 0 | AK55: 0 | AO55: - | AP55: -
A56: 45 | C56: 1223 | H56: =INDEX(JournalPlus,MATCH(SuiviChqs!$C56,JOURNAUX!$I$11:$I$2010,0),2) ->  | I56: =IFERROR(INDEX(JournalPlus,MATCH(SuiviChqs!$C56,JOURNAUX!$I$11:$I$2010,0),11),0) -> 0 | J56: =INDEX(JournalPlus,MATCH(SuiviChqs!C56,JOURNAUX!$I$11:$I$2010,0),6) ->  | K56: =INDEX(JournalPlus,MATCH(C56,JOURNAUX!$I$11:$I$2010,0),12) ->  | L56: Erreur 12 | M56: 0 | N56: FALSE | R56: - | S56: - | T56: 150 | U56: =IFERROR(INDEX(O$12:O$262,MATCH(SMALL(IF((COUNTIF(U$11:U55,O$12:O$262)=0)*(O$12:O$262<>""),COUNTIF(O$12:O$262,"<"&O$12:O$262)),1),IF(O$12:O$262<>"",COUNTIF(O$12:O$262,"<"&O$12:O$262)),0)),"") ->  | W56: 150 | X56: =IFERROR(INDEX(P$12:P$262,MATCH(SMALL(IF((COUNTIF(X$11:X55,P$12:P$262)=0)*(P$12:P$262<>""),COUNTIF(P$12:P$262,"<"&P$12:P$262)),1),IF(P$12:P$262<>"",COUNTIF(P$12:P$262,"<"&P$12:P$262)),0)),"") ->  | Y56: 12 | Z56: FALSE | AA56: FALSE | AB56: TRUE | AC56: TRUE | AD56: FALSE | AE56: 45 | AG56: =AG55+MATCH(TRUE,OFFSET($N$12,AG55,0):$N$262,0) ->  | AJ56: 0 | AK56: 0 | AO56: - | AP56: -
A57: 46 | C57: 1224 | H57: =INDEX(JournalPlus,MATCH(SuiviChqs!$C57,JOURNAUX!$I$11:$I$2010,0),2) ->  | I57: =IFERROR(INDEX(JournalPlus,MATCH(SuiviChqs!$C57,JOURNAUX!$I$11:$I$2010,0),11),0) -> 0 | J57: =INDEX(JournalPlus,MATCH(SuiviChqs!C57,JOURNAUX!$I$11:$I$2010,0),6) ->  | K57: =INDEX(JournalPlus,MATCH(C57,JOURNAUX!$I$11:$I$2010,0),12) ->  | L57: Erreur 12 | M57: 0 | N57: FALSE | R57: - | S57: - | T57: 150 | U57: =IFERROR(INDEX(O$12:O$262,MATCH(SMALL(IF((COUNTIF(U$11:U56,O$12:O$262)=0)*(O$12:O$262<>""),COUNTIF(O$12:O$262,"<"&O$12:O$262)),1),IF(O$12:O$262<>"",COUNTIF(O$12:O$262,"<"&O$12:O$262)),0)),"") ->  | W57: 150 | X57: =IFERROR(INDEX(P$12:P$262,MATCH(SMALL(IF((COUNTIF(X$11:X56,P$12:P$262)=0)*(P$12:P$262<>""),COUNTIF(P$12:P$262,"<"&P$12:P$262)),1),IF(P$12:P$262<>"",COUNTIF(P$12:P$262,"<"&P$12:P$262)),0)),"") ->  | Y57: 12 | Z57: FALSE | AA57: FALSE | AB57: TRUE | AC57: TRUE | AD57: FALSE | AE57: 46 | AG57: =AG56+MATCH(TRUE,OFFSET($N$12,AG56,0):$N$262,0) ->  | AJ57: 0 | AK57: 0 | AO57: - | AP57: -
A58: 47 | C58: 1225 | H58: =INDEX(JournalPlus,MATCH(SuiviChqs!$C58,JOURNAUX!$I$11:$I$2010,0),2) ->  | I58: =IFERROR(INDEX(JournalPlus,MATCH(SuiviChqs!$C58,JOURNAUX!$I$11:$I$2010,0),11),0) -> 0 | J58: =INDEX(JournalPlus,MATCH(SuiviChqs!C58,JOURNAUX!$I$11:$I$2010,0),6) ->  | K58: =INDEX(JournalPlus,MATCH(C58,JOURNAUX!$I$11:$I$2010,0),12) ->  | L58: Erreur 12 | M58: 0 | N58: FALSE | R58: - | S58: - | T58: 150 | U58: =IFERROR(INDEX(O$12:O$262,MATCH(SMALL(IF((COUNTIF(U$11:U57,O$12:O$262)=0)*(O$12:O$262<>""),COUNTIF(O$12:O$262,"<"&O$12:O$262)),1),IF(O$12:O$262<>"",COUNTIF(O$12:O$262,"<"&O$12:O$262)),0)),"") ->  | W58: 150 | X58: =IFERROR(INDEX(P$12:P$262,MATCH(SMALL(IF((COUNTIF(X$11:X57,P$12:P$262)=0)*(P$12:P$262<>""),COUNTIF(P$12:P$262,"<"&P$12:P$262)),1),IF(P$12:P$262<>"",COUNTIF(P$12:P$262,"<"&P$12:P$262)),0)),"") ->  | Y58: 12 | Z58: FALSE | AA58: FALSE | AB58: TRUE | AC58: TRUE | AD58: FALSE | AE58: 47 | AG58: =AG57+MATCH(TRUE,OFFSET($N$12,AG57,0):$N$262,0) ->  | AJ58: 0 | AK58: 0 | AO58: - | AP58: -
A59: 48 | C59: 1226 | H59: =INDEX(JournalPlus,MATCH(SuiviChqs!$C59,JOURNAUX!$I$11:$I$2010,0),2) ->  | I59: =IFERROR(INDEX(JournalPlus,MATCH(SuiviChqs!$C59,JOURNAUX!$I$11:$I$2010,0),11),0) -> 0 | J59: =INDEX(JournalPlus,MATCH(SuiviChqs!C59,JOURNAUX!$I$11:$I$2010,0),6) ->  | K59: =INDEX(JournalPlus,MATCH(C59,JOURNAUX!$I$11:$I$2010,0),12) ->  | L59: Erreur 12 | M59: 0 | N59: FALSE | R59: - | S59: - | T59: 150 | U59: =IFERROR(INDEX(O$12:O$262,MATCH(SMALL(IF((COUNTIF(U$11:U58,O$12:O$262)=0)*(O$12:O$262<>""),COUNTIF(O$12:O$262,"<"&O$12:O$262)),1),IF(O$12:O$262<>"",COUNTIF(O$12:O$262,"<"&O$12:O$262)),0)),"") ->  | W59: 150 | X59: =IFERROR(INDEX(P$12:P$262,MATCH(SMALL(IF((COUNTIF(X$11:X58,P$12:P$262)=0)*(P$12:P$262<>""),COUNTIF(P$12:P$262,"<"&P$12:P$262)),1),IF(P$12:P$262<>"",COUNTIF(P$12:P$262,"<"&P$12:P$262)),0)),"") ->  | Y59: 12 | Z59: FALSE | AA59: FALSE | AB59: TRUE | AC59: TRUE | AD59: FALSE | AE59: 48 | AG59: =AG58+MATCH(TRUE,OFFSET($N$12,AG58,0):$N$262,0) ->  | AJ59: 0 | AK59: 0 | AO59: - | AP59: -
A60: 49 | C60: 1227 | H60: =INDEX(JournalPlus,MATCH(SuiviChqs!$C60,JOURNAUX!$I$11:$I$2010,0),2) ->  | I60: =IFERROR(INDEX(JournalPlus,MATCH(SuiviChqs!$C60,JOURNAUX!$I$11:$I$2010,0),11),0) -> 0 | J60: =INDEX(JournalPlus,MATCH(SuiviChqs!C60,JOURNAUX!$I$11:$I$2010,0),6) ->  | K60: =INDEX(JournalPlus,MATCH(C60,JOURNAUX!$I$11:$I$2010,0),12) ->  | L60: Erreur 12 | M60: 0 | N60: FALSE | R60: - | S60: - | T60: 150 | U60: =IFERROR(INDEX(O$12:O$262,MATCH(SMALL(IF((COUNTIF(U$11:U59,O$12:O$262)=0)*(O$12:O$262<>""),COUNTIF(O$12:O$262,"<"&O$12:O$262)),1),IF(O$12:O$262<>"",COUNTIF(O$12:O$262,"<"&O$12:O$262)),0)),"") ->  | W60: 150 | X60: =IFERROR(INDEX(P$12:P$262,MATCH(SMALL(IF((COUNTIF(X$11:X59,P$12:P$262)=0)*(P$12:P$262<>""),COUNTIF(P$12:P$262,"<"&P$12:P$262)),1),IF(P$12:P$262<>"",COUNTIF(P$12:P$262,"<"&P$12:P$262)),0)),"") ->  | Y60: 12 | Z60: FALSE | AA60: FALSE | AB60: TRUE | AC60: TRUE | AD60: FALSE | AE60: 49 | AG60: =AG59+MATCH(TRUE,OFFSET($N$12,AG59,0):$N$262,0) ->  | AJ60: 0 | AK60: 0 | AO60: - | AP60: -
A61: 50 | C61: 1228 | H61: =INDEX(JournalPlus,MATCH(SuiviChqs!$C61,JOURNAUX!$I$11:$I$2010,0),2) ->  | I61: =IFERROR(INDEX(JournalPlus,MATCH(SuiviChqs!$C61,JOURNAUX!$I$11:$I$2010,0),11),0) -> 0 | J61: =INDEX(JournalPlus,MATCH(SuiviChqs!C61,JOURNAUX!$I$11:$I$2010,0),6) ->  | K61: =INDEX(JournalPlus,MATCH(C61,JOURNAUX!$I$11:$I$2010,0),12) ->  | L61: Erreur 12 | M61: 0 | N61: FALSE | R61: - | S61: - | T61: 150 | U61: =IFERROR(INDEX(O$12:O$262,MATCH(SMALL(IF((COUNTIF(U$11:U60,O$12:O$262)=0)*(O$12:O$262<>""),COUNTIF(O$12:O$262,"<"&O$12:O$262)),1),IF(O$12:O$262<>"",COUNTIF(O$12:O$262,"<"&O$12:O$262)),0)),"") ->  | W61: 150 | X61: =IFERROR(INDEX(P$12:P$262,MATCH(SMALL(IF((COUNTIF(X$11:X60,P$12:P$262)=0)*(P$12:P$262<>""),COUNTIF(P$12:P$262,"<"&P$12:P$262)),1),IF(P$12:P$262<>"",COUNTIF(P$12:P$262,"<"&P$12:P$262)),0)),"") ->  | Y61: 12 | Z61: FALSE | AA61: FALSE | AB61: TRUE | AC61: TRUE | AD61: FALSE | AE61: 50 | AG61: =AG60+MATCH(TRUE,OFFSET($N$12,AG60,0):$N$262,0) ->  | AJ61: 0 | AK61: 0 | AO61: - | AP61: -
A62: 51 | C62: 1229 | H62: =INDEX(JournalPlus,MATCH(SuiviChqs!$C62,JOURNAUX!$I$11:$I$2010,0),2) ->  | I62: =IFERROR(INDEX(JournalPlus,MATCH(SuiviChqs!$C62,JOURNAUX!$I$11:$I$2010,0),11),0) -> 0 | J62: =INDEX(JournalPlus,MATCH(SuiviChqs!C62,JOURNAUX!$I$11:$I$2010,0),6) ->  | K62: =INDEX(JournalPlus,MATCH(C62,JOURNAUX!$I$11:$I$2010,0),12) ->  | L62: Erreur 12 | M62: 0 | N62: FALSE | R62: - | S62: - | T62: 150 | U62: =IFERROR(INDEX(O$12:O$262,MATCH(SMALL(IF((COUNTIF(U$11:U61,O$12:O$262)=0)*(O$12:O$262<>""),COUNTIF(O$12:O$262,"<"&O$12:O$262)),1),IF(O$12:O$262<>"",COUNTIF(O$12:O$262,"<"&O$12:O$262)),0)),"") ->  | W62: 150 | X62: =IFERROR(INDEX(P$12:P$262,MATCH(SMALL(IF((COUNTIF(X$11:X61,P$12:P$262)=0)*(P$12:P$262<>""),COUNTIF(P$12:P$262,"<"&P$12:P$262)),1),IF(P$12:P$262<>"",COUNTIF(P$12:P$262,"<"&P$12:P$262)),0)),"") ->  | Y62: 12 | Z62: FALSE | AA62: FALSE | AB62: TRUE | AC62: TRUE | AD62: FALSE | AE62: 51 | AG62: =AG61+MATCH(TRUE,OFFSET($N$12,AG61,0):$N$262,0) ->  | AJ62: 0 | AK62: 0 | AO62: - | AP62: -
A63: 52 | C63: 1230 | H63: =INDEX(JournalPlus,MATCH(SuiviChqs!$C63,JOURNAUX!$I$11:$I$2010,0),2) ->  | I63: =IFERROR(INDEX(JournalPlus,MATCH(SuiviChqs!$C63,JOURNAUX!$I$11:$I$2010,0),11),0) -> 0 | J63: =INDEX(JournalPlus,MATCH(SuiviChqs!C63,JOURNAUX!$I$11:$I$2010,0),6) ->  | K63: =INDEX(JournalPlus,MATCH(C63,JOURNAUX!$I$11:$I$2010,0),12) ->  | L63: Erreur 12 | M63: 0 | N63: FALSE | R63: - | S63: - | T63: 150 | U63: =IFERROR(INDEX(O$12:O$262,MATCH(SMALL(IF((COUNTIF(U$11:U62,O$12:O$262)=0)*(O$12:O$262<>""),COUNTIF(O$12:O$262,"<"&O$12:O$262)),1),IF(O$12:O$262<>"",COUNTIF(O$12:O$262,"<"&O$12:O$262)),0)),"") ->  | W63: 150 | X63: =IFERROR(INDEX(P$12:P$262,MATCH(SMALL(IF((COUNTIF(X$11:X62,P$12:P$262)=0)*(P$12:P$262<>""),COUNTIF(P$12:P$262,"<"&P$12:P$262)),1),IF(P$12:P$262<>"",COUNTIF(P$12:P$262,"<"&P$12:P$262)),0)),"") ->  | Y63: 12 | Z63: FALSE | AA63: FALSE | AB63: TRUE | AC63: TRUE | AD63: FALSE | AE63: 52 | AG63: =AG62+MATCH(TRUE,OFFSET($N$12,AG62,0):$N$262,0) ->  | AJ63: 0 | AK63: 0 | AO63: - | AP63: -
A64: 53 | C64: 1231 | H64: =INDEX(JournalPlus,MATCH(SuiviChqs!$C64,JOURNAUX!$I$11:$I$2010,0),2) ->  | I64: =IFERROR(INDEX(JournalPlus,MATCH(SuiviChqs!$C64,JOURNAUX!$I$11:$I$2010,0),11),0) -> 0 | J64: =INDEX(JournalPlus,MATCH(SuiviChqs!C64,JOURNAUX!$I$11:$I$2010,0),6) ->  | K64: =INDEX(JournalPlus,MATCH(C64,JOURNAUX!$I$11:$I$2010,0),12) ->  | L64: Erreur 12 | M64: 0 | N64: FALSE | R64: - | S64: - | T64: 150 | U64: =IFERROR(INDEX(O$12:O$262,MATCH(SMALL(IF((COUNTIF(U$11:U63,O$12:O$262)=0)*(O$12:O$262<>""),COUNTIF(O$12:O$262,"<"&O$12:O$262)),1),IF(O$12:O$262<>"",COUNTIF(O$12:O$262,"<"&O$12:O$262)),0)),"") ->  | W64: 150 | X64: =IFERROR(INDEX(P$12:P$262,MATCH(SMALL(IF((COUNTIF(X$11:X63,P$12:P$262)=0)*(P$12:P$262<>""),COUNTIF(P$12:P$262,"<"&P$12:P$262)),1),IF(P$12:P$262<>"",COUNTIF(P$12:P$262,"<"&P$12:P$262)),0)),"") ->  | Y64: 12 | Z64: FALSE | AA64: FALSE | AB64: TRUE | AC64: TRUE | AD64: FALSE | AE64: 53 | AG64: =AG63+MATCH(TRUE,OFFSET($N$12,AG63,0):$N$262,0) ->  | AJ64: 0 | AK64: 0 | AO64: - | AP64: -
A65: 54 | C65: 1232 | H65: =INDEX(JournalPlus,MATCH(SuiviChqs!$C65,JOURNAUX!$I$11:$I$2010,0),2) ->  | I65: =IFERROR(INDEX(JournalPlus,MATCH(SuiviChqs!$C65,JOURNAUX!$I$11:$I$2010,0),11),0) -> 0 | J65: =INDEX(JournalPlus,MATCH(SuiviChqs!C65,JOURNAUX!$I$11:$I$2010,0),6) ->  | K65: =INDEX(JournalPlus,MATCH(C65,JOURNAUX!$I$11:$I$2010,0),12) ->  | L65: Erreur 12 | M65: 0 | N65: FALSE | R65: - | S65: - | T65: 150 | U65: =IFERROR(INDEX(O$12:O$262,MATCH(SMALL(IF((COUNTIF(U$11:U64,O$12:O$262)=0)*(O$12:O$262<>""),COUNTIF(O$12:O$262,"<"&O$12:O$262)),1),IF(O$12:O$262<>"",COUNTIF(O$12:O$262,"<"&O$12:O$262)),0)),"") ->  | W65: 150 | X65: =IFERROR(INDEX(P$12:P$262,MATCH(SMALL(IF((COUNTIF(X$11:X64,P$12:P$262)=0)*(P$12:P$262<>""),COUNTIF(P$12:P$262,"<"&P$12:P$262)),1),IF(P$12:P$262<>"",COUNTIF(P$12:P$262,"<"&P$12:P$262)),0)),"") ->  | Y65: 12 | Z65: FALSE | AA65: FALSE | AB65: TRUE | AC65: TRUE | AD65: FALSE | AE65: 54 | AG65: =AG64+MATCH(TRUE,OFFSET($N$12,AG64,0):$N$262,0) ->  | AJ65: 0 | AK65: 0 | AO65: - | AP65: -
A66: 55 | C66: 1233 | H66: =INDEX(JournalPlus,MATCH(SuiviChqs!$C66,JOURNAUX!$I$11:$I$2010,0),2) ->  | I66: =IFERROR(INDEX(JournalPlus,MATCH(SuiviChqs!$C66,JOURNAUX!$I$11:$I$2010,0),11),0) -> 0 | J66: =INDEX(JournalPlus,MATCH(SuiviChqs!C66,JOURNAUX!$I$11:$I$2010,0),6) ->  | K66: =INDEX(JournalPlus,MATCH(C66,JOURNAUX!$I$11:$I$2010,0),12) ->  | L66: Erreur 12 | M66: 0 | N66: FALSE | R66: - | S66: - | T66: 150 | U66: =IFERROR(INDEX(O$12:O$262,MATCH(SMALL(IF((COUNTIF(U$11:U65,O$12:O$262)=0)*(O$12:O$262<>""),COUNTIF(O$12:O$262,"<"&O$12:O$262)),1),IF(O$12:O$262<>"",COUNTIF(O$12:O$262,"<"&O$12:O$262)),0)),"") ->  | W66: 150 | X66: =IFERROR(INDEX(P$12:P$262,MATCH(SMALL(IF((COUNTIF(X$11:X65,P$12:P$262)=0)*(P$12:P$262<>""),COUNTIF(P$12:P$262,"<"&P$12:P$262)),1),IF(P$12:P$262<>"",COUNTIF(P$12:P$262,"<"&P$12:P$262)),0)),"") ->  | Y66: 12 | Z66: FALSE | AA66: FALSE | AB66: TRUE | AC66: TRUE | AD66: FALSE | AE66: 55 | AG66: =AG65+MATCH(TRUE,OFFSET($N$12,AG65,0):$N$262,0) ->  | AJ66: 0 | AK66: 0 | AO66: - | AP66: -
A67: 56 | C67: 1234 | H67: =INDEX(JournalPlus,MATCH(SuiviChqs!$C67,JOURNAUX!$I$11:$I$2010,0),2) ->  | I67: =IFERROR(INDEX(JournalPlus,MATCH(SuiviChqs!$C67,JOURNAUX!$I$11:$I$2010,0),11),0) -> 0 | J67: =INDEX(JournalPlus,MATCH(SuiviChqs!C67,JOURNAUX!$I$11:$I$2010,0),6) ->  | K67: =INDEX(JournalPlus,MATCH(C67,JOURNAUX!$I$11:$I$2010,0),12) ->  | L67: Erreur 12 | M67: 0 | N67: FALSE | R67: - | S67: - | Y67: 12 | Z67: FALSE | AA67: FALSE | AB67: TRUE | AC67: TRUE | AD67: FALSE | AE67: 56 | AG67: =AG66+MATCH(TRUE,OFFSET($N$12,AG66,0):$N$262,0) ->  | AJ67: 0 | AK67: 0 | AO67: - | AP67: -
A68: 57 | C68: 1235 | H68: =INDEX(JournalPlus,MATCH(SuiviChqs!$C68,JOURNAUX!$I$11:$I$2010,0),2) ->  | I68: =IFERROR(INDEX(JournalPlus,MATCH(SuiviChqs!$C68,JOURNAUX!$I$11:$I$2010,0),11),0) -> 0 | J68: =INDEX(JournalPlus,MATCH(SuiviChqs!C68,JOURNAUX!$I$11:$I$2010,0),6) ->  | K68: =INDEX(JournalPlus,MATCH(C68,JOURNAUX!$I$11:$I$2010,0),12) ->  | L68: Erreur 12 | M68: 0 | N68: FALSE | R68: - | S68: - | Y68: 12 | Z68: FALSE | AA68: FALSE | AB68: TRUE | AC68: TRUE | AD68: FALSE | AE68: 57 | AG68: =AG67+MATCH(TRUE,OFFSET($N$12,AG67,0):$N$262,0) ->  | AJ68: 0 | AK68: 0 | AO68: - | AP68: -
A69: 58 | C69: 1236 | H69: =INDEX(JournalPlus,MATCH(SuiviChqs!$C69,JOURNAUX!$I$11:$I$2010,0),2) ->  | I69: =IFERROR(INDEX(JournalPlus,MATCH(SuiviChqs!$C69,JOURNAUX!$I$11:$I$2010,0),11),0) -> 0 | J69: =INDEX(JournalPlus,MATCH(SuiviChqs!C69,JOURNAUX!$I$11:$I$2010,0),6) ->  | K69: =INDEX(JournalPlus,MATCH(C69,JOURNAUX!$I$11:$I$2010,0),12) ->  | L69: Erreur 12 | M69: 0 | N69: FALSE | R69: - | S69: - | Y69: 12 | Z69: FALSE | AA69: FALSE | AB69: TRUE | AC69: TRUE | AD69: FALSE | AE69: 58 | AG69: =AG68+MATCH(TRUE,OFFSET($N$12,AG68,0):$N$262,0) ->  | AJ69: 0 | AK69: 0 | AO69: - | AP69: -
A70: 59 | C70: 1237 | H70: =INDEX(JournalPlus,MATCH(SuiviChqs!$C70,JOURNAUX!$I$11:$I$2010,0),2) ->  | I70: =IFERROR(INDEX(JournalPlus,MATCH(SuiviChqs!$C70,JOURNAUX!$I$11:$I$2010,0),11),0) -> 0 | J70: =INDEX(JournalPlus,MATCH(SuiviChqs!C70,JOURNAUX!$I$11:$I$2010,0),6) ->  | K70: =INDEX(JournalPlus,MATCH(C70,JOURNAUX!$I$11:$I$2010,0),12) ->  | L70: Erreur 12 | M70: 0 | N70: FALSE | R70: - | S70: - | Y70: 12 | Z70: FALSE | AA70: FALSE | AB70: TRUE | AC70: TRUE | AD70: FALSE | AE70: 59 | AG70: =AG69+MATCH(TRUE,OFFSET($N$12,AG69,0):$N$262,0) ->  | AJ70: 0 | AK70: 0 | AO70: - | AP70: -
A71: 60 | C71: 1238 | H71: =INDEX(JournalPlus,MATCH(SuiviChqs!$C71,JOURNAUX!$I$11:$I$2010,0),2) ->  | I71: =IFERROR(INDEX(JournalPlus,MATCH(SuiviChqs!$C71,JOURNAUX!$I$11:$I$2010,0),11),0) -> 0 | J71: =INDEX(JournalPlus,MATCH(SuiviChqs!C71,JOURNAUX!$I$11:$I$2010,0),6) ->  | K71: =INDEX(JournalPlus,MATCH(C71,JOURNAUX!$I$11:$I$2010,0),12) ->  | L71: Erreur 12 | M71: 0 | N71: FALSE | R71: - | S71: - | Y71: 12 | Z71: FALSE | AA71: FALSE | AB71: TRUE | AC71: TRUE | AD71: FALSE | AE71: 60 | AG71: =AG70+MATCH(TRUE,OFFSET($N$12,AG70,0):$N$262,0) ->  | AJ71: 0 | AK71: 0 | AO71: - | AP71: -
A72: 61 | C72: 1239 | H72: =INDEX(JournalPlus,MATCH(SuiviChqs!$C72,JOURNAUX!$I$11:$I$2010,0),2) ->  | I72: =IFERROR(INDEX(JournalPlus,MATCH(SuiviChqs!$C72,JOURNAUX!$I$11:$I$2010,0),11),0) -> 0 | J72: =INDEX(JournalPlus,MATCH(SuiviChqs!C72,JOURNAUX!$I$11:$I$2010,0),6) ->  | K72: =INDEX(JournalPlus,MATCH(C72,JOURNAUX!$I$11:$I$2010,0),12) ->  | L72: Erreur 12 | M72: 0 | N72: FALSE | R72: - | S72: - | Y72: 12 | Z72: FALSE | AA72: FALSE | AB72: TRUE | AC72: TRUE | AD72: FALSE | AE72: 61 | AG72: =AG71+MATCH(TRUE,OFFSET($N$12,AG71,0):$N$262,0) ->  | AJ72: 0 | AK72: 0 | AO72: - | AP72: -
A73: 62 | C73: 1240 | H73: =INDEX(JournalPlus,MATCH(SuiviChqs!$C73,JOURNAUX!$I$11:$I$2010,0),2) ->  | I73: =IFERROR(INDEX(JournalPlus,MATCH(SuiviChqs!$C73,JOURNAUX!$I$11:$I$2010,0),11),0) -> 0 | J73: =INDEX(JournalPlus,MATCH(SuiviChqs!C73,JOURNAUX!$I$11:$I$2010,0),6) ->  | K73: =INDEX(JournalPlus,MATCH(C73,JOURNAUX!$I$11:$I$2010,0),12) ->  | L73: Erreur 12 | M73: 0 | N73: FALSE | R73: - | S73: - | Y73: 12 | Z73: FALSE | AA73: FALSE | AB73: TRUE | AC73: TRUE | AD73: FALSE | AE73: 62 | AG73: =AG72+MATCH(TRUE,OFFSET($N$12,AG72,0):$N$262,0) ->  | AJ73: 0 | AK73: 0 | AO73: - | AP73: -
